Workbook

Sheet COTIZADOR
J1: Cliente | N1: E-mail
J2: Ejecutivo | N2: Teléfono
J3: Punto de Vta
B5: Datos del Crédito
D7: Fecha de cotización | F7: =TODAY() -> 2020-10-23 | K7: Programa | N7: Tradicional
D9: Elige un destino | E9: =VLOOKUP(F9,Sheet1!$B$2:$C$10,2,0) -> 1 | F9: Mejora | H9: =IF($F$9="Mejora",'Tabla Parámetros'!$M$52,"") -> ¿Destino anterior causa I.V.A.? | J9: NO | K9: Tipo de seguro | N9: Básico
D11: Elige un producto | E11: =VLOOKUP(F11,Sheet1!$E$2:$F$5,2,0) -> 1 | F11: Hipoteca Fuerte | H11: =IF($F$9="Mejora",'Tabla Parámetros'!$O$52,"") -> ¿Destino anterior es Terreno? | J11: NO | K11: Ingresa valor de vivienda | M11: Capturable | N11: =F15/0.85 -> $1,176,470.59
D13: Seguros BANORTE | F13: SI | J13: ¿Conoces el Valor Destructible? | K13: No | L13: *Valor destructible | M13: Capturable | N13: =IF($J$11="SI",0,IF($F$9='Tabla Parámetros'!$O$6,0,COTIZADOR!$N$11*0.7)) -> $823,529.41
D15: =IF($N$7="Cofinavit"," ",IF($N$7="Alia2+"," ",IF($N$7="Respalda2"," ","Monto Crédito"))) -> Monto Crédito | E15: Capturable | F15: $1,000,000.00 | H15: =IF(F15/N11>N19,'Tabla Parámetros'!M53,"") ->  | J15: ¿Exenta Comisión Apertura? | K15: Si | L15: Comisión apertura | N15: =IF($K$15="Si",0,VLOOKUP($F$9,'Tabla Parámetros'!$G$30:$I$38,2,0)) -> 0.0%
D17: =IF($N$7="Cofinavit"," ",IF($N$7="Alia2+"," ",IF($N$7="Respalda2"," ","Monto Enganche"))) -> Monto Enganche | F17: =IF($N$7="Cofinavit",0,IF($N$7="Alia2+",0,IF($N$7="Respalda2",0,$N$11-$F$15))) -> $176,470.59 | H17: =IF(F17=0,"",IF($N$7='Tabla Parámetros'!R35,'Tabla Parámetros'!M54,IF(COTIZADOR!$N$7='Tabla Parámetros'!$R$37,'Tabla Parámetros'!M54,IF(COTIZADOR!$N$7='Tabla Parámetros'!$R$39,'Tabla Parámetros'!M54,"")))) ->  | K17: Comisión apertura financiada | N17: NO
D19: Plazo en meses | F19: 240 | K19: =IF($N$7="Cofinavit"," ",IF($N$7="Alia2+"," ",IF($N$7="Respalda2"," ","Selecciona el Aforo"))) -> Selecciona el Aforo | N19: =IF(F11='Tabla Parámetros'!G45,'Tabla Parámetros'!G49,IF(COTIZADOR!F11='Tabla Parámetros'!G65,'Tabla Parámetros'!G68,IF(F11='Tabla Parámetros'!G37,'Tabla Parámetros'!G62,IF(COTIZADOR!F11='Tabla Parámetros'!G38,'Tabla Parámetros'!G63,IF($N$7="Cofinavit"," ",IF($N$7="Alia2+"," ",IF($N$7="Respalda2"," ",))))))) -> 85.00%
C21: =IF($F$9="Mejora","Estado",IF($F$9="Mejora_más_Remodelación","Estado","")) -> Estado | F21: CIUDAD DE MEXICO | L21: *Es el resultado de restar al valor comercial del inmueble, el valor del terreno.
H23: Titular | I23: Cotitular | L23: RECURSOS PARA ADAQUIRIR LA VIVIENDA
G24: Ingreso mensual bruto | H24: $50,000.00 | J24: =IF($H$24<COFINAVIT!$C$2,"Salario no válido","") -> 
G25: Subcuenta vivienda | M25: Subcuenta vivienda | N25: =$H$25+$I$25 -> 0
G26: Crédito INFONAVIT | J26: =IF((H26)>COFINAVIT!$G$10,"Máximo $475,407.36"," ") ->  | M26: Crédito INFONAVIT | N26: =$H$26+$I$26 -> 0 | O26: =IF((I26)>COFINAVIT!$G$10,"Máximo $475,407.36"," ") -> 
F27: COFINAVIT | G27: Desc INFONAVIT | J27: Ingresos Adicionales | M27: Crédito BANORTE | N27: =$H$31 -> $1,117,647.06
G28: Aportación Opcional | M28: Aportación Obligada | N28: =$H$30 -> $58,823.53
G29: Desc ecotecnologías | H29: =Ecotecnologias!G4 -> $406.77 | M29: Aportación Opcional | N29: =$H$28 -> 0
G30: Aportación Obligada | H30: =COFINAVIT!$C$25 -> $58,823.53 | I30: =COFINAVIT!$C$33 -> 0 | J30: Gastos Infonavit | M30: Saldo a Favor para Gastos | N30: =$H$32 -> 0
G31: Crédito Banorte | H31: =COFINAVIT!$C$28 -> $1,117,647.06 | I31: =$H$31/$N$11 -> 95.00% | J31: Aforo | M31: Suma | N31: =SUM(N25:N29) -> $1,176,470.59
G32: Subcta para Gastos | H32: =COFINAVIT!$C$31 -> 0
G33: Titular | H33: Cotitular
E34: Ingreso mensual bruto | I34: Capturable
E35: Capacidad Crédito Máx | I35: =IF((G35+H35)>FOVISSSTE!H12,"Máximo $375,381.18"," ") -> 
E36: Saldo SAR | I36: Capturable | J36: FOVISSSTE
E37: Descuento mensual | I37: Capturable
E38: Aportación Opcional | I38: Capturable
E39: Aportación Obligada | G39: =FOVISSSTE!D24 -> $1,101,470.59
E40: Crédito Banorte | G40: =FOVISSSTE!D29 -> $75,000.00 | H40: =$G$40/$N$11 -> 6.38% | I40: Aforo
B44: Condiciones Financieras
G45: Producto: | H45: =IF(F11='Tabla Parámetros'!O3,'Tabla Parámetros'!O3,IF(F11='Tabla Parámetros'!O4,'Tabla Parámetros'!O4,IF(F11='Tabla Parámetros'!O5,'Tabla Parámetros'!O5,IF(F11='Tabla Parámetros'!O6,'Tabla Parámetros'!O6,)))) -> Hipoteca Fuerte | K45: =IF(N7="Cofinavit",J30,"") ->  | L45: =IF($N$7="Cofinavit",$I$30,"") -> 
G46: Valor Vivienda: | H46: =N11 -> $1,176,470.59 | I46: Seguro: | J46: =$N$9 -> Básico | K46: Comisión Apertura: | L46: =IF($F$9="Terreno_Urbanizado",($H$47*$N$15)*1.16,IF($F$9="Liquidez",($H$47*$N$15)*1.16,$H$47*$N$15)) -> $0.00 | M46: =IF(N17="SI","Financiada","") -> 
F47: G | G47: Monto de Crédito: | H47: =IF(N7='Tabla Parámetros'!C32,COTIZADOR!H31,IF(COTIZADOR!N7='Tabla Parámetros'!C33,COTIZADOR!G40,IF(N7='Tabla Parámetros'!C34,COTIZADOR!G40,COTIZADOR!F15))) -> $1,000,000.00 | K47: Avalúo: | L47: ='Tabla Parámetros'!$T$91*1.16 -> $0.00
G48: Plazo: | H48: =F19 -> 240 | K48: =IF(F9="Mejora","*Honorarios Notariales:",IF(F9="Mejora_mas_Remodelación","*Honorarios Notariales:","*Gastos Notariales Estimados:")) -> *Honorarios Notariales: | L48: =IF($F$9="Mejora",VLOOKUP($F$21,Notariales!$B$2:$E$33,4,0),IF(COTIZADOR!$F$9="Mejora_más_Remodelación",VLOOKUP(COTIZADOR!$F$21,Notariales!$B$2:$E$33,4,0),IF($F$9="Liquidez",$H$47*$H$49,IF($F$9='Tabla Parámetros'!$J$7,COTIZADOR!$H$47*COTIZADOR!$H$49,$N$11*$H$49)))) -> $12,931.03 | M48: Sin IVA
B49: * El valor final lo informa el Notario a la firma de contrato. | G49: =IF($F$9="Mejora"," ",IF($F$9="Mejora_más_Remodelación"," ","*Gastos Notariales:")) ->  | H49: 6.0% | K49: Comisión Investigación: | L49: =IF(H45='Tabla Parámetros'!W1,'Tabla Parámetros'!W21,'Tabla Parámetros'!Y9) -> $750.00
G50: Desembolso Inicial Estimado: | L50: =IF($F$9='Tabla Parámetros'!$P$24,'Tabla Parámetros'!$R$24,IF(COTIZADOR!F9='Tabla Parámetros'!P25,'Tabla Parámetros'!R24,IF(COTIZADOR!F9='Tabla Parámetros'!P26,'Tabla Parámetros'!R24,IF(COTIZADOR!F9='Tabla Parámetros'!P27,'Tabla Parámetros'!R24,IF(COTIZADOR!F9='Tabla Parámetros'!P29,'Tabla Parámetros'!R24,VLOOKUP('Tabla Parámetros'!$O$30,'Tabla Parámetros'!$P$31:$Q$40,2,0)))))) -> $13,681.03 | M50: =IF('Tabla Parámetros'!$V$47<0,"Saldo a Favor del Cliente","") -> 
I52: Mínima | J52: Baja | K52: Media | L52: Alta
G53: *Tasa Interés anual fija | I53: ='Pago x mil'!$E$12 -> 7.5% | J53: ='Pago x mil'!$F$12 -> 8.5% | K53: ='Pago x mil'!$G$12 -> 9.5% | L53: ='Pago x mil'!$H$12 -> 10.5%
G54: Pago por Mil | I54: ='Pago x mil'!$E$13 -> $8.12 | J54: ='Pago x mil'!$F$13 -> $8.75 | K54: ='Pago x mil'!$G$13 -> $9.40 | L54: ='Pago x mil'!$H$13 -> $10.08
B55: *La Tasa otorgada será en base a la evaluación de crédito y se mantiene fija toda la vida del crédito | G55: Mensualidad Inicial | I55: ='Pago x mil'!$E$21 -> $9,313.25 | J55: ='Pago x mil'!$F$21 -> $9,946.15 | K55: ='Pago x mil'!$G$21 -> $10,600.24 | L55: ='Pago x mil'!$H$21 -> $11,274.08
G56: Ingreso Requerido | I56: ='Pago x mil'!$E$22 -> $18,626.50 | J56: ='Pago x mil'!$F$22 -> $19,892.31 | K56: ='Pago x mil'!$G$22 -> $21,200.48 | L56: ='Pago x mil'!$H$22 -> $22,548.15
B60: Tabla de Amortización
B62: Selecciona la Tasa a cotizar | F62: 7.5% | L62: Selecciona tipo de prepago | N62: Reduce Plazo y Pago
L63: Su crédito se amortizará en | N63: =IF($F$9='Tabla Parámetros'!$J$7,SUM(COTIZADOR!R332:R571),IF($F$9='Tabla Parámetros'!$J$9,SUM(COTIZADOR!R332:R571),IF($F$9='Tabla Parámetros'!J8,SUM(COTIZADOR!R332:R571),SUM(Q67:Q306)))) -> 240 | O63: meses
B64: CAT Promedio | D64: =IF(F11='Tabla Parámetros'!G45,'Tabla Parámetros'!G50,IF(COTIZADOR!F11='Tabla Parámetros'!G65,'Tabla Parámetros'!G70,IF(COTIZADOR!F11='Tabla Parámetros'!B52,'Tabla Parámetros'!G61,IF(COTIZADOR!F11='Tabla Parámetros'!B53,'Tabla Parámetros'!G61,)))) -> 9.7% | E64: Sin IVA Informativo
B66: No. | C66: Fecha | D66: Días | E66: Tasa | F66: Saldo Inicial | G66: Capital | H66: Interés | I66: =IF($F$9="Liquidez",'Tabla Fijos'!$I$10,IF($F$9="Terreno_Urbanizado",'Tabla Fijos'!$I$10,IF($J$9="SI",'Tabla Fijos'!$I$10,""))) ->  | J66: Seguro de Vida | K66: Seguro de Daños y Contenidos | L66: Comisión Diferida | M66: =IF($N$7='Tabla Parámetros'!$C$31,'Tabla Fijos'!$N$10,"") ->  | N66: Aportación a Capital | O66: Pago Mensual | P66: Saldo Final
B67: 1 | C67: =IF($B$67="","",'Fecha Pago'!K4) -> 2020-11-03 | D67: =IF($B$67="","",'Fecha Pago'!L4) -> 12.00 | E67: =IF($F$11='Tabla Parámetros'!$O$3,'Tabla Fijos'!E12,IF($F$11='Tabla Parámetros'!$O$5,'Tabla Fijos'!E12,IF(COTIZADOR!$F$11='Tabla Parámetros'!$O$6,'Tabla Fijos'!E12,IF(COTIZADOR!$F$11='Tabla Parámetros'!$O$4,'Tabla Crecientes'!E11)))) -> 7.50% | F67: =IF($F$11='Tabla Parámetros'!$O$3,'Tabla Fijos'!F12,IF($F$11='Tabla Parámetros'!$O$5,'Tabla Fijos'!F12,IF(COTIZADOR!$F$11='Tabla Parámetros'!$O$6,'Tabla Fijos'!F12,IF(COTIZADOR!$F$11='Tabla Parámetros'!$O$4,'Tabla Crecientes'!F11)))) -> 1,000,000.00 | G67: =IF($F$11='Tabla Parámetros'!$O$3,'Tabla Fijos'!G12,IF($F$11='Tabla Parámetros'!$O$5,'Tabla Fijos'!G12,IF(COTIZADOR!$F$11='Tabla Parámetros'!$O$6,'Tabla Fijos'!G12,IF(COTIZADOR!$F$11='Tabla Parámetros'!$O$4,'Tabla Crecientes'!G11)))) -> 1,783.86 | H67: =IF($F$11='Tabla Parámetros'!$O$3,'Tabla Fijos'!H12,IF($F$11='Tabla Parámetros'!$O$5,'Tabla Fijos'!H12,IF(COTIZADOR!$F$11='Tabla Parámetros'!$O$6,'Tabla Fijos'!H12,IF(COTIZADOR!$F$11='Tabla Parámetros'!$O$4,'Tabla Crecientes'!H11)))) -> 2,500.00 | I67: =IF($F$11='Tabla Parámetros'!$O$3,'Tabla Fijos'!I12,IF($F$11='Tabla Parámetros'!$O$5,'Tabla Fijos'!I12,IF(COTIZADOR!$F$11='Tabla Parámetros'!$O$6,'Tabla Fijos'!I12,IF(COTIZADOR!$F$11='Tabla Parámetros'!$O$4,'Tabla Crecientes'!I11)))) -> 0.00 | J67: =IF($F$11='Tabla Parámetros'!$O$3,'Tabla Fijos'!K12,IF($F$11='Tabla Parámetros'!$O$5,'Tabla Fijos'!K12,IF(COTIZADOR!$F$11='Tabla Parámetros'!$O$6,'Tabla Fijos'!K12,IF(COTIZADOR!$F$11='Tabla Parámetros'!$O$4,'Tabla Crecientes'!K11)))) -> 240.00 | K67: =IF($F$11='Tabla Parámetros'!$O$3,'Tabla Fijos'!L12,IF($F$11='Tabla Parámetros'!$O$5,'Tabla Fijos'!L12,IF(COTIZADOR!$F$11='Tabla Parámetros'!$O$6,'Tabla Fijos'!L12,IF(COTIZADOR!$F$11='Tabla Parámetros'!$O$4,'Tabla Crecientes'!L11)))) -> 98.82 | L67: =IF($F$11='Tabla Parámetros'!$O$3,'Tabla Fijos'!M12,IF($F$11='Tabla Parámetros'!$O$5,'Tabla Fijos'!M12,IF(COTIZADOR!$F$11='Tabla Parámetros'!$O$6,'Tabla Fijos'!M12,IF(COTIZADOR!$F$11='Tabla Parámetros'!$O$4,'Tabla Crecientes'!M11)))) -> 349.00 | M67: =IF($F$11='Tabla Parámetros'!$O$3,'Tabla Fijos'!N12,IF($F$11='Tabla Parámetros'!$O$5,'Tabla Fijos'!N12,IF(COTIZADOR!$F$11='Tabla Parámetros'!$O$6,'Tabla Fijos'!N12,IF(COTIZADOR!$F$11='Tabla Parámetros'!$O$4,'Tabla Crecientes'!N11)))) -> 0.00 | O67: =IF(B67="","",G67+H67+I67+J67+K67+L67-M67) -> 4,971.68 | P67: =IF(B67="","",F67-G67) -> 998,216.14 | Q67: =IF(OR($B67="",$F67<=0),0,1) -> 1
B68: =IF(B67="","",IF(B67=$F$19,"",B67+1)) -> 2 | C68: =IF($B$67="","",'Fecha Pago'!K5) -> 2020-12-03 | D68: =IF($B$67="","",'Fecha Pago'!L5) -> 30.40 | E68: =IF(B68="","",IF($F$11='Tabla Parámetros'!$O$3,'Tabla Fijos'!E12,IF($F$11='Tabla Parámetros'!$O$5,'Tabla Fijos'!E12,IF(COTIZADOR!$F$11='Tabla Parámetros'!$O$6,'Tabla Fijos'!E12,IF(COTIZADOR!$F$11='Tabla Parámetros'!$O$4,'Tabla Crecientes'!E11))))) -> 7.50% | F68: =IF(B68="","",IF(P67<0,0,F67-G67)) -> 998,216.14 | G68: =IF(B68="","",IF($F$11='Tabla Parámetros'!$O$3,'Tabla Fijos'!G13,IF($F$11='Tabla Parámetros'!$O$5,'Tabla Fijos'!G13,IF(COTIZADOR!$F$11='Tabla Parámetros'!$O$6,'Tabla Fijos'!G13,IF(COTIZADOR!$F$11='Tabla Parámetros'!$O$4,'Tabla Crecientes'!G12))))) -> 1,795.15 | H68: =IF(B68="","",IF($F$11='Tabla Parámetros'!$O$3,'Tabla Fijos'!H13,IF($F$11='Tabla Parámetros'!$O$5,'Tabla Fijos'!H13,IF(COTIZADOR!$F$11='Tabla Parámetros'!$O$6,'Tabla Fijos'!H13,IF(COTIZADOR!$F$11='Tabla Parámetros'!$O$4,'Tabla Crecientes'!H12))))) -> 6,322.04 | I68: =IF($F$11='Tabla Parámetros'!$O$3,'Tabla Fijos'!I13,IF($F$11='Tabla Parámetros'!$O$5,'Tabla Fijos'!I13,IF(COTIZADOR!$F$11='Tabla Parámetros'!$O$6,'Tabla Fijos'!I13,IF(COTIZADOR!$F$11='Tabla Parámetros'!$O$4,'Tabla Crecientes'!I12)))) -> 0.00 | J68: =IF(B68="","",IF($F$11='Tabla Parámetros'!$O$3,'Tabla Fijos'!K13,IF($F$11='Tabla Parámetros'!$O$5,'Tabla Fijos'!K13,IF(COTIZADOR!$F$11='Tabla Parámetros'!$O$6,'Tabla Fijos'!K13,IF(COTIZADOR!$F$11='Tabla Parámetros'!$O$4,'Tabla Crecientes'!K12))))) -> 598.93 | K68: =IF(B68="","",IF($F$11='Tabla Parámetros'!$O$3,'Tabla Fijos'!L13,IF($F$11='Tabla Parámetros'!$O$5,'Tabla Fijos'!L13,IF(COTIZADOR!$F$11='Tabla Parámetros'!$O$6,'Tabla Fijos'!L13,IF(COTIZADOR!$F$11='Tabla Parámetros'!$O$4,'Tabla Crecientes'!L12))))) -> 247.06 | L68: =IF(B68="","",IF($F$11='Tabla Parámetros'!$O$3,'Tabla Fijos'!M13,IF($F$11='Tabla Parámetros'!$O$5,'Tabla Fijos'!M13,IF(COTIZADOR!$F$11='Tabla Parámetros'!$O$6,'Tabla Fijos'!M13,IF(COTIZADOR!$F$11='Tabla Parámetros'!$O$4,'Tabla Crecientes'!M12))))) -> 349.00 | M68: =IF($F$11='Tabla Parámetros'!$O$3,'Tabla Fijos'!N13,IF($F$11='Tabla Parámetros'!$O$5,'Tabla Fijos'!N13,IF(COTIZADOR!$F$11='Tabla Parámetros'!$O$6,'Tabla Fijos'!N13,IF(COTIZADOR!$F$11='Tabla Parámetros'!$O$4,'Tabla Crecientes'!N12)))) -> 0.00 | O68: =IF(B68="","",G68+H68+I68+J68+K68+L68-M68) -> 9,312.18 | P68: 996,420.99 | Q68: =IF(OR($B68="",$F68<=0),0,1) -> 1
B69: =IF(B68="","",IF(B68=$F$19,"",B68+1)) -> 3 | C69: =IF($B$67="","",'Fecha Pago'!K6) -> 2021-01-03 | D69: =IF($B$67="","",'Fecha Pago'!L6) -> 30.40 | E69: =IF(B69="","",IF($F$11='Tabla Parámetros'!$O$3,'Tabla Fijos'!E13,IF($F$11='Tabla Parámetros'!$O$5,'Tabla Fijos'!E13,IF(COTIZADOR!$F$11='Tabla Parámetros'!$O$6,'Tabla Fijos'!E13,IF(COTIZADOR!$F$11='Tabla Parámetros'!$O$4,'Tabla Crecientes'!E12))))) -> 7.50% | F69: 996,420.99 | G69: =IF(B69="","",IF($F$11='Tabla Parámetros'!$O$3,'Tabla Fijos'!G14,IF($F$11='Tabla Parámetros'!$O$5,'Tabla Fijos'!G14,IF(COTIZADOR!$F$11='Tabla Parámetros'!$O$6,'Tabla Fijos'!G14,IF(COTIZADOR!$F$11='Tabla Parámetros'!$O$4,'Tabla Crecientes'!G13))))) -> 1,806.52 | H69: =IF(B69="","",IF($F$11='Tabla Parámetros'!$O$3,'Tabla Fijos'!H14,IF($F$11='Tabla Parámetros'!$O$5,'Tabla Fijos'!H14,IF(COTIZADOR!$F$11='Tabla Parámetros'!$O$6,'Tabla Fijos'!H14,IF(COTIZADOR!$F$11='Tabla Parámetros'!$O$4,'Tabla Crecientes'!H13))))) -> 6,310.67 | I69: =IF($F$11='Tabla Parámetros'!$O$3,'Tabla Fijos'!I14,IF($F$11='Tabla Parámetros'!$O$5,'Tabla Fijos'!I14,IF(COTIZADOR!$F$11='Tabla Parámetros'!$O$6,'Tabla Fijos'!I14,IF(COTIZADOR!$F$11='Tabla Parámetros'!$O$4,'Tabla Crecientes'!I13)))) -> 0.00 | J69: =IF(B69="","",IF($F$11='Tabla Parámetros'!$O$3,'Tabla Fijos'!K14,IF($F$11='Tabla Parámetros'!$O$5,'Tabla Fijos'!K14,IF(COTIZADOR!$F$11='Tabla Parámetros'!$O$6,'Tabla Fijos'!K14,IF(COTIZADOR!$F$11='Tabla Parámetros'!$O$4,'Tabla Crecientes'!K13))))) -> 597.85 | K69: =IF(B69="","",IF($F$11='Tabla Parámetros'!$O$3,'Tabla Fijos'!L14,IF($F$11='Tabla Parámetros'!$O$5,'Tabla Fijos'!L14,IF(COTIZADOR!$F$11='Tabla Parámetros'!$O$6,'Tabla Fijos'!L14,IF(COTIZADOR!$F$11='Tabla Parámetros'!$O$4,'Tabla Crecientes'!L13))))) -> 247.06 | L69: =IF(B69="","",IF($F$11='Tabla Parámetros'!$O$3,'Tabla Fijos'!M14,IF($F$11='Tabla Parámetros'!$O$5,'Tabla Fijos'!M14,IF(COTIZADOR!$F$11='Tabla Parámetros'!$O$6,'Tabla Fijos'!M14,IF(COTIZADOR!$F$11='Tabla Parámetros'!$O$4,'Tabla Crecientes'!M13))))) -> 349.00 | M69: =IF($F$11='Tabla Parámetros'!$O$3,'Tabla Fijos'!N14,IF($F$11='Tabla Parámetros'!$O$5,'Tabla Fijos'!N14,IF(COTIZADOR!$F$11='Tabla Parámetros'!$O$6,'Tabla Fijos'!N14,IF(COTIZADOR!$F$11='Tabla Parámetros'!$O$4,'Tabla Crecientes'!N13)))) -> 0.00 | O69: 9,311.10 | P69: 994,614.47 | Q69: 1
B70: 4 | C70: =IF($B$67="","",'Fecha Pago'!K7) -> 2021-02-03 | D70: =IF($B$67="","",'Fecha Pago'!L7) -> 30.40 | E70: =IF(B70="","",IF($F$11='Tabla Parámetros'!$O$3,'Tabla Fijos'!E14,IF($F$11='Tabla Parámetros'!$O$5,'Tabla Fijos'!E14,IF(COTIZADOR!$F$11='Tabla Parámetros'!$O$6,'Tabla Fijos'!E14,IF(COTIZADOR!$F$11='Tabla Parámetros'!$O$4,'Tabla Crecientes'!E13))))) -> 7.50% | F70: 994,614.47 | G70: =IF(B70="","",IF($F$11='Tabla Parámetros'!$O$3,'Tabla Fijos'!G15,IF($F$11='Tabla Parámetros'!$O$5,'Tabla Fijos'!G15,IF(COTIZADOR!$F$11='Tabla Parámetros'!$O$6,'Tabla Fijos'!G15,IF(COTIZADOR!$F$11='Tabla Parámetros'!$O$4,'Tabla Crecientes'!G14))))) -> 1,817.96 | H70: =IF(B70="","",IF($F$11='Tabla Parámetros'!$O$3,'Tabla Fijos'!H15,IF($F$11='Tabla Parámetros'!$O$5,'Tabla Fijos'!H15,IF(COTIZADOR!$F$11='Tabla Parámetros'!$O$6,'Tabla Fijos'!H15,IF(COTIZADOR!$F$11='Tabla Parámetros'!$O$4,'Tabla Crecientes'!H14))))) -> 6,299.22 | I70: =IF($F$11='Tabla Parámetros'!$O$3,'Tabla Fijos'!I15,IF($F$11='Tabla Parámetros'!$O$5,'Tabla Fijos'!I15,IF(COTIZADOR!$F$11='Tabla Parámetros'!$O$6,'Tabla Fijos'!I15,IF(COTIZADOR!$F$11='Tabla Parámetros'!$O$4,'Tabla Crecientes'!I14)))) -> 0.00 | J70: =IF(B70="","",IF($F$11='Tabla Parámetros'!$O$3,'Tabla Fijos'!K15,IF($F$11='Tabla Parámetros'!$O$5,'Tabla Fijos'!K15,IF(COTIZADOR!$F$11='Tabla Parámetros'!$O$6,'Tabla Fijos'!K15,IF(COTIZADOR!$F$11='Tabla Parámetros'!$O$4,'Tabla Crecientes'!K14))))) -> 596.77 | K70: =IF(B70="","",IF($F$11='Tabla Parámetros'!$O$3,'Tabla Fijos'!L15,IF($F$11='Tabla Parámetros'!$O$5,'Tabla Fijos'!L15,IF(COTIZADOR!$F$11='Tabla Parámetros'!$O$6,'Tabla Fijos'!L15,IF(COTIZADOR!$F$11='Tabla Parámetros'!$O$4,'Tabla Crecientes'!L14))))) -> 247.06 | L70: =IF(B70="","",IF($F$11='Tabla Parámetros'!$O$3,'Tabla Fijos'!M15,IF($F$11='Tabla Parámetros'!$O$5,'Tabla Fijos'!M15,IF(COTIZADOR!$F$11='Tabla Parámetros'!$O$6,'Tabla Fijos'!M15,IF(COTIZADOR!$F$11='Tabla Parámetros'!$O$4,'Tabla Crecientes'!M14))))) -> 349.00 | M70: =IF($F$11='Tabla Parámetros'!$O$3,'Tabla Fijos'!N15,IF($F$11='Tabla Parámetros'!$O$5,'Tabla Fijos'!N15,IF(COTIZADOR!$F$11='Tabla Parámetros'!$O$6,'Tabla Fijos'!N15,IF(COTIZADOR!$F$11='Tabla Parámetros'!$O$4,'Tabla Crecientes'!N14)))) -> 0.00 | O70: 9,310.02 | P70: 992,796.51 | Q70: 1
B71: 5 | C71: =IF($B$67="","",'Fecha Pago'!K8) -> 2021-03-03 | D71: =IF($B$67="","",'Fecha Pago'!L8) -> 30.40 | E71: =IF(B71="","",IF($F$11='Tabla Parámetros'!$O$3,'Tabla Fijos'!E15,IF($F$11='Tabla Parámetros'!$O$5,'Tabla Fijos'!E15,IF(COTIZADOR!$F$11='Tabla Parámetros'!$O$6,'Tabla Fijos'!E15,IF(COTIZADOR!$F$11='Tabla Parámetros'!$O$4,'Tabla Crecientes'!E14))))) -> 7.50% | F71: 992,796.51 | G71: =IF(B71="","",IF($F$11='Tabla Parámetros'!$O$3,'Tabla Fijos'!G16,IF($F$11='Tabla Parámetros'!$O$5,'Tabla Fijos'!G16,IF(COTIZADOR!$F$11='Tabla Parámetros'!$O$6,'Tabla Fijos'!G16,IF(COTIZADOR!$F$11='Tabla Parámetros'!$O$4,'Tabla Crecientes'!G15))))) -> 1,829.48 | H71: =IF(B71="","",IF($F$11='Tabla Parámetros'!$O$3,'Tabla Fijos'!H16,IF($F$11='Tabla Parámetros'!$O$5,'Tabla Fijos'!H16,IF(COTIZADOR!$F$11='Tabla Parámetros'!$O$6,'Tabla Fijos'!H16,IF(COTIZADOR!$F$11='Tabla Parámetros'!$O$4,'Tabla Crecientes'!H15))))) -> 6,287.71 | I71: =IF($F$11='Tabla Parámetros'!$O$3,'Tabla Fijos'!I16,IF($F$11='Tabla Parámetros'!$O$5,'Tabla Fijos'!I16,IF(COTIZADOR!$F$11='Tabla Parámetros'!$O$6,'Tabla Fijos'!I16,IF(COTIZADOR!$F$11='Tabla Parámetros'!$O$4,'Tabla Crecientes'!I15)))) -> 0.00 | J71: =IF(B71="","",IF($F$11='Tabla Parámetros'!$O$3,'Tabla Fijos'!K16,IF($F$11='Tabla Parámetros'!$O$5,'Tabla Fijos'!K16,IF(COTIZADOR!$F$11='Tabla Parámetros'!$O$6,'Tabla Fijos'!K16,IF(COTIZADOR!$F$11='Tabla Parámetros'!$O$4,'Tabla Crecientes'!K15))))) -> 595.68 | K71: =IF(B71="","",IF($F$11='Tabla Parámetros'!$O$3,'Tabla Fijos'!L16,IF($F$11='Tabla Parámetros'!$O$5,'Tabla Fijos'!L16,IF(COTIZADOR!$F$11='Tabla Parámetros'!$O$6,'Tabla Fijos'!L16,IF(COTIZADOR!$F$11='Tabla Parámetros'!$O$4,'Tabla Crecientes'!L15))))) -> 247.06 | L71: =IF(B71="","",IF($F$11='Tabla Parámetros'!$O$3,'Tabla Fijos'!M16,IF($F$11='Tabla Parámetros'!$O$5,'Tabla Fijos'!M16,IF(COTIZADOR!$F$11='Tabla Parámetros'!$O$6,'Tabla Fijos'!M16,IF(COTIZADOR!$F$11='Tabla Parámetros'!$O$4,'Tabla Crecientes'!M15))))) -> 349.00 | M71: =IF($F$11='Tabla Parámetros'!$O$3,'Tabla Fijos'!N16,IF($F$11='Tabla Parámetros'!$O$5,'Tabla Fijos'!N16,IF(COTIZADOR!$F$11='Tabla Parámetros'!$O$6,'Tabla Fijos'!N16,IF(COTIZADOR!$F$11='Tabla Parámetros'!$O$4,'Tabla Crecientes'!N15)))) -> 0.00 | O71: 9,308.93 | P71: 990,967.03 | Q71: 1
B72: 6 | C72: =IF($B$67="","",'Fecha Pago'!K9) -> 2021-04-03 | D72: =IF($B$67="","",'Fecha Pago'!L9) -> 30.40 | E72: =IF(B72="","",IF($F$11='Tabla Parámetros'!$O$3,'Tabla Fijos'!E16,IF($F$11='Tabla Parámetros'!$O$5,'Tabla Fijos'!E16,IF(COTIZADOR!$F$11='Tabla Parámetros'!$O$6,'Tabla Fijos'!E16,IF(COTIZADOR!$F$11='Tabla Parámetros'!$O$4,'Tabla Crecientes'!E15))))) -> 7.50% | F72: 990,967.03 | G72: =IF(B72="","",IF($F$11='Tabla Parámetros'!$O$3,'Tabla Fijos'!G17,IF($F$11='Tabla Parámetros'!$O$5,'Tabla Fijos'!G17,IF(COTIZADOR!$F$11='Tabla Parámetros'!$O$6,'Tabla Fijos'!G17,IF(COTIZADOR!$F$11='Tabla Parámetros'!$O$4,'Tabla Crecientes'!G16))))) -> 1,841.06 | H72: =IF(B72="","",IF($F$11='Tabla Parámetros'!$O$3,'Tabla Fijos'!H17,IF($F$11='Tabla Parámetros'!$O$5,'Tabla Fijos'!H17,IF(COTIZADOR!$F$11='Tabla Parámetros'!$O$6,'Tabla Fijos'!H17,IF(COTIZADOR!$F$11='Tabla Parámetros'!$O$4,'Tabla Crecientes'!H16))))) -> 6,276.12 | I72: =IF($F$11='Tabla Parámetros'!$O$3,'Tabla Fijos'!I17,IF($F$11='Tabla Parámetros'!$O$5,'Tabla Fijos'!I17,IF(COTIZADOR!$F$11='Tabla Parámetros'!$O$6,'Tabla Fijos'!I17,IF(COTIZADOR!$F$11='Tabla Parámetros'!$O$4,'Tabla Crecientes'!I16)))) -> 0.00 | J72: =IF(B72="","",IF($F$11='Tabla Parámetros'!$O$3,'Tabla Fijos'!K17,IF($F$11='Tabla Parámetros'!$O$5,'Tabla Fijos'!K17,IF(COTIZADOR!$F$11='Tabla Parámetros'!$O$6,'Tabla Fijos'!K17,IF(COTIZADOR!$F$11='Tabla Parámetros'!$O$4,'Tabla Crecientes'!K16))))) -> 594.58 | K72: =IF(B72="","",IF($F$11='Tabla Parámetros'!$O$3,'Tabla Fijos'!L17,IF($F$11='Tabla Parámetros'!$O$5,'Tabla Fijos'!L17,IF(COTIZADOR!$F$11='Tabla Parámetros'!$O$6,'Tabla Fijos'!L17,IF(COTIZADOR!$F$11='Tabla Parámetros'!$O$4,'Tabla Crecientes'!L16))))) -> 247.06 | L72: =IF(B72="","",IF($F$11='Tabla Parámetros'!$O$3,'Tabla Fijos'!M17,IF($F$11='Tabla Parámetros'!$O$5,'Tabla Fijos'!M17,IF(COTIZADOR!$F$11='Tabla Parámetros'!$O$6,'Tabla Fijos'!M17,IF(COTIZADOR!$F$11='Tabla Parámetros'!$O$4,'Tabla Crecientes'!M16))))) -> 349.00 | M72: =IF($F$11='Tabla Parámetros'!$O$3,'Tabla Fijos'!N17,IF($F$11='Tabla Parámetros'!$O$5,'Tabla Fijos'!N17,IF(COTIZADOR!$F$11='Tabla Parámetros'!$O$6,'Tabla Fijos'!N17,IF(COTIZADOR!$F$11='Tabla Parámetros'!$O$4,'Tabla Crecientes'!N16)))) -> 0.00 | O72: 9,307.83 | P72: 989,125.96 | Q72: 1
B73: 7 | C73: =IF($B$67="","",'Fecha Pago'!K10) -> 2021-05-03 | D73: =IF($B$67="","",'Fecha Pago'!L10) -> 30.40 | E73: =IF(B73="","",IF($F$11='Tabla Parámetros'!$O$3,'Tabla Fijos'!E17,IF($F$11='Tabla Parámetros'!$O$5,'Tabla Fijos'!E17,IF(COTIZADOR!$F$11='Tabla Parámetros'!$O$6,'Tabla Fijos'!E17,IF(COTIZADOR!$F$11='Tabla Parámetros'!$O$4,'Tabla Crecientes'!E16))))) -> 7.50% | F73: 989,125.96 | G73: =IF(B73="","",IF($F$11='Tabla Parámetros'!$O$3,'Tabla Fijos'!G18,IF($F$11='Tabla Parámetros'!$O$5,'Tabla Fijos'!G18,IF(COTIZADOR!$F$11='Tabla Parámetros'!$O$6,'Tabla Fijos'!G18,IF(COTIZADOR!$F$11='Tabla Parámetros'!$O$4,'Tabla Crecientes'!G17))))) -> 1,852.72 | H73: =IF(B73="","",IF($F$11='Tabla Parámetros'!$O$3,'Tabla Fijos'!H18,IF($F$11='Tabla Parámetros'!$O$5,'Tabla Fijos'!H18,IF(COTIZADOR!$F$11='Tabla Parámetros'!$O$6,'Tabla Fijos'!H18,IF(COTIZADOR!$F$11='Tabla Parámetros'!$O$4,'Tabla Crecientes'!H17))))) -> 6,264.46 | I73: =IF($F$11='Tabla Parámetros'!$O$3,'Tabla Fijos'!I18,IF($F$11='Tabla Parámetros'!$O$5,'Tabla Fijos'!I18,IF(COTIZADOR!$F$11='Tabla Parámetros'!$O$6,'Tabla Fijos'!I18,IF(COTIZADOR!$F$11='Tabla Parámetros'!$O$4,'Tabla Crecientes'!I17)))) -> 0.00 | J73: =IF(B73="","",IF($F$11='Tabla Parámetros'!$O$3,'Tabla Fijos'!K18,IF($F$11='Tabla Parámetros'!$O$5,'Tabla Fijos'!K18,IF(COTIZADOR!$F$11='Tabla Parámetros'!$O$6,'Tabla Fijos'!K18,IF(COTIZADOR!$F$11='Tabla Parámetros'!$O$4,'Tabla Crecientes'!K17))))) -> 593.48 | K73: =IF(B73="","",IF($F$11='Tabla Parámetros'!$O$3,'Tabla Fijos'!L18,IF($F$11='Tabla Parámetros'!$O$5,'Tabla Fijos'!L18,IF(COTIZADOR!$F$11='Tabla Parámetros'!$O$6,'Tabla Fijos'!L18,IF(COTIZADOR!$F$11='Tabla Parámetros'!$O$4,'Tabla Crecientes'!L17))))) -> 247.06 | L73: =IF(B73="","",IF($F$11='Tabla Parámetros'!$O$3,'Tabla Fijos'!M18,IF($F$11='Tabla Parámetros'!$O$5,'Tabla Fijos'!M18,IF(COTIZADOR!$F$11='Tabla Parámetros'!$O$6,'Tabla Fijos'!M18,IF(COTIZADOR!$F$11='Tabla Parámetros'!$O$4,'Tabla Crecientes'!M17))))) -> 349.00 | M73: =IF($F$11='Tabla Parámetros'!$O$3,'Tabla Fijos'!N18,IF($F$11='Tabla Parámetros'!$O$5,'Tabla Fijos'!N18,IF(COTIZADOR!$F$11='Tabla Parámetros'!$O$6,'Tabla Fijos'!N18,IF(COTIZADOR!$F$11='Tabla Parámetros'!$O$4,'Tabla Crecientes'!N17)))) -> 0.00 | O73: 9,306.72 | P73: 987,273.24 | Q73: 1
B74: 8 | C74: =IF($B$67="","",'Fecha Pago'!K11) -> 2021-06-03 | D74: =IF($B$67="","",'Fecha Pago'!L11) -> 30.40 | E74: =IF(B74="","",IF($F$11='Tabla Parámetros'!$O$3,'Tabla Fijos'!E18,IF($F$11='Tabla Parámetros'!$O$5,'Tabla Fijos'!E18,IF(COTIZADOR!$F$11='Tabla Parámetros'!$O$6,'Tabla Fijos'!E18,IF(COTIZADOR!$F$11='Tabla Parámetros'!$O$4,'Tabla Crecientes'!E17))))) -> 7.50% | F74: 987,273.24 | G74: =IF(B74="","",IF($F$11='Tabla Parámetros'!$O$3,'Tabla Fijos'!G19,IF($F$11='Tabla Parámetros'!$O$5,'Tabla Fijos'!G19,IF(COTIZADOR!$F$11='Tabla Parámetros'!$O$6,'Tabla Fijos'!G19,IF(COTIZADOR!$F$11='Tabla Parámetros'!$O$4,'Tabla Crecientes'!G18))))) -> 1,864.46 | H74: =IF(B74="","",IF($F$11='Tabla Parámetros'!$O$3,'Tabla Fijos'!H19,IF($F$11='Tabla Parámetros'!$O$5,'Tabla Fijos'!H19,IF(COTIZADOR!$F$11='Tabla Parámetros'!$O$6,'Tabla Fijos'!H19,IF(COTIZADOR!$F$11='Tabla Parámetros'!$O$4,'Tabla Crecientes'!H18))))) -> 6,252.73 | I74: =IF($F$11='Tabla Parámetros'!$O$3,'Tabla Fijos'!I19,IF($F$11='Tabla Parámetros'!$O$5,'Tabla Fijos'!I19,IF(COTIZADOR!$F$11='Tabla Parámetros'!$O$6,'Tabla Fijos'!I19,IF(COTIZADOR!$F$11='Tabla Parámetros'!$O$4,'Tabla Crecientes'!I18)))) -> 0.00 | J74: =IF(B74="","",IF($F$11='Tabla Parámetros'!$O$3,'Tabla Fijos'!K19,IF($F$11='Tabla Parámetros'!$O$5,'Tabla Fijos'!K19,IF(COTIZADOR!$F$11='Tabla Parámetros'!$O$6,'Tabla Fijos'!K19,IF(COTIZADOR!$F$11='Tabla Parámetros'!$O$4,'Tabla Crecientes'!K18))))) -> 592.36 | K74: =IF(B74="","",IF($F$11='Tabla Parámetros'!$O$3,'Tabla Fijos'!L19,IF($F$11='Tabla Parámetros'!$O$5,'Tabla Fijos'!L19,IF(COTIZADOR!$F$11='Tabla Parámetros'!$O$6,'Tabla Fijos'!L19,IF(COTIZADOR!$F$11='Tabla Parámetros'!$O$4,'Tabla Crecientes'!L18))))) -> 247.06 | L74: =IF(B74="","",IF($F$11='Tabla Parámetros'!$O$3,'Tabla Fijos'!M19,IF($F$11='Tabla Parámetros'!$O$5,'Tabla Fijos'!M19,IF(COTIZADOR!$F$11='Tabla Parámetros'!$O$6,'Tabla Fijos'!M19,IF(COTIZADOR!$F$11='Tabla Parámetros'!$O$4,'Tabla Crecientes'!M18))))) -> 349.00 | M74: =IF($F$11='Tabla Parámetros'!$O$3,'Tabla Fijos'!N19,IF($F$11='Tabla Parámetros'!$O$5,'Tabla Fijos'!N19,IF(COTIZADOR!$F$11='Tabla Parámetros'!$O$6,'Tabla Fijos'!N19,IF(COTIZADOR!$F$11='Tabla Parámetros'!$O$4,'Tabla Crecientes'!N18)))) -> 0.00 | O74: 9,305.61 | P74: 985,408.78 | Q74: 1
B75: 9 | C75: =IF($B$67="","",'Fecha Pago'!K12) -> 2021-07-03 | D75: =IF($B$67="","",'Fecha Pago'!L12) -> 30.40 | E75: =IF(B75="","",IF($F$11='Tabla Parámetros'!$O$3,'Tabla Fijos'!E19,IF($F$11='Tabla Parámetros'!$O$5,'Tabla Fijos'!E19,IF(COTIZADOR!$F$11='Tabla Parámetros'!$O$6,'Tabla Fijos'!E19,IF(COTIZADOR!$F$11='Tabla Parámetros'!$O$4,'Tabla Crecientes'!E18))))) -> 7.50% | F75: 985,408.78 | G75: =IF(B75="","",IF($F$11='Tabla Parámetros'!$O$3,'Tabla Fijos'!G20,IF($F$11='Tabla Parámetros'!$O$5,'Tabla Fijos'!G20,IF(COTIZADOR!$F$11='Tabla Parámetros'!$O$6,'Tabla Fijos'!G20,IF(COTIZADOR!$F$11='Tabla Parámetros'!$O$4,'Tabla Crecientes'!G19))))) -> 1,876.27 | H75: =IF(B75="","",IF($F$11='Tabla Parámetros'!$O$3,'Tabla Fijos'!H20,IF($F$11='Tabla Parámetros'!$O$5,'Tabla Fijos'!H20,IF(COTIZADOR!$F$11='Tabla Parámetros'!$O$6,'Tabla Fijos'!H20,IF(COTIZADOR!$F$11='Tabla Parámetros'!$O$4,'Tabla Crecientes'!H19))))) -> 6,240.92 | I75: =IF($F$11='Tabla Parámetros'!$O$3,'Tabla Fijos'!I20,IF($F$11='Tabla Parámetros'!$O$5,'Tabla Fijos'!I20,IF(COTIZADOR!$F$11='Tabla Parámetros'!$O$6,'Tabla Fijos'!I20,IF(COTIZADOR!$F$11='Tabla Parámetros'!$O$4,'Tabla Crecientes'!I19)))) -> 0.00 | J75: =IF(B75="","",IF($F$11='Tabla Parámetros'!$O$3,'Tabla Fijos'!K20,IF($F$11='Tabla Parámetros'!$O$5,'Tabla Fijos'!K20,IF(COTIZADOR!$F$11='Tabla Parámetros'!$O$6,'Tabla Fijos'!K20,IF(COTIZADOR!$F$11='Tabla Parámetros'!$O$4,'Tabla Crecientes'!K19))))) -> 591.25 | K75: =IF(B75="","",IF($F$11='Tabla Parámetros'!$O$3,'Tabla Fijos'!L20,IF($F$11='Tabla Parámetros'!$O$5,'Tabla Fijos'!L20,IF(COTIZADOR!$F$11='Tabla Parámetros'!$O$6,'Tabla Fijos'!L20,IF(COTIZADOR!$F$11='Tabla Parámetros'!$O$4,'Tabla Crecientes'!L19))))) -> 247.06 | L75: =IF(B75="","",IF($F$11='Tabla Parámetros'!$O$3,'Tabla Fijos'!M20,IF($F$11='Tabla Parámetros'!$O$5,'Tabla Fijos'!M20,IF(COTIZADOR!$F$11='Tabla Parámetros'!$O$6,'Tabla Fijos'!M20,IF(COTIZADOR!$F$11='Tabla Parámetros'!$O$4,'Tabla Crecientes'!M19))))) -> 349.00 | M75: =IF($F$11='Tabla Parámetros'!$O$3,'Tabla Fijos'!N20,IF($F$11='Tabla Parámetros'!$O$5,'Tabla Fijos'!N20,IF(COTIZADOR!$F$11='Tabla Parámetros'!$O$6,'Tabla Fijos'!N20,IF(COTIZADOR!$F$11='Tabla Parámetros'!$O$4,'Tabla Crecientes'!N19)))) -> 0.00 | O75: 9,304.49 | P75: 983,532.51 | Q75: 1
B76: 10 | C76: =IF($B$67="","",'Fecha Pago'!K13) -> 2021-08-03 | D76: =IF($B$67="","",'Fecha Pago'!L13) -> 30.40 | E76: =IF(B76="","",IF($F$11='Tabla Parámetros'!$O$3,'Tabla Fijos'!E20,IF($F$11='Tabla Parámetros'!$O$5,'Tabla Fijos'!E20,IF(COTIZADOR!$F$11='Tabla Parámetros'!$O$6,'Tabla Fijos'!E20,IF(COTIZADOR!$F$11='Tabla Parámetros'!$O$4,'Tabla Crecientes'!E19))))) -> 7.50% | F76: 983,532.51 | G76: =IF(B76="","",IF($F$11='Tabla Parámetros'!$O$3,'Tabla Fijos'!G21,IF($F$11='Tabla Parámetros'!$O$5,'Tabla Fijos'!G21,IF(COTIZADOR!$F$11='Tabla Parámetros'!$O$6,'Tabla Fijos'!G21,IF(COTIZADOR!$F$11='Tabla Parámetros'!$O$4,'Tabla Crecientes'!G20))))) -> 1,888.15 | H76: =IF(B76="","",IF($F$11='Tabla Parámetros'!$O$3,'Tabla Fijos'!H21,IF($F$11='Tabla Parámetros'!$O$5,'Tabla Fijos'!H21,IF(COTIZADOR!$F$11='Tabla Parámetros'!$O$6,'Tabla Fijos'!H21,IF(COTIZADOR!$F$11='Tabla Parámetros'!$O$4,'Tabla Crecientes'!H20))))) -> 6,229.04 | I76: =IF($F$11='Tabla Parámetros'!$O$3,'Tabla Fijos'!I21,IF($F$11='Tabla Parámetros'!$O$5,'Tabla Fijos'!I21,IF(COTIZADOR!$F$11='Tabla Parámetros'!$O$6,'Tabla Fijos'!I21,IF(COTIZADOR!$F$11='Tabla Parámetros'!$O$4,'Tabla Crecientes'!I20)))) -> 0.00 | J76: =IF(B76="","",IF($F$11='Tabla Parámetros'!$O$3,'Tabla Fijos'!K21,IF($F$11='Tabla Parámetros'!$O$5,'Tabla Fijos'!K21,IF(COTIZADOR!$F$11='Tabla Parámetros'!$O$6,'Tabla Fijos'!K21,IF(COTIZADOR!$F$11='Tabla Parámetros'!$O$4,'Tabla Crecientes'!K20))))) -> 590.12 | K76: =IF(B76="","",IF($F$11='Tabla Parámetros'!$O$3,'Tabla Fijos'!L21,IF($F$11='Tabla Parámetros'!$O$5,'Tabla Fijos'!L21,IF(COTIZADOR!$F$11='Tabla Parámetros'!$O$6,'Tabla Fijos'!L21,IF(COTIZADOR!$F$11='Tabla Parámetros'!$O$4,'Tabla Crecientes'!L20))))) -> 247.06 | L76: =IF(B76="","",IF($F$11='Tabla Parámetros'!$O$3,'Tabla Fijos'!M21,IF($F$11='Tabla Parámetros'!$O$5,'Tabla Fijos'!M21,IF(COTIZADOR!$F$11='Tabla Parámetros'!$O$6,'Tabla Fijos'!M21,IF(COTIZADOR!$F$11='Tabla Parámetros'!$O$4,'Tabla Crecientes'!M20))))) -> 349.00 | M76: =IF($F$11='Tabla Parámetros'!$O$3,'Tabla Fijos'!N21,IF($F$11='Tabla Parámetros'!$O$5,'Tabla Fijos'!N21,IF(COTIZADOR!$F$11='Tabla Parámetros'!$O$6,'Tabla Fijos'!N21,IF(COTIZADOR!$F$11='Tabla Parámetros'!$O$4,'Tabla Crecientes'!N20)))) -> 0.00 | O76: 9,303.37 | P76: 981,644.36 | Q76: 1
B77: 11 | C77: =IF($B$67="","",'Fecha Pago'!K14) -> 2021-09-03 | D77: =IF($B$67="","",'Fecha Pago'!L14) -> 30.40 | E77: =IF(B77="","",IF($F$11='Tabla Parámetros'!$O$3,'Tabla Fijos'!E21,IF($F$11='Tabla Parámetros'!$O$5,'Tabla Fijos'!E21,IF(COTIZADOR!$F$11='Tabla Parámetros'!$O$6,'Tabla Fijos'!E21,IF(COTIZADOR!$F$11='Tabla Parámetros'!$O$4,'Tabla Crecientes'!E20))))) -> 7.50% | F77: 981,644.36 | G77: =IF(B77="","",IF($F$11='Tabla Parámetros'!$O$3,'Tabla Fijos'!G22,IF($F$11='Tabla Parámetros'!$O$5,'Tabla Fijos'!G22,IF(COTIZADOR!$F$11='Tabla Parámetros'!$O$6,'Tabla Fijos'!G22,IF(COTIZADOR!$F$11='Tabla Parámetros'!$O$4,'Tabla Crecientes'!G21))))) -> 1,900.11 | H77: =IF(B77="","",IF($F$11='Tabla Parámetros'!$O$3,'Tabla Fijos'!H22,IF($F$11='Tabla Parámetros'!$O$5,'Tabla Fijos'!H22,IF(COTIZADOR!$F$11='Tabla Parámetros'!$O$6,'Tabla Fijos'!H22,IF(COTIZADOR!$F$11='Tabla Parámetros'!$O$4,'Tabla Crecientes'!H21))))) -> 6,217.08 | I77: =IF($F$11='Tabla Parámetros'!$O$3,'Tabla Fijos'!I22,IF($F$11='Tabla Parámetros'!$O$5,'Tabla Fijos'!I22,IF(COTIZADOR!$F$11='Tabla Parámetros'!$O$6,'Tabla Fijos'!I22,IF(COTIZADOR!$F$11='Tabla Parámetros'!$O$4,'Tabla Crecientes'!I21)))) -> 0.00 | J77: =IF(B77="","",IF($F$11='Tabla Parámetros'!$O$3,'Tabla Fijos'!K22,IF($F$11='Tabla Parámetros'!$O$5,'Tabla Fijos'!K22,IF(COTIZADOR!$F$11='Tabla Parámetros'!$O$6,'Tabla Fijos'!K22,IF(COTIZADOR!$F$11='Tabla Parámetros'!$O$4,'Tabla Crecientes'!K21))))) -> 588.99 | K77: =IF(B77="","",IF($F$11='Tabla Parámetros'!$O$3,'Tabla Fijos'!L22,IF($F$11='Tabla Parámetros'!$O$5,'Tabla Fijos'!L22,IF(COTIZADOR!$F$11='Tabla Parámetros'!$O$6,'Tabla Fijos'!L22,IF(COTIZADOR!$F$11='Tabla Parámetros'!$O$4,'Tabla Crecientes'!L21))))) -> 247.06 | L77: =IF(B77="","",IF($F$11='Tabla Parámetros'!$O$3,'Tabla Fijos'!M22,IF($F$11='Tabla Parámetros'!$O$5,'Tabla Fijos'!M22,IF(COTIZADOR!$F$11='Tabla Parámetros'!$O$6,'Tabla Fijos'!M22,IF(COTIZADOR!$F$11='Tabla Parámetros'!$O$4,'Tabla Crecientes'!M21))))) -> 349.00 | M77: =IF($F$11='Tabla Parámetros'!$O$3,'Tabla Fijos'!N22,IF($F$11='Tabla Parámetros'!$O$5,'Tabla Fijos'!N22,IF(COTIZADOR!$F$11='Tabla Parámetros'!$O$6,'Tabla Fijos'!N22,IF(COTIZADOR!$F$11='Tabla Parámetros'!$O$4,'Tabla Crecientes'!N21)))) -> 0.00 | O77: 9,302.23 | P77: 979,744.26 | Q77: 1
B78: 12 | C78: =IF($B$67="","",'Fecha Pago'!K15) -> 2021-10-03 | D78: =IF($B$67="","",'Fecha Pago'!L15) -> 30.40 | E78: =IF(B78="","",IF($F$11='Tabla Parámetros'!$O$3,'Tabla Fijos'!E22,IF($F$11='Tabla Parámetros'!$O$5,'Tabla Fijos'!E22,IF(COTIZADOR!$F$11='Tabla Parámetros'!$O$6,'Tabla Fijos'!E22,IF(COTIZADOR!$F$11='Tabla Parámetros'!$O$4,'Tabla Crecientes'!E21))))) -> 7.50% | F78: 979,744.26 | G78: =IF(B78="","",IF($F$11='Tabla Parámetros'!$O$3,'Tabla Fijos'!G23,IF($F$11='Tabla Parámetros'!$O$5,'Tabla Fijos'!G23,IF(COTIZADOR!$F$11='Tabla Parámetros'!$O$6,'Tabla Fijos'!G23,IF(COTIZADOR!$F$11='Tabla Parámetros'!$O$4,'Tabla Crecientes'!G22))))) -> 1,912.14 | H78: =IF(B78="","",IF($F$11='Tabla Parámetros'!$O$3,'Tabla Fijos'!H23,IF($F$11='Tabla Parámetros'!$O$5,'Tabla Fijos'!H23,IF(COTIZADOR!$F$11='Tabla Parámetros'!$O$6,'Tabla Fijos'!H23,IF(COTIZADOR!$F$11='Tabla Parámetros'!$O$4,'Tabla Crecientes'!H22))))) -> 6,205.05 | I78: =IF($F$11='Tabla Parámetros'!$O$3,'Tabla Fijos'!I23,IF($F$11='Tabla Parámetros'!$O$5,'Tabla Fijos'!I23,IF(COTIZADOR!$F$11='Tabla Parámetros'!$O$6,'Tabla Fijos'!I23,IF(COTIZADOR!$F$11='Tabla Parámetros'!$O$4,'Tabla Crecientes'!I22)))) -> 0.00 | J78: =IF(B78="","",IF($F$11='Tabla Parámetros'!$O$3,'Tabla Fijos'!K23,IF($F$11='Tabla Parámetros'!$O$5,'Tabla Fijos'!K23,IF(COTIZADOR!$F$11='Tabla Parámetros'!$O$6,'Tabla Fijos'!K23,IF(COTIZADOR!$F$11='Tabla Parámetros'!$O$4,'Tabla Crecientes'!K22))))) -> 587.85 | K78: =IF(B78="","",IF($F$11='Tabla Parámetros'!$O$3,'Tabla Fijos'!L23,IF($F$11='Tabla Parámetros'!$O$5,'Tabla Fijos'!L23,IF(COTIZADOR!$F$11='Tabla Parámetros'!$O$6,'Tabla Fijos'!L23,IF(COTIZADOR!$F$11='Tabla Parámetros'!$O$4,'Tabla Crecientes'!L22))))) -> 247.06 | L78: =IF(B78="","",IF($F$11='Tabla Parámetros'!$O$3,'Tabla Fijos'!M23,IF($F$11='Tabla Parámetros'!$O$5,'Tabla Fijos'!M23,IF(COTIZADOR!$F$11='Tabla Parámetros'!$O$6,'Tabla Fijos'!M23,IF(COTIZADOR!$F$11='Tabla Parámetros'!$O$4,'Tabla Crecientes'!M22))))) -> 349.00 | M78: =IF($F$11='Tabla Parámetros'!$O$3,'Tabla Fijos'!N23,IF($F$11='Tabla Parámetros'!$O$5,'Tabla Fijos'!N23,IF(COTIZADOR!$F$11='Tabla Parámetros'!$O$6,'Tabla Fijos'!N23,IF(COTIZADOR!$F$11='Tabla Parámetros'!$O$4,'Tabla Crecientes'!N22)))) -> 0.00 | O78: 9,301.09 | P78: 977,832.12 | Q78: 1
B79: 13 | C79: =IF($B$67="","",'Fecha Pago'!K16) -> 2021-11-03 | D79: =IF($B$67="","",'Fecha Pago'!L16) -> 30.40 | E79: =IF(B79="","",IF($F$11='Tabla Parámetros'!$O$3,'Tabla Fijos'!E23,IF($F$11='Tabla Parámetros'!$O$5,'Tabla Fijos'!E23,IF(COTIZADOR!$F$11='Tabla Parámetros'!$O$6,'Tabla Fijos'!E23,IF(COTIZADOR!$F$11='Tabla Parámetros'!$O$4,'Tabla Crecientes'!E22))))) -> 7.50% | F79: 977,832.12 | G79: =IF(B79="","",IF($F$11='Tabla Parámetros'!$O$3,'Tabla Fijos'!G24,IF($F$11='Tabla Parámetros'!$O$5,'Tabla Fijos'!G24,IF(COTIZADOR!$F$11='Tabla Parámetros'!$O$6,'Tabla Fijos'!G24,IF(COTIZADOR!$F$11='Tabla Parámetros'!$O$4,'Tabla Crecientes'!G23))))) -> 1,924.25 | H79: =IF(B79="","",IF($F$11='Tabla Parámetros'!$O$3,'Tabla Fijos'!H24,IF($F$11='Tabla Parámetros'!$O$5,'Tabla Fijos'!H24,IF(COTIZADOR!$F$11='Tabla Parámetros'!$O$6,'Tabla Fijos'!H24,IF(COTIZADOR!$F$11='Tabla Parámetros'!$O$4,'Tabla Crecientes'!H23))))) -> 6,192.94 | I79: =IF($F$11='Tabla Parámetros'!$O$3,'Tabla Fijos'!I24,IF($F$11='Tabla Parámetros'!$O$5,'Tabla Fijos'!I24,IF(COTIZADOR!$F$11='Tabla Parámetros'!$O$6,'Tabla Fijos'!I24,IF(COTIZADOR!$F$11='Tabla Parámetros'!$O$4,'Tabla Crecientes'!I23)))) -> 0.00 | J79: =IF(B79="","",IF($F$11='Tabla Parámetros'!$O$3,'Tabla Fijos'!K24,IF($F$11='Tabla Parámetros'!$O$5,'Tabla Fijos'!K24,IF(COTIZADOR!$F$11='Tabla Parámetros'!$O$6,'Tabla Fijos'!K24,IF(COTIZADOR!$F$11='Tabla Parámetros'!$O$4,'Tabla Crecientes'!K23))))) -> 586.70 | K79: =IF(B79="","",IF($F$11='Tabla Parámetros'!$O$3,'Tabla Fijos'!L24,IF($F$11='Tabla Parámetros'!$O$5,'Tabla Fijos'!L24,IF(COTIZADOR!$F$11='Tabla Parámetros'!$O$6,'Tabla Fijos'!L24,IF(COTIZADOR!$F$11='Tabla Parámetros'!$O$4,'Tabla Crecientes'!L23))))) -> 247.06 | L79: =IF(B79="","",IF($F$11='Tabla Parámetros'!$O$3,'Tabla Fijos'!M24,IF($F$11='Tabla Parámetros'!$O$5,'Tabla Fijos'!M24,IF(COTIZADOR!$F$11='Tabla Parámetros'!$O$6,'Tabla Fijos'!M24,IF(COTIZADOR!$F$11='Tabla Parámetros'!$O$4,'Tabla Crecientes'!M23))))) -> 349.00 | M79: =IF($F$11='Tabla Parámetros'!$O$3,'Tabla Fijos'!N24,IF($F$11='Tabla Parámetros'!$O$5,'Tabla Fijos'!N24,IF(COTIZADOR!$F$11='Tabla Parámetros'!$O$6,'Tabla Fijos'!N24,IF(COTIZADOR!$F$11='Tabla Parámetros'!$O$4,'Tabla Crecientes'!N23)))) -> 0.00 | O79: 9,299.95 | P79: 975,907.86 | Q79: 1
B80: 14 | C80: =IF($B$67="","",'Fecha Pago'!K17) -> 2021-12-03 | D80: =IF($B$67="","",'Fecha Pago'!L17) -> 30.40 | E80: =IF(B80="","",IF($F$11='Tabla Parámetros'!$O$3,'Tabla Fijos'!E24,IF($F$11='Tabla Parámetros'!$O$5,'Tabla Fijos'!E24,IF(COTIZADOR!$F$11='Tabla Parámetros'!$O$6,'Tabla Fijos'!E24,IF(COTIZADOR!$F$11='Tabla Parámetros'!$O$4,'Tabla Crecientes'!E23))))) -> 7.50% | F80: 975,907.86 | G80: =IF(B80="","",IF($F$11='Tabla Parámetros'!$O$3,'Tabla Fijos'!G25,IF($F$11='Tabla Parámetros'!$O$5,'Tabla Fijos'!G25,IF(COTIZADOR!$F$11='Tabla Parámetros'!$O$6,'Tabla Fijos'!G25,IF(COTIZADOR!$F$11='Tabla Parámetros'!$O$4,'Tabla Crecientes'!G24))))) -> 1,936.44 | H80: =IF(B80="","",IF($F$11='Tabla Parámetros'!$O$3,'Tabla Fijos'!H25,IF($F$11='Tabla Parámetros'!$O$5,'Tabla Fijos'!H25,IF(COTIZADOR!$F$11='Tabla Parámetros'!$O$6,'Tabla Fijos'!H25,IF(COTIZADOR!$F$11='Tabla Parámetros'!$O$4,'Tabla Crecientes'!H24))))) -> 6,180.75 | I80: =IF($F$11='Tabla Parámetros'!$O$3,'Tabla Fijos'!I25,IF($F$11='Tabla Parámetros'!$O$5,'Tabla Fijos'!I25,IF(COTIZADOR!$F$11='Tabla Parámetros'!$O$6,'Tabla Fijos'!I25,IF(COTIZADOR!$F$11='Tabla Parámetros'!$O$4,'Tabla Crecientes'!I24)))) -> 0.00 | J80: =IF(B80="","",IF($F$11='Tabla Parámetros'!$O$3,'Tabla Fijos'!K25,IF($F$11='Tabla Parámetros'!$O$5,'Tabla Fijos'!K25,IF(COTIZADOR!$F$11='Tabla Parámetros'!$O$6,'Tabla Fijos'!K25,IF(COTIZADOR!$F$11='Tabla Parámetros'!$O$4,'Tabla Crecientes'!K24))))) -> 585.54 | K80: =IF(B80="","",IF($F$11='Tabla Parámetros'!$O$3,'Tabla Fijos'!L25,IF($F$11='Tabla Parámetros'!$O$5,'Tabla Fijos'!L25,IF(COTIZADOR!$F$11='Tabla Parámetros'!$O$6,'Tabla Fijos'!L25,IF(COTIZADOR!$F$11='Tabla Parámetros'!$O$4,'Tabla Crecientes'!L24))))) -> 247.06 | L80: =IF(B80="","",IF($F$11='Tabla Parámetros'!$O$3,'Tabla Fijos'!M25,IF($F$11='Tabla Parámetros'!$O$5,'Tabla Fijos'!M25,IF(COTIZADOR!$F$11='Tabla Parámetros'!$O$6,'Tabla Fijos'!M25,IF(COTIZADOR!$F$11='Tabla Parámetros'!$O$4,'Tabla Crecientes'!M24))))) -> 349.00 | M80: =IF($F$11='Tabla Parámetros'!$O$3,'Tabla Fijos'!N25,IF($F$11='Tabla Parámetros'!$O$5,'Tabla Fijos'!N25,IF(COTIZADOR!$F$11='Tabla Parámetros'!$O$6,'Tabla Fijos'!N25,IF(COTIZADOR!$F$11='Tabla Parámetros'!$O$4,'Tabla Crecientes'!N24)))) -> 0.00 | O80: 9,298.79 | P80: 973,971.42 | Q80: 1
B81: 15 | C81: =IF($B$67="","",'Fecha Pago'!K18) -> 2022-01-03 | D81: =IF($B$67="","",'Fecha Pago'!L18) -> 30.40 | E81: =IF(B81="","",IF($F$11='Tabla Parámetros'!$O$3,'Tabla Fijos'!E25,IF($F$11='Tabla Parámetros'!$O$5,'Tabla Fijos'!E25,IF(COTIZADOR!$F$11='Tabla Parámetros'!$O$6,'Tabla Fijos'!E25,IF(COTIZADOR!$F$11='Tabla Parámetros'!$O$4,'Tabla Crecientes'!E24))))) -> 7.50% | F81: 973,971.42 | G81: =IF(B81="","",IF($F$11='Tabla Parámetros'!$O$3,'Tabla Fijos'!G26,IF($F$11='Tabla Parámetros'!$O$5,'Tabla Fijos'!G26,IF(COTIZADOR!$F$11='Tabla Parámetros'!$O$6,'Tabla Fijos'!G26,IF(COTIZADOR!$F$11='Tabla Parámetros'!$O$4,'Tabla Crecientes'!G25))))) -> 1,948.70 | H81: =IF(B81="","",IF($F$11='Tabla Parámetros'!$O$3,'Tabla Fijos'!H26,IF($F$11='Tabla Parámetros'!$O$5,'Tabla Fijos'!H26,IF(COTIZADOR!$F$11='Tabla Parámetros'!$O$6,'Tabla Fijos'!H26,IF(COTIZADOR!$F$11='Tabla Parámetros'!$O$4,'Tabla Crecientes'!H25))))) -> 6,168.49 | I81: =IF($F$11='Tabla Parámetros'!$O$3,'Tabla Fijos'!I26,IF($F$11='Tabla Parámetros'!$O$5,'Tabla Fijos'!I26,IF(COTIZADOR!$F$11='Tabla Parámetros'!$O$6,'Tabla Fijos'!I26,IF(COTIZADOR!$F$11='Tabla Parámetros'!$O$4,'Tabla Crecientes'!I25)))) -> 0.00 | J81: =IF(B81="","",IF($F$11='Tabla Parámetros'!$O$3,'Tabla Fijos'!K26,IF($F$11='Tabla Parámetros'!$O$5,'Tabla Fijos'!K26,IF(COTIZADOR!$F$11='Tabla Parámetros'!$O$6,'Tabla Fijos'!K26,IF(COTIZADOR!$F$11='Tabla Parámetros'!$O$4,'Tabla Crecientes'!K25))))) -> 584.38 | K81: =IF(B81="","",IF($F$11='Tabla Parámetros'!$O$3,'Tabla Fijos'!L26,IF($F$11='Tabla Parámetros'!$O$5,'Tabla Fijos'!L26,IF(COTIZADOR!$F$11='Tabla Parámetros'!$O$6,'Tabla Fijos'!L26,IF(COTIZADOR!$F$11='Tabla Parámetros'!$O$4,'Tabla Crecientes'!L25))))) -> 247.06 | L81: =IF(B81="","",IF($F$11='Tabla Parámetros'!$O$3,'Tabla Fijos'!M26,IF($F$11='Tabla Parámetros'!$O$5,'Tabla Fijos'!M26,IF(COTIZADOR!$F$11='Tabla Parámetros'!$O$6,'Tabla Fijos'!M26,IF(COTIZADOR!$F$11='Tabla Parámetros'!$O$4,'Tabla Crecientes'!M25))))) -> 349.00 | M81: =IF($F$11='Tabla Parámetros'!$O$3,'Tabla Fijos'!N26,IF($F$11='Tabla Parámetros'!$O$5,'Tabla Fijos'!N26,IF(COTIZADOR!$F$11='Tabla Parámetros'!$O$6,'Tabla Fijos'!N26,IF(COTIZADOR!$F$11='Tabla Parámetros'!$O$4,'Tabla Crecientes'!N25)))) -> 0.00 | O81: 9,297.63 | P81: 972,022.72 | Q81: 1
B82: 16 | C82: =IF($B$67="","",'Fecha Pago'!K19) -> 2022-02-03 | D82: =IF($B$67="","",'Fecha Pago'!L19) -> 30.40 | E82: =IF(B82="","",IF($F$11='Tabla Parámetros'!$O$3,'Tabla Fijos'!E26,IF($F$11='Tabla Parámetros'!$O$5,'Tabla Fijos'!E26,IF(COTIZADOR!$F$11='Tabla Parámetros'!$O$6,'Tabla Fijos'!E26,IF(COTIZADOR!$F$11='Tabla Parámetros'!$O$4,'Tabla Crecientes'!E25))))) -> 7.50% | F82: 972,022.72 | G82: =IF(B82="","",IF($F$11='Tabla Parámetros'!$O$3,'Tabla Fijos'!G27,IF($F$11='Tabla Parámetros'!$O$5,'Tabla Fijos'!G27,IF(COTIZADOR!$F$11='Tabla Parámetros'!$O$6,'Tabla Fijos'!G27,IF(COTIZADOR!$F$11='Tabla Parámetros'!$O$4,'Tabla Crecientes'!G26))))) -> 1,961.04 | H82: =IF(B82="","",IF($F$11='Tabla Parámetros'!$O$3,'Tabla Fijos'!H27,IF($F$11='Tabla Parámetros'!$O$5,'Tabla Fijos'!H27,IF(COTIZADOR!$F$11='Tabla Parámetros'!$O$6,'Tabla Fijos'!H27,IF(COTIZADOR!$F$11='Tabla Parámetros'!$O$4,'Tabla Crecientes'!H26))))) -> 6,156.14 | I82: =IF($F$11='Tabla Parámetros'!$O$3,'Tabla Fijos'!I27,IF($F$11='Tabla Parámetros'!$O$5,'Tabla Fijos'!I27,IF(COTIZADOR!$F$11='Tabla Parámetros'!$O$6,'Tabla Fijos'!I27,IF(COTIZADOR!$F$11='Tabla Parámetros'!$O$4,'Tabla Crecientes'!I26)))) -> 0.00 | J82: =IF(B82="","",IF($F$11='Tabla Parámetros'!$O$3,'Tabla Fijos'!K27,IF($F$11='Tabla Parámetros'!$O$5,'Tabla Fijos'!K27,IF(COTIZADOR!$F$11='Tabla Parámetros'!$O$6,'Tabla Fijos'!K27,IF(COTIZADOR!$F$11='Tabla Parámetros'!$O$4,'Tabla Crecientes'!K26))))) -> 583.21 | K82: =IF(B82="","",IF($F$11='Tabla Parámetros'!$O$3,'Tabla Fijos'!L27,IF($F$11='Tabla Parámetros'!$O$5,'Tabla Fijos'!L27,IF(COTIZADOR!$F$11='Tabla Parámetros'!$O$6,'Tabla Fijos'!L27,IF(COTIZADOR!$F$11='Tabla Parámetros'!$O$4,'Tabla Crecientes'!L26))))) -> 247.06 | L82: =IF(B82="","",IF($F$11='Tabla Parámetros'!$O$3,'Tabla Fijos'!M27,IF($F$11='Tabla Parámetros'!$O$5,'Tabla Fijos'!M27,IF(COTIZADOR!$F$11='Tabla Parámetros'!$O$6,'Tabla Fijos'!M27,IF(COTIZADOR!$F$11='Tabla Parámetros'!$O$4,'Tabla Crecientes'!M26))))) -> 349.00 | M82: =IF($F$11='Tabla Parámetros'!$O$3,'Tabla Fijos'!N27,IF($F$11='Tabla Parámetros'!$O$5,'Tabla Fijos'!N27,IF(COTIZADOR!$F$11='Tabla Parámetros'!$O$6,'Tabla Fijos'!N27,IF(COTIZADOR!$F$11='Tabla Parámetros'!$O$4,'Tabla Crecientes'!N26)))) -> 0.00 | O82: 9,296.46 | P82: 970,061.68 | Q82: 1
B83: 17 | C83: =IF($B$67="","",'Fecha Pago'!K20) -> 2022-03-03 | D83: =IF($B$67="","",'Fecha Pago'!L20) -> 30.40 | E83: =IF(B83="","",IF($F$11='Tabla Parámetros'!$O$3,'Tabla Fijos'!E27,IF($F$11='Tabla Parámetros'!$O$5,'Tabla Fijos'!E27,IF(COTIZADOR!$F$11='Tabla Parámetros'!$O$6,'Tabla Fijos'!E27,IF(COTIZADOR!$F$11='Tabla Parámetros'!$O$4,'Tabla Crecientes'!E26))))) -> 7.50% | F83: 970,061.68 | G83: =IF(B83="","",IF($F$11='Tabla Parámetros'!$O$3,'Tabla Fijos'!G28,IF($F$11='Tabla Parámetros'!$O$5,'Tabla Fijos'!G28,IF(COTIZADOR!$F$11='Tabla Parámetros'!$O$6,'Tabla Fijos'!G28,IF(COTIZADOR!$F$11='Tabla Parámetros'!$O$4,'Tabla Crecientes'!G27))))) -> 1,973.46 | H83: =IF(B83="","",IF($F$11='Tabla Parámetros'!$O$3,'Tabla Fijos'!H28,IF($F$11='Tabla Parámetros'!$O$5,'Tabla Fijos'!H28,IF(COTIZADOR!$F$11='Tabla Parámetros'!$O$6,'Tabla Fijos'!H28,IF(COTIZADOR!$F$11='Tabla Parámetros'!$O$4,'Tabla Crecientes'!H27))))) -> 6,143.72 | I83: =IF($F$11='Tabla Parámetros'!$O$3,'Tabla Fijos'!I28,IF($F$11='Tabla Parámetros'!$O$5,'Tabla Fijos'!I28,IF(COTIZADOR!$F$11='Tabla Parámetros'!$O$6,'Tabla Fijos'!I28,IF(COTIZADOR!$F$11='Tabla Parámetros'!$O$4,'Tabla Crecientes'!I27)))) -> 0.00 | J83: =IF(B83="","",IF($F$11='Tabla Parámetros'!$O$3,'Tabla Fijos'!K28,IF($F$11='Tabla Parámetros'!$O$5,'Tabla Fijos'!K28,IF(COTIZADOR!$F$11='Tabla Parámetros'!$O$6,'Tabla Fijos'!K28,IF(COTIZADOR!$F$11='Tabla Parámetros'!$O$4,'Tabla Crecientes'!K27))))) -> 582.04 | K83: =IF(B83="","",IF($F$11='Tabla Parámetros'!$O$3,'Tabla Fijos'!L28,IF($F$11='Tabla Parámetros'!$O$5,'Tabla Fijos'!L28,IF(COTIZADOR!$F$11='Tabla Parámetros'!$O$6,'Tabla Fijos'!L28,IF(COTIZADOR!$F$11='Tabla Parámetros'!$O$4,'Tabla Crecientes'!L27))))) -> 247.06 | L83: =IF(B83="","",IF($F$11='Tabla Parámetros'!$O$3,'Tabla Fijos'!M28,IF($F$11='Tabla Parámetros'!$O$5,'Tabla Fijos'!M28,IF(COTIZADOR!$F$11='Tabla Parámetros'!$O$6,'Tabla Fijos'!M28,IF(COTIZADOR!$F$11='Tabla Parámetros'!$O$4,'Tabla Crecientes'!M27))))) -> 349.00 | M83: =IF($F$11='Tabla Parámetros'!$O$3,'Tabla Fijos'!N28,IF($F$11='Tabla Parámetros'!$O$5,'Tabla Fijos'!N28,IF(COTIZADOR!$F$11='Tabla Parámetros'!$O$6,'Tabla Fijos'!N28,IF(COTIZADOR!$F$11='Tabla Parámetros'!$O$4,'Tabla Crecientes'!N27)))) -> 0.00 | O83: 9,295.28 | P83: 968,088.21 | Q83: 1
B84: 18 | C84: =IF($B$67="","",'Fecha Pago'!K21) -> 2022-04-03 | D84: =IF($B$67="","",'Fecha Pago'!L21) -> 30.40 | E84: =IF(B84="","",IF($F$11='Tabla Parámetros'!$O$3,'Tabla Fijos'!E28,IF($F$11='Tabla Parámetros'!$O$5,'Tabla Fijos'!E28,IF(COTIZADOR!$F$11='Tabla Parámetros'!$O$6,'Tabla Fijos'!E28,IF(COTIZADOR!$F$11='Tabla Parámetros'!$O$4,'Tabla Crecientes'!E27))))) -> 7.50% | F84: 968,088.21 | G84: =IF(B84="","",IF($F$11='Tabla Parámetros'!$O$3,'Tabla Fijos'!G29,IF($F$11='Tabla Parámetros'!$O$5,'Tabla Fijos'!G29,IF(COTIZADOR!$F$11='Tabla Parámetros'!$O$6,'Tabla Fijos'!G29,IF(COTIZADOR!$F$11='Tabla Parámetros'!$O$4,'Tabla Crecientes'!G28))))) -> 1,985.96 | H84: =IF(B84="","",IF($F$11='Tabla Parámetros'!$O$3,'Tabla Fijos'!H29,IF($F$11='Tabla Parámetros'!$O$5,'Tabla Fijos'!H29,IF(COTIZADOR!$F$11='Tabla Parámetros'!$O$6,'Tabla Fijos'!H29,IF(COTIZADOR!$F$11='Tabla Parámetros'!$O$4,'Tabla Crecientes'!H28))))) -> 6,131.23 | I84: =IF($F$11='Tabla Parámetros'!$O$3,'Tabla Fijos'!I29,IF($F$11='Tabla Parámetros'!$O$5,'Tabla Fijos'!I29,IF(COTIZADOR!$F$11='Tabla Parámetros'!$O$6,'Tabla Fijos'!I29,IF(COTIZADOR!$F$11='Tabla Parámetros'!$O$4,'Tabla Crecientes'!I28)))) -> 0.00 | J84: =IF(B84="","",IF($F$11='Tabla Parámetros'!$O$3,'Tabla Fijos'!K29,IF($F$11='Tabla Parámetros'!$O$5,'Tabla Fijos'!K29,IF(COTIZADOR!$F$11='Tabla Parámetros'!$O$6,'Tabla Fijos'!K29,IF(COTIZADOR!$F$11='Tabla Parámetros'!$O$4,'Tabla Crecientes'!K28))))) -> 580.85 | K84: =IF(B84="","",IF($F$11='Tabla Parámetros'!$O$3,'Tabla Fijos'!L29,IF($F$11='Tabla Parámetros'!$O$5,'Tabla Fijos'!L29,IF(COTIZADOR!$F$11='Tabla Parámetros'!$O$6,'Tabla Fijos'!L29,IF(COTIZADOR!$F$11='Tabla Parámetros'!$O$4,'Tabla Crecientes'!L28))))) -> 247.06 | L84: =IF(B84="","",IF($F$11='Tabla Parámetros'!$O$3,'Tabla Fijos'!M29,IF($F$11='Tabla Parámetros'!$O$5,'Tabla Fijos'!M29,IF(COTIZADOR!$F$11='Tabla Parámetros'!$O$6,'Tabla Fijos'!M29,IF(COTIZADOR!$F$11='Tabla Parámetros'!$O$4,'Tabla Crecientes'!M28))))) -> 349.00 | M84: =IF($F$11='Tabla Parámetros'!$O$3,'Tabla Fijos'!N29,IF($F$11='Tabla Parámetros'!$O$5,'Tabla Fijos'!N29,IF(COTIZADOR!$F$11='Tabla Parámetros'!$O$6,'Tabla Fijos'!N29,IF(COTIZADOR!$F$11='Tabla Parámetros'!$O$4,'Tabla Crecientes'!N28)))) -> 0.00 | O84: 9,294.10 | P84: 966,102.25 | Q84: 1
B85: 19 | C85: =IF($B$67="","",'Fecha Pago'!K22) -> 2022-05-03 | D85: =IF($B$67="","",'Fecha Pago'!L22) -> 30.40 | E85: =IF(B85="","",IF($F$11='Tabla Parámetros'!$O$3,'Tabla Fijos'!E29,IF($F$11='Tabla Parámetros'!$O$5,'Tabla Fijos'!E29,IF(COTIZADOR!$F$11='Tabla Parámetros'!$O$6,'Tabla Fijos'!E29,IF(COTIZADOR!$F$11='Tabla Parámetros'!$O$4,'Tabla Crecientes'!E28))))) -> 7.50% | F85: 966,102.25 | G85: =IF(B85="","",IF($F$11='Tabla Parámetros'!$O$3,'Tabla Fijos'!G30,IF($F$11='Tabla Parámetros'!$O$5,'Tabla Fijos'!G30,IF(COTIZADOR!$F$11='Tabla Parámetros'!$O$6,'Tabla Fijos'!G30,IF(COTIZADOR!$F$11='Tabla Parámetros'!$O$4,'Tabla Crecientes'!G29))))) -> 1,998.54 | H85: =IF(B85="","",IF($F$11='Tabla Parámetros'!$O$3,'Tabla Fijos'!H30,IF($F$11='Tabla Parámetros'!$O$5,'Tabla Fijos'!H30,IF(COTIZADOR!$F$11='Tabla Parámetros'!$O$6,'Tabla Fijos'!H30,IF(COTIZADOR!$F$11='Tabla Parámetros'!$O$4,'Tabla Crecientes'!H29))))) -> 6,118.65 | I85: =IF($F$11='Tabla Parámetros'!$O$3,'Tabla Fijos'!I30,IF($F$11='Tabla Parámetros'!$O$5,'Tabla Fijos'!I30,IF(COTIZADOR!$F$11='Tabla Parámetros'!$O$6,'Tabla Fijos'!I30,IF(COTIZADOR!$F$11='Tabla Parámetros'!$O$4,'Tabla Crecientes'!I29)))) -> 0.00 | J85: =IF(B85="","",IF($F$11='Tabla Parámetros'!$O$3,'Tabla Fijos'!K30,IF($F$11='Tabla Parámetros'!$O$5,'Tabla Fijos'!K30,IF(COTIZADOR!$F$11='Tabla Parámetros'!$O$6,'Tabla Fijos'!K30,IF(COTIZADOR!$F$11='Tabla Parámetros'!$O$4,'Tabla Crecientes'!K29))))) -> 579.66 | K85: =IF(B85="","",IF($F$11='Tabla Parámetros'!$O$3,'Tabla Fijos'!L30,IF($F$11='Tabla Parámetros'!$O$5,'Tabla Fijos'!L30,IF(COTIZADOR!$F$11='Tabla Parámetros'!$O$6,'Tabla Fijos'!L30,IF(COTIZADOR!$F$11='Tabla Parámetros'!$O$4,'Tabla Crecientes'!L29))))) -> 247.06 | L85: =IF(B85="","",IF($F$11='Tabla Parámetros'!$O$3,'Tabla Fijos'!M30,IF($F$11='Tabla Parámetros'!$O$5,'Tabla Fijos'!M30,IF(COTIZADOR!$F$11='Tabla Parámetros'!$O$6,'Tabla Fijos'!M30,IF(COTIZADOR!$F$11='Tabla Parámetros'!$O$4,'Tabla Crecientes'!M29))))) -> 349.00 | M85: =IF($F$11='Tabla Parámetros'!$O$3,'Tabla Fijos'!N30,IF($F$11='Tabla Parámetros'!$O$5,'Tabla Fijos'!N30,IF(COTIZADOR!$F$11='Tabla Parámetros'!$O$6,'Tabla Fijos'!N30,IF(COTIZADOR!$F$11='Tabla Parámetros'!$O$4,'Tabla Crecientes'!N29)))) -> 0.00 | O85: 9,292.91 | P85: 964,103.71 | Q85: 1
B86: 20 | C86: =IF($B$67="","",'Fecha Pago'!K23) -> 2022-06-03 | D86: =IF($B$67="","",'Fecha Pago'!L23) -> 30.40 | E86: =IF(B86="","",IF($F$11='Tabla Parámetros'!$O$3,'Tabla Fijos'!E30,IF($F$11='Tabla Parámetros'!$O$5,'Tabla Fijos'!E30,IF(COTIZADOR!$F$11='Tabla Parámetros'!$O$6,'Tabla Fijos'!E30,IF(COTIZADOR!$F$11='Tabla Parámetros'!$O$4,'Tabla Crecientes'!E29))))) -> 7.50% | F86: 964,103.71 | G86: =IF(B86="","",IF($F$11='Tabla Parámetros'!$O$3,'Tabla Fijos'!G31,IF($F$11='Tabla Parámetros'!$O$5,'Tabla Fijos'!G31,IF(COTIZADOR!$F$11='Tabla Parámetros'!$O$6,'Tabla Fijos'!G31,IF(COTIZADOR!$F$11='Tabla Parámetros'!$O$4,'Tabla Crecientes'!G30))))) -> 2,011.20 | H86: =IF(B86="","",IF($F$11='Tabla Parámetros'!$O$3,'Tabla Fijos'!H31,IF($F$11='Tabla Parámetros'!$O$5,'Tabla Fijos'!H31,IF(COTIZADOR!$F$11='Tabla Parámetros'!$O$6,'Tabla Fijos'!H31,IF(COTIZADOR!$F$11='Tabla Parámetros'!$O$4,'Tabla Crecientes'!H30))))) -> 6,105.99 | I86: =IF($F$11='Tabla Parámetros'!$O$3,'Tabla Fijos'!I31,IF($F$11='Tabla Parámetros'!$O$5,'Tabla Fijos'!I31,IF(COTIZADOR!$F$11='Tabla Parámetros'!$O$6,'Tabla Fijos'!I31,IF(COTIZADOR!$F$11='Tabla Parámetros'!$O$4,'Tabla Crecientes'!I30)))) -> 0.00 | J86: =IF(B86="","",IF($F$11='Tabla Parámetros'!$O$3,'Tabla Fijos'!K31,IF($F$11='Tabla Parámetros'!$O$5,'Tabla Fijos'!K31,IF(COTIZADOR!$F$11='Tabla Parámetros'!$O$6,'Tabla Fijos'!K31,IF(COTIZADOR!$F$11='Tabla Parámetros'!$O$4,'Tabla Crecientes'!K30))))) -> 578.46 | K86: =IF(B86="","",IF($F$11='Tabla Parámetros'!$O$3,'Tabla Fijos'!L31,IF($F$11='Tabla Parámetros'!$O$5,'Tabla Fijos'!L31,IF(COTIZADOR!$F$11='Tabla Parámetros'!$O$6,'Tabla Fijos'!L31,IF(COTIZADOR!$F$11='Tabla Parámetros'!$O$4,'Tabla Crecientes'!L30))))) -> 247.06 | L86: =IF(B86="","",IF($F$11='Tabla Parámetros'!$O$3,'Tabla Fijos'!M31,IF($F$11='Tabla Parámetros'!$O$5,'Tabla Fijos'!M31,IF(COTIZADOR!$F$11='Tabla Parámetros'!$O$6,'Tabla Fijos'!M31,IF(COTIZADOR!$F$11='Tabla Parámetros'!$O$4,'Tabla Crecientes'!M30))))) -> 349.00 | M86: =IF($F$11='Tabla Parámetros'!$O$3,'Tabla Fijos'!N31,IF($F$11='Tabla Parámetros'!$O$5,'Tabla Fijos'!N31,IF(COTIZADOR!$F$11='Tabla Parámetros'!$O$6,'Tabla Fijos'!N31,IF(COTIZADOR!$F$11='Tabla Parámetros'!$O$4,'Tabla Crecientes'!N30)))) -> 0.00 | O86: 9,291.71 | P86: 962,092.51 | Q86: 1
B87: 21 | C87: =IF($B$67="","",'Fecha Pago'!K24) -> 2022-07-03 | D87: =IF($B$67="","",'Fecha Pago'!L24) -> 30.40 | E87: =IF(B87="","",IF($F$11='Tabla Parámetros'!$O$3,'Tabla Fijos'!E31,IF($F$11='Tabla Parámetros'!$O$5,'Tabla Fijos'!E31,IF(COTIZADOR!$F$11='Tabla Parámetros'!$O$6,'Tabla Fijos'!E31,IF(COTIZADOR!$F$11='Tabla Parámetros'!$O$4,'Tabla Crecientes'!E30))))) -> 7.50% | F87: 962,092.51 | G87: =IF(B87="","",IF($F$11='Tabla Parámetros'!$O$3,'Tabla Fijos'!G32,IF($F$11='Tabla Parámetros'!$O$5,'Tabla Fijos'!G32,IF(COTIZADOR!$F$11='Tabla Parámetros'!$O$6,'Tabla Fijos'!G32,IF(COTIZADOR!$F$11='Tabla Parámetros'!$O$4,'Tabla Crecientes'!G31))))) -> 2,023.94 | H87: =IF(B87="","",IF($F$11='Tabla Parámetros'!$O$3,'Tabla Fijos'!H32,IF($F$11='Tabla Parámetros'!$O$5,'Tabla Fijos'!H32,IF(COTIZADOR!$F$11='Tabla Parámetros'!$O$6,'Tabla Fijos'!H32,IF(COTIZADOR!$F$11='Tabla Parámetros'!$O$4,'Tabla Crecientes'!H31))))) -> 6,093.25 | I87: =IF($F$11='Tabla Parámetros'!$O$3,'Tabla Fijos'!I32,IF($F$11='Tabla Parámetros'!$O$5,'Tabla Fijos'!I32,IF(COTIZADOR!$F$11='Tabla Parámetros'!$O$6,'Tabla Fijos'!I32,IF(COTIZADOR!$F$11='Tabla Parámetros'!$O$4,'Tabla Crecientes'!I31)))) -> 0.00 | J87: =IF(B87="","",IF($F$11='Tabla Parámetros'!$O$3,'Tabla Fijos'!K32,IF($F$11='Tabla Parámetros'!$O$5,'Tabla Fijos'!K32,IF(COTIZADOR!$F$11='Tabla Parámetros'!$O$6,'Tabla Fijos'!K32,IF(COTIZADOR!$F$11='Tabla Parámetros'!$O$4,'Tabla Crecientes'!K31))))) -> 577.26 | K87: =IF(B87="","",IF($F$11='Tabla Parámetros'!$O$3,'Tabla Fijos'!L32,IF($F$11='Tabla Parámetros'!$O$5,'Tabla Fijos'!L32,IF(COTIZADOR!$F$11='Tabla Parámetros'!$O$6,'Tabla Fijos'!L32,IF(COTIZADOR!$F$11='Tabla Parámetros'!$O$4,'Tabla Crecientes'!L31))))) -> 247.06 | L87: =IF(B87="","",IF($F$11='Tabla Parámetros'!$O$3,'Tabla Fijos'!M32,IF($F$11='Tabla Parámetros'!$O$5,'Tabla Fijos'!M32,IF(COTIZADOR!$F$11='Tabla Parámetros'!$O$6,'Tabla Fijos'!M32,IF(COTIZADOR!$F$11='Tabla Parámetros'!$O$4,'Tabla Crecientes'!M31))))) -> 349.00 | M87: =IF($F$11='Tabla Parámetros'!$O$3,'Tabla Fijos'!N32,IF($F$11='Tabla Parámetros'!$O$5,'Tabla Fijos'!N32,IF(COTIZADOR!$F$11='Tabla Parámetros'!$O$6,'Tabla Fijos'!N32,IF(COTIZADOR!$F$11='Tabla Parámetros'!$O$4,'Tabla Crecientes'!N31)))) -> 0.00 | O87: 9,290.50 | P87: 960,068.57 | Q87: 1
B88: 22 | C88: =IF($B$67="","",'Fecha Pago'!K25) -> 2022-08-03 | D88: =IF($B$67="","",'Fecha Pago'!L25) -> 30.40 | E88: =IF(B88="","",IF($F$11='Tabla Parámetros'!$O$3,'Tabla Fijos'!E32,IF($F$11='Tabla Parámetros'!$O$5,'Tabla Fijos'!E32,IF(COTIZADOR!$F$11='Tabla Parámetros'!$O$6,'Tabla Fijos'!E32,IF(COTIZADOR!$F$11='Tabla Parámetros'!$O$4,'Tabla Crecientes'!E31))))) -> 7.50% | F88: 960,068.57 | G88: =IF(B88="","",IF($F$11='Tabla Parámetros'!$O$3,'Tabla Fijos'!G33,IF($F$11='Tabla Parámetros'!$O$5,'Tabla Fijos'!G33,IF(COTIZADOR!$F$11='Tabla Parámetros'!$O$6,'Tabla Fijos'!G33,IF(COTIZADOR!$F$11='Tabla Parámetros'!$O$4,'Tabla Crecientes'!G32))))) -> 2,036.75 | H88: =IF(B88="","",IF($F$11='Tabla Parámetros'!$O$3,'Tabla Fijos'!H33,IF($F$11='Tabla Parámetros'!$O$5,'Tabla Fijos'!H33,IF(COTIZADOR!$F$11='Tabla Parámetros'!$O$6,'Tabla Fijos'!H33,IF(COTIZADOR!$F$11='Tabla Parámetros'!$O$4,'Tabla Crecientes'!H32))))) -> 6,080.43 | I88: =IF($F$11='Tabla Parámetros'!$O$3,'Tabla Fijos'!I33,IF($F$11='Tabla Parámetros'!$O$5,'Tabla Fijos'!I33,IF(COTIZADOR!$F$11='Tabla Parámetros'!$O$6,'Tabla Fijos'!I33,IF(COTIZADOR!$F$11='Tabla Parámetros'!$O$4,'Tabla Crecientes'!I32)))) -> 0.00 | J88: =IF(B88="","",IF($F$11='Tabla Parámetros'!$O$3,'Tabla Fijos'!K33,IF($F$11='Tabla Parámetros'!$O$5,'Tabla Fijos'!K33,IF(COTIZADOR!$F$11='Tabla Parámetros'!$O$6,'Tabla Fijos'!K33,IF(COTIZADOR!$F$11='Tabla Parámetros'!$O$4,'Tabla Crecientes'!K32))))) -> 576.04 | K88: =IF(B88="","",IF($F$11='Tabla Parámetros'!$O$3,'Tabla Fijos'!L33,IF($F$11='Tabla Parámetros'!$O$5,'Tabla Fijos'!L33,IF(COTIZADOR!$F$11='Tabla Parámetros'!$O$6,'Tabla Fijos'!L33,IF(COTIZADOR!$F$11='Tabla Parámetros'!$O$4,'Tabla Crecientes'!L32))))) -> 247.06 | L88: =IF(B88="","",IF($F$11='Tabla Parámetros'!$O$3,'Tabla Fijos'!M33,IF($F$11='Tabla Parámetros'!$O$5,'Tabla Fijos'!M33,IF(COTIZADOR!$F$11='Tabla Parámetros'!$O$6,'Tabla Fijos'!M33,IF(COTIZADOR!$F$11='Tabla Parámetros'!$O$4,'Tabla Crecientes'!M32))))) -> 349.00 | M88: =IF($F$11='Tabla Parámetros'!$O$3,'Tabla Fijos'!N33,IF($F$11='Tabla Parámetros'!$O$5,'Tabla Fijos'!N33,IF(COTIZADOR!$F$11='Tabla Parámetros'!$O$6,'Tabla Fijos'!N33,IF(COTIZADOR!$F$11='Tabla Parámetros'!$O$4,'Tabla Crecientes'!N32)))) -> 0.00 | O88: 9,289.29 | P88: 958,031.82 | Q88: 1
B89: 23 | C89: =IF($B$67="","",'Fecha Pago'!K26) -> 2022-09-03 | D89: =IF($B$67="","",'Fecha Pago'!L26) -> 30.40 | E89: =IF(B89="","",IF($F$11='Tabla Parámetros'!$O$3,'Tabla Fijos'!E33,IF($F$11='Tabla Parámetros'!$O$5,'Tabla Fijos'!E33,IF(COTIZADOR!$F$11='Tabla Parámetros'!$O$6,'Tabla Fijos'!E33,IF(COTIZADOR!$F$11='Tabla Parámetros'!$O$4,'Tabla Crecientes'!E32))))) -> 7.50% | F89: 958,031.82 | G89: =IF(B89="","",IF($F$11='Tabla Parámetros'!$O$3,'Tabla Fijos'!G34,IF($F$11='Tabla Parámetros'!$O$5,'Tabla Fijos'!G34,IF(COTIZADOR!$F$11='Tabla Parámetros'!$O$6,'Tabla Fijos'!G34,IF(COTIZADOR!$F$11='Tabla Parámetros'!$O$4,'Tabla Crecientes'!G33))))) -> 2,049.65 | H89: =IF(B89="","",IF($F$11='Tabla Parámetros'!$O$3,'Tabla Fijos'!H34,IF($F$11='Tabla Parámetros'!$O$5,'Tabla Fijos'!H34,IF(COTIZADOR!$F$11='Tabla Parámetros'!$O$6,'Tabla Fijos'!H34,IF(COTIZADOR!$F$11='Tabla Parámetros'!$O$4,'Tabla Crecientes'!H33))))) -> 6,067.53 | I89: =IF($F$11='Tabla Parámetros'!$O$3,'Tabla Fijos'!I34,IF($F$11='Tabla Parámetros'!$O$5,'Tabla Fijos'!I34,IF(COTIZADOR!$F$11='Tabla Parámetros'!$O$6,'Tabla Fijos'!I34,IF(COTIZADOR!$F$11='Tabla Parámetros'!$O$4,'Tabla Crecientes'!I33)))) -> 0.00 | J89: =IF(B89="","",IF($F$11='Tabla Parámetros'!$O$3,'Tabla Fijos'!K34,IF($F$11='Tabla Parámetros'!$O$5,'Tabla Fijos'!K34,IF(COTIZADOR!$F$11='Tabla Parámetros'!$O$6,'Tabla Fijos'!K34,IF(COTIZADOR!$F$11='Tabla Parámetros'!$O$4,'Tabla Crecientes'!K33))))) -> 574.82 | K89: =IF(B89="","",IF($F$11='Tabla Parámetros'!$O$3,'Tabla Fijos'!L34,IF($F$11='Tabla Parámetros'!$O$5,'Tabla Fijos'!L34,IF(COTIZADOR!$F$11='Tabla Parámetros'!$O$6,'Tabla Fijos'!L34,IF(COTIZADOR!$F$11='Tabla Parámetros'!$O$4,'Tabla Crecientes'!L33))))) -> 247.06 | L89: =IF(B89="","",IF($F$11='Tabla Parámetros'!$O$3,'Tabla Fijos'!M34,IF($F$11='Tabla Parámetros'!$O$5,'Tabla Fijos'!M34,IF(COTIZADOR!$F$11='Tabla Parámetros'!$O$6,'Tabla Fijos'!M34,IF(COTIZADOR!$F$11='Tabla Parámetros'!$O$4,'Tabla Crecientes'!M33))))) -> 349.00 | M89: =IF($F$11='Tabla Parámetros'!$O$3,'Tabla Fijos'!N34,IF($F$11='Tabla Parámetros'!$O$5,'Tabla Fijos'!N34,IF(COTIZADOR!$F$11='Tabla Parámetros'!$O$6,'Tabla Fijos'!N34,IF(COTIZADOR!$F$11='Tabla Parámetros'!$O$4,'Tabla Crecientes'!N33)))) -> 0.00 | O89: 9,288.07 | P89: 955,982.16 | Q89: 1
B90: 24 | C90: =IF($B$67="","",'Fecha Pago'!K27) -> 2022-10-03 | D90: =IF($B$67="","",'Fecha Pago'!L27) -> 30.40 | E90: =IF(B90="","",IF($F$11='Tabla Parámetros'!$O$3,'Tabla Fijos'!E34,IF($F$11='Tabla Parámetros'!$O$5,'Tabla Fijos'!E34,IF(COTIZADOR!$F$11='Tabla Parámetros'!$O$6,'Tabla Fijos'!E34,IF(COTIZADOR!$F$11='Tabla Parámetros'!$O$4,'Tabla Crecientes'!E33))))) -> 7.50% | F90: 955,982.16 | G90: =IF(B90="","",IF($F$11='Tabla Parámetros'!$O$3,'Tabla Fijos'!G35,IF($F$11='Tabla Parámetros'!$O$5,'Tabla Fijos'!G35,IF(COTIZADOR!$F$11='Tabla Parámetros'!$O$6,'Tabla Fijos'!G35,IF(COTIZADOR!$F$11='Tabla Parámetros'!$O$4,'Tabla Crecientes'!G34))))) -> 2,062.64 | H90: =IF(B90="","",IF($F$11='Tabla Parámetros'!$O$3,'Tabla Fijos'!H35,IF($F$11='Tabla Parámetros'!$O$5,'Tabla Fijos'!H35,IF(COTIZADOR!$F$11='Tabla Parámetros'!$O$6,'Tabla Fijos'!H35,IF(COTIZADOR!$F$11='Tabla Parámetros'!$O$4,'Tabla Crecientes'!H34))))) -> 6,054.55 | I90: =IF($F$11='Tabla Parámetros'!$O$3,'Tabla Fijos'!I35,IF($F$11='Tabla Parámetros'!$O$5,'Tabla Fijos'!I35,IF(COTIZADOR!$F$11='Tabla Parámetros'!$O$6,'Tabla Fijos'!I35,IF(COTIZADOR!$F$11='Tabla Parámetros'!$O$4,'Tabla Crecientes'!I34)))) -> 0.00 | J90: =IF(B90="","",IF($F$11='Tabla Parámetros'!$O$3,'Tabla Fijos'!K35,IF($F$11='Tabla Parámetros'!$O$5,'Tabla Fijos'!K35,IF(COTIZADOR!$F$11='Tabla Parámetros'!$O$6,'Tabla Fijos'!K35,IF(COTIZADOR!$F$11='Tabla Parámetros'!$O$4,'Tabla Crecientes'!K34))))) -> 573.59 | K90: =IF(B90="","",IF($F$11='Tabla Parámetros'!$O$3,'Tabla Fijos'!L35,IF($F$11='Tabla Parámetros'!$O$5,'Tabla Fijos'!L35,IF(COTIZADOR!$F$11='Tabla Parámetros'!$O$6,'Tabla Fijos'!L35,IF(COTIZADOR!$F$11='Tabla Parámetros'!$O$4,'Tabla Crecientes'!L34))))) -> 247.06 | L90: =IF(B90="","",IF($F$11='Tabla Parámetros'!$O$3,'Tabla Fijos'!M35,IF($F$11='Tabla Parámetros'!$O$5,'Tabla Fijos'!M35,IF(COTIZADOR!$F$11='Tabla Parámetros'!$O$6,'Tabla Fijos'!M35,IF(COTIZADOR!$F$11='Tabla Parámetros'!$O$4,'Tabla Crecientes'!M34))))) -> 349.00 | M90: =IF($F$11='Tabla Parámetros'!$O$3,'Tabla Fijos'!N35,IF($F$11='Tabla Parámetros'!$O$5,'Tabla Fijos'!N35,IF(COTIZADOR!$F$11='Tabla Parámetros'!$O$6,'Tabla Fijos'!N35,IF(COTIZADOR!$F$11='Tabla Parámetros'!$O$4,'Tabla Crecientes'!N34)))) -> 0.00 | O90: 9,286.84 | P90: 953,919.53 | Q90: 1
B91: 25 | C91: =IF($B$67="","",'Fecha Pago'!K28) -> 2022-11-03 | D91: =IF($B$67="","",'Fecha Pago'!L28) -> 30.40 | E91: =IF(B91="","",IF($F$11='Tabla Parámetros'!$O$3,'Tabla Fijos'!E35,IF($F$11='Tabla Parámetros'!$O$5,'Tabla Fijos'!E35,IF(COTIZADOR!$F$11='Tabla Parámetros'!$O$6,'Tabla Fijos'!E35,IF(COTIZADOR!$F$11='Tabla Parámetros'!$O$4,'Tabla Crecientes'!E34))))) -> 7.50% | F91: 953,919.53 | G91: =IF(B91="","",IF($F$11='Tabla Parámetros'!$O$3,'Tabla Fijos'!G36,IF($F$11='Tabla Parámetros'!$O$5,'Tabla Fijos'!G36,IF(COTIZADOR!$F$11='Tabla Parámetros'!$O$6,'Tabla Fijos'!G36,IF(COTIZADOR!$F$11='Tabla Parámetros'!$O$4,'Tabla Crecientes'!G35))))) -> 2,075.70 | H91: =IF(B91="","",IF($F$11='Tabla Parámetros'!$O$3,'Tabla Fijos'!H36,IF($F$11='Tabla Parámetros'!$O$5,'Tabla Fijos'!H36,IF(COTIZADOR!$F$11='Tabla Parámetros'!$O$6,'Tabla Fijos'!H36,IF(COTIZADOR!$F$11='Tabla Parámetros'!$O$4,'Tabla Crecientes'!H35))))) -> 6,041.49 | I91: =IF($F$11='Tabla Parámetros'!$O$3,'Tabla Fijos'!I36,IF($F$11='Tabla Parámetros'!$O$5,'Tabla Fijos'!I36,IF(COTIZADOR!$F$11='Tabla Parámetros'!$O$6,'Tabla Fijos'!I36,IF(COTIZADOR!$F$11='Tabla Parámetros'!$O$4,'Tabla Crecientes'!I35)))) -> 0.00 | J91: =IF(B91="","",IF($F$11='Tabla Parámetros'!$O$3,'Tabla Fijos'!K36,IF($F$11='Tabla Parámetros'!$O$5,'Tabla Fijos'!K36,IF(COTIZADOR!$F$11='Tabla Parámetros'!$O$6,'Tabla Fijos'!K36,IF(COTIZADOR!$F$11='Tabla Parámetros'!$O$4,'Tabla Crecientes'!K35))))) -> 572.35 | K91: =IF(B91="","",IF($F$11='Tabla Parámetros'!$O$3,'Tabla Fijos'!L36,IF($F$11='Tabla Parámetros'!$O$5,'Tabla Fijos'!L36,IF(COTIZADOR!$F$11='Tabla Parámetros'!$O$6,'Tabla Fijos'!L36,IF(COTIZADOR!$F$11='Tabla Parámetros'!$O$4,'Tabla Crecientes'!L35))))) -> 247.06 | L91: =IF(B91="","",IF($F$11='Tabla Parámetros'!$O$3,'Tabla Fijos'!M36,IF($F$11='Tabla Parámetros'!$O$5,'Tabla Fijos'!M36,IF(COTIZADOR!$F$11='Tabla Parámetros'!$O$6,'Tabla Fijos'!M36,IF(COTIZADOR!$F$11='Tabla Parámetros'!$O$4,'Tabla Crecientes'!M35))))) -> 349.00 | M91: =IF($F$11='Tabla Parámetros'!$O$3,'Tabla Fijos'!N36,IF($F$11='Tabla Parámetros'!$O$5,'Tabla Fijos'!N36,IF(COTIZADOR!$F$11='Tabla Parámetros'!$O$6,'Tabla Fijos'!N36,IF(COTIZADOR!$F$11='Tabla Parámetros'!$O$4,'Tabla Crecientes'!N35)))) -> 0.00 | O91: 9,285.60 | P91: 951,843.83 | Q91: 1
B92: 26 | C92: =IF($B$67="","",'Fecha Pago'!K29) -> 2022-12-03 | D92: =IF($B$67="","",'Fecha Pago'!L29) -> 30.40 | E92: =IF(B92="","",IF($F$11='Tabla Parámetros'!$O$3,'Tabla Fijos'!E36,IF($F$11='Tabla Parámetros'!$O$5,'Tabla Fijos'!E36,IF(COTIZADOR!$F$11='Tabla Parámetros'!$O$6,'Tabla Fijos'!E36,IF(COTIZADOR!$F$11='Tabla Parámetros'!$O$4,'Tabla Crecientes'!E35))))) -> 7.50% | F92: 951,843.83 | G92: =IF(B92="","",IF($F$11='Tabla Parámetros'!$O$3,'Tabla Fijos'!G37,IF($F$11='Tabla Parámetros'!$O$5,'Tabla Fijos'!G37,IF(COTIZADOR!$F$11='Tabla Parámetros'!$O$6,'Tabla Fijos'!G37,IF(COTIZADOR!$F$11='Tabla Parámetros'!$O$4,'Tabla Crecientes'!G36))))) -> 2,088.84 | H92: =IF(B92="","",IF($F$11='Tabla Parámetros'!$O$3,'Tabla Fijos'!H37,IF($F$11='Tabla Parámetros'!$O$5,'Tabla Fijos'!H37,IF(COTIZADOR!$F$11='Tabla Parámetros'!$O$6,'Tabla Fijos'!H37,IF(COTIZADOR!$F$11='Tabla Parámetros'!$O$4,'Tabla Crecientes'!H36))))) -> 6,028.34 | I92: =IF($F$11='Tabla Parámetros'!$O$3,'Tabla Fijos'!I37,IF($F$11='Tabla Parámetros'!$O$5,'Tabla Fijos'!I37,IF(COTIZADOR!$F$11='Tabla Parámetros'!$O$6,'Tabla Fijos'!I37,IF(COTIZADOR!$F$11='Tabla Parámetros'!$O$4,'Tabla Crecientes'!I36)))) -> 0.00 | J92: =IF(B92="","",IF($F$11='Tabla Parámetros'!$O$3,'Tabla Fijos'!K37,IF($F$11='Tabla Parámetros'!$O$5,'Tabla Fijos'!K37,IF(COTIZADOR!$F$11='Tabla Parámetros'!$O$6,'Tabla Fijos'!K37,IF(COTIZADOR!$F$11='Tabla Parámetros'!$O$4,'Tabla Crecientes'!K36))))) -> 571.11 | K92: =IF(B92="","",IF($F$11='Tabla Parámetros'!$O$3,'Tabla Fijos'!L37,IF($F$11='Tabla Parámetros'!$O$5,'Tabla Fijos'!L37,IF(COTIZADOR!$F$11='Tabla Parámetros'!$O$6,'Tabla Fijos'!L37,IF(COTIZADOR!$F$11='Tabla Parámetros'!$O$4,'Tabla Crecientes'!L36))))) -> 247.06 | L92: =IF(B92="","",IF($F$11='Tabla Parámetros'!$O$3,'Tabla Fijos'!M37,IF($F$11='Tabla Parámetros'!$O$5,'Tabla Fijos'!M37,IF(COTIZADOR!$F$11='Tabla Parámetros'!$O$6,'Tabla Fijos'!M37,IF(COTIZADOR!$F$11='Tabla Parámetros'!$O$4,'Tabla Crecientes'!M36))))) -> 349.00 | M92: =IF($F$11='Tabla Parámetros'!$O$3,'Tabla Fijos'!N37,IF($F$11='Tabla Parámetros'!$O$5,'Tabla Fijos'!N37,IF(COTIZADOR!$F$11='Tabla Parámetros'!$O$6,'Tabla Fijos'!N37,IF(COTIZADOR!$F$11='Tabla Parámetros'!$O$4,'Tabla Crecientes'!N36)))) -> 0.00 | O92: 9,284.35 | P92: 949,754.99 | Q92: 1
B93: 27 | C93: =IF($B$67="","",'Fecha Pago'!K30) -> 2023-01-03 | D93: =IF($B$67="","",'Fecha Pago'!L30) -> 30.40 | E93: =IF(B93="","",IF($F$11='Tabla Parámetros'!$O$3,'Tabla Fijos'!E37,IF($F$11='Tabla Parámetros'!$O$5,'Tabla Fijos'!E37,IF(COTIZADOR!$F$11='Tabla Parámetros'!$O$6,'Tabla Fijos'!E37,IF(COTIZADOR!$F$11='Tabla Parámetros'!$O$4,'Tabla Crecientes'!E36))))) -> 7.50% | F93: 949,754.99 | G93: =IF(B93="","",IF($F$11='Tabla Parámetros'!$O$3,'Tabla Fijos'!G38,IF($F$11='Tabla Parámetros'!$O$5,'Tabla Fijos'!G38,IF(COTIZADOR!$F$11='Tabla Parámetros'!$O$6,'Tabla Fijos'!G38,IF(COTIZADOR!$F$11='Tabla Parámetros'!$O$4,'Tabla Crecientes'!G37))))) -> 2,102.07 | H93: =IF(B93="","",IF($F$11='Tabla Parámetros'!$O$3,'Tabla Fijos'!H38,IF($F$11='Tabla Parámetros'!$O$5,'Tabla Fijos'!H38,IF(COTIZADOR!$F$11='Tabla Parámetros'!$O$6,'Tabla Fijos'!H38,IF(COTIZADOR!$F$11='Tabla Parámetros'!$O$4,'Tabla Crecientes'!H37))))) -> 6,015.11 | I93: =IF($F$11='Tabla Parámetros'!$O$3,'Tabla Fijos'!I38,IF($F$11='Tabla Parámetros'!$O$5,'Tabla Fijos'!I38,IF(COTIZADOR!$F$11='Tabla Parámetros'!$O$6,'Tabla Fijos'!I38,IF(COTIZADOR!$F$11='Tabla Parámetros'!$O$4,'Tabla Crecientes'!I37)))) -> 0.00 | J93: =IF(B93="","",IF($F$11='Tabla Parámetros'!$O$3,'Tabla Fijos'!K38,IF($F$11='Tabla Parámetros'!$O$5,'Tabla Fijos'!K38,IF(COTIZADOR!$F$11='Tabla Parámetros'!$O$6,'Tabla Fijos'!K38,IF(COTIZADOR!$F$11='Tabla Parámetros'!$O$4,'Tabla Crecientes'!K37))))) -> 569.85 | K93: =IF(B93="","",IF($F$11='Tabla Parámetros'!$O$3,'Tabla Fijos'!L38,IF($F$11='Tabla Parámetros'!$O$5,'Tabla Fijos'!L38,IF(COTIZADOR!$F$11='Tabla Parámetros'!$O$6,'Tabla Fijos'!L38,IF(COTIZADOR!$F$11='Tabla Parámetros'!$O$4,'Tabla Crecientes'!L37))))) -> 247.06 | L93: =IF(B93="","",IF($F$11='Tabla Parámetros'!$O$3,'Tabla Fijos'!M38,IF($F$11='Tabla Parámetros'!$O$5,'Tabla Fijos'!M38,IF(COTIZADOR!$F$11='Tabla Parámetros'!$O$6,'Tabla Fijos'!M38,IF(COTIZADOR!$F$11='Tabla Parámetros'!$O$4,'Tabla Crecientes'!M37))))) -> 349.00 | M93: =IF($F$11='Tabla Parámetros'!$O$3,'Tabla Fijos'!N38,IF($F$11='Tabla Parámetros'!$O$5,'Tabla Fijos'!N38,IF(COTIZADOR!$F$11='Tabla Parámetros'!$O$6,'Tabla Fijos'!N38,IF(COTIZADOR!$F$11='Tabla Parámetros'!$O$4,'Tabla Crecientes'!N37)))) -> 0.00 | O93: 9,283.10 | P93: 947,652.91 | Q93: 1
B94: 28 | C94: =IF($B$67="","",'Fecha Pago'!K31) -> 2023-02-03 | D94: =IF($B$67="","",'Fecha Pago'!L31) -> 30.40 | E94: =IF(B94="","",IF($F$11='Tabla Parámetros'!$O$3,'Tabla Fijos'!E38,IF($F$11='Tabla Parámetros'!$O$5,'Tabla Fijos'!E38,IF(COTIZADOR!$F$11='Tabla Parámetros'!$O$6,'Tabla Fijos'!E38,IF(COTIZADOR!$F$11='Tabla Parámetros'!$O$4,'Tabla Crecientes'!E37))))) -> 7.50% | F94: 947,652.91 | G94: =IF(B94="","",IF($F$11='Tabla Parámetros'!$O$3,'Tabla Fijos'!G39,IF($F$11='Tabla Parámetros'!$O$5,'Tabla Fijos'!G39,IF(COTIZADOR!$F$11='Tabla Parámetros'!$O$6,'Tabla Fijos'!G39,IF(COTIZADOR!$F$11='Tabla Parámetros'!$O$4,'Tabla Crecientes'!G38))))) -> 2,115.39 | H94: =IF(B94="","",IF($F$11='Tabla Parámetros'!$O$3,'Tabla Fijos'!H39,IF($F$11='Tabla Parámetros'!$O$5,'Tabla Fijos'!H39,IF(COTIZADOR!$F$11='Tabla Parámetros'!$O$6,'Tabla Fijos'!H39,IF(COTIZADOR!$F$11='Tabla Parámetros'!$O$4,'Tabla Crecientes'!H38))))) -> 6,001.80 | I94: =IF($F$11='Tabla Parámetros'!$O$3,'Tabla Fijos'!I39,IF($F$11='Tabla Parámetros'!$O$5,'Tabla Fijos'!I39,IF(COTIZADOR!$F$11='Tabla Parámetros'!$O$6,'Tabla Fijos'!I39,IF(COTIZADOR!$F$11='Tabla Parámetros'!$O$4,'Tabla Crecientes'!I38)))) -> 0.00 | J94: =IF(B94="","",IF($F$11='Tabla Parámetros'!$O$3,'Tabla Fijos'!K39,IF($F$11='Tabla Parámetros'!$O$5,'Tabla Fijos'!K39,IF(COTIZADOR!$F$11='Tabla Parámetros'!$O$6,'Tabla Fijos'!K39,IF(COTIZADOR!$F$11='Tabla Parámetros'!$O$4,'Tabla Crecientes'!K38))))) -> 568.59 | K94: =IF(B94="","",IF($F$11='Tabla Parámetros'!$O$3,'Tabla Fijos'!L39,IF($F$11='Tabla Parámetros'!$O$5,'Tabla Fijos'!L39,IF(COTIZADOR!$F$11='Tabla Parámetros'!$O$6,'Tabla Fijos'!L39,IF(COTIZADOR!$F$11='Tabla Parámetros'!$O$4,'Tabla Crecientes'!L38))))) -> 247.06 | L94: =IF(B94="","",IF($F$11='Tabla Parámetros'!$O$3,'Tabla Fijos'!M39,IF($F$11='Tabla Parámetros'!$O$5,'Tabla Fijos'!M39,IF(COTIZADOR!$F$11='Tabla Parámetros'!$O$6,'Tabla Fijos'!M39,IF(COTIZADOR!$F$11='Tabla Parámetros'!$O$4,'Tabla Crecientes'!M38))))) -> 349.00 | M94: =IF($F$11='Tabla Parámetros'!$O$3,'Tabla Fijos'!N39,IF($F$11='Tabla Parámetros'!$O$5,'Tabla Fijos'!N39,IF(COTIZADOR!$F$11='Tabla Parámetros'!$O$6,'Tabla Fijos'!N39,IF(COTIZADOR!$F$11='Tabla Parámetros'!$O$4,'Tabla Crecientes'!N38)))) -> 0.00 | O94: 9,281.84 | P94: 945,537.53 | Q94: 1
B95: 29 | C95: =IF($B$67="","",'Fecha Pago'!K32) -> 2023-03-03 | D95: =IF($B$67="","",'Fecha Pago'!L32) -> 30.40 | E95: =IF(B95="","",IF($F$11='Tabla Parámetros'!$O$3,'Tabla Fijos'!E39,IF($F$11='Tabla Parámetros'!$O$5,'Tabla Fijos'!E39,IF(COTIZADOR!$F$11='Tabla Parámetros'!$O$6,'Tabla Fijos'!E39,IF(COTIZADOR!$F$11='Tabla Parámetros'!$O$4,'Tabla Crecientes'!E38))))) -> 7.50% | F95: 945,537.53 | G95: =IF(B95="","",IF($F$11='Tabla Parámetros'!$O$3,'Tabla Fijos'!G40,IF($F$11='Tabla Parámetros'!$O$5,'Tabla Fijos'!G40,IF(COTIZADOR!$F$11='Tabla Parámetros'!$O$6,'Tabla Fijos'!G40,IF(COTIZADOR!$F$11='Tabla Parámetros'!$O$4,'Tabla Crecientes'!G39))))) -> 2,128.78 | H95: =IF(B95="","",IF($F$11='Tabla Parámetros'!$O$3,'Tabla Fijos'!H40,IF($F$11='Tabla Parámetros'!$O$5,'Tabla Fijos'!H40,IF(COTIZADOR!$F$11='Tabla Parámetros'!$O$6,'Tabla Fijos'!H40,IF(COTIZADOR!$F$11='Tabla Parámetros'!$O$4,'Tabla Crecientes'!H39))))) -> 5,988.40 | I95: =IF($F$11='Tabla Parámetros'!$O$3,'Tabla Fijos'!I40,IF($F$11='Tabla Parámetros'!$O$5,'Tabla Fijos'!I40,IF(COTIZADOR!$F$11='Tabla Parámetros'!$O$6,'Tabla Fijos'!I40,IF(COTIZADOR!$F$11='Tabla Parámetros'!$O$4,'Tabla Crecientes'!I39)))) -> 0.00 | J95: =IF(B95="","",IF($F$11='Tabla Parámetros'!$O$3,'Tabla Fijos'!K40,IF($F$11='Tabla Parámetros'!$O$5,'Tabla Fijos'!K40,IF(COTIZADOR!$F$11='Tabla Parámetros'!$O$6,'Tabla Fijos'!K40,IF(COTIZADOR!$F$11='Tabla Parámetros'!$O$4,'Tabla Crecientes'!K39))))) -> 567.32 | K95: =IF(B95="","",IF($F$11='Tabla Parámetros'!$O$3,'Tabla Fijos'!L40,IF($F$11='Tabla Parámetros'!$O$5,'Tabla Fijos'!L40,IF(COTIZADOR!$F$11='Tabla Parámetros'!$O$6,'Tabla Fijos'!L40,IF(COTIZADOR!$F$11='Tabla Parámetros'!$O$4,'Tabla Crecientes'!L39))))) -> 247.06 | L95: =IF(B95="","",IF($F$11='Tabla Parámetros'!$O$3,'Tabla Fijos'!M40,IF($F$11='Tabla Parámetros'!$O$5,'Tabla Fijos'!M40,IF(COTIZADOR!$F$11='Tabla Parámetros'!$O$6,'Tabla Fijos'!M40,IF(COTIZADOR!$F$11='Tabla Parámetros'!$O$4,'Tabla Crecientes'!M39))))) -> 349.00 | M95: =IF($F$11='Tabla Parámetros'!$O$3,'Tabla Fijos'!N40,IF($F$11='Tabla Parámetros'!$O$5,'Tabla Fijos'!N40,IF(COTIZADOR!$F$11='Tabla Parámetros'!$O$6,'Tabla Fijos'!N40,IF(COTIZADOR!$F$11='Tabla Parámetros'!$O$4,'Tabla Crecientes'!N39)))) -> 0.00 | O95: 9,280.57 | P95: 943,408.74 | Q95: 1
B96: 30 | C96: =IF($B$67="","",'Fecha Pago'!K33) -> 2023-04-03 | D96: =IF($B$67="","",'Fecha Pago'!L33) -> 30.40 | E96: =IF(B96="","",IF($F$11='Tabla Parámetros'!$O$3,'Tabla Fijos'!E40,IF($F$11='Tabla Parámetros'!$O$5,'Tabla Fijos'!E40,IF(COTIZADOR!$F$11='Tabla Parámetros'!$O$6,'Tabla Fijos'!E40,IF(COTIZADOR!$F$11='Tabla Parámetros'!$O$4,'Tabla Crecientes'!E39))))) -> 7.50% | F96: 943,408.74 | G96: =IF(B96="","",IF($F$11='Tabla Parámetros'!$O$3,'Tabla Fijos'!G41,IF($F$11='Tabla Parámetros'!$O$5,'Tabla Fijos'!G41,IF(COTIZADOR!$F$11='Tabla Parámetros'!$O$6,'Tabla Fijos'!G41,IF(COTIZADOR!$F$11='Tabla Parámetros'!$O$4,'Tabla Crecientes'!G40))))) -> 2,142.27 | H96: =IF(B96="","",IF($F$11='Tabla Parámetros'!$O$3,'Tabla Fijos'!H41,IF($F$11='Tabla Parámetros'!$O$5,'Tabla Fijos'!H41,IF(COTIZADOR!$F$11='Tabla Parámetros'!$O$6,'Tabla Fijos'!H41,IF(COTIZADOR!$F$11='Tabla Parámetros'!$O$4,'Tabla Crecientes'!H40))))) -> 5,974.92 | I96: =IF($F$11='Tabla Parámetros'!$O$3,'Tabla Fijos'!I41,IF($F$11='Tabla Parámetros'!$O$5,'Tabla Fijos'!I41,IF(COTIZADOR!$F$11='Tabla Parámetros'!$O$6,'Tabla Fijos'!I41,IF(COTIZADOR!$F$11='Tabla Parámetros'!$O$4,'Tabla Crecientes'!I40)))) -> 0.00 | J96: =IF(B96="","",IF($F$11='Tabla Parámetros'!$O$3,'Tabla Fijos'!K41,IF($F$11='Tabla Parámetros'!$O$5,'Tabla Fijos'!K41,IF(COTIZADOR!$F$11='Tabla Parámetros'!$O$6,'Tabla Fijos'!K41,IF(COTIZADOR!$F$11='Tabla Parámetros'!$O$4,'Tabla Crecientes'!K40))))) -> 566.05 | K96: =IF(B96="","",IF($F$11='Tabla Parámetros'!$O$3,'Tabla Fijos'!L41,IF($F$11='Tabla Parámetros'!$O$5,'Tabla Fijos'!L41,IF(COTIZADOR!$F$11='Tabla Parámetros'!$O$6,'Tabla Fijos'!L41,IF(COTIZADOR!$F$11='Tabla Parámetros'!$O$4,'Tabla Crecientes'!L40))))) -> 247.06 | L96: =IF(B96="","",IF($F$11='Tabla Parámetros'!$O$3,'Tabla Fijos'!M41,IF($F$11='Tabla Parámetros'!$O$5,'Tabla Fijos'!M41,IF(COTIZADOR!$F$11='Tabla Parámetros'!$O$6,'Tabla Fijos'!M41,IF(COTIZADOR!$F$11='Tabla Parámetros'!$O$4,'Tabla Crecientes'!M40))))) -> 349.00 | M96: =IF($F$11='Tabla Parámetros'!$O$3,'Tabla Fijos'!N41,IF($F$11='Tabla Parámetros'!$O$5,'Tabla Fijos'!N41,IF(COTIZADOR!$F$11='Tabla Parámetros'!$O$6,'Tabla Fijos'!N41,IF(COTIZADOR!$F$11='Tabla Parámetros'!$O$4,'Tabla Crecientes'!N40)))) -> 0.00 | O96: 9,279.29 | P96: 941,266.47 | Q96: 1
B97: 31 | C97: =IF($B$67="","",'Fecha Pago'!K34) -> 2023-05-03 | D97: =IF($B$67="","",'Fecha Pago'!L34) -> 30.40 | E97: =IF(B97="","",IF($F$11='Tabla Parámetros'!$O$3,'Tabla Fijos'!E41,IF($F$11='Tabla Parámetros'!$O$5,'Tabla Fijos'!E41,IF(COTIZADOR!$F$11='Tabla Parámetros'!$O$6,'Tabla Fijos'!E41,IF(COTIZADOR!$F$11='Tabla Parámetros'!$O$4,'Tabla Crecientes'!E40))))) -> 7.50% | F97: 941,266.47 | G97: =IF(B97="","",IF($F$11='Tabla Parámetros'!$O$3,'Tabla Fijos'!G42,IF($F$11='Tabla Parámetros'!$O$5,'Tabla Fijos'!G42,IF(COTIZADOR!$F$11='Tabla Parámetros'!$O$6,'Tabla Fijos'!G42,IF(COTIZADOR!$F$11='Tabla Parámetros'!$O$4,'Tabla Crecientes'!G41))))) -> 2,155.83 | H97: =IF(B97="","",IF($F$11='Tabla Parámetros'!$O$3,'Tabla Fijos'!H42,IF($F$11='Tabla Parámetros'!$O$5,'Tabla Fijos'!H42,IF(COTIZADOR!$F$11='Tabla Parámetros'!$O$6,'Tabla Fijos'!H42,IF(COTIZADOR!$F$11='Tabla Parámetros'!$O$4,'Tabla Crecientes'!H41))))) -> 5,961.35 | I97: =IF($F$11='Tabla Parámetros'!$O$3,'Tabla Fijos'!I42,IF($F$11='Tabla Parámetros'!$O$5,'Tabla Fijos'!I42,IF(COTIZADOR!$F$11='Tabla Parámetros'!$O$6,'Tabla Fijos'!I42,IF(COTIZADOR!$F$11='Tabla Parámetros'!$O$4,'Tabla Crecientes'!I41)))) -> 0.00 | J97: =IF(B97="","",IF($F$11='Tabla Parámetros'!$O$3,'Tabla Fijos'!K42,IF($F$11='Tabla Parámetros'!$O$5,'Tabla Fijos'!K42,IF(COTIZADOR!$F$11='Tabla Parámetros'!$O$6,'Tabla Fijos'!K42,IF(COTIZADOR!$F$11='Tabla Parámetros'!$O$4,'Tabla Crecientes'!K41))))) -> 564.76 | K97: =IF(B97="","",IF($F$11='Tabla Parámetros'!$O$3,'Tabla Fijos'!L42,IF($F$11='Tabla Parámetros'!$O$5,'Tabla Fijos'!L42,IF(COTIZADOR!$F$11='Tabla Parámetros'!$O$6,'Tabla Fijos'!L42,IF(COTIZADOR!$F$11='Tabla Parámetros'!$O$4,'Tabla Crecientes'!L41))))) -> 247.06 | L97: =IF(B97="","",IF($F$11='Tabla Parámetros'!$O$3,'Tabla Fijos'!M42,IF($F$11='Tabla Parámetros'!$O$5,'Tabla Fijos'!M42,IF(COTIZADOR!$F$11='Tabla Parámetros'!$O$6,'Tabla Fijos'!M42,IF(COTIZADOR!$F$11='Tabla Parámetros'!$O$4,'Tabla Crecientes'!M41))))) -> 349.00 | M97: =IF($F$11='Tabla Parámetros'!$O$3,'Tabla Fijos'!N42,IF($F$11='Tabla Parámetros'!$O$5,'Tabla Fijos'!N42,IF(COTIZADOR!$F$11='Tabla Parámetros'!$O$6,'Tabla Fijos'!N42,IF(COTIZADOR!$F$11='Tabla Parámetros'!$O$4,'Tabla Crecientes'!N41)))) -> 0.00 | O97: 9,278.01 | P97: 939,110.64 | Q97: 1
B98: 32 | C98: =IF($B$67="","",'Fecha Pago'!K35) -> 2023-06-03 | D98: =IF($B$67="","",'Fecha Pago'!L35) -> 30.40 | E98: =IF(B98="","",IF($F$11='Tabla Parámetros'!$O$3,'Tabla Fijos'!E42,IF($F$11='Tabla Parámetros'!$O$5,'Tabla Fijos'!E42,IF(COTIZADOR!$F$11='Tabla Parámetros'!$O$6,'Tabla Fijos'!E42,IF(COTIZADOR!$F$11='Tabla Parámetros'!$O$4,'Tabla Crecientes'!E41))))) -> 7.50% | F98: 939,110.64 | G98: =IF(B98="","",IF($F$11='Tabla Parámetros'!$O$3,'Tabla Fijos'!G43,IF($F$11='Tabla Parámetros'!$O$5,'Tabla Fijos'!G43,IF(COTIZADOR!$F$11='Tabla Parámetros'!$O$6,'Tabla Fijos'!G43,IF(COTIZADOR!$F$11='Tabla Parámetros'!$O$4,'Tabla Crecientes'!G42))))) -> 2,169.49 | H98: =IF(B98="","",IF($F$11='Tabla Parámetros'!$O$3,'Tabla Fijos'!H43,IF($F$11='Tabla Parámetros'!$O$5,'Tabla Fijos'!H43,IF(COTIZADOR!$F$11='Tabla Parámetros'!$O$6,'Tabla Fijos'!H43,IF(COTIZADOR!$F$11='Tabla Parámetros'!$O$4,'Tabla Crecientes'!H42))))) -> 5,947.70 | I98: =IF($F$11='Tabla Parámetros'!$O$3,'Tabla Fijos'!I43,IF($F$11='Tabla Parámetros'!$O$5,'Tabla Fijos'!I43,IF(COTIZADOR!$F$11='Tabla Parámetros'!$O$6,'Tabla Fijos'!I43,IF(COTIZADOR!$F$11='Tabla Parámetros'!$O$4,'Tabla Crecientes'!I42)))) -> 0.00 | J98: =IF(B98="","",IF($F$11='Tabla Parámetros'!$O$3,'Tabla Fijos'!K43,IF($F$11='Tabla Parámetros'!$O$5,'Tabla Fijos'!K43,IF(COTIZADOR!$F$11='Tabla Parámetros'!$O$6,'Tabla Fijos'!K43,IF(COTIZADOR!$F$11='Tabla Parámetros'!$O$4,'Tabla Crecientes'!K42))))) -> 563.47 | K98: =IF(B98="","",IF($F$11='Tabla Parámetros'!$O$3,'Tabla Fijos'!L43,IF($F$11='Tabla Parámetros'!$O$5,'Tabla Fijos'!L43,IF(COTIZADOR!$F$11='Tabla Parámetros'!$O$6,'Tabla Fijos'!L43,IF(COTIZADOR!$F$11='Tabla Parámetros'!$O$4,'Tabla Crecientes'!L42))))) -> 247.06 | L98: =IF(B98="","",IF($F$11='Tabla Parámetros'!$O$3,'Tabla Fijos'!M43,IF($F$11='Tabla Parámetros'!$O$5,'Tabla Fijos'!M43,IF(COTIZADOR!$F$11='Tabla Parámetros'!$O$6,'Tabla Fijos'!M43,IF(COTIZADOR!$F$11='Tabla Parámetros'!$O$4,'Tabla Crecientes'!M42))))) -> 349.00 | M98: =IF($F$11='Tabla Parámetros'!$O$3,'Tabla Fijos'!N43,IF($F$11='Tabla Parámetros'!$O$5,'Tabla Fijos'!N43,IF(COTIZADOR!$F$11='Tabla Parámetros'!$O$6,'Tabla Fijos'!N43,IF(COTIZADOR!$F$11='Tabla Parámetros'!$O$4,'Tabla Crecientes'!N42)))) -> 0.00 | O98: 9,276.71 | P98: 936,941.15 | Q98: 1
B99: 33 | C99: =IF($B$67="","",'Fecha Pago'!K36) -> 2023-07-03 | D99: =IF($B$67="","",'Fecha Pago'!L36) -> 30.40 | E99: =IF(B99="","",IF($F$11='Tabla Parámetros'!$O$3,'Tabla Fijos'!E43,IF($F$11='Tabla Parámetros'!$O$5,'Tabla Fijos'!E43,IF(COTIZADOR!$F$11='Tabla Parámetros'!$O$6,'Tabla Fijos'!E43,IF(COTIZADOR!$F$11='Tabla Parámetros'!$O$4,'Tabla Crecientes'!E42))))) -> 7.50% | F99: 936,941.15 | G99: =IF(B99="","",IF($F$11='Tabla Parámetros'!$O$3,'Tabla Fijos'!G44,IF($F$11='Tabla Parámetros'!$O$5,'Tabla Fijos'!G44,IF(COTIZADOR!$F$11='Tabla Parámetros'!$O$6,'Tabla Fijos'!G44,IF(COTIZADOR!$F$11='Tabla Parámetros'!$O$4,'Tabla Crecientes'!G43))))) -> 2,183.23 | H99: =IF(B99="","",IF($F$11='Tabla Parámetros'!$O$3,'Tabla Fijos'!H44,IF($F$11='Tabla Parámetros'!$O$5,'Tabla Fijos'!H44,IF(COTIZADOR!$F$11='Tabla Parámetros'!$O$6,'Tabla Fijos'!H44,IF(COTIZADOR!$F$11='Tabla Parámetros'!$O$4,'Tabla Crecientes'!H43))))) -> 5,933.96 | I99: =IF($F$11='Tabla Parámetros'!$O$3,'Tabla Fijos'!I44,IF($F$11='Tabla Parámetros'!$O$5,'Tabla Fijos'!I44,IF(COTIZADOR!$F$11='Tabla Parámetros'!$O$6,'Tabla Fijos'!I44,IF(COTIZADOR!$F$11='Tabla Parámetros'!$O$4,'Tabla Crecientes'!I43)))) -> 0.00 | J99: =IF(B99="","",IF($F$11='Tabla Parámetros'!$O$3,'Tabla Fijos'!K44,IF($F$11='Tabla Parámetros'!$O$5,'Tabla Fijos'!K44,IF(COTIZADOR!$F$11='Tabla Parámetros'!$O$6,'Tabla Fijos'!K44,IF(COTIZADOR!$F$11='Tabla Parámetros'!$O$4,'Tabla Crecientes'!K43))))) -> 562.16 | K99: =IF(B99="","",IF($F$11='Tabla Parámetros'!$O$3,'Tabla Fijos'!L44,IF($F$11='Tabla Parámetros'!$O$5,'Tabla Fijos'!L44,IF(COTIZADOR!$F$11='Tabla Parámetros'!$O$6,'Tabla Fijos'!L44,IF(COTIZADOR!$F$11='Tabla Parámetros'!$O$4,'Tabla Crecientes'!L43))))) -> 247.06 | L99: =IF(B99="","",IF($F$11='Tabla Parámetros'!$O$3,'Tabla Fijos'!M44,IF($F$11='Tabla Parámetros'!$O$5,'Tabla Fijos'!M44,IF(COTIZADOR!$F$11='Tabla Parámetros'!$O$6,'Tabla Fijos'!M44,IF(COTIZADOR!$F$11='Tabla Parámetros'!$O$4,'Tabla Crecientes'!M43))))) -> 349.00 | M99: =IF($F$11='Tabla Parámetros'!$O$3,'Tabla Fijos'!N44,IF($F$11='Tabla Parámetros'!$O$5,'Tabla Fijos'!N44,IF(COTIZADOR!$F$11='Tabla Parámetros'!$O$6,'Tabla Fijos'!N44,IF(COTIZADOR!$F$11='Tabla Parámetros'!$O$4,'Tabla Crecientes'!N43)))) -> 0.00 | O99: 9,275.41 | P99: 934,757.92 | Q99: 1
B100: 34 | C100: =IF($B$67="","",'Fecha Pago'!K37) -> 2023-08-03 | D100: =IF($B$67="","",'Fecha Pago'!L37) -> 30.40 | E100: =IF(B100="","",IF($F$11='Tabla Parámetros'!$O$3,'Tabla Fijos'!E44,IF($F$11='Tabla Parámetros'!$O$5,'Tabla Fijos'!E44,IF(COTIZADOR!$F$11='Tabla Parámetros'!$O$6,'Tabla Fijos'!E44,IF(COTIZADOR!$F$11='Tabla Parámetros'!$O$4,'Tabla Crecientes'!E43))))) -> 7.50% | F100: 934,757.92 | G100: =IF(B100="","",IF($F$11='Tabla Parámetros'!$O$3,'Tabla Fijos'!G45,IF($F$11='Tabla Parámetros'!$O$5,'Tabla Fijos'!G45,IF(COTIZADOR!$F$11='Tabla Parámetros'!$O$6,'Tabla Fijos'!G45,IF(COTIZADOR!$F$11='Tabla Parámetros'!$O$4,'Tabla Crecientes'!G44))))) -> 2,197.06 | H100: =IF(B100="","",IF($F$11='Tabla Parámetros'!$O$3,'Tabla Fijos'!H45,IF($F$11='Tabla Parámetros'!$O$5,'Tabla Fijos'!H45,IF(COTIZADOR!$F$11='Tabla Parámetros'!$O$6,'Tabla Fijos'!H45,IF(COTIZADOR!$F$11='Tabla Parámetros'!$O$4,'Tabla Crecientes'!H44))))) -> 5,920.13 | I100: =IF($F$11='Tabla Parámetros'!$O$3,'Tabla Fijos'!I45,IF($F$11='Tabla Parámetros'!$O$5,'Tabla Fijos'!I45,IF(COTIZADOR!$F$11='Tabla Parámetros'!$O$6,'Tabla Fijos'!I45,IF(COTIZADOR!$F$11='Tabla Parámetros'!$O$4,'Tabla Crecientes'!I44)))) -> 0.00 | J100: =IF(B100="","",IF($F$11='Tabla Parámetros'!$O$3,'Tabla Fijos'!K45,IF($F$11='Tabla Parámetros'!$O$5,'Tabla Fijos'!K45,IF(COTIZADOR!$F$11='Tabla Parámetros'!$O$6,'Tabla Fijos'!K45,IF(COTIZADOR!$F$11='Tabla Parámetros'!$O$4,'Tabla Crecientes'!K44))))) -> 560.85 | K100: =IF(B100="","",IF($F$11='Tabla Parámetros'!$O$3,'Tabla Fijos'!L45,IF($F$11='Tabla Parámetros'!$O$5,'Tabla Fijos'!L45,IF(COTIZADOR!$F$11='Tabla Parámetros'!$O$6,'Tabla Fijos'!L45,IF(COTIZADOR!$F$11='Tabla Parámetros'!$O$4,'Tabla Crecientes'!L44))))) -> 247.06 | L100: =IF(B100="","",IF($F$11='Tabla Parámetros'!$O$3,'Tabla Fijos'!M45,IF($F$11='Tabla Parámetros'!$O$5,'Tabla Fijos'!M45,IF(COTIZADOR!$F$11='Tabla Parámetros'!$O$6,'Tabla Fijos'!M45,IF(COTIZADOR!$F$11='Tabla Parámetros'!$O$4,'Tabla Crecientes'!M44))))) -> 349.00 | M100: =IF($F$11='Tabla Parámetros'!$O$3,'Tabla Fijos'!N45,IF($F$11='Tabla Parámetros'!$O$5,'Tabla Fijos'!N45,IF(COTIZADOR!$F$11='Tabla Parámetros'!$O$6,'Tabla Fijos'!N45,IF(COTIZADOR!$F$11='Tabla Parámetros'!$O$4,'Tabla Crecientes'!N44)))) -> 0.00 | O100: 9,274.10 | P100: 932,560.87 | Q100: 1
B101: 35 | C101: =IF($B$67="","",'Fecha Pago'!K38) -> 2023-09-03 | D101: =IF($B$67="","",'Fecha Pago'!L38) -> 30.40 | E101: =IF(B101="","",IF($F$11='Tabla Parámetros'!$O$3,'Tabla Fijos'!E45,IF($F$11='Tabla Parámetros'!$O$5,'Tabla Fijos'!E45,IF(COTIZADOR!$F$11='Tabla Parámetros'!$O$6,'Tabla Fijos'!E45,IF(COTIZADOR!$F$11='Tabla Parámetros'!$O$4,'Tabla Crecientes'!E44))))) -> 7.50% | F101: 932,560.87 | G101: =IF(B101="","",IF($F$11='Tabla Parámetros'!$O$3,'Tabla Fijos'!G46,IF($F$11='Tabla Parámetros'!$O$5,'Tabla Fijos'!G46,IF(COTIZADOR!$F$11='Tabla Parámetros'!$O$6,'Tabla Fijos'!G46,IF(COTIZADOR!$F$11='Tabla Parámetros'!$O$4,'Tabla Crecientes'!G45))))) -> 2,210.97 | H101: =IF(B101="","",IF($F$11='Tabla Parámetros'!$O$3,'Tabla Fijos'!H46,IF($F$11='Tabla Parámetros'!$O$5,'Tabla Fijos'!H46,IF(COTIZADOR!$F$11='Tabla Parámetros'!$O$6,'Tabla Fijos'!H46,IF(COTIZADOR!$F$11='Tabla Parámetros'!$O$4,'Tabla Crecientes'!H45))))) -> 5,906.22 | I101: =IF($F$11='Tabla Parámetros'!$O$3,'Tabla Fijos'!I46,IF($F$11='Tabla Parámetros'!$O$5,'Tabla Fijos'!I46,IF(COTIZADOR!$F$11='Tabla Parámetros'!$O$6,'Tabla Fijos'!I46,IF(COTIZADOR!$F$11='Tabla Parámetros'!$O$4,'Tabla Crecientes'!I45)))) -> 0.00 | J101: =IF(B101="","",IF($F$11='Tabla Parámetros'!$O$3,'Tabla Fijos'!K46,IF($F$11='Tabla Parámetros'!$O$5,'Tabla Fijos'!K46,IF(COTIZADOR!$F$11='Tabla Parámetros'!$O$6,'Tabla Fijos'!K46,IF(COTIZADOR!$F$11='Tabla Parámetros'!$O$4,'Tabla Crecientes'!K45))))) -> 559.54 | K101: =IF(B101="","",IF($F$11='Tabla Parámetros'!$O$3,'Tabla Fijos'!L46,IF($F$11='Tabla Parámetros'!$O$5,'Tabla Fijos'!L46,IF(COTIZADOR!$F$11='Tabla Parámetros'!$O$6,'Tabla Fijos'!L46,IF(COTIZADOR!$F$11='Tabla Parámetros'!$O$4,'Tabla Crecientes'!L45))))) -> 247.06 | L101: =IF(B101="","",IF($F$11='Tabla Parámetros'!$O$3,'Tabla Fijos'!M46,IF($F$11='Tabla Parámetros'!$O$5,'Tabla Fijos'!M46,IF(COTIZADOR!$F$11='Tabla Parámetros'!$O$6,'Tabla Fijos'!M46,IF(COTIZADOR!$F$11='Tabla Parámetros'!$O$4,'Tabla Crecientes'!M45))))) -> 349.00 | M101: =IF($F$11='Tabla Parámetros'!$O$3,'Tabla Fijos'!N46,IF($F$11='Tabla Parámetros'!$O$5,'Tabla Fijos'!N46,IF(COTIZADOR!$F$11='Tabla Parámetros'!$O$6,'Tabla Fijos'!N46,IF(COTIZADOR!$F$11='Tabla Parámetros'!$O$4,'Tabla Crecientes'!N45)))) -> 0.00 | O101: 9,272.78 | P101: 930,349.90 | Q101: 1
B102: 36 | C102: =IF($B$67="","",'Fecha Pago'!K39) -> 2023-10-03 | D102: =IF($B$67="","",'Fecha Pago'!L39) -> 30.40 | E102: =IF(B102="","",IF($F$11='Tabla Parámetros'!$O$3,'Tabla Fijos'!E46,IF($F$11='Tabla Parámetros'!$O$5,'Tabla Fijos'!E46,IF(COTIZADOR!$F$11='Tabla Parámetros'!$O$6,'Tabla Fijos'!E46,IF(COTIZADOR!$F$11='Tabla Parámetros'!$O$4,'Tabla Crecientes'!E45))))) -> 7.50% | F102: 930,349.90 | G102: =IF(B102="","",IF($F$11='Tabla Parámetros'!$O$3,'Tabla Fijos'!G47,IF($F$11='Tabla Parámetros'!$O$5,'Tabla Fijos'!G47,IF(COTIZADOR!$F$11='Tabla Parámetros'!$O$6,'Tabla Fijos'!G47,IF(COTIZADOR!$F$11='Tabla Parámetros'!$O$4,'Tabla Crecientes'!G46))))) -> 2,224.97 | H102: =IF(B102="","",IF($F$11='Tabla Parámetros'!$O$3,'Tabla Fijos'!H47,IF($F$11='Tabla Parámetros'!$O$5,'Tabla Fijos'!H47,IF(COTIZADOR!$F$11='Tabla Parámetros'!$O$6,'Tabla Fijos'!H47,IF(COTIZADOR!$F$11='Tabla Parámetros'!$O$4,'Tabla Crecientes'!H46))))) -> 5,892.22 | I102: =IF($F$11='Tabla Parámetros'!$O$3,'Tabla Fijos'!I47,IF($F$11='Tabla Parámetros'!$O$5,'Tabla Fijos'!I47,IF(COTIZADOR!$F$11='Tabla Parámetros'!$O$6,'Tabla Fijos'!I47,IF(COTIZADOR!$F$11='Tabla Parámetros'!$O$4,'Tabla Crecientes'!I46)))) -> 0.00 | J102: =IF(B102="","",IF($F$11='Tabla Parámetros'!$O$3,'Tabla Fijos'!K47,IF($F$11='Tabla Parámetros'!$O$5,'Tabla Fijos'!K47,IF(COTIZADOR!$F$11='Tabla Parámetros'!$O$6,'Tabla Fijos'!K47,IF(COTIZADOR!$F$11='Tabla Parámetros'!$O$4,'Tabla Crecientes'!K46))))) -> 558.21 | K102: =IF(B102="","",IF($F$11='Tabla Parámetros'!$O$3,'Tabla Fijos'!L47,IF($F$11='Tabla Parámetros'!$O$5,'Tabla Fijos'!L47,IF(COTIZADOR!$F$11='Tabla Parámetros'!$O$6,'Tabla Fijos'!L47,IF(COTIZADOR!$F$11='Tabla Parámetros'!$O$4,'Tabla Crecientes'!L46))))) -> 247.06 | L102: =IF(B102="","",IF($F$11='Tabla Parámetros'!$O$3,'Tabla Fijos'!M47,IF($F$11='Tabla Parámetros'!$O$5,'Tabla Fijos'!M47,IF(COTIZADOR!$F$11='Tabla Parámetros'!$O$6,'Tabla Fijos'!M47,IF(COTIZADOR!$F$11='Tabla Parámetros'!$O$4,'Tabla Crecientes'!M46))))) -> 349.00 | M102: =IF($F$11='Tabla Parámetros'!$O$3,'Tabla Fijos'!N47,IF($F$11='Tabla Parámetros'!$O$5,'Tabla Fijos'!N47,IF(COTIZADOR!$F$11='Tabla Parámetros'!$O$6,'Tabla Fijos'!N47,IF(COTIZADOR!$F$11='Tabla Parámetros'!$O$4,'Tabla Crecientes'!N46)))) -> 0.00 | O102: 9,271.46 | P102: 928,124.93 | Q102: 1
B103: 37 | C103: =IF($B$67="","",'Fecha Pago'!K40) -> 2023-11-03 | D103: =IF($B$67="","",'Fecha Pago'!L40) -> 30.40 | E103: =IF(B103="","",IF($F$11='Tabla Parámetros'!$O$3,'Tabla Fijos'!E47,IF($F$11='Tabla Parámetros'!$O$5,'Tabla Fijos'!E47,IF(COTIZADOR!$F$11='Tabla Parámetros'!$O$6,'Tabla Fijos'!E47,IF(COTIZADOR!$F$11='Tabla Parámetros'!$O$4,'Tabla Crecientes'!E46))))) -> 7.50% | F103: 928,124.93 | G103: =IF(B103="","",IF($F$11='Tabla Parámetros'!$O$3,'Tabla Fijos'!G48,IF($F$11='Tabla Parámetros'!$O$5,'Tabla Fijos'!G48,IF(COTIZADOR!$F$11='Tabla Parámetros'!$O$6,'Tabla Fijos'!G48,IF(COTIZADOR!$F$11='Tabla Parámetros'!$O$4,'Tabla Crecientes'!G47))))) -> 2,239.06 | H103: =IF(B103="","",IF($F$11='Tabla Parámetros'!$O$3,'Tabla Fijos'!H48,IF($F$11='Tabla Parámetros'!$O$5,'Tabla Fijos'!H48,IF(COTIZADOR!$F$11='Tabla Parámetros'!$O$6,'Tabla Fijos'!H48,IF(COTIZADOR!$F$11='Tabla Parámetros'!$O$4,'Tabla Crecientes'!H47))))) -> 5,878.12 | I103: =IF($F$11='Tabla Parámetros'!$O$3,'Tabla Fijos'!I48,IF($F$11='Tabla Parámetros'!$O$5,'Tabla Fijos'!I48,IF(COTIZADOR!$F$11='Tabla Parámetros'!$O$6,'Tabla Fijos'!I48,IF(COTIZADOR!$F$11='Tabla Parámetros'!$O$4,'Tabla Crecientes'!I47)))) -> 0.00 | J103: =IF(B103="","",IF($F$11='Tabla Parámetros'!$O$3,'Tabla Fijos'!K48,IF($F$11='Tabla Parámetros'!$O$5,'Tabla Fijos'!K48,IF(COTIZADOR!$F$11='Tabla Parámetros'!$O$6,'Tabla Fijos'!K48,IF(COTIZADOR!$F$11='Tabla Parámetros'!$O$4,'Tabla Crecientes'!K47))))) -> 556.87 | K103: =IF(B103="","",IF($F$11='Tabla Parámetros'!$O$3,'Tabla Fijos'!L48,IF($F$11='Tabla Parámetros'!$O$5,'Tabla Fijos'!L48,IF(COTIZADOR!$F$11='Tabla Parámetros'!$O$6,'Tabla Fijos'!L48,IF(COTIZADOR!$F$11='Tabla Parámetros'!$O$4,'Tabla Crecientes'!L47))))) -> 247.06 | L103: =IF(B103="","",IF($F$11='Tabla Parámetros'!$O$3,'Tabla Fijos'!M48,IF($F$11='Tabla Parámetros'!$O$5,'Tabla Fijos'!M48,IF(COTIZADOR!$F$11='Tabla Parámetros'!$O$6,'Tabla Fijos'!M48,IF(COTIZADOR!$F$11='Tabla Parámetros'!$O$4,'Tabla Crecientes'!M47))))) -> 349.00 | M103: =IF($F$11='Tabla Parámetros'!$O$3,'Tabla Fijos'!N48,IF($F$11='Tabla Parámetros'!$O$5,'Tabla Fijos'!N48,IF(COTIZADOR!$F$11='Tabla Parámetros'!$O$6,'Tabla Fijos'!N48,IF(COTIZADOR!$F$11='Tabla Parámetros'!$O$4,'Tabla Crecientes'!N47)))) -> 0.00 | O103: 9,270.12 | P103: 925,885.86 | Q103: 1
B104: 38 | C104: =IF($B$67="","",'Fecha Pago'!K41) -> 2023-12-03 | D104: =IF($B$67="","",'Fecha Pago'!L41) -> 30.40 | E104: =IF(B104="","",IF($F$11='Tabla Parámetros'!$O$3,'Tabla Fijos'!E48,IF($F$11='Tabla Parámetros'!$O$5,'Tabla Fijos'!E48,IF(COTIZADOR!$F$11='Tabla Parámetros'!$O$6,'Tabla Fijos'!E48,IF(COTIZADOR!$F$11='Tabla Parámetros'!$O$4,'Tabla Crecientes'!E47))))) -> 7.50% | F104: 925,885.86 | G104: =IF(B104="","",IF($F$11='Tabla Parámetros'!$O$3,'Tabla Fijos'!G49,IF($F$11='Tabla Parámetros'!$O$5,'Tabla Fijos'!G49,IF(COTIZADOR!$F$11='Tabla Parámetros'!$O$6,'Tabla Fijos'!G49,IF(COTIZADOR!$F$11='Tabla Parámetros'!$O$4,'Tabla Crecientes'!G48))))) -> 2,253.24 | H104: =IF(B104="","",IF($F$11='Tabla Parámetros'!$O$3,'Tabla Fijos'!H49,IF($F$11='Tabla Parámetros'!$O$5,'Tabla Fijos'!H49,IF(COTIZADOR!$F$11='Tabla Parámetros'!$O$6,'Tabla Fijos'!H49,IF(COTIZADOR!$F$11='Tabla Parámetros'!$O$4,'Tabla Crecientes'!H48))))) -> 5,863.94 | I104: =IF($F$11='Tabla Parámetros'!$O$3,'Tabla Fijos'!I49,IF($F$11='Tabla Parámetros'!$O$5,'Tabla Fijos'!I49,IF(COTIZADOR!$F$11='Tabla Parámetros'!$O$6,'Tabla Fijos'!I49,IF(COTIZADOR!$F$11='Tabla Parámetros'!$O$4,'Tabla Crecientes'!I48)))) -> 0.00 | J104: =IF(B104="","",IF($F$11='Tabla Parámetros'!$O$3,'Tabla Fijos'!K49,IF($F$11='Tabla Parámetros'!$O$5,'Tabla Fijos'!K49,IF(COTIZADOR!$F$11='Tabla Parámetros'!$O$6,'Tabla Fijos'!K49,IF(COTIZADOR!$F$11='Tabla Parámetros'!$O$4,'Tabla Crecientes'!K48))))) -> 555.53 | K104: =IF(B104="","",IF($F$11='Tabla Parámetros'!$O$3,'Tabla Fijos'!L49,IF($F$11='Tabla Parámetros'!$O$5,'Tabla Fijos'!L49,IF(COTIZADOR!$F$11='Tabla Parámetros'!$O$6,'Tabla Fijos'!L49,IF(COTIZADOR!$F$11='Tabla Parámetros'!$O$4,'Tabla Crecientes'!L48))))) -> 247.06 | L104: =IF(B104="","",IF($F$11='Tabla Parámetros'!$O$3,'Tabla Fijos'!M49,IF($F$11='Tabla Parámetros'!$O$5,'Tabla Fijos'!M49,IF(COTIZADOR!$F$11='Tabla Parámetros'!$O$6,'Tabla Fijos'!M49,IF(COTIZADOR!$F$11='Tabla Parámetros'!$O$4,'Tabla Crecientes'!M48))))) -> 349.00 | M104: =IF($F$11='Tabla Parámetros'!$O$3,'Tabla Fijos'!N49,IF($F$11='Tabla Parámetros'!$O$5,'Tabla Fijos'!N49,IF(COTIZADOR!$F$11='Tabla Parámetros'!$O$6,'Tabla Fijos'!N49,IF(COTIZADOR!$F$11='Tabla Parámetros'!$O$4,'Tabla Crecientes'!N48)))) -> 0.00 | O104: 9,268.78 | P104: 923,632.62 | Q104: 1
B105: 39 | C105: =IF($B$67="","",'Fecha Pago'!K42) -> 2024-01-03 | D105: =IF($B$67="","",'Fecha Pago'!L42) -> 30.40 | E105: =IF(B105="","",IF($F$11='Tabla Parámetros'!$O$3,'Tabla Fijos'!E49,IF($F$11='Tabla Parámetros'!$O$5,'Tabla Fijos'!E49,IF(COTIZADOR!$F$11='Tabla Parámetros'!$O$6,'Tabla Fijos'!E49,IF(COTIZADOR!$F$11='Tabla Parámetros'!$O$4,'Tabla Crecientes'!E48))))) -> 7.50% | F105: 923,632.62 | G105: =IF(B105="","",IF($F$11='Tabla Parámetros'!$O$3,'Tabla Fijos'!G50,IF($F$11='Tabla Parámetros'!$O$5,'Tabla Fijos'!G50,IF(COTIZADOR!$F$11='Tabla Parámetros'!$O$6,'Tabla Fijos'!G50,IF(COTIZADOR!$F$11='Tabla Parámetros'!$O$4,'Tabla Crecientes'!G49))))) -> 2,267.52 | H105: =IF(B105="","",IF($F$11='Tabla Parámetros'!$O$3,'Tabla Fijos'!H50,IF($F$11='Tabla Parámetros'!$O$5,'Tabla Fijos'!H50,IF(COTIZADOR!$F$11='Tabla Parámetros'!$O$6,'Tabla Fijos'!H50,IF(COTIZADOR!$F$11='Tabla Parámetros'!$O$4,'Tabla Crecientes'!H49))))) -> 5,849.67 | I105: =IF($F$11='Tabla Parámetros'!$O$3,'Tabla Fijos'!I50,IF($F$11='Tabla Parámetros'!$O$5,'Tabla Fijos'!I50,IF(COTIZADOR!$F$11='Tabla Parámetros'!$O$6,'Tabla Fijos'!I50,IF(COTIZADOR!$F$11='Tabla Parámetros'!$O$4,'Tabla Crecientes'!I49)))) -> 0.00 | J105: =IF(B105="","",IF($F$11='Tabla Parámetros'!$O$3,'Tabla Fijos'!K50,IF($F$11='Tabla Parámetros'!$O$5,'Tabla Fijos'!K50,IF(COTIZADOR!$F$11='Tabla Parámetros'!$O$6,'Tabla Fijos'!K50,IF(COTIZADOR!$F$11='Tabla Parámetros'!$O$4,'Tabla Crecientes'!K49))))) -> 554.18 | K105: =IF(B105="","",IF($F$11='Tabla Parámetros'!$O$3,'Tabla Fijos'!L50,IF($F$11='Tabla Parámetros'!$O$5,'Tabla Fijos'!L50,IF(COTIZADOR!$F$11='Tabla Parámetros'!$O$6,'Tabla Fijos'!L50,IF(COTIZADOR!$F$11='Tabla Parámetros'!$O$4,'Tabla Crecientes'!L49))))) -> 247.06 | L105: =IF(B105="","",IF($F$11='Tabla Parámetros'!$O$3,'Tabla Fijos'!M50,IF($F$11='Tabla Parámetros'!$O$5,'Tabla Fijos'!M50,IF(COTIZADOR!$F$11='Tabla Parámetros'!$O$6,'Tabla Fijos'!M50,IF(COTIZADOR!$F$11='Tabla Parámetros'!$O$4,'Tabla Crecientes'!M49))))) -> 349.00 | M105: =IF($F$11='Tabla Parámetros'!$O$3,'Tabla Fijos'!N50,IF($F$11='Tabla Parámetros'!$O$5,'Tabla Fijos'!N50,IF(COTIZADOR!$F$11='Tabla Parámetros'!$O$6,'Tabla Fijos'!N50,IF(COTIZADOR!$F$11='Tabla Parámetros'!$O$4,'Tabla Crecientes'!N49)))) -> 0.00 | O105: 9,267.43 | P105: 921,365.10 | Q105: 1
B106: 40 | C106: =IF($B$67="","",'Fecha Pago'!K43) -> 2024-02-03 | D106: =IF($B$67="","",'Fecha Pago'!L43) -> 30.40 | E106: =IF(B106="","",IF($F$11='Tabla Parámetros'!$O$3,'Tabla Fijos'!E50,IF($F$11='Tabla Parámetros'!$O$5,'Tabla Fijos'!E50,IF(COTIZADOR!$F$11='Tabla Parámetros'!$O$6,'Tabla Fijos'!E50,IF(COTIZADOR!$F$11='Tabla Parámetros'!$O$4,'Tabla Crecientes'!E49))))) -> 7.50% | F106: 921,365.10 | G106: =IF(B106="","",IF($F$11='Tabla Parámetros'!$O$3,'Tabla Fijos'!G51,IF($F$11='Tabla Parámetros'!$O$5,'Tabla Fijos'!G51,IF(COTIZADOR!$F$11='Tabla Parámetros'!$O$6,'Tabla Fijos'!G51,IF(COTIZADOR!$F$11='Tabla Parámetros'!$O$4,'Tabla Crecientes'!G50))))) -> 2,281.88 | H106: =IF(B106="","",IF($F$11='Tabla Parámetros'!$O$3,'Tabla Fijos'!H51,IF($F$11='Tabla Parámetros'!$O$5,'Tabla Fijos'!H51,IF(COTIZADOR!$F$11='Tabla Parámetros'!$O$6,'Tabla Fijos'!H51,IF(COTIZADOR!$F$11='Tabla Parámetros'!$O$4,'Tabla Crecientes'!H50))))) -> 5,835.31 | I106: =IF($F$11='Tabla Parámetros'!$O$3,'Tabla Fijos'!I51,IF($F$11='Tabla Parámetros'!$O$5,'Tabla Fijos'!I51,IF(COTIZADOR!$F$11='Tabla Parámetros'!$O$6,'Tabla Fijos'!I51,IF(COTIZADOR!$F$11='Tabla Parámetros'!$O$4,'Tabla Crecientes'!I50)))) -> 0.00 | J106: =IF(B106="","",IF($F$11='Tabla Parámetros'!$O$3,'Tabla Fijos'!K51,IF($F$11='Tabla Parámetros'!$O$5,'Tabla Fijos'!K51,IF(COTIZADOR!$F$11='Tabla Parámetros'!$O$6,'Tabla Fijos'!K51,IF(COTIZADOR!$F$11='Tabla Parámetros'!$O$4,'Tabla Crecientes'!K50))))) -> 552.82 | K106: =IF(B106="","",IF($F$11='Tabla Parámetros'!$O$3,'Tabla Fijos'!L51,IF($F$11='Tabla Parámetros'!$O$5,'Tabla Fijos'!L51,IF(COTIZADOR!$F$11='Tabla Parámetros'!$O$6,'Tabla Fijos'!L51,IF(COTIZADOR!$F$11='Tabla Parámetros'!$O$4,'Tabla Crecientes'!L50))))) -> 247.06 | L106: =IF(B106="","",IF($F$11='Tabla Parámetros'!$O$3,'Tabla Fijos'!M51,IF($F$11='Tabla Parámetros'!$O$5,'Tabla Fijos'!M51,IF(COTIZADOR!$F$11='Tabla Parámetros'!$O$6,'Tabla Fijos'!M51,IF(COTIZADOR!$F$11='Tabla Parámetros'!$O$4,'Tabla Crecientes'!M50))))) -> 349.00 | M106: =IF($F$11='Tabla Parámetros'!$O$3,'Tabla Fijos'!N51,IF($F$11='Tabla Parámetros'!$O$5,'Tabla Fijos'!N51,IF(COTIZADOR!$F$11='Tabla Parámetros'!$O$6,'Tabla Fijos'!N51,IF(COTIZADOR!$F$11='Tabla Parámetros'!$O$4,'Tabla Crecientes'!N50)))) -> 0.00 | O106: 9,266.07 | P106: 919,083.22 | Q106: 1
B107: 41 | C107: =IF($B$67="","",'Fecha Pago'!K44) -> 2024-03-03 | D107: =IF($B$67="","",'Fecha Pago'!L44) -> 30.40 | E107: =IF(B107="","",IF($F$11='Tabla Parámetros'!$O$3,'Tabla Fijos'!E51,IF($F$11='Tabla Parámetros'!$O$5,'Tabla Fijos'!E51,IF(COTIZADOR!$F$11='Tabla Parámetros'!$O$6,'Tabla Fijos'!E51,IF(COTIZADOR!$F$11='Tabla Parámetros'!$O$4,'Tabla Crecientes'!E50))))) -> 7.50% | F107: 919,083.22 | G107: =IF(B107="","",IF($F$11='Tabla Parámetros'!$O$3,'Tabla Fijos'!G52,IF($F$11='Tabla Parámetros'!$O$5,'Tabla Fijos'!G52,IF(COTIZADOR!$F$11='Tabla Parámetros'!$O$6,'Tabla Fijos'!G52,IF(COTIZADOR!$F$11='Tabla Parámetros'!$O$4,'Tabla Crecientes'!G51))))) -> 2,296.33 | H107: =IF(B107="","",IF($F$11='Tabla Parámetros'!$O$3,'Tabla Fijos'!H52,IF($F$11='Tabla Parámetros'!$O$5,'Tabla Fijos'!H52,IF(COTIZADOR!$F$11='Tabla Parámetros'!$O$6,'Tabla Fijos'!H52,IF(COTIZADOR!$F$11='Tabla Parámetros'!$O$4,'Tabla Crecientes'!H51))))) -> 5,820.86 | I107: =IF($F$11='Tabla Parámetros'!$O$3,'Tabla Fijos'!I52,IF($F$11='Tabla Parámetros'!$O$5,'Tabla Fijos'!I52,IF(COTIZADOR!$F$11='Tabla Parámetros'!$O$6,'Tabla Fijos'!I52,IF(COTIZADOR!$F$11='Tabla Parámetros'!$O$4,'Tabla Crecientes'!I51)))) -> 0.00 | J107: =IF(B107="","",IF($F$11='Tabla Parámetros'!$O$3,'Tabla Fijos'!K52,IF($F$11='Tabla Parámetros'!$O$5,'Tabla Fijos'!K52,IF(COTIZADOR!$F$11='Tabla Parámetros'!$O$6,'Tabla Fijos'!K52,IF(COTIZADOR!$F$11='Tabla Parámetros'!$O$4,'Tabla Crecientes'!K51))))) -> 551.45 | K107: =IF(B107="","",IF($F$11='Tabla Parámetros'!$O$3,'Tabla Fijos'!L52,IF($F$11='Tabla Parámetros'!$O$5,'Tabla Fijos'!L52,IF(COTIZADOR!$F$11='Tabla Parámetros'!$O$6,'Tabla Fijos'!L52,IF(COTIZADOR!$F$11='Tabla Parámetros'!$O$4,'Tabla Crecientes'!L51))))) -> 247.06 | L107: =IF(B107="","",IF($F$11='Tabla Parámetros'!$O$3,'Tabla Fijos'!M52,IF($F$11='Tabla Parámetros'!$O$5,'Tabla Fijos'!M52,IF(COTIZADOR!$F$11='Tabla Parámetros'!$O$6,'Tabla Fijos'!M52,IF(COTIZADOR!$F$11='Tabla Parámetros'!$O$4,'Tabla Crecientes'!M51))))) -> 349.00 | M107: =IF($F$11='Tabla Parámetros'!$O$3,'Tabla Fijos'!N52,IF($F$11='Tabla Parámetros'!$O$5,'Tabla Fijos'!N52,IF(COTIZADOR!$F$11='Tabla Parámetros'!$O$6,'Tabla Fijos'!N52,IF(COTIZADOR!$F$11='Tabla Parámetros'!$O$4,'Tabla Crecientes'!N51)))) -> 0.00 | O107: 9,264.70 | P107: 916,786.90 | Q107: 1
B108: 42 | C108: =IF($B$67="","",'Fecha Pago'!K45) -> 2024-04-03 | D108: =IF($B$67="","",'Fecha Pago'!L45) -> 30.40 | E108: =IF(B108="","",IF($F$11='Tabla Parámetros'!$O$3,'Tabla Fijos'!E52,IF($F$11='Tabla Parámetros'!$O$5,'Tabla Fijos'!E52,IF(COTIZADOR!$F$11='Tabla Parámetros'!$O$6,'Tabla Fijos'!E52,IF(COTIZADOR!$F$11='Tabla Parámetros'!$O$4,'Tabla Crecientes'!E51))))) -> 7.50% | F108: 916,786.90 | G108: =IF(B108="","",IF($F$11='Tabla Parámetros'!$O$3,'Tabla Fijos'!G53,IF($F$11='Tabla Parámetros'!$O$5,'Tabla Fijos'!G53,IF(COTIZADOR!$F$11='Tabla Parámetros'!$O$6,'Tabla Fijos'!G53,IF(COTIZADOR!$F$11='Tabla Parámetros'!$O$4,'Tabla Crecientes'!G52))))) -> 2,310.87 | H108: =IF(B108="","",IF($F$11='Tabla Parámetros'!$O$3,'Tabla Fijos'!H53,IF($F$11='Tabla Parámetros'!$O$5,'Tabla Fijos'!H53,IF(COTIZADOR!$F$11='Tabla Parámetros'!$O$6,'Tabla Fijos'!H53,IF(COTIZADOR!$F$11='Tabla Parámetros'!$O$4,'Tabla Crecientes'!H52))))) -> 5,806.32 | I108: =IF($F$11='Tabla Parámetros'!$O$3,'Tabla Fijos'!I53,IF($F$11='Tabla Parámetros'!$O$5,'Tabla Fijos'!I53,IF(COTIZADOR!$F$11='Tabla Parámetros'!$O$6,'Tabla Fijos'!I53,IF(COTIZADOR!$F$11='Tabla Parámetros'!$O$4,'Tabla Crecientes'!I52)))) -> 0.00 | J108: =IF(B108="","",IF($F$11='Tabla Parámetros'!$O$3,'Tabla Fijos'!K53,IF($F$11='Tabla Parámetros'!$O$5,'Tabla Fijos'!K53,IF(COTIZADOR!$F$11='Tabla Parámetros'!$O$6,'Tabla Fijos'!K53,IF(COTIZADOR!$F$11='Tabla Parámetros'!$O$4,'Tabla Crecientes'!K52))))) -> 550.07 | K108: =IF(B108="","",IF($F$11='Tabla Parámetros'!$O$3,'Tabla Fijos'!L53,IF($F$11='Tabla Parámetros'!$O$5,'Tabla Fijos'!L53,IF(COTIZADOR!$F$11='Tabla Parámetros'!$O$6,'Tabla Fijos'!L53,IF(COTIZADOR!$F$11='Tabla Parámetros'!$O$4,'Tabla Crecientes'!L52))))) -> 247.06 | L108: =IF(B108="","",IF($F$11='Tabla Parámetros'!$O$3,'Tabla Fijos'!M53,IF($F$11='Tabla Parámetros'!$O$5,'Tabla Fijos'!M53,IF(COTIZADOR!$F$11='Tabla Parámetros'!$O$6,'Tabla Fijos'!M53,IF(COTIZADOR!$F$11='Tabla Parámetros'!$O$4,'Tabla Crecientes'!M52))))) -> 349.00 | M108: =IF($F$11='Tabla Parámetros'!$O$3,'Tabla Fijos'!N53,IF($F$11='Tabla Parámetros'!$O$5,'Tabla Fijos'!N53,IF(COTIZADOR!$F$11='Tabla Parámetros'!$O$6,'Tabla Fijos'!N53,IF(COTIZADOR!$F$11='Tabla Parámetros'!$O$4,'Tabla Crecientes'!N52)))) -> 0.00 | O108: 9,263.32 | P108: 914,476.02 | Q108: 1
B109: 43 | C109: =IF($B$67="","",'Fecha Pago'!K46) -> 2024-05-03 | D109: =IF($B$67="","",'Fecha Pago'!L46) -> 30.40 | E109: =IF(B109="","",IF($F$11='Tabla Parámetros'!$O$3,'Tabla Fijos'!E53,IF($F$11='Tabla Parámetros'!$O$5,'Tabla Fijos'!E53,IF(COTIZADOR!$F$11='Tabla Parámetros'!$O$6,'Tabla Fijos'!E53,IF(COTIZADOR!$F$11='Tabla Parámetros'!$O$4,'Tabla Crecientes'!E52))))) -> 7.50% | F109: 914,476.02 | G109: =IF(B109="","",IF($F$11='Tabla Parámetros'!$O$3,'Tabla Fijos'!G54,IF($F$11='Tabla Parámetros'!$O$5,'Tabla Fijos'!G54,IF(COTIZADOR!$F$11='Tabla Parámetros'!$O$6,'Tabla Fijos'!G54,IF(COTIZADOR!$F$11='Tabla Parámetros'!$O$4,'Tabla Crecientes'!G53))))) -> 2,325.51 | H109: =IF(B109="","",IF($F$11='Tabla Parámetros'!$O$3,'Tabla Fijos'!H54,IF($F$11='Tabla Parámetros'!$O$5,'Tabla Fijos'!H54,IF(COTIZADOR!$F$11='Tabla Parámetros'!$O$6,'Tabla Fijos'!H54,IF(COTIZADOR!$F$11='Tabla Parámetros'!$O$4,'Tabla Crecientes'!H53))))) -> 5,791.68 | I109: =IF($F$11='Tabla Parámetros'!$O$3,'Tabla Fijos'!I54,IF($F$11='Tabla Parámetros'!$O$5,'Tabla Fijos'!I54,IF(COTIZADOR!$F$11='Tabla Parámetros'!$O$6,'Tabla Fijos'!I54,IF(COTIZADOR!$F$11='Tabla Parámetros'!$O$4,'Tabla Crecientes'!I53)))) -> 0.00 | J109: =IF(B109="","",IF($F$11='Tabla Parámetros'!$O$3,'Tabla Fijos'!K54,IF($F$11='Tabla Parámetros'!$O$5,'Tabla Fijos'!K54,IF(COTIZADOR!$F$11='Tabla Parámetros'!$O$6,'Tabla Fijos'!K54,IF(COTIZADOR!$F$11='Tabla Parámetros'!$O$4,'Tabla Crecientes'!K53))))) -> 548.69 | K109: =IF(B109="","",IF($F$11='Tabla Parámetros'!$O$3,'Tabla Fijos'!L54,IF($F$11='Tabla Parámetros'!$O$5,'Tabla Fijos'!L54,IF(COTIZADOR!$F$11='Tabla Parámetros'!$O$6,'Tabla Fijos'!L54,IF(COTIZADOR!$F$11='Tabla Parámetros'!$O$4,'Tabla Crecientes'!L53))))) -> 247.06 | L109: =IF(B109="","",IF($F$11='Tabla Parámetros'!$O$3,'Tabla Fijos'!M54,IF($F$11='Tabla Parámetros'!$O$5,'Tabla Fijos'!M54,IF(COTIZADOR!$F$11='Tabla Parámetros'!$O$6,'Tabla Fijos'!M54,IF(COTIZADOR!$F$11='Tabla Parámetros'!$O$4,'Tabla Crecientes'!M53))))) -> 349.00 | M109: =IF($F$11='Tabla Parámetros'!$O$3,'Tabla Fijos'!N54,IF($F$11='Tabla Parámetros'!$O$5,'Tabla Fijos'!N54,IF(COTIZADOR!$F$11='Tabla Parámetros'!$O$6,'Tabla Fijos'!N54,IF(COTIZADOR!$F$11='Tabla Parámetros'!$O$4,'Tabla Crecientes'!N53)))) -> 0.00 | O109: 9,261.93 | P109: 912,150.52 | Q109: 1
B110: 44 | C110: =IF($B$67="","",'Fecha Pago'!K47) -> 2024-06-03 | D110: =IF($B$67="","",'Fecha Pago'!L47) -> 30.40 | E110: =IF(B110="","",IF($F$11='Tabla Parámetros'!$O$3,'Tabla Fijos'!E54,IF($F$11='Tabla Parámetros'!$O$5,'Tabla Fijos'!E54,IF(COTIZADOR!$F$11='Tabla Parámetros'!$O$6,'Tabla Fijos'!E54,IF(COTIZADOR!$F$11='Tabla Parámetros'!$O$4,'Tabla Crecientes'!E53))))) -> 7.50% | F110: 912,150.52 | G110: =IF(B110="","",IF($F$11='Tabla Parámetros'!$O$3,'Tabla Fijos'!G55,IF($F$11='Tabla Parámetros'!$O$5,'Tabla Fijos'!G55,IF(COTIZADOR!$F$11='Tabla Parámetros'!$O$6,'Tabla Fijos'!G55,IF(COTIZADOR!$F$11='Tabla Parámetros'!$O$4,'Tabla Crecientes'!G54))))) -> 2,340.24 | H110: =IF(B110="","",IF($F$11='Tabla Parámetros'!$O$3,'Tabla Fijos'!H55,IF($F$11='Tabla Parámetros'!$O$5,'Tabla Fijos'!H55,IF(COTIZADOR!$F$11='Tabla Parámetros'!$O$6,'Tabla Fijos'!H55,IF(COTIZADOR!$F$11='Tabla Parámetros'!$O$4,'Tabla Crecientes'!H54))))) -> 5,776.95 | I110: =IF($F$11='Tabla Parámetros'!$O$3,'Tabla Fijos'!I55,IF($F$11='Tabla Parámetros'!$O$5,'Tabla Fijos'!I55,IF(COTIZADOR!$F$11='Tabla Parámetros'!$O$6,'Tabla Fijos'!I55,IF(COTIZADOR!$F$11='Tabla Parámetros'!$O$4,'Tabla Crecientes'!I54)))) -> 0.00 | J110: =IF(B110="","",IF($F$11='Tabla Parámetros'!$O$3,'Tabla Fijos'!K55,IF($F$11='Tabla Parámetros'!$O$5,'Tabla Fijos'!K55,IF(COTIZADOR!$F$11='Tabla Parámetros'!$O$6,'Tabla Fijos'!K55,IF(COTIZADOR!$F$11='Tabla Parámetros'!$O$4,'Tabla Crecientes'!K54))))) -> 547.29 | K110: =IF(B110="","",IF($F$11='Tabla Parámetros'!$O$3,'Tabla Fijos'!L55,IF($F$11='Tabla Parámetros'!$O$5,'Tabla Fijos'!L55,IF(COTIZADOR!$F$11='Tabla Parámetros'!$O$6,'Tabla Fijos'!L55,IF(COTIZADOR!$F$11='Tabla Parámetros'!$O$4,'Tabla Crecientes'!L54))))) -> 247.06 | L110: =IF(B110="","",IF($F$11='Tabla Parámetros'!$O$3,'Tabla Fijos'!M55,IF($F$11='Tabla Parámetros'!$O$5,'Tabla Fijos'!M55,IF(COTIZADOR!$F$11='Tabla Parámetros'!$O$6,'Tabla Fijos'!M55,IF(COTIZADOR!$F$11='Tabla Parámetros'!$O$4,'Tabla Crecientes'!M54))))) -> 349.00 | M110: =IF($F$11='Tabla Parámetros'!$O$3,'Tabla Fijos'!N55,IF($F$11='Tabla Parámetros'!$O$5,'Tabla Fijos'!N55,IF(COTIZADOR!$F$11='Tabla Parámetros'!$O$6,'Tabla Fijos'!N55,IF(COTIZADOR!$F$11='Tabla Parámetros'!$O$4,'Tabla Crecientes'!N54)))) -> 0.00 | O110: 9,260.54 | P110: 909,810.28 | Q110: 1
B111: 45 | C111: =IF($B$67="","",'Fecha Pago'!K48) -> 2024-07-03 | D111: =IF($B$67="","",'Fecha Pago'!L48) -> 30.40 | E111: =IF(B111="","",IF($F$11='Tabla Parámetros'!$O$3,'Tabla Fijos'!E55,IF($F$11='Tabla Parámetros'!$O$5,'Tabla Fijos'!E55,IF(COTIZADOR!$F$11='Tabla Parámetros'!$O$6,'Tabla Fijos'!E55,IF(COTIZADOR!$F$11='Tabla Parámetros'!$O$4,'Tabla Crecientes'!E54))))) -> 7.50% | F111: 909,810.28 | G111: =IF(B111="","",IF($F$11='Tabla Parámetros'!$O$3,'Tabla Fijos'!G56,IF($F$11='Tabla Parámetros'!$O$5,'Tabla Fijos'!G56,IF(COTIZADOR!$F$11='Tabla Parámetros'!$O$6,'Tabla Fijos'!G56,IF(COTIZADOR!$F$11='Tabla Parámetros'!$O$4,'Tabla Crecientes'!G55))))) -> 2,355.06 | H111: =IF(B111="","",IF($F$11='Tabla Parámetros'!$O$3,'Tabla Fijos'!H56,IF($F$11='Tabla Parámetros'!$O$5,'Tabla Fijos'!H56,IF(COTIZADOR!$F$11='Tabla Parámetros'!$O$6,'Tabla Fijos'!H56,IF(COTIZADOR!$F$11='Tabla Parámetros'!$O$4,'Tabla Crecientes'!H55))))) -> 5,762.13 | I111: =IF($F$11='Tabla Parámetros'!$O$3,'Tabla Fijos'!I56,IF($F$11='Tabla Parámetros'!$O$5,'Tabla Fijos'!I56,IF(COTIZADOR!$F$11='Tabla Parámetros'!$O$6,'Tabla Fijos'!I56,IF(COTIZADOR!$F$11='Tabla Parámetros'!$O$4,'Tabla Crecientes'!I55)))) -> 0.00 | J111: =IF(B111="","",IF($F$11='Tabla Parámetros'!$O$3,'Tabla Fijos'!K56,IF($F$11='Tabla Parámetros'!$O$5,'Tabla Fijos'!K56,IF(COTIZADOR!$F$11='Tabla Parámetros'!$O$6,'Tabla Fijos'!K56,IF(COTIZADOR!$F$11='Tabla Parámetros'!$O$4,'Tabla Crecientes'!K55))))) -> 545.89 | K111: =IF(B111="","",IF($F$11='Tabla Parámetros'!$O$3,'Tabla Fijos'!L56,IF($F$11='Tabla Parámetros'!$O$5,'Tabla Fijos'!L56,IF(COTIZADOR!$F$11='Tabla Parámetros'!$O$6,'Tabla Fijos'!L56,IF(COTIZADOR!$F$11='Tabla Parámetros'!$O$4,'Tabla Crecientes'!L55))))) -> 247.06 | L111: =IF(B111="","",IF($F$11='Tabla Parámetros'!$O$3,'Tabla Fijos'!M56,IF($F$11='Tabla Parámetros'!$O$5,'Tabla Fijos'!M56,IF(COTIZADOR!$F$11='Tabla Parámetros'!$O$6,'Tabla Fijos'!M56,IF(COTIZADOR!$F$11='Tabla Parámetros'!$O$4,'Tabla Crecientes'!M55))))) -> 349.00 | M111: =IF($F$11='Tabla Parámetros'!$O$3,'Tabla Fijos'!N56,IF($F$11='Tabla Parámetros'!$O$5,'Tabla Fijos'!N56,IF(COTIZADOR!$F$11='Tabla Parámetros'!$O$6,'Tabla Fijos'!N56,IF(COTIZADOR!$F$11='Tabla Parámetros'!$O$4,'Tabla Crecientes'!N55)))) -> 0.00 | O111: 9,259.13 | P111: 907,455.22 | Q111: 1
B112: 46 | C112: =IF($B$67="","",'Fecha Pago'!K49) -> 2024-08-03 | D112: =IF($B$67="","",'Fecha Pago'!L49) -> 30.40 | E112: =IF(B112="","",IF($F$11='Tabla Parámetros'!$O$3,'Tabla Fijos'!E56,IF($F$11='Tabla Parámetros'!$O$5,'Tabla Fijos'!E56,IF(COTIZADOR!$F$11='Tabla Parámetros'!$O$6,'Tabla Fijos'!E56,IF(COTIZADOR!$F$11='Tabla Parámetros'!$O$4,'Tabla Crecientes'!E55))))) -> 7.50% | F112: 907,455.22 | G112: =IF(B112="","",IF($F$11='Tabla Parámetros'!$O$3,'Tabla Fijos'!G57,IF($F$11='Tabla Parámetros'!$O$5,'Tabla Fijos'!G57,IF(COTIZADOR!$F$11='Tabla Parámetros'!$O$6,'Tabla Fijos'!G57,IF(COTIZADOR!$F$11='Tabla Parámetros'!$O$4,'Tabla Crecientes'!G56))))) -> 2,369.97 | H112: =IF(B112="","",IF($F$11='Tabla Parámetros'!$O$3,'Tabla Fijos'!H57,IF($F$11='Tabla Parámetros'!$O$5,'Tabla Fijos'!H57,IF(COTIZADOR!$F$11='Tabla Parámetros'!$O$6,'Tabla Fijos'!H57,IF(COTIZADOR!$F$11='Tabla Parámetros'!$O$4,'Tabla Crecientes'!H56))))) -> 5,747.22 | I112: =IF($F$11='Tabla Parámetros'!$O$3,'Tabla Fijos'!I57,IF($F$11='Tabla Parámetros'!$O$5,'Tabla Fijos'!I57,IF(COTIZADOR!$F$11='Tabla Parámetros'!$O$6,'Tabla Fijos'!I57,IF(COTIZADOR!$F$11='Tabla Parámetros'!$O$4,'Tabla Crecientes'!I56)))) -> 0.00 | J112: =IF(B112="","",IF($F$11='Tabla Parámetros'!$O$3,'Tabla Fijos'!K57,IF($F$11='Tabla Parámetros'!$O$5,'Tabla Fijos'!K57,IF(COTIZADOR!$F$11='Tabla Parámetros'!$O$6,'Tabla Fijos'!K57,IF(COTIZADOR!$F$11='Tabla Parámetros'!$O$4,'Tabla Crecientes'!K56))))) -> 544.47 | K112: =IF(B112="","",IF($F$11='Tabla Parámetros'!$O$3,'Tabla Fijos'!L57,IF($F$11='Tabla Parámetros'!$O$5,'Tabla Fijos'!L57,IF(COTIZADOR!$F$11='Tabla Parámetros'!$O$6,'Tabla Fijos'!L57,IF(COTIZADOR!$F$11='Tabla Parámetros'!$O$4,'Tabla Crecientes'!L56))))) -> 247.06 | L112: =IF(B112="","",IF($F$11='Tabla Parámetros'!$O$3,'Tabla Fijos'!M57,IF($F$11='Tabla Parámetros'!$O$5,'Tabla Fijos'!M57,IF(COTIZADOR!$F$11='Tabla Parámetros'!$O$6,'Tabla Fijos'!M57,IF(COTIZADOR!$F$11='Tabla Parámetros'!$O$4,'Tabla Crecientes'!M56))))) -> 349.00 | M112: =IF($F$11='Tabla Parámetros'!$O$3,'Tabla Fijos'!N57,IF($F$11='Tabla Parámetros'!$O$5,'Tabla Fijos'!N57,IF(COTIZADOR!$F$11='Tabla Parámetros'!$O$6,'Tabla Fijos'!N57,IF(COTIZADOR!$F$11='Tabla Parámetros'!$O$4,'Tabla Crecientes'!N56)))) -> 0.00 | O112: 9,257.72 | P112: 905,085.25 | Q112: 1
B113: 47 | C113: =IF($B$67="","",'Fecha Pago'!K50) -> 2024-09-03 | D113: =IF($B$67="","",'Fecha Pago'!L50) -> 30.40 | E113: =IF(B113="","",IF($F$11='Tabla Parámetros'!$O$3,'Tabla Fijos'!E57,IF($F$11='Tabla Parámetros'!$O$5,'Tabla Fijos'!E57,IF(COTIZADOR!$F$11='Tabla Parámetros'!$O$6,'Tabla Fijos'!E57,IF(COTIZADOR!$F$11='Tabla Parámetros'!$O$4,'Tabla Crecientes'!E56))))) -> 7.50% | F113: 905,085.25 | G113: =IF(B113="","",IF($F$11='Tabla Parámetros'!$O$3,'Tabla Fijos'!G58,IF($F$11='Tabla Parámetros'!$O$5,'Tabla Fijos'!G58,IF(COTIZADOR!$F$11='Tabla Parámetros'!$O$6,'Tabla Fijos'!G58,IF(COTIZADOR!$F$11='Tabla Parámetros'!$O$4,'Tabla Crecientes'!G57))))) -> 2,384.98 | H113: =IF(B113="","",IF($F$11='Tabla Parámetros'!$O$3,'Tabla Fijos'!H58,IF($F$11='Tabla Parámetros'!$O$5,'Tabla Fijos'!H58,IF(COTIZADOR!$F$11='Tabla Parámetros'!$O$6,'Tabla Fijos'!H58,IF(COTIZADOR!$F$11='Tabla Parámetros'!$O$4,'Tabla Crecientes'!H57))))) -> 5,732.21 | I113: =IF($F$11='Tabla Parámetros'!$O$3,'Tabla Fijos'!I58,IF($F$11='Tabla Parámetros'!$O$5,'Tabla Fijos'!I58,IF(COTIZADOR!$F$11='Tabla Parámetros'!$O$6,'Tabla Fijos'!I58,IF(COTIZADOR!$F$11='Tabla Parámetros'!$O$4,'Tabla Crecientes'!I57)))) -> 0.00 | J113: =IF(B113="","",IF($F$11='Tabla Parámetros'!$O$3,'Tabla Fijos'!K58,IF($F$11='Tabla Parámetros'!$O$5,'Tabla Fijos'!K58,IF(COTIZADOR!$F$11='Tabla Parámetros'!$O$6,'Tabla Fijos'!K58,IF(COTIZADOR!$F$11='Tabla Parámetros'!$O$4,'Tabla Crecientes'!K57))))) -> 543.05 | K113: =IF(B113="","",IF($F$11='Tabla Parámetros'!$O$3,'Tabla Fijos'!L58,IF($F$11='Tabla Parámetros'!$O$5,'Tabla Fijos'!L58,IF(COTIZADOR!$F$11='Tabla Parámetros'!$O$6,'Tabla Fijos'!L58,IF(COTIZADOR!$F$11='Tabla Parámetros'!$O$4,'Tabla Crecientes'!L57))))) -> 247.06 | L113: =IF(B113="","",IF($F$11='Tabla Parámetros'!$O$3,'Tabla Fijos'!M58,IF($F$11='Tabla Parámetros'!$O$5,'Tabla Fijos'!M58,IF(COTIZADOR!$F$11='Tabla Parámetros'!$O$6,'Tabla Fijos'!M58,IF(COTIZADOR!$F$11='Tabla Parámetros'!$O$4,'Tabla Crecientes'!M57))))) -> 349.00 | M113: =IF($F$11='Tabla Parámetros'!$O$3,'Tabla Fijos'!N58,IF($F$11='Tabla Parámetros'!$O$5,'Tabla Fijos'!N58,IF(COTIZADOR!$F$11='Tabla Parámetros'!$O$6,'Tabla Fijos'!N58,IF(COTIZADOR!$F$11='Tabla Parámetros'!$O$4,'Tabla Crecientes'!N57)))) -> 0.00 | O113: 9,256.30 | P113: 902,700.27 | Q113: 1
B114: 48 | C114: =IF($B$67="","",'Fecha Pago'!K51) -> 2024-10-03 | D114: =IF($B$67="","",'Fecha Pago'!L51) -> 30.40 | E114: =IF(B114="","",IF($F$11='Tabla Parámetros'!$O$3,'Tabla Fijos'!E58,IF($F$11='Tabla Parámetros'!$O$5,'Tabla Fijos'!E58,IF(COTIZADOR!$F$11='Tabla Parámetros'!$O$6,'Tabla Fijos'!E58,IF(COTIZADOR!$F$11='Tabla Parámetros'!$O$4,'Tabla Crecientes'!E57))))) -> 7.50% | F114: 902,700.27 | G114: =IF(B114="","",IF($F$11='Tabla Parámetros'!$O$3,'Tabla Fijos'!G59,IF($F$11='Tabla Parámetros'!$O$5,'Tabla Fijos'!G59,IF(COTIZADOR!$F$11='Tabla Parámetros'!$O$6,'Tabla Fijos'!G59,IF(COTIZADOR!$F$11='Tabla Parámetros'!$O$4,'Tabla Crecientes'!G58))))) -> 2,400.09 | H114: =IF(B114="","",IF($F$11='Tabla Parámetros'!$O$3,'Tabla Fijos'!H59,IF($F$11='Tabla Parámetros'!$O$5,'Tabla Fijos'!H59,IF(COTIZADOR!$F$11='Tabla Parámetros'!$O$6,'Tabla Fijos'!H59,IF(COTIZADOR!$F$11='Tabla Parámetros'!$O$4,'Tabla Crecientes'!H58))))) -> 5,717.10 | I114: =IF($F$11='Tabla Parámetros'!$O$3,'Tabla Fijos'!I59,IF($F$11='Tabla Parámetros'!$O$5,'Tabla Fijos'!I59,IF(COTIZADOR!$F$11='Tabla Parámetros'!$O$6,'Tabla Fijos'!I59,IF(COTIZADOR!$F$11='Tabla Parámetros'!$O$4,'Tabla Crecientes'!I58)))) -> 0.00 | J114: =IF(B114="","",IF($F$11='Tabla Parámetros'!$O$3,'Tabla Fijos'!K59,IF($F$11='Tabla Parámetros'!$O$5,'Tabla Fijos'!K59,IF(COTIZADOR!$F$11='Tabla Parámetros'!$O$6,'Tabla Fijos'!K59,IF(COTIZADOR!$F$11='Tabla Parámetros'!$O$4,'Tabla Crecientes'!K58))))) -> 541.62 | K114: =IF(B114="","",IF($F$11='Tabla Parámetros'!$O$3,'Tabla Fijos'!L59,IF($F$11='Tabla Parámetros'!$O$5,'Tabla Fijos'!L59,IF(COTIZADOR!$F$11='Tabla Parámetros'!$O$6,'Tabla Fijos'!L59,IF(COTIZADOR!$F$11='Tabla Parámetros'!$O$4,'Tabla Crecientes'!L58))))) -> 247.06 | L114: =IF(B114="","",IF($F$11='Tabla Parámetros'!$O$3,'Tabla Fijos'!M59,IF($F$11='Tabla Parámetros'!$O$5,'Tabla Fijos'!M59,IF(COTIZADOR!$F$11='Tabla Parámetros'!$O$6,'Tabla Fijos'!M59,IF(COTIZADOR!$F$11='Tabla Parámetros'!$O$4,'Tabla Crecientes'!M58))))) -> 349.00 | M114: =IF($F$11='Tabla Parámetros'!$O$3,'Tabla Fijos'!N59,IF($F$11='Tabla Parámetros'!$O$5,'Tabla Fijos'!N59,IF(COTIZADOR!$F$11='Tabla Parámetros'!$O$6,'Tabla Fijos'!N59,IF(COTIZADOR!$F$11='Tabla Parámetros'!$O$4,'Tabla Crecientes'!N58)))) -> 0.00 | O114: 9,254.87 | P114: 900,300.18 | Q114: 1
B115: 49 | C115: =IF($B$67="","",'Fecha Pago'!K52) -> 2024-11-03 | D115: =IF($B$67="","",'Fecha Pago'!L52) -> 30.40 | E115: =IF(B115="","",IF($F$11='Tabla Parámetros'!$O$3,'Tabla Fijos'!E59,IF($F$11='Tabla Parámetros'!$O$5,'Tabla Fijos'!E59,IF(COTIZADOR!$F$11='Tabla Parámetros'!$O$6,'Tabla Fijos'!E59,IF(COTIZADOR!$F$11='Tabla Parámetros'!$O$4,'Tabla Crecientes'!E58))))) -> 7.50% | F115: 900,300.18 | G115: =IF(B115="","",IF($F$11='Tabla Parámetros'!$O$3,'Tabla Fijos'!G60,IF($F$11='Tabla Parámetros'!$O$5,'Tabla Fijos'!G60,IF(COTIZADOR!$F$11='Tabla Parámetros'!$O$6,'Tabla Fijos'!G60,IF(COTIZADOR!$F$11='Tabla Parámetros'!$O$4,'Tabla Crecientes'!G59))))) -> 2,415.29 | H115: =IF(B115="","",IF($F$11='Tabla Parámetros'!$O$3,'Tabla Fijos'!H60,IF($F$11='Tabla Parámetros'!$O$5,'Tabla Fijos'!H60,IF(COTIZADOR!$F$11='Tabla Parámetros'!$O$6,'Tabla Fijos'!H60,IF(COTIZADOR!$F$11='Tabla Parámetros'!$O$4,'Tabla Crecientes'!H59))))) -> 5,701.90 | I115: =IF($F$11='Tabla Parámetros'!$O$3,'Tabla Fijos'!I60,IF($F$11='Tabla Parámetros'!$O$5,'Tabla Fijos'!I60,IF(COTIZADOR!$F$11='Tabla Parámetros'!$O$6,'Tabla Fijos'!I60,IF(COTIZADOR!$F$11='Tabla Parámetros'!$O$4,'Tabla Crecientes'!I59)))) -> 0.00 | J115: =IF(B115="","",IF($F$11='Tabla Parámetros'!$O$3,'Tabla Fijos'!K60,IF($F$11='Tabla Parámetros'!$O$5,'Tabla Fijos'!K60,IF(COTIZADOR!$F$11='Tabla Parámetros'!$O$6,'Tabla Fijos'!K60,IF(COTIZADOR!$F$11='Tabla Parámetros'!$O$4,'Tabla Crecientes'!K59))))) -> 540.18 | K115: =IF(B115="","",IF($F$11='Tabla Parámetros'!$O$3,'Tabla Fijos'!L60,IF($F$11='Tabla Parámetros'!$O$5,'Tabla Fijos'!L60,IF(COTIZADOR!$F$11='Tabla Parámetros'!$O$6,'Tabla Fijos'!L60,IF(COTIZADOR!$F$11='Tabla Parámetros'!$O$4,'Tabla Crecientes'!L59))))) -> 247.06 | L115: =IF(B115="","",IF($F$11='Tabla Parámetros'!$O$3,'Tabla Fijos'!M60,IF($F$11='Tabla Parámetros'!$O$5,'Tabla Fijos'!M60,IF(COTIZADOR!$F$11='Tabla Parámetros'!$O$6,'Tabla Fijos'!M60,IF(COTIZADOR!$F$11='Tabla Parámetros'!$O$4,'Tabla Crecientes'!M59))))) -> 349.00 | M115: =IF($F$11='Tabla Parámetros'!$O$3,'Tabla Fijos'!N60,IF($F$11='Tabla Parámetros'!$O$5,'Tabla Fijos'!N60,IF(COTIZADOR!$F$11='Tabla Parámetros'!$O$6,'Tabla Fijos'!N60,IF(COTIZADOR!$F$11='Tabla Parámetros'!$O$4,'Tabla Crecientes'!N59)))) -> 0.00 | O115: 9,253.43 | P115: 897,884.90 | Q115: 1
B116: 50 | C116: =IF($B$67="","",'Fecha Pago'!K53) -> 2024-12-03 | D116: =IF($B$67="","",'Fecha Pago'!L53) -> 30.40 | E116: =IF(B116="","",IF($F$11='Tabla Parámetros'!$O$3,'Tabla Fijos'!E60,IF($F$11='Tabla Parámetros'!$O$5,'Tabla Fijos'!E60,IF(COTIZADOR!$F$11='Tabla Parámetros'!$O$6,'Tabla Fijos'!E60,IF(COTIZADOR!$F$11='Tabla Parámetros'!$O$4,'Tabla Crecientes'!E59))))) -> 7.50% | F116: 897,884.90 | G116: =IF(B116="","",IF($F$11='Tabla Parámetros'!$O$3,'Tabla Fijos'!G61,IF($F$11='Tabla Parámetros'!$O$5,'Tabla Fijos'!G61,IF(COTIZADOR!$F$11='Tabla Parámetros'!$O$6,'Tabla Fijos'!G61,IF(COTIZADOR!$F$11='Tabla Parámetros'!$O$4,'Tabla Crecientes'!G60))))) -> 2,430.58 | H116: =IF(B116="","",IF($F$11='Tabla Parámetros'!$O$3,'Tabla Fijos'!H61,IF($F$11='Tabla Parámetros'!$O$5,'Tabla Fijos'!H61,IF(COTIZADOR!$F$11='Tabla Parámetros'!$O$6,'Tabla Fijos'!H61,IF(COTIZADOR!$F$11='Tabla Parámetros'!$O$4,'Tabla Crecientes'!H60))))) -> 5,686.60 | I116: =IF($F$11='Tabla Parámetros'!$O$3,'Tabla Fijos'!I61,IF($F$11='Tabla Parámetros'!$O$5,'Tabla Fijos'!I61,IF(COTIZADOR!$F$11='Tabla Parámetros'!$O$6,'Tabla Fijos'!I61,IF(COTIZADOR!$F$11='Tabla Parámetros'!$O$4,'Tabla Crecientes'!I60)))) -> 0.00 | J116: =IF(B116="","",IF($F$11='Tabla Parámetros'!$O$3,'Tabla Fijos'!K61,IF($F$11='Tabla Parámetros'!$O$5,'Tabla Fijos'!K61,IF(COTIZADOR!$F$11='Tabla Parámetros'!$O$6,'Tabla Fijos'!K61,IF(COTIZADOR!$F$11='Tabla Parámetros'!$O$4,'Tabla Crecientes'!K60))))) -> 538.73 | K116: =IF(B116="","",IF($F$11='Tabla Parámetros'!$O$3,'Tabla Fijos'!L61,IF($F$11='Tabla Parámetros'!$O$5,'Tabla Fijos'!L61,IF(COTIZADOR!$F$11='Tabla Parámetros'!$O$6,'Tabla Fijos'!L61,IF(COTIZADOR!$F$11='Tabla Parámetros'!$O$4,'Tabla Crecientes'!L60))))) -> 247.06 | L116: =IF(B116="","",IF($F$11='Tabla Parámetros'!$O$3,'Tabla Fijos'!M61,IF($F$11='Tabla Parámetros'!$O$5,'Tabla Fijos'!M61,IF(COTIZADOR!$F$11='Tabla Parámetros'!$O$6,'Tabla Fijos'!M61,IF(COTIZADOR!$F$11='Tabla Parámetros'!$O$4,'Tabla Crecientes'!M60))))) -> 349.00 | M116: =IF($F$11='Tabla Parámetros'!$O$3,'Tabla Fijos'!N61,IF($F$11='Tabla Parámetros'!$O$5,'Tabla Fijos'!N61,IF(COTIZADOR!$F$11='Tabla Parámetros'!$O$6,'Tabla Fijos'!N61,IF(COTIZADOR!$F$11='Tabla Parámetros'!$O$4,'Tabla Crecientes'!N60)))) -> 0.00 | O116: 9,251.98 | P116: 895,454.31 | Q116: 1
B117: 51 | C117: =IF($B$67="","",'Fecha Pago'!K54) -> 2025-01-03 | D117: =IF($B$67="","",'Fecha Pago'!L54) -> 30.40 | E117: =IF(B117="","",IF($F$11='Tabla Parámetros'!$O$3,'Tabla Fijos'!E61,IF($F$11='Tabla Parámetros'!$O$5,'Tabla Fijos'!E61,IF(COTIZADOR!$F$11='Tabla Parámetros'!$O$6,'Tabla Fijos'!E61,IF(COTIZADOR!$F$11='Tabla Parámetros'!$O$4,'Tabla Crecientes'!E60))))) -> 7.50% | F117: 895,454.31 | G117: =IF(B117="","",IF($F$11='Tabla Parámetros'!$O$3,'Tabla Fijos'!G62,IF($F$11='Tabla Parámetros'!$O$5,'Tabla Fijos'!G62,IF(COTIZADOR!$F$11='Tabla Parámetros'!$O$6,'Tabla Fijos'!G62,IF(COTIZADOR!$F$11='Tabla Parámetros'!$O$4,'Tabla Crecientes'!G61))))) -> 2,445.98 | H117: =IF(B117="","",IF($F$11='Tabla Parámetros'!$O$3,'Tabla Fijos'!H62,IF($F$11='Tabla Parámetros'!$O$5,'Tabla Fijos'!H62,IF(COTIZADOR!$F$11='Tabla Parámetros'!$O$6,'Tabla Fijos'!H62,IF(COTIZADOR!$F$11='Tabla Parámetros'!$O$4,'Tabla Crecientes'!H61))))) -> 5,671.21 | I117: =IF($F$11='Tabla Parámetros'!$O$3,'Tabla Fijos'!I62,IF($F$11='Tabla Parámetros'!$O$5,'Tabla Fijos'!I62,IF(COTIZADOR!$F$11='Tabla Parámetros'!$O$6,'Tabla Fijos'!I62,IF(COTIZADOR!$F$11='Tabla Parámetros'!$O$4,'Tabla Crecientes'!I61)))) -> 0.00 | J117: =IF(B117="","",IF($F$11='Tabla Parámetros'!$O$3,'Tabla Fijos'!K62,IF($F$11='Tabla Parámetros'!$O$5,'Tabla Fijos'!K62,IF(COTIZADOR!$F$11='Tabla Parámetros'!$O$6,'Tabla Fijos'!K62,IF(COTIZADOR!$F$11='Tabla Parámetros'!$O$4,'Tabla Crecientes'!K61))))) -> 537.27 | K117: =IF(B117="","",IF($F$11='Tabla Parámetros'!$O$3,'Tabla Fijos'!L62,IF($F$11='Tabla Parámetros'!$O$5,'Tabla Fijos'!L62,IF(COTIZADOR!$F$11='Tabla Parámetros'!$O$6,'Tabla Fijos'!L62,IF(COTIZADOR!$F$11='Tabla Parámetros'!$O$4,'Tabla Crecientes'!L61))))) -> 247.06 | L117: =IF(B117="","",IF($F$11='Tabla Parámetros'!$O$3,'Tabla Fijos'!M62,IF($F$11='Tabla Parámetros'!$O$5,'Tabla Fijos'!M62,IF(COTIZADOR!$F$11='Tabla Parámetros'!$O$6,'Tabla Fijos'!M62,IF(COTIZADOR!$F$11='Tabla Parámetros'!$O$4,'Tabla Crecientes'!M61))))) -> 349.00 | M117: =IF($F$11='Tabla Parámetros'!$O$3,'Tabla Fijos'!N62,IF($F$11='Tabla Parámetros'!$O$5,'Tabla Fijos'!N62,IF(COTIZADOR!$F$11='Tabla Parámetros'!$O$6,'Tabla Fijos'!N62,IF(COTIZADOR!$F$11='Tabla Parámetros'!$O$4,'Tabla Crecientes'!N61)))) -> 0.00 | O117: 9,250.52 | P117: 893,008.33 | Q117: 1
B118: 52 | C118: =IF($B$67="","",'Fecha Pago'!K55) -> 2025-02-03 | D118: =IF($B$67="","",'Fecha Pago'!L55) -> 30.40 | E118: =IF(B118="","",IF($F$11='Tabla Parámetros'!$O$3,'Tabla Fijos'!E62,IF($F$11='Tabla Parámetros'!$O$5,'Tabla Fijos'!E62,IF(COTIZADOR!$F$11='Tabla Parámetros'!$O$6,'Tabla Fijos'!E62,IF(COTIZADOR!$F$11='Tabla Parámetros'!$O$4,'Tabla Crecientes'!E61))))) -> 7.50% | F118: 893,008.33 | G118: =IF(B118="","",IF($F$11='Tabla Parámetros'!$O$3,'Tabla Fijos'!G63,IF($F$11='Tabla Parámetros'!$O$5,'Tabla Fijos'!G63,IF(COTIZADOR!$F$11='Tabla Parámetros'!$O$6,'Tabla Fijos'!G63,IF(COTIZADOR!$F$11='Tabla Parámetros'!$O$4,'Tabla Crecientes'!G62))))) -> 2,461.47 | H118: =IF(B118="","",IF($F$11='Tabla Parámetros'!$O$3,'Tabla Fijos'!H63,IF($F$11='Tabla Parámetros'!$O$5,'Tabla Fijos'!H63,IF(COTIZADOR!$F$11='Tabla Parámetros'!$O$6,'Tabla Fijos'!H63,IF(COTIZADOR!$F$11='Tabla Parámetros'!$O$4,'Tabla Crecientes'!H62))))) -> 5,655.72 | I118: =IF($F$11='Tabla Parámetros'!$O$3,'Tabla Fijos'!I63,IF($F$11='Tabla Parámetros'!$O$5,'Tabla Fijos'!I63,IF(COTIZADOR!$F$11='Tabla Parámetros'!$O$6,'Tabla Fijos'!I63,IF(COTIZADOR!$F$11='Tabla Parámetros'!$O$4,'Tabla Crecientes'!I62)))) -> 0.00 | J118: =IF(B118="","",IF($F$11='Tabla Parámetros'!$O$3,'Tabla Fijos'!K63,IF($F$11='Tabla Parámetros'!$O$5,'Tabla Fijos'!K63,IF(COTIZADOR!$F$11='Tabla Parámetros'!$O$6,'Tabla Fijos'!K63,IF(COTIZADOR!$F$11='Tabla Parámetros'!$O$4,'Tabla Crecientes'!K62))))) -> 535.80 | K118: =IF(B118="","",IF($F$11='Tabla Parámetros'!$O$3,'Tabla Fijos'!L63,IF($F$11='Tabla Parámetros'!$O$5,'Tabla Fijos'!L63,IF(COTIZADOR!$F$11='Tabla Parámetros'!$O$6,'Tabla Fijos'!L63,IF(COTIZADOR!$F$11='Tabla Parámetros'!$O$4,'Tabla Crecientes'!L62))))) -> 247.06 | L118: =IF(B118="","",IF($F$11='Tabla Parámetros'!$O$3,'Tabla Fijos'!M63,IF($F$11='Tabla Parámetros'!$O$5,'Tabla Fijos'!M63,IF(COTIZADOR!$F$11='Tabla Parámetros'!$O$6,'Tabla Fijos'!M63,IF(COTIZADOR!$F$11='Tabla Parámetros'!$O$4,'Tabla Crecientes'!M62))))) -> 349.00 | M118: =IF($F$11='Tabla Parámetros'!$O$3,'Tabla Fijos'!N63,IF($F$11='Tabla Parámetros'!$O$5,'Tabla Fijos'!N63,IF(COTIZADOR!$F$11='Tabla Parámetros'!$O$6,'Tabla Fijos'!N63,IF(COTIZADOR!$F$11='Tabla Parámetros'!$O$4,'Tabla Crecientes'!N62)))) -> 0.00 | O118: 9,249.05 | P118: 890,546.86 | Q118: 1
B119: 53 | C119: =IF($B$67="","",'Fecha Pago'!K56) -> 2025-03-03 | D119: =IF($B$67="","",'Fecha Pago'!L56) -> 30.40 | E119: =IF(B119="","",IF($F$11='Tabla Parámetros'!$O$3,'Tabla Fijos'!E63,IF($F$11='Tabla Parámetros'!$O$5,'Tabla Fijos'!E63,IF(COTIZADOR!$F$11='Tabla Parámetros'!$O$6,'Tabla Fijos'!E63,IF(COTIZADOR!$F$11='Tabla Parámetros'!$O$4,'Tabla Crecientes'!E62))))) -> 7.50% | F119: 890,546.86 | G119: =IF(B119="","",IF($F$11='Tabla Parámetros'!$O$3,'Tabla Fijos'!G64,IF($F$11='Tabla Parámetros'!$O$5,'Tabla Fijos'!G64,IF(COTIZADOR!$F$11='Tabla Parámetros'!$O$6,'Tabla Fijos'!G64,IF(COTIZADOR!$F$11='Tabla Parámetros'!$O$4,'Tabla Crecientes'!G63))))) -> 2,477.06 | H119: =IF(B119="","",IF($F$11='Tabla Parámetros'!$O$3,'Tabla Fijos'!H64,IF($F$11='Tabla Parámetros'!$O$5,'Tabla Fijos'!H64,IF(COTIZADOR!$F$11='Tabla Parámetros'!$O$6,'Tabla Fijos'!H64,IF(COTIZADOR!$F$11='Tabla Parámetros'!$O$4,'Tabla Crecientes'!H63))))) -> 5,640.13 | I119: =IF($F$11='Tabla Parámetros'!$O$3,'Tabla Fijos'!I64,IF($F$11='Tabla Parámetros'!$O$5,'Tabla Fijos'!I64,IF(COTIZADOR!$F$11='Tabla Parámetros'!$O$6,'Tabla Fijos'!I64,IF(COTIZADOR!$F$11='Tabla Parámetros'!$O$4,'Tabla Crecientes'!I63)))) -> 0.00 | J119: =IF(B119="","",IF($F$11='Tabla Parámetros'!$O$3,'Tabla Fijos'!K64,IF($F$11='Tabla Parámetros'!$O$5,'Tabla Fijos'!K64,IF(COTIZADOR!$F$11='Tabla Parámetros'!$O$6,'Tabla Fijos'!K64,IF(COTIZADOR!$F$11='Tabla Parámetros'!$O$4,'Tabla Crecientes'!K63))))) -> 534.33 | K119: =IF(B119="","",IF($F$11='Tabla Parámetros'!$O$3,'Tabla Fijos'!L64,IF($F$11='Tabla Parámetros'!$O$5,'Tabla Fijos'!L64,IF(COTIZADOR!$F$11='Tabla Parámetros'!$O$6,'Tabla Fijos'!L64,IF(COTIZADOR!$F$11='Tabla Parámetros'!$O$4,'Tabla Crecientes'!L63))))) -> 247.06 | L119: =IF(B119="","",IF($F$11='Tabla Parámetros'!$O$3,'Tabla Fijos'!M64,IF($F$11='Tabla Parámetros'!$O$5,'Tabla Fijos'!M64,IF(COTIZADOR!$F$11='Tabla Parámetros'!$O$6,'Tabla Fijos'!M64,IF(COTIZADOR!$F$11='Tabla Parámetros'!$O$4,'Tabla Crecientes'!M63))))) -> 349.00 | M119: =IF($F$11='Tabla Parámetros'!$O$3,'Tabla Fijos'!N64,IF($F$11='Tabla Parámetros'!$O$5,'Tabla Fijos'!N64,IF(COTIZADOR!$F$11='Tabla Parámetros'!$O$6,'Tabla Fijos'!N64,IF(COTIZADOR!$F$11='Tabla Parámetros'!$O$4,'Tabla Crecientes'!N63)))) -> 0.00 | O119: 9,247.58 | P119: 888,069.80 | Q119: 1
B120: 54 | C120: =IF($B$67="","",'Fecha Pago'!K57) -> 2025-04-03 | D120: =IF($B$67="","",'Fecha Pago'!L57) -> 30.40 | E120: =IF(B120="","",IF($F$11='Tabla Parámetros'!$O$3,'Tabla Fijos'!E64,IF($F$11='Tabla Parámetros'!$O$5,'Tabla Fijos'!E64,IF(COTIZADOR!$F$11='Tabla Parámetros'!$O$6,'Tabla Fijos'!E64,IF(COTIZADOR!$F$11='Tabla Parámetros'!$O$4,'Tabla Crecientes'!E63))))) -> 7.50% | F120: 888,069.80 | G120: =IF(B120="","",IF($F$11='Tabla Parámetros'!$O$3,'Tabla Fijos'!G65,IF($F$11='Tabla Parámetros'!$O$5,'Tabla Fijos'!G65,IF(COTIZADOR!$F$11='Tabla Parámetros'!$O$6,'Tabla Fijos'!G65,IF(COTIZADOR!$F$11='Tabla Parámetros'!$O$4,'Tabla Crecientes'!G64))))) -> 2,492.75 | H120: =IF(B120="","",IF($F$11='Tabla Parámetros'!$O$3,'Tabla Fijos'!H65,IF($F$11='Tabla Parámetros'!$O$5,'Tabla Fijos'!H65,IF(COTIZADOR!$F$11='Tabla Parámetros'!$O$6,'Tabla Fijos'!H65,IF(COTIZADOR!$F$11='Tabla Parámetros'!$O$4,'Tabla Crecientes'!H64))))) -> 5,624.44 | I120: =IF($F$11='Tabla Parámetros'!$O$3,'Tabla Fijos'!I65,IF($F$11='Tabla Parámetros'!$O$5,'Tabla Fijos'!I65,IF(COTIZADOR!$F$11='Tabla Parámetros'!$O$6,'Tabla Fijos'!I65,IF(COTIZADOR!$F$11='Tabla Parámetros'!$O$4,'Tabla Crecientes'!I64)))) -> 0.00 | J120: =IF(B120="","",IF($F$11='Tabla Parámetros'!$O$3,'Tabla Fijos'!K65,IF($F$11='Tabla Parámetros'!$O$5,'Tabla Fijos'!K65,IF(COTIZADOR!$F$11='Tabla Parámetros'!$O$6,'Tabla Fijos'!K65,IF(COTIZADOR!$F$11='Tabla Parámetros'!$O$4,'Tabla Crecientes'!K64))))) -> 532.84 | K120: =IF(B120="","",IF($F$11='Tabla Parámetros'!$O$3,'Tabla Fijos'!L65,IF($F$11='Tabla Parámetros'!$O$5,'Tabla Fijos'!L65,IF(COTIZADOR!$F$11='Tabla Parámetros'!$O$6,'Tabla Fijos'!L65,IF(COTIZADOR!$F$11='Tabla Parámetros'!$O$4,'Tabla Crecientes'!L64))))) -> 247.06 | L120: =IF(B120="","",IF($F$11='Tabla Parámetros'!$O$3,'Tabla Fijos'!M65,IF($F$11='Tabla Parámetros'!$O$5,'Tabla Fijos'!M65,IF(COTIZADOR!$F$11='Tabla Parámetros'!$O$6,'Tabla Fijos'!M65,IF(COTIZADOR!$F$11='Tabla Parámetros'!$O$4,'Tabla Crecientes'!M64))))) -> 349.00 | M120: =IF($F$11='Tabla Parámetros'!$O$3,'Tabla Fijos'!N65,IF($F$11='Tabla Parámetros'!$O$5,'Tabla Fijos'!N65,IF(COTIZADOR!$F$11='Tabla Parámetros'!$O$6,'Tabla Fijos'!N65,IF(COTIZADOR!$F$11='Tabla Parámetros'!$O$4,'Tabla Crecientes'!N64)))) -> 0.00 | O120: 9,246.09 | P120: 885,577.06 | Q120: 1
B121: 55 | C121: =IF($B$67="","",'Fecha Pago'!K58) -> 2025-05-03 | D121: =IF($B$67="","",'Fecha Pago'!L58) -> 30.40 | E121: =IF(B121="","",IF($F$11='Tabla Parámetros'!$O$3,'Tabla Fijos'!E65,IF($F$11='Tabla Parámetros'!$O$5,'Tabla Fijos'!E65,IF(COTIZADOR!$F$11='Tabla Parámetros'!$O$6,'Tabla Fijos'!E65,IF(COTIZADOR!$F$11='Tabla Parámetros'!$O$4,'Tabla Crecientes'!E64))))) -> 7.50% | F121: 885,577.06 | G121: =IF(B121="","",IF($F$11='Tabla Parámetros'!$O$3,'Tabla Fijos'!G66,IF($F$11='Tabla Parámetros'!$O$5,'Tabla Fijos'!G66,IF(COTIZADOR!$F$11='Tabla Parámetros'!$O$6,'Tabla Fijos'!G66,IF(COTIZADOR!$F$11='Tabla Parámetros'!$O$4,'Tabla Crecientes'!G65))))) -> 2,508.53 | H121: =IF(B121="","",IF($F$11='Tabla Parámetros'!$O$3,'Tabla Fijos'!H66,IF($F$11='Tabla Parámetros'!$O$5,'Tabla Fijos'!H66,IF(COTIZADOR!$F$11='Tabla Parámetros'!$O$6,'Tabla Fijos'!H66,IF(COTIZADOR!$F$11='Tabla Parámetros'!$O$4,'Tabla Crecientes'!H65))))) -> 5,608.65 | I121: =IF($F$11='Tabla Parámetros'!$O$3,'Tabla Fijos'!I66,IF($F$11='Tabla Parámetros'!$O$5,'Tabla Fijos'!I66,IF(COTIZADOR!$F$11='Tabla Parámetros'!$O$6,'Tabla Fijos'!I66,IF(COTIZADOR!$F$11='Tabla Parámetros'!$O$4,'Tabla Crecientes'!I65)))) -> 0.00 | J121: =IF(B121="","",IF($F$11='Tabla Parámetros'!$O$3,'Tabla Fijos'!K66,IF($F$11='Tabla Parámetros'!$O$5,'Tabla Fijos'!K66,IF(COTIZADOR!$F$11='Tabla Parámetros'!$O$6,'Tabla Fijos'!K66,IF(COTIZADOR!$F$11='Tabla Parámetros'!$O$4,'Tabla Crecientes'!K65))))) -> 531.35 | K121: =IF(B121="","",IF($F$11='Tabla Parámetros'!$O$3,'Tabla Fijos'!L66,IF($F$11='Tabla Parámetros'!$O$5,'Tabla Fijos'!L66,IF(COTIZADOR!$F$11='Tabla Parámetros'!$O$6,'Tabla Fijos'!L66,IF(COTIZADOR!$F$11='Tabla Parámetros'!$O$4,'Tabla Crecientes'!L65))))) -> 247.06 | L121: =IF(B121="","",IF($F$11='Tabla Parámetros'!$O$3,'Tabla Fijos'!M66,IF($F$11='Tabla Parámetros'!$O$5,'Tabla Fijos'!M66,IF(COTIZADOR!$F$11='Tabla Parámetros'!$O$6,'Tabla Fijos'!M66,IF(COTIZADOR!$F$11='Tabla Parámetros'!$O$4,'Tabla Crecientes'!M65))))) -> 349.00 | M121: =IF($F$11='Tabla Parámetros'!$O$3,'Tabla Fijos'!N66,IF($F$11='Tabla Parámetros'!$O$5,'Tabla Fijos'!N66,IF(COTIZADOR!$F$11='Tabla Parámetros'!$O$6,'Tabla Fijos'!N66,IF(COTIZADOR!$F$11='Tabla Parámetros'!$O$4,'Tabla Crecientes'!N65)))) -> 0.00 | O121: 9,244.59 | P121: 883,068.52 | Q121: 1
B122: 56 | C122: =IF($B$67="","",'Fecha Pago'!K59) -> 2025-06-03 | D122: =IF($B$67="","",'Fecha Pago'!L59) -> 30.40 | E122: =IF(B122="","",IF($F$11='Tabla Parámetros'!$O$3,'Tabla Fijos'!E66,IF($F$11='Tabla Parámetros'!$O$5,'Tabla Fijos'!E66,IF(COTIZADOR!$F$11='Tabla Parámetros'!$O$6,'Tabla Fijos'!E66,IF(COTIZADOR!$F$11='Tabla Parámetros'!$O$4,'Tabla Crecientes'!E65))))) -> 7.50% | F122: 883,068.52 | G122: =IF(B122="","",IF($F$11='Tabla Parámetros'!$O$3,'Tabla Fijos'!G67,IF($F$11='Tabla Parámetros'!$O$5,'Tabla Fijos'!G67,IF(COTIZADOR!$F$11='Tabla Parámetros'!$O$6,'Tabla Fijos'!G67,IF(COTIZADOR!$F$11='Tabla Parámetros'!$O$4,'Tabla Crecientes'!G66))))) -> 2,524.42 | H122: =IF(B122="","",IF($F$11='Tabla Parámetros'!$O$3,'Tabla Fijos'!H67,IF($F$11='Tabla Parámetros'!$O$5,'Tabla Fijos'!H67,IF(COTIZADOR!$F$11='Tabla Parámetros'!$O$6,'Tabla Fijos'!H67,IF(COTIZADOR!$F$11='Tabla Parámetros'!$O$4,'Tabla Crecientes'!H66))))) -> 5,592.77 | I122: =IF($F$11='Tabla Parámetros'!$O$3,'Tabla Fijos'!I67,IF($F$11='Tabla Parámetros'!$O$5,'Tabla Fijos'!I67,IF(COTIZADOR!$F$11='Tabla Parámetros'!$O$6,'Tabla Fijos'!I67,IF(COTIZADOR!$F$11='Tabla Parámetros'!$O$4,'Tabla Crecientes'!I66)))) -> 0.00 | J122: =IF(B122="","",IF($F$11='Tabla Parámetros'!$O$3,'Tabla Fijos'!K67,IF($F$11='Tabla Parámetros'!$O$5,'Tabla Fijos'!K67,IF(COTIZADOR!$F$11='Tabla Parámetros'!$O$6,'Tabla Fijos'!K67,IF(COTIZADOR!$F$11='Tabla Parámetros'!$O$4,'Tabla Crecientes'!K66))))) -> 529.84 | K122: =IF(B122="","",IF($F$11='Tabla Parámetros'!$O$3,'Tabla Fijos'!L67,IF($F$11='Tabla Parámetros'!$O$5,'Tabla Fijos'!L67,IF(COTIZADOR!$F$11='Tabla Parámetros'!$O$6,'Tabla Fijos'!L67,IF(COTIZADOR!$F$11='Tabla Parámetros'!$O$4,'Tabla Crecientes'!L66))))) -> 247.06 | L122: =IF(B122="","",IF($F$11='Tabla Parámetros'!$O$3,'Tabla Fijos'!M67,IF($F$11='Tabla Parámetros'!$O$5,'Tabla Fijos'!M67,IF(COTIZADOR!$F$11='Tabla Parámetros'!$O$6,'Tabla Fijos'!M67,IF(COTIZADOR!$F$11='Tabla Parámetros'!$O$4,'Tabla Crecientes'!M66))))) -> 349.00 | M122: =IF($F$11='Tabla Parámetros'!$O$3,'Tabla Fijos'!N67,IF($F$11='Tabla Parámetros'!$O$5,'Tabla Fijos'!N67,IF(COTIZADOR!$F$11='Tabla Parámetros'!$O$6,'Tabla Fijos'!N67,IF(COTIZADOR!$F$11='Tabla Parámetros'!$O$4,'Tabla Crecientes'!N66)))) -> 0.00 | O122: 9,243.09 | P122: 880,544.10 | Q122: 1
B123: 57 | C123: =IF($B$67="","",'Fecha Pago'!K60) -> 2025-07-03 | D123: =IF($B$67="","",'Fecha Pago'!L60) -> 30.40 | E123: =IF(B123="","",IF($F$11='Tabla Parámetros'!$O$3,'Tabla Fijos'!E67,IF($F$11='Tabla Parámetros'!$O$5,'Tabla Fijos'!E67,IF(COTIZADOR!$F$11='Tabla Parámetros'!$O$6,'Tabla Fijos'!E67,IF(COTIZADOR!$F$11='Tabla Parámetros'!$O$4,'Tabla Crecientes'!E66))))) -> 7.50% | F123: 880,544.10 | G123: =IF(B123="","",IF($F$11='Tabla Parámetros'!$O$3,'Tabla Fijos'!G68,IF($F$11='Tabla Parámetros'!$O$5,'Tabla Fijos'!G68,IF(COTIZADOR!$F$11='Tabla Parámetros'!$O$6,'Tabla Fijos'!G68,IF(COTIZADOR!$F$11='Tabla Parámetros'!$O$4,'Tabla Crecientes'!G67))))) -> 2,540.41 | H123: =IF(B123="","",IF($F$11='Tabla Parámetros'!$O$3,'Tabla Fijos'!H68,IF($F$11='Tabla Parámetros'!$O$5,'Tabla Fijos'!H68,IF(COTIZADOR!$F$11='Tabla Parámetros'!$O$6,'Tabla Fijos'!H68,IF(COTIZADOR!$F$11='Tabla Parámetros'!$O$4,'Tabla Crecientes'!H67))))) -> 5,576.78 | I123: =IF($F$11='Tabla Parámetros'!$O$3,'Tabla Fijos'!I68,IF($F$11='Tabla Parámetros'!$O$5,'Tabla Fijos'!I68,IF(COTIZADOR!$F$11='Tabla Parámetros'!$O$6,'Tabla Fijos'!I68,IF(COTIZADOR!$F$11='Tabla Parámetros'!$O$4,'Tabla Crecientes'!I67)))) -> 0.00 | J123: =IF(B123="","",IF($F$11='Tabla Parámetros'!$O$3,'Tabla Fijos'!K68,IF($F$11='Tabla Parámetros'!$O$5,'Tabla Fijos'!K68,IF(COTIZADOR!$F$11='Tabla Parámetros'!$O$6,'Tabla Fijos'!K68,IF(COTIZADOR!$F$11='Tabla Parámetros'!$O$4,'Tabla Crecientes'!K67))))) -> 528.33 | K123: =IF(B123="","",IF($F$11='Tabla Parámetros'!$O$3,'Tabla Fijos'!L68,IF($F$11='Tabla Parámetros'!$O$5,'Tabla Fijos'!L68,IF(COTIZADOR!$F$11='Tabla Parámetros'!$O$6,'Tabla Fijos'!L68,IF(COTIZADOR!$F$11='Tabla Parámetros'!$O$4,'Tabla Crecientes'!L67))))) -> 247.06 | L123: =IF(B123="","",IF($F$11='Tabla Parámetros'!$O$3,'Tabla Fijos'!M68,IF($F$11='Tabla Parámetros'!$O$5,'Tabla Fijos'!M68,IF(COTIZADOR!$F$11='Tabla Parámetros'!$O$6,'Tabla Fijos'!M68,IF(COTIZADOR!$F$11='Tabla Parámetros'!$O$4,'Tabla Crecientes'!M67))))) -> 349.00 | M123: =IF($F$11='Tabla Parámetros'!$O$3,'Tabla Fijos'!N68,IF($F$11='Tabla Parámetros'!$O$5,'Tabla Fijos'!N68,IF(COTIZADOR!$F$11='Tabla Parámetros'!$O$6,'Tabla Fijos'!N68,IF(COTIZADOR!$F$11='Tabla Parámetros'!$O$4,'Tabla Crecientes'!N67)))) -> 0.00 | O123: 9,241.57 | P123: 878,003.69 | Q123: 1
B124: 58 | C124: =IF($B$67="","",'Fecha Pago'!K61) -> 2025-08-03 | D124: =IF($B$67="","",'Fecha Pago'!L61) -> 30.40 | E124: =IF(B124="","",IF($F$11='Tabla Parámetros'!$O$3,'Tabla Fijos'!E68,IF($F$11='Tabla Parámetros'!$O$5,'Tabla Fijos'!E68,IF(COTIZADOR!$F$11='Tabla Parámetros'!$O$6,'Tabla Fijos'!E68,IF(COTIZADOR!$F$11='Tabla Parámetros'!$O$4,'Tabla Crecientes'!E67))))) -> 7.50% | F124: 878,003.69 | G124: =IF(B124="","",IF($F$11='Tabla Parámetros'!$O$3,'Tabla Fijos'!G69,IF($F$11='Tabla Parámetros'!$O$5,'Tabla Fijos'!G69,IF(COTIZADOR!$F$11='Tabla Parámetros'!$O$6,'Tabla Fijos'!G69,IF(COTIZADOR!$F$11='Tabla Parámetros'!$O$4,'Tabla Crecientes'!G68))))) -> 2,556.50 | H124: =IF(B124="","",IF($F$11='Tabla Parámetros'!$O$3,'Tabla Fijos'!H69,IF($F$11='Tabla Parámetros'!$O$5,'Tabla Fijos'!H69,IF(COTIZADOR!$F$11='Tabla Parámetros'!$O$6,'Tabla Fijos'!H69,IF(COTIZADOR!$F$11='Tabla Parámetros'!$O$4,'Tabla Crecientes'!H68))))) -> 5,560.69 | I124: =IF($F$11='Tabla Parámetros'!$O$3,'Tabla Fijos'!I69,IF($F$11='Tabla Parámetros'!$O$5,'Tabla Fijos'!I69,IF(COTIZADOR!$F$11='Tabla Parámetros'!$O$6,'Tabla Fijos'!I69,IF(COTIZADOR!$F$11='Tabla Parámetros'!$O$4,'Tabla Crecientes'!I68)))) -> 0.00 | J124: =IF(B124="","",IF($F$11='Tabla Parámetros'!$O$3,'Tabla Fijos'!K69,IF($F$11='Tabla Parámetros'!$O$5,'Tabla Fijos'!K69,IF(COTIZADOR!$F$11='Tabla Parámetros'!$O$6,'Tabla Fijos'!K69,IF(COTIZADOR!$F$11='Tabla Parámetros'!$O$4,'Tabla Crecientes'!K68))))) -> 526.80 | K124: =IF(B124="","",IF($F$11='Tabla Parámetros'!$O$3,'Tabla Fijos'!L69,IF($F$11='Tabla Parámetros'!$O$5,'Tabla Fijos'!L69,IF(COTIZADOR!$F$11='Tabla Parámetros'!$O$6,'Tabla Fijos'!L69,IF(COTIZADOR!$F$11='Tabla Parámetros'!$O$4,'Tabla Crecientes'!L68))))) -> 247.06 | L124: =IF(B124="","",IF($F$11='Tabla Parámetros'!$O$3,'Tabla Fijos'!M69,IF($F$11='Tabla Parámetros'!$O$5,'Tabla Fijos'!M69,IF(COTIZADOR!$F$11='Tabla Parámetros'!$O$6,'Tabla Fijos'!M69,IF(COTIZADOR!$F$11='Tabla Parámetros'!$O$4,'Tabla Crecientes'!M68))))) -> 349.00 | M124: =IF($F$11='Tabla Parámetros'!$O$3,'Tabla Fijos'!N69,IF($F$11='Tabla Parámetros'!$O$5,'Tabla Fijos'!N69,IF(COTIZADOR!$F$11='Tabla Parámetros'!$O$6,'Tabla Fijos'!N69,IF(COTIZADOR!$F$11='Tabla Parámetros'!$O$4,'Tabla Crecientes'!N68)))) -> 0.00 | O124: 9,240.05 | P124: 875,447.19 | Q124: 1
B125: 59 | C125: =IF($B$67="","",'Fecha Pago'!K62) -> 2025-09-03 | D125: =IF($B$67="","",'Fecha Pago'!L62) -> 30.40 | E125: =IF(B125="","",IF($F$11='Tabla Parámetros'!$O$3,'Tabla Fijos'!E69,IF($F$11='Tabla Parámetros'!$O$5,'Tabla Fijos'!E69,IF(COTIZADOR!$F$11='Tabla Parámetros'!$O$6,'Tabla Fijos'!E69,IF(COTIZADOR!$F$11='Tabla Parámetros'!$O$4,'Tabla Crecientes'!E68))))) -> 7.50% | F125: 875,447.19 | G125: =IF(B125="","",IF($F$11='Tabla Parámetros'!$O$3,'Tabla Fijos'!G70,IF($F$11='Tabla Parámetros'!$O$5,'Tabla Fijos'!G70,IF(COTIZADOR!$F$11='Tabla Parámetros'!$O$6,'Tabla Fijos'!G70,IF(COTIZADOR!$F$11='Tabla Parámetros'!$O$4,'Tabla Crecientes'!G69))))) -> 2,572.69 | H125: =IF(B125="","",IF($F$11='Tabla Parámetros'!$O$3,'Tabla Fijos'!H70,IF($F$11='Tabla Parámetros'!$O$5,'Tabla Fijos'!H70,IF(COTIZADOR!$F$11='Tabla Parámetros'!$O$6,'Tabla Fijos'!H70,IF(COTIZADOR!$F$11='Tabla Parámetros'!$O$4,'Tabla Crecientes'!H69))))) -> 5,544.50 | I125: =IF($F$11='Tabla Parámetros'!$O$3,'Tabla Fijos'!I70,IF($F$11='Tabla Parámetros'!$O$5,'Tabla Fijos'!I70,IF(COTIZADOR!$F$11='Tabla Parámetros'!$O$6,'Tabla Fijos'!I70,IF(COTIZADOR!$F$11='Tabla Parámetros'!$O$4,'Tabla Crecientes'!I69)))) -> 0.00 | J125: =IF(B125="","",IF($F$11='Tabla Parámetros'!$O$3,'Tabla Fijos'!K70,IF($F$11='Tabla Parámetros'!$O$5,'Tabla Fijos'!K70,IF(COTIZADOR!$F$11='Tabla Parámetros'!$O$6,'Tabla Fijos'!K70,IF(COTIZADOR!$F$11='Tabla Parámetros'!$O$4,'Tabla Crecientes'!K69))))) -> 525.27 | K125: =IF(B125="","",IF($F$11='Tabla Parámetros'!$O$3,'Tabla Fijos'!L70,IF($F$11='Tabla Parámetros'!$O$5,'Tabla Fijos'!L70,IF(COTIZADOR!$F$11='Tabla Parámetros'!$O$6,'Tabla Fijos'!L70,IF(COTIZADOR!$F$11='Tabla Parámetros'!$O$4,'Tabla Crecientes'!L69))))) -> 247.06 | L125: =IF(B125="","",IF($F$11='Tabla Parámetros'!$O$3,'Tabla Fijos'!M70,IF($F$11='Tabla Parámetros'!$O$5,'Tabla Fijos'!M70,IF(COTIZADOR!$F$11='Tabla Parámetros'!$O$6,'Tabla Fijos'!M70,IF(COTIZADOR!$F$11='Tabla Parámetros'!$O$4,'Tabla Crecientes'!M69))))) -> 349.00 | M125: =IF($F$11='Tabla Parámetros'!$O$3,'Tabla Fijos'!N70,IF($F$11='Tabla Parámetros'!$O$5,'Tabla Fijos'!N70,IF(COTIZADOR!$F$11='Tabla Parámetros'!$O$6,'Tabla Fijos'!N70,IF(COTIZADOR!$F$11='Tabla Parámetros'!$O$4,'Tabla Crecientes'!N69)))) -> 0.00 | O125: 9,238.52 | P125: 872,874.50 | Q125: 1
B126: 60 | C126: =IF($B$67="","",'Fecha Pago'!K63) -> 2025-10-03 | D126: =IF($B$67="","",'Fecha Pago'!L63) -> 30.40 | E126: =IF(B126="","",IF($F$11='Tabla Parámetros'!$O$3,'Tabla Fijos'!E70,IF($F$11='Tabla Parámetros'!$O$5,'Tabla Fijos'!E70,IF(COTIZADOR!$F$11='Tabla Parámetros'!$O$6,'Tabla Fijos'!E70,IF(COTIZADOR!$F$11='Tabla Parámetros'!$O$4,'Tabla Crecientes'!E69))))) -> 7.50% | F126: 872,874.50 | G126: =IF(B126="","",IF($F$11='Tabla Parámetros'!$O$3,'Tabla Fijos'!G71,IF($F$11='Tabla Parámetros'!$O$5,'Tabla Fijos'!G71,IF(COTIZADOR!$F$11='Tabla Parámetros'!$O$6,'Tabla Fijos'!G71,IF(COTIZADOR!$F$11='Tabla Parámetros'!$O$4,'Tabla Crecientes'!G70))))) -> 2,588.98 | H126: =IF(B126="","",IF($F$11='Tabla Parámetros'!$O$3,'Tabla Fijos'!H71,IF($F$11='Tabla Parámetros'!$O$5,'Tabla Fijos'!H71,IF(COTIZADOR!$F$11='Tabla Parámetros'!$O$6,'Tabla Fijos'!H71,IF(COTIZADOR!$F$11='Tabla Parámetros'!$O$4,'Tabla Crecientes'!H70))))) -> 5,528.21 | I126: =IF($F$11='Tabla Parámetros'!$O$3,'Tabla Fijos'!I71,IF($F$11='Tabla Parámetros'!$O$5,'Tabla Fijos'!I71,IF(COTIZADOR!$F$11='Tabla Parámetros'!$O$6,'Tabla Fijos'!I71,IF(COTIZADOR!$F$11='Tabla Parámetros'!$O$4,'Tabla Crecientes'!I70)))) -> 0.00 | J126: =IF(B126="","",IF($F$11='Tabla Parámetros'!$O$3,'Tabla Fijos'!K71,IF($F$11='Tabla Parámetros'!$O$5,'Tabla Fijos'!K71,IF(COTIZADOR!$F$11='Tabla Parámetros'!$O$6,'Tabla Fijos'!K71,IF(COTIZADOR!$F$11='Tabla Parámetros'!$O$4,'Tabla Crecientes'!K70))))) -> 523.72 | K126: =IF(B126="","",IF($F$11='Tabla Parámetros'!$O$3,'Tabla Fijos'!L71,IF($F$11='Tabla Parámetros'!$O$5,'Tabla Fijos'!L71,IF(COTIZADOR!$F$11='Tabla Parámetros'!$O$6,'Tabla Fijos'!L71,IF(COTIZADOR!$F$11='Tabla Parámetros'!$O$4,'Tabla Crecientes'!L70))))) -> 247.06 | L126: =IF(B126="","",IF($F$11='Tabla Parámetros'!$O$3,'Tabla Fijos'!M71,IF($F$11='Tabla Parámetros'!$O$5,'Tabla Fijos'!M71,IF(COTIZADOR!$F$11='Tabla Parámetros'!$O$6,'Tabla Fijos'!M71,IF(COTIZADOR!$F$11='Tabla Parámetros'!$O$4,'Tabla Crecientes'!M70))))) -> 349.00 | M126: =IF($F$11='Tabla Parámetros'!$O$3,'Tabla Fijos'!N71,IF($F$11='Tabla Parámetros'!$O$5,'Tabla Fijos'!N71,IF(COTIZADOR!$F$11='Tabla Parámetros'!$O$6,'Tabla Fijos'!N71,IF(COTIZADOR!$F$11='Tabla Parámetros'!$O$4,'Tabla Crecientes'!N70)))) -> 0.00 | O126: 9,236.97 | P126: 870,285.52 | Q126: 1
B127: 61 | C127: =IF($B$67="","",'Fecha Pago'!K64) -> 2025-11-03 | D127: =IF($B$67="","",'Fecha Pago'!L64) -> 30.40 | E127: =IF(B127="","",IF($F$11='Tabla Parámetros'!$O$3,'Tabla Fijos'!E71,IF($F$11='Tabla Parámetros'!$O$5,'Tabla Fijos'!E71,IF(COTIZADOR!$F$11='Tabla Parámetros'!$O$6,'Tabla Fijos'!E71,IF(COTIZADOR!$F$11='Tabla Parámetros'!$O$4,'Tabla Crecientes'!E70))))) -> 7.50% | F127: 870,285.52 | G127: =IF(B127="","",IF($F$11='Tabla Parámetros'!$O$3,'Tabla Fijos'!G72,IF($F$11='Tabla Parámetros'!$O$5,'Tabla Fijos'!G72,IF(COTIZADOR!$F$11='Tabla Parámetros'!$O$6,'Tabla Fijos'!G72,IF(COTIZADOR!$F$11='Tabla Parámetros'!$O$4,'Tabla Crecientes'!G71))))) -> 2,605.38 | H127: =IF(B127="","",IF($F$11='Tabla Parámetros'!$O$3,'Tabla Fijos'!H72,IF($F$11='Tabla Parámetros'!$O$5,'Tabla Fijos'!H72,IF(COTIZADOR!$F$11='Tabla Parámetros'!$O$6,'Tabla Fijos'!H72,IF(COTIZADOR!$F$11='Tabla Parámetros'!$O$4,'Tabla Crecientes'!H71))))) -> 5,511.81 | I127: =IF($F$11='Tabla Parámetros'!$O$3,'Tabla Fijos'!I72,IF($F$11='Tabla Parámetros'!$O$5,'Tabla Fijos'!I72,IF(COTIZADOR!$F$11='Tabla Parámetros'!$O$6,'Tabla Fijos'!I72,IF(COTIZADOR!$F$11='Tabla Parámetros'!$O$4,'Tabla Crecientes'!I71)))) -> 0.00 | J127: =IF(B127="","",IF($F$11='Tabla Parámetros'!$O$3,'Tabla Fijos'!K72,IF($F$11='Tabla Parámetros'!$O$5,'Tabla Fijos'!K72,IF(COTIZADOR!$F$11='Tabla Parámetros'!$O$6,'Tabla Fijos'!K72,IF(COTIZADOR!$F$11='Tabla Parámetros'!$O$4,'Tabla Crecientes'!K71))))) -> 522.17 | K127: =IF(B127="","",IF($F$11='Tabla Parámetros'!$O$3,'Tabla Fijos'!L72,IF($F$11='Tabla Parámetros'!$O$5,'Tabla Fijos'!L72,IF(COTIZADOR!$F$11='Tabla Parámetros'!$O$6,'Tabla Fijos'!L72,IF(COTIZADOR!$F$11='Tabla Parámetros'!$O$4,'Tabla Crecientes'!L71))))) -> 247.06 | L127: =IF(B127="","",IF($F$11='Tabla Parámetros'!$O$3,'Tabla Fijos'!M72,IF($F$11='Tabla Parámetros'!$O$5,'Tabla Fijos'!M72,IF(COTIZADOR!$F$11='Tabla Parámetros'!$O$6,'Tabla Fijos'!M72,IF(COTIZADOR!$F$11='Tabla Parámetros'!$O$4,'Tabla Crecientes'!M71))))) -> 349.00 | M127: =IF($F$11='Tabla Parámetros'!$O$3,'Tabla Fijos'!N72,IF($F$11='Tabla Parámetros'!$O$5,'Tabla Fijos'!N72,IF(COTIZADOR!$F$11='Tabla Parámetros'!$O$6,'Tabla Fijos'!N72,IF(COTIZADOR!$F$11='Tabla Parámetros'!$O$4,'Tabla Crecientes'!N71)))) -> 0.00 | O127: 9,235.42 | P127: 867,680.14 | Q127: 1
B128: 62 | C128: =IF($B$67="","",'Fecha Pago'!K65) -> 2025-12-03 | D128: =IF($B$67="","",'Fecha Pago'!L65) -> 30.40 | E128: =IF(B128="","",IF($F$11='Tabla Parámetros'!$O$3,'Tabla Fijos'!E72,IF($F$11='Tabla Parámetros'!$O$5,'Tabla Fijos'!E72,IF(COTIZADOR!$F$11='Tabla Parámetros'!$O$6,'Tabla Fijos'!E72,IF(COTIZADOR!$F$11='Tabla Parámetros'!$O$4,'Tabla Crecientes'!E71))))) -> 7.50% | F128: 867,680.14 | G128: =IF(B128="","",IF($F$11='Tabla Parámetros'!$O$3,'Tabla Fijos'!G73,IF($F$11='Tabla Parámetros'!$O$5,'Tabla Fijos'!G73,IF(COTIZADOR!$F$11='Tabla Parámetros'!$O$6,'Tabla Fijos'!G73,IF(COTIZADOR!$F$11='Tabla Parámetros'!$O$4,'Tabla Crecientes'!G72))))) -> 2,621.88 | H128: =IF(B128="","",IF($F$11='Tabla Parámetros'!$O$3,'Tabla Fijos'!H73,IF($F$11='Tabla Parámetros'!$O$5,'Tabla Fijos'!H73,IF(COTIZADOR!$F$11='Tabla Parámetros'!$O$6,'Tabla Fijos'!H73,IF(COTIZADOR!$F$11='Tabla Parámetros'!$O$4,'Tabla Crecientes'!H72))))) -> 5,495.31 | I128: =IF($F$11='Tabla Parámetros'!$O$3,'Tabla Fijos'!I73,IF($F$11='Tabla Parámetros'!$O$5,'Tabla Fijos'!I73,IF(COTIZADOR!$F$11='Tabla Parámetros'!$O$6,'Tabla Fijos'!I73,IF(COTIZADOR!$F$11='Tabla Parámetros'!$O$4,'Tabla Crecientes'!I72)))) -> 0.00 | J128: =IF(B128="","",IF($F$11='Tabla Parámetros'!$O$3,'Tabla Fijos'!K73,IF($F$11='Tabla Parámetros'!$O$5,'Tabla Fijos'!K73,IF(COTIZADOR!$F$11='Tabla Parámetros'!$O$6,'Tabla Fijos'!K73,IF(COTIZADOR!$F$11='Tabla Parámetros'!$O$4,'Tabla Crecientes'!K72))))) -> 520.61 | K128: =IF(B128="","",IF($F$11='Tabla Parámetros'!$O$3,'Tabla Fijos'!L73,IF($F$11='Tabla Parámetros'!$O$5,'Tabla Fijos'!L73,IF(COTIZADOR!$F$11='Tabla Parámetros'!$O$6,'Tabla Fijos'!L73,IF(COTIZADOR!$F$11='Tabla Parámetros'!$O$4,'Tabla Crecientes'!L72))))) -> 247.06 | L128: =IF(B128="","",IF($F$11='Tabla Parámetros'!$O$3,'Tabla Fijos'!M73,IF($F$11='Tabla Parámetros'!$O$5,'Tabla Fijos'!M73,IF(COTIZADOR!$F$11='Tabla Parámetros'!$O$6,'Tabla Fijos'!M73,IF(COTIZADOR!$F$11='Tabla Parámetros'!$O$4,'Tabla Crecientes'!M72))))) -> 349.00 | M128: =IF($F$11='Tabla Parámetros'!$O$3,'Tabla Fijos'!N73,IF($F$11='Tabla Parámetros'!$O$5,'Tabla Fijos'!N73,IF(COTIZADOR!$F$11='Tabla Parámetros'!$O$6,'Tabla Fijos'!N73,IF(COTIZADOR!$F$11='Tabla Parámetros'!$O$4,'Tabla Crecientes'!N72)))) -> 0.00 | O128: 9,233.86 | P128: 865,058.26 | Q128: 1
B129: 63 | C129: =IF($B$67="","",'Fecha Pago'!K66) -> 2026-01-03 | D129: =IF($B$67="","",'Fecha Pago'!L66) -> 30.40 | E129: =IF(B129="","",IF($F$11='Tabla Parámetros'!$O$3,'Tabla Fijos'!E73,IF($F$11='Tabla Parámetros'!$O$5,'Tabla Fijos'!E73,IF(COTIZADOR!$F$11='Tabla Parámetros'!$O$6,'Tabla Fijos'!E73,IF(COTIZADOR!$F$11='Tabla Parámetros'!$O$4,'Tabla Crecientes'!E72))))) -> 7.50% | F129: 865,058.26 | G129: =IF(B129="","",IF($F$11='Tabla Parámetros'!$O$3,'Tabla Fijos'!G74,IF($F$11='Tabla Parámetros'!$O$5,'Tabla Fijos'!G74,IF(COTIZADOR!$F$11='Tabla Parámetros'!$O$6,'Tabla Fijos'!G74,IF(COTIZADOR!$F$11='Tabla Parámetros'!$O$4,'Tabla Crecientes'!G73))))) -> 2,638.49 | H129: =IF(B129="","",IF($F$11='Tabla Parámetros'!$O$3,'Tabla Fijos'!H74,IF($F$11='Tabla Parámetros'!$O$5,'Tabla Fijos'!H74,IF(COTIZADOR!$F$11='Tabla Parámetros'!$O$6,'Tabla Fijos'!H74,IF(COTIZADOR!$F$11='Tabla Parámetros'!$O$4,'Tabla Crecientes'!H73))))) -> 5,478.70 | I129: =IF($F$11='Tabla Parámetros'!$O$3,'Tabla Fijos'!I74,IF($F$11='Tabla Parámetros'!$O$5,'Tabla Fijos'!I74,IF(COTIZADOR!$F$11='Tabla Parámetros'!$O$6,'Tabla Fijos'!I74,IF(COTIZADOR!$F$11='Tabla Parámetros'!$O$4,'Tabla Crecientes'!I73)))) -> 0.00 | J129: =IF(B129="","",IF($F$11='Tabla Parámetros'!$O$3,'Tabla Fijos'!K74,IF($F$11='Tabla Parámetros'!$O$5,'Tabla Fijos'!K74,IF(COTIZADOR!$F$11='Tabla Parámetros'!$O$6,'Tabla Fijos'!K74,IF(COTIZADOR!$F$11='Tabla Parámetros'!$O$4,'Tabla Crecientes'!K73))))) -> 519.03 | K129: =IF(B129="","",IF($F$11='Tabla Parámetros'!$O$3,'Tabla Fijos'!L74,IF($F$11='Tabla Parámetros'!$O$5,'Tabla Fijos'!L74,IF(COTIZADOR!$F$11='Tabla Parámetros'!$O$6,'Tabla Fijos'!L74,IF(COTIZADOR!$F$11='Tabla Parámetros'!$O$4,'Tabla Crecientes'!L73))))) -> 247.06 | L129: =IF(B129="","",IF($F$11='Tabla Parámetros'!$O$3,'Tabla Fijos'!M74,IF($F$11='Tabla Parámetros'!$O$5,'Tabla Fijos'!M74,IF(COTIZADOR!$F$11='Tabla Parámetros'!$O$6,'Tabla Fijos'!M74,IF(COTIZADOR!$F$11='Tabla Parámetros'!$O$4,'Tabla Crecientes'!M73))))) -> 349.00 | M129: =IF($F$11='Tabla Parámetros'!$O$3,'Tabla Fijos'!N74,IF($F$11='Tabla Parámetros'!$O$5,'Tabla Fijos'!N74,IF(COTIZADOR!$F$11='Tabla Parámetros'!$O$6,'Tabla Fijos'!N74,IF(COTIZADOR!$F$11='Tabla Parámetros'!$O$4,'Tabla Crecientes'!N73)))) -> 0.00 | O129: 9,232.28 | P129: 862,419.77 | Q129: 1
B130: 64 | C130: =IF($B$67="","",'Fecha Pago'!K67) -> 2026-02-03 | D130: =IF($B$67="","",'Fecha Pago'!L67) -> 30.40 | E130: =IF(B130="","",IF($F$11='Tabla Parámetros'!$O$3,'Tabla Fijos'!E74,IF($F$11='Tabla Parámetros'!$O$5,'Tabla Fijos'!E74,IF(COTIZADOR!$F$11='Tabla Parámetros'!$O$6,'Tabla Fijos'!E74,IF(COTIZADOR!$F$11='Tabla Parámetros'!$O$4,'Tabla Crecientes'!E73))))) -> 7.50% | F130: 862,419.77 | G130: =IF(B130="","",IF($F$11='Tabla Parámetros'!$O$3,'Tabla Fijos'!G75,IF($F$11='Tabla Parámetros'!$O$5,'Tabla Fijos'!G75,IF(COTIZADOR!$F$11='Tabla Parámetros'!$O$6,'Tabla Fijos'!G75,IF(COTIZADOR!$F$11='Tabla Parámetros'!$O$4,'Tabla Crecientes'!G74))))) -> 2,655.20 | H130: =IF(B130="","",IF($F$11='Tabla Parámetros'!$O$3,'Tabla Fijos'!H75,IF($F$11='Tabla Parámetros'!$O$5,'Tabla Fijos'!H75,IF(COTIZADOR!$F$11='Tabla Parámetros'!$O$6,'Tabla Fijos'!H75,IF(COTIZADOR!$F$11='Tabla Parámetros'!$O$4,'Tabla Crecientes'!H74))))) -> 5,461.99 | I130: =IF($F$11='Tabla Parámetros'!$O$3,'Tabla Fijos'!I75,IF($F$11='Tabla Parámetros'!$O$5,'Tabla Fijos'!I75,IF(COTIZADOR!$F$11='Tabla Parámetros'!$O$6,'Tabla Fijos'!I75,IF(COTIZADOR!$F$11='Tabla Parámetros'!$O$4,'Tabla Crecientes'!I74)))) -> 0.00 | J130: =IF(B130="","",IF($F$11='Tabla Parámetros'!$O$3,'Tabla Fijos'!K75,IF($F$11='Tabla Parámetros'!$O$5,'Tabla Fijos'!K75,IF(COTIZADOR!$F$11='Tabla Parámetros'!$O$6,'Tabla Fijos'!K75,IF(COTIZADOR!$F$11='Tabla Parámetros'!$O$4,'Tabla Crecientes'!K74))))) -> 517.45 | K130: =IF(B130="","",IF($F$11='Tabla Parámetros'!$O$3,'Tabla Fijos'!L75,IF($F$11='Tabla Parámetros'!$O$5,'Tabla Fijos'!L75,IF(COTIZADOR!$F$11='Tabla Parámetros'!$O$6,'Tabla Fijos'!L75,IF(COTIZADOR!$F$11='Tabla Parámetros'!$O$4,'Tabla Crecientes'!L74))))) -> 247.06 | L130: =IF(B130="","",IF($F$11='Tabla Parámetros'!$O$3,'Tabla Fijos'!M75,IF($F$11='Tabla Parámetros'!$O$5,'Tabla Fijos'!M75,IF(COTIZADOR!$F$11='Tabla Parámetros'!$O$6,'Tabla Fijos'!M75,IF(COTIZADOR!$F$11='Tabla Parámetros'!$O$4,'Tabla Crecientes'!M74))))) -> 349.00 | M130: =IF($F$11='Tabla Parámetros'!$O$3,'Tabla Fijos'!N75,IF($F$11='Tabla Parámetros'!$O$5,'Tabla Fijos'!N75,IF(COTIZADOR!$F$11='Tabla Parámetros'!$O$6,'Tabla Fijos'!N75,IF(COTIZADOR!$F$11='Tabla Parámetros'!$O$4,'Tabla Crecientes'!N74)))) -> 0.00 | O130: 9,230.70 | P130: 859,764.58 | Q130: 1
B131: 65 | C131: =IF($B$67="","",'Fecha Pago'!K68) -> 2026-03-03 | D131: =IF($B$67="","",'Fecha Pago'!L68) -> 30.40 | E131: =IF(B131="","",IF($F$11='Tabla Parámetros'!$O$3,'Tabla Fijos'!E75,IF($F$11='Tabla Parámetros'!$O$5,'Tabla Fijos'!E75,IF(COTIZADOR!$F$11='Tabla Parámetros'!$O$6,'Tabla Fijos'!E75,IF(COTIZADOR!$F$11='Tabla Parámetros'!$O$4,'Tabla Crecientes'!E74))))) -> 7.50% | F131: 859,764.58 | G131: =IF(B131="","",IF($F$11='Tabla Parámetros'!$O$3,'Tabla Fijos'!G76,IF($F$11='Tabla Parámetros'!$O$5,'Tabla Fijos'!G76,IF(COTIZADOR!$F$11='Tabla Parámetros'!$O$6,'Tabla Fijos'!G76,IF(COTIZADOR!$F$11='Tabla Parámetros'!$O$4,'Tabla Crecientes'!G75))))) -> 2,672.01 | H131: =IF(B131="","",IF($F$11='Tabla Parámetros'!$O$3,'Tabla Fijos'!H76,IF($F$11='Tabla Parámetros'!$O$5,'Tabla Fijos'!H76,IF(COTIZADOR!$F$11='Tabla Parámetros'!$O$6,'Tabla Fijos'!H76,IF(COTIZADOR!$F$11='Tabla Parámetros'!$O$4,'Tabla Crecientes'!H75))))) -> 5,445.18 | I131: =IF($F$11='Tabla Parámetros'!$O$3,'Tabla Fijos'!I76,IF($F$11='Tabla Parámetros'!$O$5,'Tabla Fijos'!I76,IF(COTIZADOR!$F$11='Tabla Parámetros'!$O$6,'Tabla Fijos'!I76,IF(COTIZADOR!$F$11='Tabla Parámetros'!$O$4,'Tabla Crecientes'!I75)))) -> 0.00 | J131: =IF(B131="","",IF($F$11='Tabla Parámetros'!$O$3,'Tabla Fijos'!K76,IF($F$11='Tabla Parámetros'!$O$5,'Tabla Fijos'!K76,IF(COTIZADOR!$F$11='Tabla Parámetros'!$O$6,'Tabla Fijos'!K76,IF(COTIZADOR!$F$11='Tabla Parámetros'!$O$4,'Tabla Crecientes'!K75))))) -> 515.86 | K131: =IF(B131="","",IF($F$11='Tabla Parámetros'!$O$3,'Tabla Fijos'!L76,IF($F$11='Tabla Parámetros'!$O$5,'Tabla Fijos'!L76,IF(COTIZADOR!$F$11='Tabla Parámetros'!$O$6,'Tabla Fijos'!L76,IF(COTIZADOR!$F$11='Tabla Parámetros'!$O$4,'Tabla Crecientes'!L75))))) -> 247.06 | L131: =IF(B131="","",IF($F$11='Tabla Parámetros'!$O$3,'Tabla Fijos'!M76,IF($F$11='Tabla Parámetros'!$O$5,'Tabla Fijos'!M76,IF(COTIZADOR!$F$11='Tabla Parámetros'!$O$6,'Tabla Fijos'!M76,IF(COTIZADOR!$F$11='Tabla Parámetros'!$O$4,'Tabla Crecientes'!M75))))) -> 349.00 | M131: =IF($F$11='Tabla Parámetros'!$O$3,'Tabla Fijos'!N76,IF($F$11='Tabla Parámetros'!$O$5,'Tabla Fijos'!N76,IF(COTIZADOR!$F$11='Tabla Parámetros'!$O$6,'Tabla Fijos'!N76,IF(COTIZADOR!$F$11='Tabla Parámetros'!$O$4,'Tabla Crecientes'!N75)))) -> 0.00 | O131: 9,229.11 | P131: =IF(B131="","",F131-G131) -> 857,092.56 | Q131: 1
B132: 66 | C132: =IF($B$67="","",'Fecha Pago'!K69) -> 2026-04-03 | D132: =IF($B$67="","",'Fecha Pago'!L69) -> 30.40 | E132: =IF(B132="","",IF($F$11='Tabla Parámetros'!$O$3,'Tabla Fijos'!E76,IF($F$11='Tabla Parámetros'!$O$5,'Tabla Fijos'!E76,IF(COTIZADOR!$F$11='Tabla Parámetros'!$O$6,'Tabla Fijos'!E76,IF(COTIZADOR!$F$11='Tabla Parámetros'!$O$4,'Tabla Crecientes'!E75))))) -> 7.50% | F132: =IF(B132="","",IF(P131<0,0,F131-G131)) -> 857,092.56 | G132: =IF(B132="","",IF($F$11='Tabla Parámetros'!$O$3,'Tabla Fijos'!G77,IF($F$11='Tabla Parámetros'!$O$5,'Tabla Fijos'!G77,IF(COTIZADOR!$F$11='Tabla Parámetros'!$O$6,'Tabla Fijos'!G77,IF(COTIZADOR!$F$11='Tabla Parámetros'!$O$4,'Tabla Crecientes'!G76))))) -> 2,688.94 | H132: =IF(B132="","",IF($F$11='Tabla Parámetros'!$O$3,'Tabla Fijos'!H77,IF($F$11='Tabla Parámetros'!$O$5,'Tabla Fijos'!H77,IF(COTIZADOR!$F$11='Tabla Parámetros'!$O$6,'Tabla Fijos'!H77,IF(COTIZADOR!$F$11='Tabla Parámetros'!$O$4,'Tabla Crecientes'!H76))))) -> 5,428.25 | I132: =IF($F$11='Tabla Parámetros'!$O$3,'Tabla Fijos'!I77,IF($F$11='Tabla Parámetros'!$O$5,'Tabla Fijos'!I77,IF(COTIZADOR!$F$11='Tabla Parámetros'!$O$6,'Tabla Fijos'!I77,IF(COTIZADOR!$F$11='Tabla Parámetros'!$O$4,'Tabla Crecientes'!I76)))) -> 0.00 | J132: =IF(B132="","",IF($F$11='Tabla Parámetros'!$O$3,'Tabla Fijos'!K77,IF($F$11='Tabla Parámetros'!$O$5,'Tabla Fijos'!K77,IF(COTIZADOR!$F$11='Tabla Parámetros'!$O$6,'Tabla Fijos'!K77,IF(COTIZADOR!$F$11='Tabla Parámetros'!$O$4,'Tabla Crecientes'!K76))))) -> 514.26 | K132: =IF(B132="","",IF($F$11='Tabla Parámetros'!$O$3,'Tabla Fijos'!L77,IF($F$11='Tabla Parámetros'!$O$5,'Tabla Fijos'!L77,IF(COTIZADOR!$F$11='Tabla Parámetros'!$O$6,'Tabla Fijos'!L77,IF(COTIZADOR!$F$11='Tabla Parámetros'!$O$4,'Tabla Crecientes'!L76))))) -> 247.06 | L132: =IF(B132="","",IF($F$11='Tabla Parámetros'!$O$3,'Tabla Fijos'!M77,IF($F$11='Tabla Parámetros'!$O$5,'Tabla Fijos'!M77,IF(COTIZADOR!$F$11='Tabla Parámetros'!$O$6,'Tabla Fijos'!M77,IF(COTIZADOR!$F$11='Tabla Parámetros'!$O$4,'Tabla Crecientes'!M76))))) -> 349.00 | M132: =IF($F$11='Tabla Parámetros'!$O$3,'Tabla Fijos'!N77,IF($F$11='Tabla Parámetros'!$O$5,'Tabla Fijos'!N77,IF(COTIZADOR!$F$11='Tabla Parámetros'!$O$6,'Tabla Fijos'!N77,IF(COTIZADOR!$F$11='Tabla Parámetros'!$O$4,'Tabla Crecientes'!N76)))) -> 0.00 | O132: =IF(B132="","",G132+H132+I132+J132+K132+L132-M132) -> 9,227.50 | P132: 854,403.63 | Q132: =IF(OR($B132="",$F132<=0),0,1) -> 1
B133: =IF(B132="","",IF(B132=$F$19,"",B132+1)) -> 67 | C133: =IF($B$67="","",'Fecha Pago'!K70) -> 2026-05-03 | D133: =IF($B$67="","",'Fecha Pago'!L70) -> 30.40 | E133: =IF(B133="","",IF($F$11='Tabla Parámetros'!$O$3,'Tabla Fijos'!E77,IF($F$11='Tabla Parámetros'!$O$5,'Tabla Fijos'!E77,IF(COTIZADOR!$F$11='Tabla Parámetros'!$O$6,'Tabla Fijos'!E77,IF(COTIZADOR!$F$11='Tabla Parámetros'!$O$4,'Tabla Crecientes'!E76))))) -> 7.50% | F133: 854,403.63 | G133: =IF(B133="","",IF($F$11='Tabla Parámetros'!$O$3,'Tabla Fijos'!G78,IF($F$11='Tabla Parámetros'!$O$5,'Tabla Fijos'!G78,IF(COTIZADOR!$F$11='Tabla Parámetros'!$O$6,'Tabla Fijos'!G78,IF(COTIZADOR!$F$11='Tabla Parámetros'!$O$4,'Tabla Crecientes'!G77))))) -> 2,705.97 | H133: =IF(B133="","",IF($F$11='Tabla Parámetros'!$O$3,'Tabla Fijos'!H78,IF($F$11='Tabla Parámetros'!$O$5,'Tabla Fijos'!H78,IF(COTIZADOR!$F$11='Tabla Parámetros'!$O$6,'Tabla Fijos'!H78,IF(COTIZADOR!$F$11='Tabla Parámetros'!$O$4,'Tabla Crecientes'!H77))))) -> 5,411.22 | I133: =IF($F$11='Tabla Parámetros'!$O$3,'Tabla Fijos'!I78,IF($F$11='Tabla Parámetros'!$O$5,'Tabla Fijos'!I78,IF(COTIZADOR!$F$11='Tabla Parámetros'!$O$6,'Tabla Fijos'!I78,IF(COTIZADOR!$F$11='Tabla Parámetros'!$O$4,'Tabla Crecientes'!I77)))) -> 0.00 | J133: =IF(B133="","",IF($F$11='Tabla Parámetros'!$O$3,'Tabla Fijos'!K78,IF($F$11='Tabla Parámetros'!$O$5,'Tabla Fijos'!K78,IF(COTIZADOR!$F$11='Tabla Parámetros'!$O$6,'Tabla Fijos'!K78,IF(COTIZADOR!$F$11='Tabla Parámetros'!$O$4,'Tabla Crecientes'!K77))))) -> 512.64 | K133: =IF(B133="","",IF($F$11='Tabla Parámetros'!$O$3,'Tabla Fijos'!L78,IF($F$11='Tabla Parámetros'!$O$5,'Tabla Fijos'!L78,IF(COTIZADOR!$F$11='Tabla Parámetros'!$O$6,'Tabla Fijos'!L78,IF(COTIZADOR!$F$11='Tabla Parámetros'!$O$4,'Tabla Crecientes'!L77))))) -> 247.06 | L133: =IF(B133="","",IF($F$11='Tabla Parámetros'!$O$3,'Tabla Fijos'!M78,IF($F$11='Tabla Parámetros'!$O$5,'Tabla Fijos'!M78,IF(COTIZADOR!$F$11='Tabla Parámetros'!$O$6,'Tabla Fijos'!M78,IF(COTIZADOR!$F$11='Tabla Parámetros'!$O$4,'Tabla Crecientes'!M77))))) -> 349.00 | M133: =IF($F$11='Tabla Parámetros'!$O$3,'Tabla Fijos'!N78,IF($F$11='Tabla Parámetros'!$O$5,'Tabla Fijos'!N78,IF(COTIZADOR!$F$11='Tabla Parámetros'!$O$6,'Tabla Fijos'!N78,IF(COTIZADOR!$F$11='Tabla Parámetros'!$O$4,'Tabla Crecientes'!N77)))) -> 0.00 | O133: 9,225.89 | P133: 851,697.66 | Q133: 1
B134: 68 | C134: =IF($B$67="","",'Fecha Pago'!K71) -> 2026-06-03 | D134: =IF($B$67="","",'Fecha Pago'!L71) -> 30.40 | E134: =IF(B134="","",IF($F$11='Tabla Parámetros'!$O$3,'Tabla Fijos'!E78,IF($F$11='Tabla Parámetros'!$O$5,'Tabla Fijos'!E78,IF(COTIZADOR!$F$11='Tabla Parámetros'!$O$6,'Tabla Fijos'!E78,IF(COTIZADOR!$F$11='Tabla Parámetros'!$O$4,'Tabla Crecientes'!E77))))) -> 7.50% | F134: 851,697.66 | G134: =IF(B134="","",IF($F$11='Tabla Parámetros'!$O$3,'Tabla Fijos'!G79,IF($F$11='Tabla Parámetros'!$O$5,'Tabla Fijos'!G79,IF(COTIZADOR!$F$11='Tabla Parámetros'!$O$6,'Tabla Fijos'!G79,IF(COTIZADOR!$F$11='Tabla Parámetros'!$O$4,'Tabla Crecientes'!G78))))) -> 2,723.10 | H134: =IF(B134="","",IF($F$11='Tabla Parámetros'!$O$3,'Tabla Fijos'!H79,IF($F$11='Tabla Parámetros'!$O$5,'Tabla Fijos'!H79,IF(COTIZADOR!$F$11='Tabla Parámetros'!$O$6,'Tabla Fijos'!H79,IF(COTIZADOR!$F$11='Tabla Parámetros'!$O$4,'Tabla Crecientes'!H78))))) -> 5,394.09 | I134: =IF($F$11='Tabla Parámetros'!$O$3,'Tabla Fijos'!I79,IF($F$11='Tabla Parámetros'!$O$5,'Tabla Fijos'!I79,IF(COTIZADOR!$F$11='Tabla Parámetros'!$O$6,'Tabla Fijos'!I79,IF(COTIZADOR!$F$11='Tabla Parámetros'!$O$4,'Tabla Crecientes'!I78)))) -> 0.00 | J134: =IF(B134="","",IF($F$11='Tabla Parámetros'!$O$3,'Tabla Fijos'!K79,IF($F$11='Tabla Parámetros'!$O$5,'Tabla Fijos'!K79,IF(COTIZADOR!$F$11='Tabla Parámetros'!$O$6,'Tabla Fijos'!K79,IF(COTIZADOR!$F$11='Tabla Parámetros'!$O$4,'Tabla Crecientes'!K78))))) -> 511.02 | K134: =IF(B134="","",IF($F$11='Tabla Parámetros'!$O$3,'Tabla Fijos'!L79,IF($F$11='Tabla Parámetros'!$O$5,'Tabla Fijos'!L79,IF(COTIZADOR!$F$11='Tabla Parámetros'!$O$6,'Tabla Fijos'!L79,IF(COTIZADOR!$F$11='Tabla Parámetros'!$O$4,'Tabla Crecientes'!L78))))) -> 247.06 | L134: =IF(B134="","",IF($F$11='Tabla Parámetros'!$O$3,'Tabla Fijos'!M79,IF($F$11='Tabla Parámetros'!$O$5,'Tabla Fijos'!M79,IF(COTIZADOR!$F$11='Tabla Parámetros'!$O$6,'Tabla Fijos'!M79,IF(COTIZADOR!$F$11='Tabla Parámetros'!$O$4,'Tabla Crecientes'!M78))))) -> 349.00 | M134: =IF($F$11='Tabla Parámetros'!$O$3,'Tabla Fijos'!N79,IF($F$11='Tabla Parámetros'!$O$5,'Tabla Fijos'!N79,IF(COTIZADOR!$F$11='Tabla Parámetros'!$O$6,'Tabla Fijos'!N79,IF(COTIZADOR!$F$11='Tabla Parámetros'!$O$4,'Tabla Crecientes'!N78)))) -> 0.00 | O134: 9,224.27 | P134: 848,974.56 | Q134: 1
B135: 69 | C135: =IF($B$67="","",'Fecha Pago'!K72) -> 2026-07-03 | D135: =IF($B$67="","",'Fecha Pago'!L72) -> 30.40 | E135: =IF(B135="","",IF($F$11='Tabla Parámetros'!$O$3,'Tabla Fijos'!E79,IF($F$11='Tabla Parámetros'!$O$5,'Tabla Fijos'!E79,IF(COTIZADOR!$F$11='Tabla Parámetros'!$O$6,'Tabla Fijos'!E79,IF(COTIZADOR!$F$11='Tabla Parámetros'!$O$4,'Tabla Crecientes'!E78))))) -> 7.50% | F135: 848,974.56 | G135: =IF(B135="","",IF($F$11='Tabla Parámetros'!$O$3,'Tabla Fijos'!G80,IF($F$11='Tabla Parámetros'!$O$5,'Tabla Fijos'!G80,IF(COTIZADOR!$F$11='Tabla Parámetros'!$O$6,'Tabla Fijos'!G80,IF(COTIZADOR!$F$11='Tabla Parámetros'!$O$4,'Tabla Crecientes'!G79))))) -> 2,740.35 | H135: =IF(B135="","",IF($F$11='Tabla Parámetros'!$O$3,'Tabla Fijos'!H80,IF($F$11='Tabla Parámetros'!$O$5,'Tabla Fijos'!H80,IF(COTIZADOR!$F$11='Tabla Parámetros'!$O$6,'Tabla Fijos'!H80,IF(COTIZADOR!$F$11='Tabla Parámetros'!$O$4,'Tabla Crecientes'!H79))))) -> 5,376.84 | I135: =IF($F$11='Tabla Parámetros'!$O$3,'Tabla Fijos'!I80,IF($F$11='Tabla Parámetros'!$O$5,'Tabla Fijos'!I80,IF(COTIZADOR!$F$11='Tabla Parámetros'!$O$6,'Tabla Fijos'!I80,IF(COTIZADOR!$F$11='Tabla Parámetros'!$O$4,'Tabla Crecientes'!I79)))) -> 0.00 | J135: =IF(B135="","",IF($F$11='Tabla Parámetros'!$O$3,'Tabla Fijos'!K80,IF($F$11='Tabla Parámetros'!$O$5,'Tabla Fijos'!K80,IF(COTIZADOR!$F$11='Tabla Parámetros'!$O$6,'Tabla Fijos'!K80,IF(COTIZADOR!$F$11='Tabla Parámetros'!$O$4,'Tabla Crecientes'!K79))))) -> 509.38 | K135: =IF(B135="","",IF($F$11='Tabla Parámetros'!$O$3,'Tabla Fijos'!L80,IF($F$11='Tabla Parámetros'!$O$5,'Tabla Fijos'!L80,IF(COTIZADOR!$F$11='Tabla Parámetros'!$O$6,'Tabla Fijos'!L80,IF(COTIZADOR!$F$11='Tabla Parámetros'!$O$4,'Tabla Crecientes'!L79))))) -> 247.06 | L135: =IF(B135="","",IF($F$11='Tabla Parámetros'!$O$3,'Tabla Fijos'!M80,IF($F$11='Tabla Parámetros'!$O$5,'Tabla Fijos'!M80,IF(COTIZADOR!$F$11='Tabla Parámetros'!$O$6,'Tabla Fijos'!M80,IF(COTIZADOR!$F$11='Tabla Parámetros'!$O$4,'Tabla Crecientes'!M79))))) -> 349.00 | M135: =IF($F$11='Tabla Parámetros'!$O$3,'Tabla Fijos'!N80,IF($F$11='Tabla Parámetros'!$O$5,'Tabla Fijos'!N80,IF(COTIZADOR!$F$11='Tabla Parámetros'!$O$6,'Tabla Fijos'!N80,IF(COTIZADOR!$F$11='Tabla Parámetros'!$O$4,'Tabla Crecientes'!N79)))) -> 0.00 | O135: 9,222.63 | P135: 846,234.21 | Q135: 1
B136: 70 | C136: =IF($B$67="","",'Fecha Pago'!K73) -> 2026-08-03 | D136: =IF($B$67="","",'Fecha Pago'!L73) -> 30.40 | E136: =IF(B136="","",IF($F$11='Tabla Parámetros'!$O$3,'Tabla Fijos'!E80,IF($F$11='Tabla Parámetros'!$O$5,'Tabla Fijos'!E80,IF(COTIZADOR!$F$11='Tabla Parámetros'!$O$6,'Tabla Fijos'!E80,IF(COTIZADOR!$F$11='Tabla Parámetros'!$O$4,'Tabla Crecientes'!E79))))) -> 7.50% | F136: 846,234.21 | G136: =IF(B136="","",IF($F$11='Tabla Parámetros'!$O$3,'Tabla Fijos'!G81,IF($F$11='Tabla Parámetros'!$O$5,'Tabla Fijos'!G81,IF(COTIZADOR!$F$11='Tabla Parámetros'!$O$6,'Tabla Fijos'!G81,IF(COTIZADOR!$F$11='Tabla Parámetros'!$O$4,'Tabla Crecientes'!G80))))) -> 2,757.71 | H136: =IF(B136="","",IF($F$11='Tabla Parámetros'!$O$3,'Tabla Fijos'!H81,IF($F$11='Tabla Parámetros'!$O$5,'Tabla Fijos'!H81,IF(COTIZADOR!$F$11='Tabla Parámetros'!$O$6,'Tabla Fijos'!H81,IF(COTIZADOR!$F$11='Tabla Parámetros'!$O$4,'Tabla Crecientes'!H80))))) -> 5,359.48 | I136: =IF($F$11='Tabla Parámetros'!$O$3,'Tabla Fijos'!I81,IF($F$11='Tabla Parámetros'!$O$5,'Tabla Fijos'!I81,IF(COTIZADOR!$F$11='Tabla Parámetros'!$O$6,'Tabla Fijos'!I81,IF(COTIZADOR!$F$11='Tabla Parámetros'!$O$4,'Tabla Crecientes'!I80)))) -> 0.00 | J136: =IF(B136="","",IF($F$11='Tabla Parámetros'!$O$3,'Tabla Fijos'!K81,IF($F$11='Tabla Parámetros'!$O$5,'Tabla Fijos'!K81,IF(COTIZADOR!$F$11='Tabla Parámetros'!$O$6,'Tabla Fijos'!K81,IF(COTIZADOR!$F$11='Tabla Parámetros'!$O$4,'Tabla Crecientes'!K80))))) -> 507.74 | K136: =IF(B136="","",IF($F$11='Tabla Parámetros'!$O$3,'Tabla Fijos'!L81,IF($F$11='Tabla Parámetros'!$O$5,'Tabla Fijos'!L81,IF(COTIZADOR!$F$11='Tabla Parámetros'!$O$6,'Tabla Fijos'!L81,IF(COTIZADOR!$F$11='Tabla Parámetros'!$O$4,'Tabla Crecientes'!L80))))) -> 247.06 | L136: =IF(B136="","",IF($F$11='Tabla Parámetros'!$O$3,'Tabla Fijos'!M81,IF($F$11='Tabla Parámetros'!$O$5,'Tabla Fijos'!M81,IF(COTIZADOR!$F$11='Tabla Parámetros'!$O$6,'Tabla Fijos'!M81,IF(COTIZADOR!$F$11='Tabla Parámetros'!$O$4,'Tabla Crecientes'!M80))))) -> 349.00 | M136: =IF($F$11='Tabla Parámetros'!$O$3,'Tabla Fijos'!N81,IF($F$11='Tabla Parámetros'!$O$5,'Tabla Fijos'!N81,IF(COTIZADOR!$F$11='Tabla Parámetros'!$O$6,'Tabla Fijos'!N81,IF(COTIZADOR!$F$11='Tabla Parámetros'!$O$4,'Tabla Crecientes'!N80)))) -> 0.00 | O136: 9,220.99 | P136: 843,476.50 | Q136: 1
B137: 71 | C137: =IF($B$67="","",'Fecha Pago'!K74) -> 2026-09-03 | D137: =IF($B$67="","",'Fecha Pago'!L74) -> 30.40 | E137: =IF(B137="","",IF($F$11='Tabla Parámetros'!$O$3,'Tabla Fijos'!E81,IF($F$11='Tabla Parámetros'!$O$5,'Tabla Fijos'!E81,IF(COTIZADOR!$F$11='Tabla Parámetros'!$O$6,'Tabla Fijos'!E81,IF(COTIZADOR!$F$11='Tabla Parámetros'!$O$4,'Tabla Crecientes'!E80))))) -> 7.50% | F137: 843,476.50 | G137: =IF(B137="","",IF($F$11='Tabla Parámetros'!$O$3,'Tabla Fijos'!G82,IF($F$11='Tabla Parámetros'!$O$5,'Tabla Fijos'!G82,IF(COTIZADOR!$F$11='Tabla Parámetros'!$O$6,'Tabla Fijos'!G82,IF(COTIZADOR!$F$11='Tabla Parámetros'!$O$4,'Tabla Crecientes'!G81))))) -> 2,775.17 | H137: =IF(B137="","",IF($F$11='Tabla Parámetros'!$O$3,'Tabla Fijos'!H82,IF($F$11='Tabla Parámetros'!$O$5,'Tabla Fijos'!H82,IF(COTIZADOR!$F$11='Tabla Parámetros'!$O$6,'Tabla Fijos'!H82,IF(COTIZADOR!$F$11='Tabla Parámetros'!$O$4,'Tabla Crecientes'!H81))))) -> 5,342.02 | I137: =IF($F$11='Tabla Parámetros'!$O$3,'Tabla Fijos'!I82,IF($F$11='Tabla Parámetros'!$O$5,'Tabla Fijos'!I82,IF(COTIZADOR!$F$11='Tabla Parámetros'!$O$6,'Tabla Fijos'!I82,IF(COTIZADOR!$F$11='Tabla Parámetros'!$O$4,'Tabla Crecientes'!I81)))) -> 0.00 | J137: =IF(B137="","",IF($F$11='Tabla Parámetros'!$O$3,'Tabla Fijos'!K82,IF($F$11='Tabla Parámetros'!$O$5,'Tabla Fijos'!K82,IF(COTIZADOR!$F$11='Tabla Parámetros'!$O$6,'Tabla Fijos'!K82,IF(COTIZADOR!$F$11='Tabla Parámetros'!$O$4,'Tabla Crecientes'!K81))))) -> 506.09 | K137: =IF(B137="","",IF($F$11='Tabla Parámetros'!$O$3,'Tabla Fijos'!L82,IF($F$11='Tabla Parámetros'!$O$5,'Tabla Fijos'!L82,IF(COTIZADOR!$F$11='Tabla Parámetros'!$O$6,'Tabla Fijos'!L82,IF(COTIZADOR!$F$11='Tabla Parámetros'!$O$4,'Tabla Crecientes'!L81))))) -> 247.06 | L137: =IF(B137="","",IF($F$11='Tabla Parámetros'!$O$3,'Tabla Fijos'!M82,IF($F$11='Tabla Parámetros'!$O$5,'Tabla Fijos'!M82,IF(COTIZADOR!$F$11='Tabla Parámetros'!$O$6,'Tabla Fijos'!M82,IF(COTIZADOR!$F$11='Tabla Parámetros'!$O$4,'Tabla Crecientes'!M81))))) -> 349.00 | M137: =IF($F$11='Tabla Parámetros'!$O$3,'Tabla Fijos'!N82,IF($F$11='Tabla Parámetros'!$O$5,'Tabla Fijos'!N82,IF(COTIZADOR!$F$11='Tabla Parámetros'!$O$6,'Tabla Fijos'!N82,IF(COTIZADOR!$F$11='Tabla Parámetros'!$O$4,'Tabla Crecientes'!N81)))) -> 0.00 | O137: 9,219.33 | P137: 840,701.33 | Q137: 1
B138: 72 | C138: =IF($B$67="","",'Fecha Pago'!K75) -> 2026-10-03 | D138: =IF($B$67="","",'Fecha Pago'!L75) -> 30.40 | E138: =IF(B138="","",IF($F$11='Tabla Parámetros'!$O$3,'Tabla Fijos'!E82,IF($F$11='Tabla Parámetros'!$O$5,'Tabla Fijos'!E82,IF(COTIZADOR!$F$11='Tabla Parámetros'!$O$6,'Tabla Fijos'!E82,IF(COTIZADOR!$F$11='Tabla Parámetros'!$O$4,'Tabla Crecientes'!E81))))) -> 7.50% | F138: 840,701.33 | G138: =IF(B138="","",IF($F$11='Tabla Parámetros'!$O$3,'Tabla Fijos'!G83,IF($F$11='Tabla Parámetros'!$O$5,'Tabla Fijos'!G83,IF(COTIZADOR!$F$11='Tabla Parámetros'!$O$6,'Tabla Fijos'!G83,IF(COTIZADOR!$F$11='Tabla Parámetros'!$O$4,'Tabla Crecientes'!G82))))) -> 2,792.75 | H138: =IF(B138="","",IF($F$11='Tabla Parámetros'!$O$3,'Tabla Fijos'!H83,IF($F$11='Tabla Parámetros'!$O$5,'Tabla Fijos'!H83,IF(COTIZADOR!$F$11='Tabla Parámetros'!$O$6,'Tabla Fijos'!H83,IF(COTIZADOR!$F$11='Tabla Parámetros'!$O$4,'Tabla Crecientes'!H82))))) -> 5,324.44 | I138: =IF($F$11='Tabla Parámetros'!$O$3,'Tabla Fijos'!I83,IF($F$11='Tabla Parámetros'!$O$5,'Tabla Fijos'!I83,IF(COTIZADOR!$F$11='Tabla Parámetros'!$O$6,'Tabla Fijos'!I83,IF(COTIZADOR!$F$11='Tabla Parámetros'!$O$4,'Tabla Crecientes'!I82)))) -> 0.00 | J138: =IF(B138="","",IF($F$11='Tabla Parámetros'!$O$3,'Tabla Fijos'!K83,IF($F$11='Tabla Parámetros'!$O$5,'Tabla Fijos'!K83,IF(COTIZADOR!$F$11='Tabla Parámetros'!$O$6,'Tabla Fijos'!K83,IF(COTIZADOR!$F$11='Tabla Parámetros'!$O$4,'Tabla Crecientes'!K82))))) -> 504.42 | K138: =IF(B138="","",IF($F$11='Tabla Parámetros'!$O$3,'Tabla Fijos'!L83,IF($F$11='Tabla Parámetros'!$O$5,'Tabla Fijos'!L83,IF(COTIZADOR!$F$11='Tabla Parámetros'!$O$6,'Tabla Fijos'!L83,IF(COTIZADOR!$F$11='Tabla Parámetros'!$O$4,'Tabla Crecientes'!L82))))) -> 247.06 | L138: =IF(B138="","",IF($F$11='Tabla Parámetros'!$O$3,'Tabla Fijos'!M83,IF($F$11='Tabla Parámetros'!$O$5,'Tabla Fijos'!M83,IF(COTIZADOR!$F$11='Tabla Parámetros'!$O$6,'Tabla Fijos'!M83,IF(COTIZADOR!$F$11='Tabla Parámetros'!$O$4,'Tabla Crecientes'!M82))))) -> 349.00 | M138: =IF($F$11='Tabla Parámetros'!$O$3,'Tabla Fijos'!N83,IF($F$11='Tabla Parámetros'!$O$5,'Tabla Fijos'!N83,IF(COTIZADOR!$F$11='Tabla Parámetros'!$O$6,'Tabla Fijos'!N83,IF(COTIZADOR!$F$11='Tabla Parámetros'!$O$4,'Tabla Crecientes'!N82)))) -> 0.00 | O138: 9,217.67 | P138: 837,908.58 | Q138: 1
B139: 73 | C139: =IF($B$67="","",'Fecha Pago'!K76) -> 2026-11-03 | D139: =IF($B$67="","",'Fecha Pago'!L76) -> 30.40 | E139: =IF(B139="","",IF($F$11='Tabla Parámetros'!$O$3,'Tabla Fijos'!E83,IF($F$11='Tabla Parámetros'!$O$5,'Tabla Fijos'!E83,IF(COTIZADOR!$F$11='Tabla Parámetros'!$O$6,'Tabla Fijos'!E83,IF(COTIZADOR!$F$11='Tabla Parámetros'!$O$4,'Tabla Crecientes'!E82))))) -> 7.50% | F139: 837,908.58 | G139: =IF(B139="","",IF($F$11='Tabla Parámetros'!$O$3,'Tabla Fijos'!G84,IF($F$11='Tabla Parámetros'!$O$5,'Tabla Fijos'!G84,IF(COTIZADOR!$F$11='Tabla Parámetros'!$O$6,'Tabla Fijos'!G84,IF(COTIZADOR!$F$11='Tabla Parámetros'!$O$4,'Tabla Crecientes'!G83))))) -> 2,810.43 | H139: =IF(B139="","",IF($F$11='Tabla Parámetros'!$O$3,'Tabla Fijos'!H84,IF($F$11='Tabla Parámetros'!$O$5,'Tabla Fijos'!H84,IF(COTIZADOR!$F$11='Tabla Parámetros'!$O$6,'Tabla Fijos'!H84,IF(COTIZADOR!$F$11='Tabla Parámetros'!$O$4,'Tabla Crecientes'!H83))))) -> 5,306.75 | I139: =IF($F$11='Tabla Parámetros'!$O$3,'Tabla Fijos'!I84,IF($F$11='Tabla Parámetros'!$O$5,'Tabla Fijos'!I84,IF(COTIZADOR!$F$11='Tabla Parámetros'!$O$6,'Tabla Fijos'!I84,IF(COTIZADOR!$F$11='Tabla Parámetros'!$O$4,'Tabla Crecientes'!I83)))) -> 0.00 | J139: =IF(B139="","",IF($F$11='Tabla Parámetros'!$O$3,'Tabla Fijos'!K84,IF($F$11='Tabla Parámetros'!$O$5,'Tabla Fijos'!K84,IF(COTIZADOR!$F$11='Tabla Parámetros'!$O$6,'Tabla Fijos'!K84,IF(COTIZADOR!$F$11='Tabla Parámetros'!$O$4,'Tabla Crecientes'!K83))))) -> 502.75 | K139: =IF(B139="","",IF($F$11='Tabla Parámetros'!$O$3,'Tabla Fijos'!L84,IF($F$11='Tabla Parámetros'!$O$5,'Tabla Fijos'!L84,IF(COTIZADOR!$F$11='Tabla Parámetros'!$O$6,'Tabla Fijos'!L84,IF(COTIZADOR!$F$11='Tabla Parámetros'!$O$4,'Tabla Crecientes'!L83))))) -> 247.06 | L139: =IF(B139="","",IF($F$11='Tabla Parámetros'!$O$3,'Tabla Fijos'!M84,IF($F$11='Tabla Parámetros'!$O$5,'Tabla Fijos'!M84,IF(COTIZADOR!$F$11='Tabla Parámetros'!$O$6,'Tabla Fijos'!M84,IF(COTIZADOR!$F$11='Tabla Parámetros'!$O$4,'Tabla Crecientes'!M83))))) -> 349.00 | M139: =IF($F$11='Tabla Parámetros'!$O$3,'Tabla Fijos'!N84,IF($F$11='Tabla Parámetros'!$O$5,'Tabla Fijos'!N84,IF(COTIZADOR!$F$11='Tabla Parámetros'!$O$6,'Tabla Fijos'!N84,IF(COTIZADOR!$F$11='Tabla Parámetros'!$O$4,'Tabla Crecientes'!N83)))) -> 0.00 | O139: 9,215.99 | P139: 835,098.15 | Q139: 1
B140: 74 | C140: =IF($B$67="","",'Fecha Pago'!K77) -> 2026-12-03 | D140: =IF($B$67="","",'Fecha Pago'!L77) -> 30.40 | E140: =IF(B140="","",IF($F$11='Tabla Parámetros'!$O$3,'Tabla Fijos'!E84,IF($F$11='Tabla Parámetros'!$O$5,'Tabla Fijos'!E84,IF(COTIZADOR!$F$11='Tabla Parámetros'!$O$6,'Tabla Fijos'!E84,IF(COTIZADOR!$F$11='Tabla Parámetros'!$O$4,'Tabla Crecientes'!E83))))) -> 7.50% | F140: 835,098.15 | G140: =IF(B140="","",IF($F$11='Tabla Parámetros'!$O$3,'Tabla Fijos'!G85,IF($F$11='Tabla Parámetros'!$O$5,'Tabla Fijos'!G85,IF(COTIZADOR!$F$11='Tabla Parámetros'!$O$6,'Tabla Fijos'!G85,IF(COTIZADOR!$F$11='Tabla Parámetros'!$O$4,'Tabla Crecientes'!G84))))) -> 2,828.23 | H140: =IF(B140="","",IF($F$11='Tabla Parámetros'!$O$3,'Tabla Fijos'!H85,IF($F$11='Tabla Parámetros'!$O$5,'Tabla Fijos'!H85,IF(COTIZADOR!$F$11='Tabla Parámetros'!$O$6,'Tabla Fijos'!H85,IF(COTIZADOR!$F$11='Tabla Parámetros'!$O$4,'Tabla Crecientes'!H84))))) -> 5,288.95 | I140: =IF($F$11='Tabla Parámetros'!$O$3,'Tabla Fijos'!I85,IF($F$11='Tabla Parámetros'!$O$5,'Tabla Fijos'!I85,IF(COTIZADOR!$F$11='Tabla Parámetros'!$O$6,'Tabla Fijos'!I85,IF(COTIZADOR!$F$11='Tabla Parámetros'!$O$4,'Tabla Crecientes'!I84)))) -> 0.00 | J140: =IF(B140="","",IF($F$11='Tabla Parámetros'!$O$3,'Tabla Fijos'!K85,IF($F$11='Tabla Parámetros'!$O$5,'Tabla Fijos'!K85,IF(COTIZADOR!$F$11='Tabla Parámetros'!$O$6,'Tabla Fijos'!K85,IF(COTIZADOR!$F$11='Tabla Parámetros'!$O$4,'Tabla Crecientes'!K84))))) -> 501.06 | K140: =IF(B140="","",IF($F$11='Tabla Parámetros'!$O$3,'Tabla Fijos'!L85,IF($F$11='Tabla Parámetros'!$O$5,'Tabla Fijos'!L85,IF(COTIZADOR!$F$11='Tabla Parámetros'!$O$6,'Tabla Fijos'!L85,IF(COTIZADOR!$F$11='Tabla Parámetros'!$O$4,'Tabla Crecientes'!L84))))) -> 247.06 | L140: =IF(B140="","",IF($F$11='Tabla Parámetros'!$O$3,'Tabla Fijos'!M85,IF($F$11='Tabla Parámetros'!$O$5,'Tabla Fijos'!M85,IF(COTIZADOR!$F$11='Tabla Parámetros'!$O$6,'Tabla Fijos'!M85,IF(COTIZADOR!$F$11='Tabla Parámetros'!$O$4,'Tabla Crecientes'!M84))))) -> 349.00 | M140: =IF($F$11='Tabla Parámetros'!$O$3,'Tabla Fijos'!N85,IF($F$11='Tabla Parámetros'!$O$5,'Tabla Fijos'!N85,IF(COTIZADOR!$F$11='Tabla Parámetros'!$O$6,'Tabla Fijos'!N85,IF(COTIZADOR!$F$11='Tabla Parámetros'!$O$4,'Tabla Crecientes'!N84)))) -> 0.00 | O140: 9,214.31 | P140: 832,269.92 | Q140: 1
B141: 75 | C141: =IF($B$67="","",'Fecha Pago'!K78) -> 2027-01-03 | D141: =IF($B$67="","",'Fecha Pago'!L78) -> 30.40 | E141: =IF(B141="","",IF($F$11='Tabla Parámetros'!$O$3,'Tabla Fijos'!E85,IF($F$11='Tabla Parámetros'!$O$5,'Tabla Fijos'!E85,IF(COTIZADOR!$F$11='Tabla Parámetros'!$O$6,'Tabla Fijos'!E85,IF(COTIZADOR!$F$11='Tabla Parámetros'!$O$4,'Tabla Crecientes'!E84))))) -> 7.50% | F141: 832,269.92 | G141: =IF(B141="","",IF($F$11='Tabla Parámetros'!$O$3,'Tabla Fijos'!G86,IF($F$11='Tabla Parámetros'!$O$5,'Tabla Fijos'!G86,IF(COTIZADOR!$F$11='Tabla Parámetros'!$O$6,'Tabla Fijos'!G86,IF(COTIZADOR!$F$11='Tabla Parámetros'!$O$4,'Tabla Crecientes'!G85))))) -> 2,846.15 | H141: =IF(B141="","",IF($F$11='Tabla Parámetros'!$O$3,'Tabla Fijos'!H86,IF($F$11='Tabla Parámetros'!$O$5,'Tabla Fijos'!H86,IF(COTIZADOR!$F$11='Tabla Parámetros'!$O$6,'Tabla Fijos'!H86,IF(COTIZADOR!$F$11='Tabla Parámetros'!$O$4,'Tabla Crecientes'!H85))))) -> 5,271.04 | I141: =IF($F$11='Tabla Parámetros'!$O$3,'Tabla Fijos'!I86,IF($F$11='Tabla Parámetros'!$O$5,'Tabla Fijos'!I86,IF(COTIZADOR!$F$11='Tabla Parámetros'!$O$6,'Tabla Fijos'!I86,IF(COTIZADOR!$F$11='Tabla Parámetros'!$O$4,'Tabla Crecientes'!I85)))) -> 0.00 | J141: =IF(B141="","",IF($F$11='Tabla Parámetros'!$O$3,'Tabla Fijos'!K86,IF($F$11='Tabla Parámetros'!$O$5,'Tabla Fijos'!K86,IF(COTIZADOR!$F$11='Tabla Parámetros'!$O$6,'Tabla Fijos'!K86,IF(COTIZADOR!$F$11='Tabla Parámetros'!$O$4,'Tabla Crecientes'!K85))))) -> 499.36 | K141: =IF(B141="","",IF($F$11='Tabla Parámetros'!$O$3,'Tabla Fijos'!L86,IF($F$11='Tabla Parámetros'!$O$5,'Tabla Fijos'!L86,IF(COTIZADOR!$F$11='Tabla Parámetros'!$O$6,'Tabla Fijos'!L86,IF(COTIZADOR!$F$11='Tabla Parámetros'!$O$4,'Tabla Crecientes'!L85))))) -> 247.06 | L141: =IF(B141="","",IF($F$11='Tabla Parámetros'!$O$3,'Tabla Fijos'!M86,IF($F$11='Tabla Parámetros'!$O$5,'Tabla Fijos'!M86,IF(COTIZADOR!$F$11='Tabla Parámetros'!$O$6,'Tabla Fijos'!M86,IF(COTIZADOR!$F$11='Tabla Parámetros'!$O$4,'Tabla Crecientes'!M85))))) -> 349.00 | M141: =IF($F$11='Tabla Parámetros'!$O$3,'Tabla Fijos'!N86,IF($F$11='Tabla Parámetros'!$O$5,'Tabla Fijos'!N86,IF(COTIZADOR!$F$11='Tabla Parámetros'!$O$6,'Tabla Fijos'!N86,IF(COTIZADOR!$F$11='Tabla Parámetros'!$O$4,'Tabla Crecientes'!N85)))) -> 0.00 | O141: 9,212.61 | P141: 829,423.77 | Q141: 1
B142: 76 | C142: =IF($B$67="","",'Fecha Pago'!K79) -> 2027-02-03 | D142: =IF($B$67="","",'Fecha Pago'!L79) -> 30.40 | E142: =IF(B142="","",IF($F$11='Tabla Parámetros'!$O$3,'Tabla Fijos'!E86,IF($F$11='Tabla Parámetros'!$O$5,'Tabla Fijos'!E86,IF(COTIZADOR!$F$11='Tabla Parámetros'!$O$6,'Tabla Fijos'!E86,IF(COTIZADOR!$F$11='Tabla Parámetros'!$O$4,'Tabla Crecientes'!E85))))) -> 7.50% | F142: 829,423.77 | G142: =IF(B142="","",IF($F$11='Tabla Parámetros'!$O$3,'Tabla Fijos'!G87,IF($F$11='Tabla Parámetros'!$O$5,'Tabla Fijos'!G87,IF(COTIZADOR!$F$11='Tabla Parámetros'!$O$6,'Tabla Fijos'!G87,IF(COTIZADOR!$F$11='Tabla Parámetros'!$O$4,'Tabla Crecientes'!G86))))) -> 2,864.17 | H142: =IF(B142="","",IF($F$11='Tabla Parámetros'!$O$3,'Tabla Fijos'!H87,IF($F$11='Tabla Parámetros'!$O$5,'Tabla Fijos'!H87,IF(COTIZADOR!$F$11='Tabla Parámetros'!$O$6,'Tabla Fijos'!H87,IF(COTIZADOR!$F$11='Tabla Parámetros'!$O$4,'Tabla Crecientes'!H86))))) -> 5,253.02 | I142: =IF($F$11='Tabla Parámetros'!$O$3,'Tabla Fijos'!I87,IF($F$11='Tabla Parámetros'!$O$5,'Tabla Fijos'!I87,IF(COTIZADOR!$F$11='Tabla Parámetros'!$O$6,'Tabla Fijos'!I87,IF(COTIZADOR!$F$11='Tabla Parámetros'!$O$4,'Tabla Crecientes'!I86)))) -> 0.00 | J142: =IF(B142="","",IF($F$11='Tabla Parámetros'!$O$3,'Tabla Fijos'!K87,IF($F$11='Tabla Parámetros'!$O$5,'Tabla Fijos'!K87,IF(COTIZADOR!$F$11='Tabla Parámetros'!$O$6,'Tabla Fijos'!K87,IF(COTIZADOR!$F$11='Tabla Parámetros'!$O$4,'Tabla Crecientes'!K86))))) -> 497.65 | K142: =IF(B142="","",IF($F$11='Tabla Parámetros'!$O$3,'Tabla Fijos'!L87,IF($F$11='Tabla Parámetros'!$O$5,'Tabla Fijos'!L87,IF(COTIZADOR!$F$11='Tabla Parámetros'!$O$6,'Tabla Fijos'!L87,IF(COTIZADOR!$F$11='Tabla Parámetros'!$O$4,'Tabla Crecientes'!L86))))) -> 247.06 | L142: =IF(B142="","",IF($F$11='Tabla Parámetros'!$O$3,'Tabla Fijos'!M87,IF($F$11='Tabla Parámetros'!$O$5,'Tabla Fijos'!M87,IF(COTIZADOR!$F$11='Tabla Parámetros'!$O$6,'Tabla Fijos'!M87,IF(COTIZADOR!$F$11='Tabla Parámetros'!$O$4,'Tabla Crecientes'!M86))))) -> 349.00 | M142: =IF($F$11='Tabla Parámetros'!$O$3,'Tabla Fijos'!N87,IF($F$11='Tabla Parámetros'!$O$5,'Tabla Fijos'!N87,IF(COTIZADOR!$F$11='Tabla Parámetros'!$O$6,'Tabla Fijos'!N87,IF(COTIZADOR!$F$11='Tabla Parámetros'!$O$4,'Tabla Crecientes'!N86)))) -> 0.00 | O142: 9,210.90 | P142: 826,559.60 | Q142: 1
B143: 77 | C143: =IF($B$67="","",'Fecha Pago'!K80) -> 2027-03-03 | D143: =IF($B$67="","",'Fecha Pago'!L80) -> 30.40 | E143: =IF(B143="","",IF($F$11='Tabla Parámetros'!$O$3,'Tabla Fijos'!E87,IF($F$11='Tabla Parámetros'!$O$5,'Tabla Fijos'!E87,IF(COTIZADOR!$F$11='Tabla Parámetros'!$O$6,'Tabla Fijos'!E87,IF(COTIZADOR!$F$11='Tabla Parámetros'!$O$4,'Tabla Crecientes'!E86))))) -> 7.50% | F143: 826,559.60 | G143: =IF(B143="","",IF($F$11='Tabla Parámetros'!$O$3,'Tabla Fijos'!G88,IF($F$11='Tabla Parámetros'!$O$5,'Tabla Fijos'!G88,IF(COTIZADOR!$F$11='Tabla Parámetros'!$O$6,'Tabla Fijos'!G88,IF(COTIZADOR!$F$11='Tabla Parámetros'!$O$4,'Tabla Crecientes'!G87))))) -> 2,882.31 | H143: =IF(B143="","",IF($F$11='Tabla Parámetros'!$O$3,'Tabla Fijos'!H88,IF($F$11='Tabla Parámetros'!$O$5,'Tabla Fijos'!H88,IF(COTIZADOR!$F$11='Tabla Parámetros'!$O$6,'Tabla Fijos'!H88,IF(COTIZADOR!$F$11='Tabla Parámetros'!$O$4,'Tabla Crecientes'!H87))))) -> 5,234.88 | I143: =IF($F$11='Tabla Parámetros'!$O$3,'Tabla Fijos'!I88,IF($F$11='Tabla Parámetros'!$O$5,'Tabla Fijos'!I88,IF(COTIZADOR!$F$11='Tabla Parámetros'!$O$6,'Tabla Fijos'!I88,IF(COTIZADOR!$F$11='Tabla Parámetros'!$O$4,'Tabla Crecientes'!I87)))) -> 0.00 | J143: =IF(B143="","",IF($F$11='Tabla Parámetros'!$O$3,'Tabla Fijos'!K88,IF($F$11='Tabla Parámetros'!$O$5,'Tabla Fijos'!K88,IF(COTIZADOR!$F$11='Tabla Parámetros'!$O$6,'Tabla Fijos'!K88,IF(COTIZADOR!$F$11='Tabla Parámetros'!$O$4,'Tabla Crecientes'!K87))))) -> 495.94 | K143: =IF(B143="","",IF($F$11='Tabla Parámetros'!$O$3,'Tabla Fijos'!L88,IF($F$11='Tabla Parámetros'!$O$5,'Tabla Fijos'!L88,IF(COTIZADOR!$F$11='Tabla Parámetros'!$O$6,'Tabla Fijos'!L88,IF(COTIZADOR!$F$11='Tabla Parámetros'!$O$4,'Tabla Crecientes'!L87))))) -> 247.06 | L143: =IF(B143="","",IF($F$11='Tabla Parámetros'!$O$3,'Tabla Fijos'!M88,IF($F$11='Tabla Parámetros'!$O$5,'Tabla Fijos'!M88,IF(COTIZADOR!$F$11='Tabla Parámetros'!$O$6,'Tabla Fijos'!M88,IF(COTIZADOR!$F$11='Tabla Parámetros'!$O$4,'Tabla Crecientes'!M87))))) -> 349.00 | M143: =IF($F$11='Tabla Parámetros'!$O$3,'Tabla Fijos'!N88,IF($F$11='Tabla Parámetros'!$O$5,'Tabla Fijos'!N88,IF(COTIZADOR!$F$11='Tabla Parámetros'!$O$6,'Tabla Fijos'!N88,IF(COTIZADOR!$F$11='Tabla Parámetros'!$O$4,'Tabla Crecientes'!N87)))) -> 0.00 | O143: 9,209.18 | P143: 823,677.29 | Q143: 1
B144: 78 | C144: =IF($B$67="","",'Fecha Pago'!K81) -> 2027-04-03 | D144: =IF($B$67="","",'Fecha Pago'!L81) -> 30.40 | E144: =IF(B144="","",IF($F$11='Tabla Parámetros'!$O$3,'Tabla Fijos'!E88,IF($F$11='Tabla Parámetros'!$O$5,'Tabla Fijos'!E88,IF(COTIZADOR!$F$11='Tabla Parámetros'!$O$6,'Tabla Fijos'!E88,IF(COTIZADOR!$F$11='Tabla Parámetros'!$O$4,'Tabla Crecientes'!E87))))) -> 7.50% | F144: 823,677.29 | G144: =IF(B144="","",IF($F$11='Tabla Parámetros'!$O$3,'Tabla Fijos'!G89,IF($F$11='Tabla Parámetros'!$O$5,'Tabla Fijos'!G89,IF(COTIZADOR!$F$11='Tabla Parámetros'!$O$6,'Tabla Fijos'!G89,IF(COTIZADOR!$F$11='Tabla Parámetros'!$O$4,'Tabla Crecientes'!G88))))) -> 2,900.57 | H144: =IF(B144="","",IF($F$11='Tabla Parámetros'!$O$3,'Tabla Fijos'!H89,IF($F$11='Tabla Parámetros'!$O$5,'Tabla Fijos'!H89,IF(COTIZADOR!$F$11='Tabla Parámetros'!$O$6,'Tabla Fijos'!H89,IF(COTIZADOR!$F$11='Tabla Parámetros'!$O$4,'Tabla Crecientes'!H88))))) -> 5,216.62 | I144: =IF($F$11='Tabla Parámetros'!$O$3,'Tabla Fijos'!I89,IF($F$11='Tabla Parámetros'!$O$5,'Tabla Fijos'!I89,IF(COTIZADOR!$F$11='Tabla Parámetros'!$O$6,'Tabla Fijos'!I89,IF(COTIZADOR!$F$11='Tabla Parámetros'!$O$4,'Tabla Crecientes'!I88)))) -> 0.00 | J144: =IF(B144="","",IF($F$11='Tabla Parámetros'!$O$3,'Tabla Fijos'!K89,IF($F$11='Tabla Parámetros'!$O$5,'Tabla Fijos'!K89,IF(COTIZADOR!$F$11='Tabla Parámetros'!$O$6,'Tabla Fijos'!K89,IF(COTIZADOR!$F$11='Tabla Parámetros'!$O$4,'Tabla Crecientes'!K88))))) -> 494.21 | K144: =IF(B144="","",IF($F$11='Tabla Parámetros'!$O$3,'Tabla Fijos'!L89,IF($F$11='Tabla Parámetros'!$O$5,'Tabla Fijos'!L89,IF(COTIZADOR!$F$11='Tabla Parámetros'!$O$6,'Tabla Fijos'!L89,IF(COTIZADOR!$F$11='Tabla Parámetros'!$O$4,'Tabla Crecientes'!L88))))) -> 247.06 | L144: =IF(B144="","",IF($F$11='Tabla Parámetros'!$O$3,'Tabla Fijos'!M89,IF($F$11='Tabla Parámetros'!$O$5,'Tabla Fijos'!M89,IF(COTIZADOR!$F$11='Tabla Parámetros'!$O$6,'Tabla Fijos'!M89,IF(COTIZADOR!$F$11='Tabla Parámetros'!$O$4,'Tabla Crecientes'!M88))))) -> 349.00 | M144: =IF($F$11='Tabla Parámetros'!$O$3,'Tabla Fijos'!N89,IF($F$11='Tabla Parámetros'!$O$5,'Tabla Fijos'!N89,IF(COTIZADOR!$F$11='Tabla Parámetros'!$O$6,'Tabla Fijos'!N89,IF(COTIZADOR!$F$11='Tabla Parámetros'!$O$4,'Tabla Crecientes'!N88)))) -> 0.00 | O144: 9,207.45 | P144: 820,776.72 | Q144: 1
B145: 79 | C145: =IF($B$67="","",'Fecha Pago'!K82) -> 2027-05-03 | D145: =IF($B$67="","",'Fecha Pago'!L82) -> 30.40 | E145: =IF(B145="","",IF($F$11='Tabla Parámetros'!$O$3,'Tabla Fijos'!E89,IF($F$11='Tabla Parámetros'!$O$5,'Tabla Fijos'!E89,IF(COTIZADOR!$F$11='Tabla Parámetros'!$O$6,'Tabla Fijos'!E89,IF(COTIZADOR!$F$11='Tabla Parámetros'!$O$4,'Tabla Crecientes'!E88))))) -> 7.50% | F145: 820,776.72 | G145: =IF(B145="","",IF($F$11='Tabla Parámetros'!$O$3,'Tabla Fijos'!G90,IF($F$11='Tabla Parámetros'!$O$5,'Tabla Fijos'!G90,IF(COTIZADOR!$F$11='Tabla Parámetros'!$O$6,'Tabla Fijos'!G90,IF(COTIZADOR!$F$11='Tabla Parámetros'!$O$4,'Tabla Crecientes'!G89))))) -> 2,918.94 | H145: =IF(B145="","",IF($F$11='Tabla Parámetros'!$O$3,'Tabla Fijos'!H90,IF($F$11='Tabla Parámetros'!$O$5,'Tabla Fijos'!H90,IF(COTIZADOR!$F$11='Tabla Parámetros'!$O$6,'Tabla Fijos'!H90,IF(COTIZADOR!$F$11='Tabla Parámetros'!$O$4,'Tabla Crecientes'!H89))))) -> 5,198.25 | I145: =IF($F$11='Tabla Parámetros'!$O$3,'Tabla Fijos'!I90,IF($F$11='Tabla Parámetros'!$O$5,'Tabla Fijos'!I90,IF(COTIZADOR!$F$11='Tabla Parámetros'!$O$6,'Tabla Fijos'!I90,IF(COTIZADOR!$F$11='Tabla Parámetros'!$O$4,'Tabla Crecientes'!I89)))) -> 0.00 | J145: =IF(B145="","",IF($F$11='Tabla Parámetros'!$O$3,'Tabla Fijos'!K90,IF($F$11='Tabla Parámetros'!$O$5,'Tabla Fijos'!K90,IF(COTIZADOR!$F$11='Tabla Parámetros'!$O$6,'Tabla Fijos'!K90,IF(COTIZADOR!$F$11='Tabla Parámetros'!$O$4,'Tabla Crecientes'!K89))))) -> 492.47 | K145: =IF(B145="","",IF($F$11='Tabla Parámetros'!$O$3,'Tabla Fijos'!L90,IF($F$11='Tabla Parámetros'!$O$5,'Tabla Fijos'!L90,IF(COTIZADOR!$F$11='Tabla Parámetros'!$O$6,'Tabla Fijos'!L90,IF(COTIZADOR!$F$11='Tabla Parámetros'!$O$4,'Tabla Crecientes'!L89))))) -> 247.06 | L145: =IF(B145="","",IF($F$11='Tabla Parámetros'!$O$3,'Tabla Fijos'!M90,IF($F$11='Tabla Parámetros'!$O$5,'Tabla Fijos'!M90,IF(COTIZADOR!$F$11='Tabla Parámetros'!$O$6,'Tabla Fijos'!M90,IF(COTIZADOR!$F$11='Tabla Parámetros'!$O$4,'Tabla Crecientes'!M89))))) -> 349.00 | M145: =IF($F$11='Tabla Parámetros'!$O$3,'Tabla Fijos'!N90,IF($F$11='Tabla Parámetros'!$O$5,'Tabla Fijos'!N90,IF(COTIZADOR!$F$11='Tabla Parámetros'!$O$6,'Tabla Fijos'!N90,IF(COTIZADOR!$F$11='Tabla Parámetros'!$O$4,'Tabla Crecientes'!N89)))) -> 0.00 | O145: 9,205.71 | P145: 817,857.79 | Q145: 1
B146: 80 | C146: =IF($B$67="","",'Fecha Pago'!K83) -> 2027-06-03 | D146: =IF($B$67="","",'Fecha Pago'!L83) -> 30.40 | E146: =IF(B146="","",IF($F$11='Tabla Parámetros'!$O$3,'Tabla Fijos'!E90,IF($F$11='Tabla Parámetros'!$O$5,'Tabla Fijos'!E90,IF(COTIZADOR!$F$11='Tabla Parámetros'!$O$6,'Tabla Fijos'!E90,IF(COTIZADOR!$F$11='Tabla Parámetros'!$O$4,'Tabla Crecientes'!E89))))) -> 7.50% | F146: 817,857.79 | G146: =IF(B146="","",IF($F$11='Tabla Parámetros'!$O$3,'Tabla Fijos'!G91,IF($F$11='Tabla Parámetros'!$O$5,'Tabla Fijos'!G91,IF(COTIZADOR!$F$11='Tabla Parámetros'!$O$6,'Tabla Fijos'!G91,IF(COTIZADOR!$F$11='Tabla Parámetros'!$O$4,'Tabla Crecientes'!G90))))) -> 2,937.42 | H146: =IF(B146="","",IF($F$11='Tabla Parámetros'!$O$3,'Tabla Fijos'!H91,IF($F$11='Tabla Parámetros'!$O$5,'Tabla Fijos'!H91,IF(COTIZADOR!$F$11='Tabla Parámetros'!$O$6,'Tabla Fijos'!H91,IF(COTIZADOR!$F$11='Tabla Parámetros'!$O$4,'Tabla Crecientes'!H90))))) -> 5,179.77 | I146: =IF($F$11='Tabla Parámetros'!$O$3,'Tabla Fijos'!I91,IF($F$11='Tabla Parámetros'!$O$5,'Tabla Fijos'!I91,IF(COTIZADOR!$F$11='Tabla Parámetros'!$O$6,'Tabla Fijos'!I91,IF(COTIZADOR!$F$11='Tabla Parámetros'!$O$4,'Tabla Crecientes'!I90)))) -> 0.00 | J146: =IF(B146="","",IF($F$11='Tabla Parámetros'!$O$3,'Tabla Fijos'!K91,IF($F$11='Tabla Parámetros'!$O$5,'Tabla Fijos'!K91,IF(COTIZADOR!$F$11='Tabla Parámetros'!$O$6,'Tabla Fijos'!K91,IF(COTIZADOR!$F$11='Tabla Parámetros'!$O$4,'Tabla Crecientes'!K90))))) -> 490.71 | K146: =IF(B146="","",IF($F$11='Tabla Parámetros'!$O$3,'Tabla Fijos'!L91,IF($F$11='Tabla Parámetros'!$O$5,'Tabla Fijos'!L91,IF(COTIZADOR!$F$11='Tabla Parámetros'!$O$6,'Tabla Fijos'!L91,IF(COTIZADOR!$F$11='Tabla Parámetros'!$O$4,'Tabla Crecientes'!L90))))) -> 247.06 | L146: =IF(B146="","",IF($F$11='Tabla Parámetros'!$O$3,'Tabla Fijos'!M91,IF($F$11='Tabla Parámetros'!$O$5,'Tabla Fijos'!M91,IF(COTIZADOR!$F$11='Tabla Parámetros'!$O$6,'Tabla Fijos'!M91,IF(COTIZADOR!$F$11='Tabla Parámetros'!$O$4,'Tabla Crecientes'!M90))))) -> 349.00 | M146: =IF($F$11='Tabla Parámetros'!$O$3,'Tabla Fijos'!N91,IF($F$11='Tabla Parámetros'!$O$5,'Tabla Fijos'!N91,IF(COTIZADOR!$F$11='Tabla Parámetros'!$O$6,'Tabla Fijos'!N91,IF(COTIZADOR!$F$11='Tabla Parámetros'!$O$4,'Tabla Crecientes'!N90)))) -> 0.00 | O146: 9,203.96 | P146: 814,920.36 | Q146: 1
B147: 81 | C147: =IF($B$67="","",'Fecha Pago'!K84) -> 2027-07-03 | D147: =IF($B$67="","",'Fecha Pago'!L84) -> 30.40 | E147: =IF(B147="","",IF($F$11='Tabla Parámetros'!$O$3,'Tabla Fijos'!E91,IF($F$11='Tabla Parámetros'!$O$5,'Tabla Fijos'!E91,IF(COTIZADOR!$F$11='Tabla Parámetros'!$O$6,'Tabla Fijos'!E91,IF(COTIZADOR!$F$11='Tabla Parámetros'!$O$4,'Tabla Crecientes'!E90))))) -> 7.50% | F147: 814,920.36 | G147: =IF(B147="","",IF($F$11='Tabla Parámetros'!$O$3,'Tabla Fijos'!G92,IF($F$11='Tabla Parámetros'!$O$5,'Tabla Fijos'!G92,IF(COTIZADOR!$F$11='Tabla Parámetros'!$O$6,'Tabla Fijos'!G92,IF(COTIZADOR!$F$11='Tabla Parámetros'!$O$4,'Tabla Crecientes'!G91))))) -> 2,956.03 | H147: =IF(B147="","",IF($F$11='Tabla Parámetros'!$O$3,'Tabla Fijos'!H92,IF($F$11='Tabla Parámetros'!$O$5,'Tabla Fijos'!H92,IF(COTIZADOR!$F$11='Tabla Parámetros'!$O$6,'Tabla Fijos'!H92,IF(COTIZADOR!$F$11='Tabla Parámetros'!$O$4,'Tabla Crecientes'!H91))))) -> 5,161.16 | I147: =IF($F$11='Tabla Parámetros'!$O$3,'Tabla Fijos'!I92,IF($F$11='Tabla Parámetros'!$O$5,'Tabla Fijos'!I92,IF(COTIZADOR!$F$11='Tabla Parámetros'!$O$6,'Tabla Fijos'!I92,IF(COTIZADOR!$F$11='Tabla Parámetros'!$O$4,'Tabla Crecientes'!I91)))) -> 0.00 | J147: =IF(B147="","",IF($F$11='Tabla Parámetros'!$O$3,'Tabla Fijos'!K92,IF($F$11='Tabla Parámetros'!$O$5,'Tabla Fijos'!K92,IF(COTIZADOR!$F$11='Tabla Parámetros'!$O$6,'Tabla Fijos'!K92,IF(COTIZADOR!$F$11='Tabla Parámetros'!$O$4,'Tabla Crecientes'!K91))))) -> 488.95 | K147: =IF(B147="","",IF($F$11='Tabla Parámetros'!$O$3,'Tabla Fijos'!L92,IF($F$11='Tabla Parámetros'!$O$5,'Tabla Fijos'!L92,IF(COTIZADOR!$F$11='Tabla Parámetros'!$O$6,'Tabla Fijos'!L92,IF(COTIZADOR!$F$11='Tabla Parámetros'!$O$4,'Tabla Crecientes'!L91))))) -> 247.06 | L147: =IF(B147="","",IF($F$11='Tabla Parámetros'!$O$3,'Tabla Fijos'!M92,IF($F$11='Tabla Parámetros'!$O$5,'Tabla Fijos'!M92,IF(COTIZADOR!$F$11='Tabla Parámetros'!$O$6,'Tabla Fijos'!M92,IF(COTIZADOR!$F$11='Tabla Parámetros'!$O$4,'Tabla Crecientes'!M91))))) -> 349.00 | M147: =IF($F$11='Tabla Parámetros'!$O$3,'Tabla Fijos'!N92,IF($F$11='Tabla Parámetros'!$O$5,'Tabla Fijos'!N92,IF(COTIZADOR!$F$11='Tabla Parámetros'!$O$6,'Tabla Fijos'!N92,IF(COTIZADOR!$F$11='Tabla Parámetros'!$O$4,'Tabla Crecientes'!N91)))) -> 0.00 | O147: 9,202.20 | P147: 811,964.34 | Q147: 1
B148: 82 | C148: =IF($B$67="","",'Fecha Pago'!K85) -> 2027-08-03 | D148: =IF($B$67="","",'Fecha Pago'!L85) -> 30.40 | E148: =IF(B148="","",IF($F$11='Tabla Parámetros'!$O$3,'Tabla Fijos'!E92,IF($F$11='Tabla Parámetros'!$O$5,'Tabla Fijos'!E92,IF(COTIZADOR!$F$11='Tabla Parámetros'!$O$6,'Tabla Fijos'!E92,IF(COTIZADOR!$F$11='Tabla Parámetros'!$O$4,'Tabla Crecientes'!E91))))) -> 7.50% | F148: 811,964.34 | G148: =IF(B148="","",IF($F$11='Tabla Parámetros'!$O$3,'Tabla Fijos'!G93,IF($F$11='Tabla Parámetros'!$O$5,'Tabla Fijos'!G93,IF(COTIZADOR!$F$11='Tabla Parámetros'!$O$6,'Tabla Fijos'!G93,IF(COTIZADOR!$F$11='Tabla Parámetros'!$O$4,'Tabla Crecientes'!G92))))) -> 2,974.75 | H148: =IF(B148="","",IF($F$11='Tabla Parámetros'!$O$3,'Tabla Fijos'!H93,IF($F$11='Tabla Parámetros'!$O$5,'Tabla Fijos'!H93,IF(COTIZADOR!$F$11='Tabla Parámetros'!$O$6,'Tabla Fijos'!H93,IF(COTIZADOR!$F$11='Tabla Parámetros'!$O$4,'Tabla Crecientes'!H92))))) -> 5,142.44 | I148: =IF($F$11='Tabla Parámetros'!$O$3,'Tabla Fijos'!I93,IF($F$11='Tabla Parámetros'!$O$5,'Tabla Fijos'!I93,IF(COTIZADOR!$F$11='Tabla Parámetros'!$O$6,'Tabla Fijos'!I93,IF(COTIZADOR!$F$11='Tabla Parámetros'!$O$4,'Tabla Crecientes'!I92)))) -> 0.00 | J148: =IF(B148="","",IF($F$11='Tabla Parámetros'!$O$3,'Tabla Fijos'!K93,IF($F$11='Tabla Parámetros'!$O$5,'Tabla Fijos'!K93,IF(COTIZADOR!$F$11='Tabla Parámetros'!$O$6,'Tabla Fijos'!K93,IF(COTIZADOR!$F$11='Tabla Parámetros'!$O$4,'Tabla Crecientes'!K92))))) -> 487.18 | K148: =IF(B148="","",IF($F$11='Tabla Parámetros'!$O$3,'Tabla Fijos'!L93,IF($F$11='Tabla Parámetros'!$O$5,'Tabla Fijos'!L93,IF(COTIZADOR!$F$11='Tabla Parámetros'!$O$6,'Tabla Fijos'!L93,IF(COTIZADOR!$F$11='Tabla Parámetros'!$O$4,'Tabla Crecientes'!L92))))) -> 247.06 | L148: =IF(B148="","",IF($F$11='Tabla Parámetros'!$O$3,'Tabla Fijos'!M93,IF($F$11='Tabla Parámetros'!$O$5,'Tabla Fijos'!M93,IF(COTIZADOR!$F$11='Tabla Parámetros'!$O$6,'Tabla Fijos'!M93,IF(COTIZADOR!$F$11='Tabla Parámetros'!$O$4,'Tabla Crecientes'!M92))))) -> 349.00 | M148: =IF($F$11='Tabla Parámetros'!$O$3,'Tabla Fijos'!N93,IF($F$11='Tabla Parámetros'!$O$5,'Tabla Fijos'!N93,IF(COTIZADOR!$F$11='Tabla Parámetros'!$O$6,'Tabla Fijos'!N93,IF(COTIZADOR!$F$11='Tabla Parámetros'!$O$4,'Tabla Crecientes'!N92)))) -> 0.00 | O148: 9,200.43 | P148: 808,989.59 | Q148: 1
B149: 83 | C149: =IF($B$67="","",'Fecha Pago'!K86) -> 2027-09-03 | D149: =IF($B$67="","",'Fecha Pago'!L86) -> 30.40 | E149: =IF(B149="","",IF($F$11='Tabla Parámetros'!$O$3,'Tabla Fijos'!E93,IF($F$11='Tabla Parámetros'!$O$5,'Tabla Fijos'!E93,IF(COTIZADOR!$F$11='Tabla Parámetros'!$O$6,'Tabla Fijos'!E93,IF(COTIZADOR!$F$11='Tabla Parámetros'!$O$4,'Tabla Crecientes'!E92))))) -> 7.50% | F149: 808,989.59 | G149: =IF(B149="","",IF($F$11='Tabla Parámetros'!$O$3,'Tabla Fijos'!G94,IF($F$11='Tabla Parámetros'!$O$5,'Tabla Fijos'!G94,IF(COTIZADOR!$F$11='Tabla Parámetros'!$O$6,'Tabla Fijos'!G94,IF(COTIZADOR!$F$11='Tabla Parámetros'!$O$4,'Tabla Crecientes'!G93))))) -> 2,993.59 | H149: =IF(B149="","",IF($F$11='Tabla Parámetros'!$O$3,'Tabla Fijos'!H94,IF($F$11='Tabla Parámetros'!$O$5,'Tabla Fijos'!H94,IF(COTIZADOR!$F$11='Tabla Parámetros'!$O$6,'Tabla Fijos'!H94,IF(COTIZADOR!$F$11='Tabla Parámetros'!$O$4,'Tabla Crecientes'!H93))))) -> 5,123.60 | I149: =IF($F$11='Tabla Parámetros'!$O$3,'Tabla Fijos'!I94,IF($F$11='Tabla Parámetros'!$O$5,'Tabla Fijos'!I94,IF(COTIZADOR!$F$11='Tabla Parámetros'!$O$6,'Tabla Fijos'!I94,IF(COTIZADOR!$F$11='Tabla Parámetros'!$O$4,'Tabla Crecientes'!I93)))) -> 0.00 | J149: =IF(B149="","",IF($F$11='Tabla Parámetros'!$O$3,'Tabla Fijos'!K94,IF($F$11='Tabla Parámetros'!$O$5,'Tabla Fijos'!K94,IF(COTIZADOR!$F$11='Tabla Parámetros'!$O$6,'Tabla Fijos'!K94,IF(COTIZADOR!$F$11='Tabla Parámetros'!$O$4,'Tabla Crecientes'!K93))))) -> 485.39 | K149: =IF(B149="","",IF($F$11='Tabla Parámetros'!$O$3,'Tabla Fijos'!L94,IF($F$11='Tabla Parámetros'!$O$5,'Tabla Fijos'!L94,IF(COTIZADOR!$F$11='Tabla Parámetros'!$O$6,'Tabla Fijos'!L94,IF(COTIZADOR!$F$11='Tabla Parámetros'!$O$4,'Tabla Crecientes'!L93))))) -> 247.06 | L149: =IF(B149="","",IF($F$11='Tabla Parámetros'!$O$3,'Tabla Fijos'!M94,IF($F$11='Tabla Parámetros'!$O$5,'Tabla Fijos'!M94,IF(COTIZADOR!$F$11='Tabla Parámetros'!$O$6,'Tabla Fijos'!M94,IF(COTIZADOR!$F$11='Tabla Parámetros'!$O$4,'Tabla Crecientes'!M93))))) -> 349.00 | M149: =IF($F$11='Tabla Parámetros'!$O$3,'Tabla Fijos'!N94,IF($F$11='Tabla Parámetros'!$O$5,'Tabla Fijos'!N94,IF(COTIZADOR!$F$11='Tabla Parámetros'!$O$6,'Tabla Fijos'!N94,IF(COTIZADOR!$F$11='Tabla Parámetros'!$O$4,'Tabla Crecientes'!N93)))) -> 0.00 | O149: 9,198.64 | P149: 805,996.00 | Q149: 1
B150: 84 | C150: =IF($B$67="","",'Fecha Pago'!K87) -> 2027-10-03 | D150: =IF($B$67="","",'Fecha Pago'!L87) -> 30.40 | E150: =IF(B150="","",IF($F$11='Tabla Parámetros'!$O$3,'Tabla Fijos'!E94,IF($F$11='Tabla Parámetros'!$O$5,'Tabla Fijos'!E94,IF(COTIZADOR!$F$11='Tabla Parámetros'!$O$6,'Tabla Fijos'!E94,IF(COTIZADOR!$F$11='Tabla Parámetros'!$O$4,'Tabla Crecientes'!E93))))) -> 7.50% | F150: 805,996.00 | G150: =IF(B150="","",IF($F$11='Tabla Parámetros'!$O$3,'Tabla Fijos'!G95,IF($F$11='Tabla Parámetros'!$O$5,'Tabla Fijos'!G95,IF(COTIZADOR!$F$11='Tabla Parámetros'!$O$6,'Tabla Fijos'!G95,IF(COTIZADOR!$F$11='Tabla Parámetros'!$O$4,'Tabla Crecientes'!G94))))) -> 3,012.55 | H150: =IF(B150="","",IF($F$11='Tabla Parámetros'!$O$3,'Tabla Fijos'!H95,IF($F$11='Tabla Parámetros'!$O$5,'Tabla Fijos'!H95,IF(COTIZADOR!$F$11='Tabla Parámetros'!$O$6,'Tabla Fijos'!H95,IF(COTIZADOR!$F$11='Tabla Parámetros'!$O$4,'Tabla Crecientes'!H94))))) -> 5,104.64 | I150: =IF($F$11='Tabla Parámetros'!$O$3,'Tabla Fijos'!I95,IF($F$11='Tabla Parámetros'!$O$5,'Tabla Fijos'!I95,IF(COTIZADOR!$F$11='Tabla Parámetros'!$O$6,'Tabla Fijos'!I95,IF(COTIZADOR!$F$11='Tabla Parámetros'!$O$4,'Tabla Crecientes'!I94)))) -> 0.00 | J150: =IF(B150="","",IF($F$11='Tabla Parámetros'!$O$3,'Tabla Fijos'!K95,IF($F$11='Tabla Parámetros'!$O$5,'Tabla Fijos'!K95,IF(COTIZADOR!$F$11='Tabla Parámetros'!$O$6,'Tabla Fijos'!K95,IF(COTIZADOR!$F$11='Tabla Parámetros'!$O$4,'Tabla Crecientes'!K94))))) -> 483.60 | K150: =IF(B150="","",IF($F$11='Tabla Parámetros'!$O$3,'Tabla Fijos'!L95,IF($F$11='Tabla Parámetros'!$O$5,'Tabla Fijos'!L95,IF(COTIZADOR!$F$11='Tabla Parámetros'!$O$6,'Tabla Fijos'!L95,IF(COTIZADOR!$F$11='Tabla Parámetros'!$O$4,'Tabla Crecientes'!L94))))) -> 247.06 | L150: =IF(B150="","",IF($F$11='Tabla Parámetros'!$O$3,'Tabla Fijos'!M95,IF($F$11='Tabla Parámetros'!$O$5,'Tabla Fijos'!M95,IF(COTIZADOR!$F$11='Tabla Parámetros'!$O$6,'Tabla Fijos'!M95,IF(COTIZADOR!$F$11='Tabla Parámetros'!$O$4,'Tabla Crecientes'!M94))))) -> 349.00 | M150: =IF($F$11='Tabla Parámetros'!$O$3,'Tabla Fijos'!N95,IF($F$11='Tabla Parámetros'!$O$5,'Tabla Fijos'!N95,IF(COTIZADOR!$F$11='Tabla Parámetros'!$O$6,'Tabla Fijos'!N95,IF(COTIZADOR!$F$11='Tabla Parámetros'!$O$4,'Tabla Crecientes'!N94)))) -> 0.00 | O150: 9,196.85 | P150: 802,983.45 | Q150: 1
B151: 85 | C151: =IF($B$67="","",'Fecha Pago'!K88) -> 2027-11-03 | D151: =IF($B$67="","",'Fecha Pago'!L88) -> 30.40 | E151: =IF(B151="","",IF($F$11='Tabla Parámetros'!$O$3,'Tabla Fijos'!E95,IF($F$11='Tabla Parámetros'!$O$5,'Tabla Fijos'!E95,IF(COTIZADOR!$F$11='Tabla Parámetros'!$O$6,'Tabla Fijos'!E95,IF(COTIZADOR!$F$11='Tabla Parámetros'!$O$4,'Tabla Crecientes'!E94))))) -> 7.50% | F151: 802,983.45 | G151: =IF(B151="","",IF($F$11='Tabla Parámetros'!$O$3,'Tabla Fijos'!G96,IF($F$11='Tabla Parámetros'!$O$5,'Tabla Fijos'!G96,IF(COTIZADOR!$F$11='Tabla Parámetros'!$O$6,'Tabla Fijos'!G96,IF(COTIZADOR!$F$11='Tabla Parámetros'!$O$4,'Tabla Crecientes'!G95))))) -> 3,031.63 | H151: =IF(B151="","",IF($F$11='Tabla Parámetros'!$O$3,'Tabla Fijos'!H96,IF($F$11='Tabla Parámetros'!$O$5,'Tabla Fijos'!H96,IF(COTIZADOR!$F$11='Tabla Parámetros'!$O$6,'Tabla Fijos'!H96,IF(COTIZADOR!$F$11='Tabla Parámetros'!$O$4,'Tabla Crecientes'!H95))))) -> 5,085.56 | I151: =IF($F$11='Tabla Parámetros'!$O$3,'Tabla Fijos'!I96,IF($F$11='Tabla Parámetros'!$O$5,'Tabla Fijos'!I96,IF(COTIZADOR!$F$11='Tabla Parámetros'!$O$6,'Tabla Fijos'!I96,IF(COTIZADOR!$F$11='Tabla Parámetros'!$O$4,'Tabla Crecientes'!I95)))) -> 0.00 | J151: =IF(B151="","",IF($F$11='Tabla Parámetros'!$O$3,'Tabla Fijos'!K96,IF($F$11='Tabla Parámetros'!$O$5,'Tabla Fijos'!K96,IF(COTIZADOR!$F$11='Tabla Parámetros'!$O$6,'Tabla Fijos'!K96,IF(COTIZADOR!$F$11='Tabla Parámetros'!$O$4,'Tabla Crecientes'!K95))))) -> 481.79 | K151: =IF(B151="","",IF($F$11='Tabla Parámetros'!$O$3,'Tabla Fijos'!L96,IF($F$11='Tabla Parámetros'!$O$5,'Tabla Fijos'!L96,IF(COTIZADOR!$F$11='Tabla Parámetros'!$O$6,'Tabla Fijos'!L96,IF(COTIZADOR!$F$11='Tabla Parámetros'!$O$4,'Tabla Crecientes'!L95))))) -> 247.06 | L151: =IF(B151="","",IF($F$11='Tabla Parámetros'!$O$3,'Tabla Fijos'!M96,IF($F$11='Tabla Parámetros'!$O$5,'Tabla Fijos'!M96,IF(COTIZADOR!$F$11='Tabla Parámetros'!$O$6,'Tabla Fijos'!M96,IF(COTIZADOR!$F$11='Tabla Parámetros'!$O$4,'Tabla Crecientes'!M95))))) -> 349.00 | M151: =IF($F$11='Tabla Parámetros'!$O$3,'Tabla Fijos'!N96,IF($F$11='Tabla Parámetros'!$O$5,'Tabla Fijos'!N96,IF(COTIZADOR!$F$11='Tabla Parámetros'!$O$6,'Tabla Fijos'!N96,IF(COTIZADOR!$F$11='Tabla Parámetros'!$O$4,'Tabla Crecientes'!N95)))) -> 0.00 | O151: 9,195.04 | P151: 799,951.83 | Q151: 1
B152: 86 | C152: =IF($B$67="","",'Fecha Pago'!K89) -> 2027-12-03 | D152: =IF($B$67="","",'Fecha Pago'!L89) -> 30.40 | E152: =IF(B152="","",IF($F$11='Tabla Parámetros'!$O$3,'Tabla Fijos'!E96,IF($F$11='Tabla Parámetros'!$O$5,'Tabla Fijos'!E96,IF(COTIZADOR!$F$11='Tabla Parámetros'!$O$6,'Tabla Fijos'!E96,IF(COTIZADOR!$F$11='Tabla Parámetros'!$O$4,'Tabla Crecientes'!E95))))) -> 7.50% | F152: 799,951.83 | G152: =IF(B152="","",IF($F$11='Tabla Parámetros'!$O$3,'Tabla Fijos'!G97,IF($F$11='Tabla Parámetros'!$O$5,'Tabla Fijos'!G97,IF(COTIZADOR!$F$11='Tabla Parámetros'!$O$6,'Tabla Fijos'!G97,IF(COTIZADOR!$F$11='Tabla Parámetros'!$O$4,'Tabla Crecientes'!G96))))) -> 3,050.83 | H152: =IF(B152="","",IF($F$11='Tabla Parámetros'!$O$3,'Tabla Fijos'!H97,IF($F$11='Tabla Parámetros'!$O$5,'Tabla Fijos'!H97,IF(COTIZADOR!$F$11='Tabla Parámetros'!$O$6,'Tabla Fijos'!H97,IF(COTIZADOR!$F$11='Tabla Parámetros'!$O$4,'Tabla Crecientes'!H96))))) -> 5,066.36 | I152: =IF($F$11='Tabla Parámetros'!$O$3,'Tabla Fijos'!I97,IF($F$11='Tabla Parámetros'!$O$5,'Tabla Fijos'!I97,IF(COTIZADOR!$F$11='Tabla Parámetros'!$O$6,'Tabla Fijos'!I97,IF(COTIZADOR!$F$11='Tabla Parámetros'!$O$4,'Tabla Crecientes'!I96)))) -> 0.00 | J152: =IF(B152="","",IF($F$11='Tabla Parámetros'!$O$3,'Tabla Fijos'!K97,IF($F$11='Tabla Parámetros'!$O$5,'Tabla Fijos'!K97,IF(COTIZADOR!$F$11='Tabla Parámetros'!$O$6,'Tabla Fijos'!K97,IF(COTIZADOR!$F$11='Tabla Parámetros'!$O$4,'Tabla Crecientes'!K96))))) -> 479.97 | K152: =IF(B152="","",IF($F$11='Tabla Parámetros'!$O$3,'Tabla Fijos'!L97,IF($F$11='Tabla Parámetros'!$O$5,'Tabla Fijos'!L97,IF(COTIZADOR!$F$11='Tabla Parámetros'!$O$6,'Tabla Fijos'!L97,IF(COTIZADOR!$F$11='Tabla Parámetros'!$O$4,'Tabla Crecientes'!L96))))) -> 247.06 | L152: =IF(B152="","",IF($F$11='Tabla Parámetros'!$O$3,'Tabla Fijos'!M97,IF($F$11='Tabla Parámetros'!$O$5,'Tabla Fijos'!M97,IF(COTIZADOR!$F$11='Tabla Parámetros'!$O$6,'Tabla Fijos'!M97,IF(COTIZADOR!$F$11='Tabla Parámetros'!$O$4,'Tabla Crecientes'!M96))))) -> 349.00 | M152: =IF($F$11='Tabla Parámetros'!$O$3,'Tabla Fijos'!N97,IF($F$11='Tabla Parámetros'!$O$5,'Tabla Fijos'!N97,IF(COTIZADOR!$F$11='Tabla Parámetros'!$O$6,'Tabla Fijos'!N97,IF(COTIZADOR!$F$11='Tabla Parámetros'!$O$4,'Tabla Crecientes'!N96)))) -> 0.00 | O152: 9,193.22 | P152: 796,901.00 | Q152: 1
B153: 87 | C153: =IF($B$67="","",'Fecha Pago'!K90) -> 2028-01-03 | D153: =IF($B$67="","",'Fecha Pago'!L90) -> 30.40 | E153: =IF(B153="","",IF($F$11='Tabla Parámetros'!$O$3,'Tabla Fijos'!E97,IF($F$11='Tabla Parámetros'!$O$5,'Tabla Fijos'!E97,IF(COTIZADOR!$F$11='Tabla Parámetros'!$O$6,'Tabla Fijos'!E97,IF(COTIZADOR!$F$11='Tabla Parámetros'!$O$4,'Tabla Crecientes'!E96))))) -> 7.50% | F153: 796,901.00 | G153: =IF(B153="","",IF($F$11='Tabla Parámetros'!$O$3,'Tabla Fijos'!G98,IF($F$11='Tabla Parámetros'!$O$5,'Tabla Fijos'!G98,IF(COTIZADOR!$F$11='Tabla Parámetros'!$O$6,'Tabla Fijos'!G98,IF(COTIZADOR!$F$11='Tabla Parámetros'!$O$4,'Tabla Crecientes'!G97))))) -> 3,070.15 | H153: =IF(B153="","",IF($F$11='Tabla Parámetros'!$O$3,'Tabla Fijos'!H98,IF($F$11='Tabla Parámetros'!$O$5,'Tabla Fijos'!H98,IF(COTIZADOR!$F$11='Tabla Parámetros'!$O$6,'Tabla Fijos'!H98,IF(COTIZADOR!$F$11='Tabla Parámetros'!$O$4,'Tabla Crecientes'!H97))))) -> 5,047.04 | I153: =IF($F$11='Tabla Parámetros'!$O$3,'Tabla Fijos'!I98,IF($F$11='Tabla Parámetros'!$O$5,'Tabla Fijos'!I98,IF(COTIZADOR!$F$11='Tabla Parámetros'!$O$6,'Tabla Fijos'!I98,IF(COTIZADOR!$F$11='Tabla Parámetros'!$O$4,'Tabla Crecientes'!I97)))) -> 0.00 | J153: =IF(B153="","",IF($F$11='Tabla Parámetros'!$O$3,'Tabla Fijos'!K98,IF($F$11='Tabla Parámetros'!$O$5,'Tabla Fijos'!K98,IF(COTIZADOR!$F$11='Tabla Parámetros'!$O$6,'Tabla Fijos'!K98,IF(COTIZADOR!$F$11='Tabla Parámetros'!$O$4,'Tabla Crecientes'!K97))))) -> 478.14 | K153: =IF(B153="","",IF($F$11='Tabla Parámetros'!$O$3,'Tabla Fijos'!L98,IF($F$11='Tabla Parámetros'!$O$5,'Tabla Fijos'!L98,IF(COTIZADOR!$F$11='Tabla Parámetros'!$O$6,'Tabla Fijos'!L98,IF(COTIZADOR!$F$11='Tabla Parámetros'!$O$4,'Tabla Crecientes'!L97))))) -> 247.06 | L153: =IF(B153="","",IF($F$11='Tabla Parámetros'!$O$3,'Tabla Fijos'!M98,IF($F$11='Tabla Parámetros'!$O$5,'Tabla Fijos'!M98,IF(COTIZADOR!$F$11='Tabla Parámetros'!$O$6,'Tabla Fijos'!M98,IF(COTIZADOR!$F$11='Tabla Parámetros'!$O$4,'Tabla Crecientes'!M97))))) -> 349.00 | M153: =IF($F$11='Tabla Parámetros'!$O$3,'Tabla Fijos'!N98,IF($F$11='Tabla Parámetros'!$O$5,'Tabla Fijos'!N98,IF(COTIZADOR!$F$11='Tabla Parámetros'!$O$6,'Tabla Fijos'!N98,IF(COTIZADOR!$F$11='Tabla Parámetros'!$O$4,'Tabla Crecientes'!N97)))) -> 0.00 | O153: 9,191.39 | P153: 793,830.85 | Q153: 1
B154: 88 | C154: =IF($B$67="","",'Fecha Pago'!K91) -> 2028-02-03 | D154: =IF($B$67="","",'Fecha Pago'!L91) -> 30.40 | E154: =IF(B154="","",IF($F$11='Tabla Parámetros'!$O$3,'Tabla Fijos'!E98,IF($F$11='Tabla Parámetros'!$O$5,'Tabla Fijos'!E98,IF(COTIZADOR!$F$11='Tabla Parámetros'!$O$6,'Tabla Fijos'!E98,IF(COTIZADOR!$F$11='Tabla Parámetros'!$O$4,'Tabla Crecientes'!E97))))) -> 7.50% | F154: 793,830.85 | G154: =IF(B154="","",IF($F$11='Tabla Parámetros'!$O$3,'Tabla Fijos'!G99,IF($F$11='Tabla Parámetros'!$O$5,'Tabla Fijos'!G99,IF(COTIZADOR!$F$11='Tabla Parámetros'!$O$6,'Tabla Fijos'!G99,IF(COTIZADOR!$F$11='Tabla Parámetros'!$O$4,'Tabla Crecientes'!G98))))) -> 3,089.59 | H154: =IF(B154="","",IF($F$11='Tabla Parámetros'!$O$3,'Tabla Fijos'!H99,IF($F$11='Tabla Parámetros'!$O$5,'Tabla Fijos'!H99,IF(COTIZADOR!$F$11='Tabla Parámetros'!$O$6,'Tabla Fijos'!H99,IF(COTIZADOR!$F$11='Tabla Parámetros'!$O$4,'Tabla Crecientes'!H98))))) -> 5,027.60 | I154: =IF($F$11='Tabla Parámetros'!$O$3,'Tabla Fijos'!I99,IF($F$11='Tabla Parámetros'!$O$5,'Tabla Fijos'!I99,IF(COTIZADOR!$F$11='Tabla Parámetros'!$O$6,'Tabla Fijos'!I99,IF(COTIZADOR!$F$11='Tabla Parámetros'!$O$4,'Tabla Crecientes'!I98)))) -> 0.00 | J154: =IF(B154="","",IF($F$11='Tabla Parámetros'!$O$3,'Tabla Fijos'!K99,IF($F$11='Tabla Parámetros'!$O$5,'Tabla Fijos'!K99,IF(COTIZADOR!$F$11='Tabla Parámetros'!$O$6,'Tabla Fijos'!K99,IF(COTIZADOR!$F$11='Tabla Parámetros'!$O$4,'Tabla Crecientes'!K98))))) -> 476.30 | K154: =IF(B154="","",IF($F$11='Tabla Parámetros'!$O$3,'Tabla Fijos'!L99,IF($F$11='Tabla Parámetros'!$O$5,'Tabla Fijos'!L99,IF(COTIZADOR!$F$11='Tabla Parámetros'!$O$6,'Tabla Fijos'!L99,IF(COTIZADOR!$F$11='Tabla Parámetros'!$O$4,'Tabla Crecientes'!L98))))) -> 247.06 | L154: =IF(B154="","",IF($F$11='Tabla Parámetros'!$O$3,'Tabla Fijos'!M99,IF($F$11='Tabla Parámetros'!$O$5,'Tabla Fijos'!M99,IF(COTIZADOR!$F$11='Tabla Parámetros'!$O$6,'Tabla Fijos'!M99,IF(COTIZADOR!$F$11='Tabla Parámetros'!$O$4,'Tabla Crecientes'!M98))))) -> 349.00 | M154: =IF($F$11='Tabla Parámetros'!$O$3,'Tabla Fijos'!N99,IF($F$11='Tabla Parámetros'!$O$5,'Tabla Fijos'!N99,IF(COTIZADOR!$F$11='Tabla Parámetros'!$O$6,'Tabla Fijos'!N99,IF(COTIZADOR!$F$11='Tabla Parámetros'!$O$4,'Tabla Crecientes'!N98)))) -> 0.00 | O154: 9,189.55 | P154: 790,741.26 | Q154: 1
B155: 89 | C155: =IF($B$67="","",'Fecha Pago'!K92) -> 2028-03-03 | D155: =IF($B$67="","",'Fecha Pago'!L92) -> 30.40 | E155: =IF(B155="","",IF($F$11='Tabla Parámetros'!$O$3,'Tabla Fijos'!E99,IF($F$11='Tabla Parámetros'!$O$5,'Tabla Fijos'!E99,IF(COTIZADOR!$F$11='Tabla Parámetros'!$O$6,'Tabla Fijos'!E99,IF(COTIZADOR!$F$11='Tabla Parámetros'!$O$4,'Tabla Crecientes'!E98))))) -> 7.50% | F155: 790,741.26 | G155: =IF(B155="","",IF($F$11='Tabla Parámetros'!$O$3,'Tabla Fijos'!G100,IF($F$11='Tabla Parámetros'!$O$5,'Tabla Fijos'!G100,IF(COTIZADOR!$F$11='Tabla Parámetros'!$O$6,'Tabla Fijos'!G100,IF(COTIZADOR!$F$11='Tabla Parámetros'!$O$4,'Tabla Crecientes'!G99))))) -> 3,109.16 | H155: =IF(B155="","",IF($F$11='Tabla Parámetros'!$O$3,'Tabla Fijos'!H100,IF($F$11='Tabla Parámetros'!$O$5,'Tabla Fijos'!H100,IF(COTIZADOR!$F$11='Tabla Parámetros'!$O$6,'Tabla Fijos'!H100,IF(COTIZADOR!$F$11='Tabla Parámetros'!$O$4,'Tabla Crecientes'!H99))))) -> 5,008.03 | I155: =IF($F$11='Tabla Parámetros'!$O$3,'Tabla Fijos'!I100,IF($F$11='Tabla Parámetros'!$O$5,'Tabla Fijos'!I100,IF(COTIZADOR!$F$11='Tabla Parámetros'!$O$6,'Tabla Fijos'!I100,IF(COTIZADOR!$F$11='Tabla Parámetros'!$O$4,'Tabla Crecientes'!I99)))) -> 0.00 | J155: =IF(B155="","",IF($F$11='Tabla Parámetros'!$O$3,'Tabla Fijos'!K100,IF($F$11='Tabla Parámetros'!$O$5,'Tabla Fijos'!K100,IF(COTIZADOR!$F$11='Tabla Parámetros'!$O$6,'Tabla Fijos'!K100,IF(COTIZADOR!$F$11='Tabla Parámetros'!$O$4,'Tabla Crecientes'!K99))))) -> 474.44 | K155: =IF(B155="","",IF($F$11='Tabla Parámetros'!$O$3,'Tabla Fijos'!L100,IF($F$11='Tabla Parámetros'!$O$5,'Tabla Fijos'!L100,IF(COTIZADOR!$F$11='Tabla Parámetros'!$O$6,'Tabla Fijos'!L100,IF(COTIZADOR!$F$11='Tabla Parámetros'!$O$4,'Tabla Crecientes'!L99))))) -> 247.06 | L155: =IF(B155="","",IF($F$11='Tabla Parámetros'!$O$3,'Tabla Fijos'!M100,IF($F$11='Tabla Parámetros'!$O$5,'Tabla Fijos'!M100,IF(COTIZADOR!$F$11='Tabla Parámetros'!$O$6,'Tabla Fijos'!M100,IF(COTIZADOR!$F$11='Tabla Parámetros'!$O$4,'Tabla Crecientes'!M99))))) -> 349.00 | M155: =IF($F$11='Tabla Parámetros'!$O$3,'Tabla Fijos'!N100,IF($F$11='Tabla Parámetros'!$O$5,'Tabla Fijos'!N100,IF(COTIZADOR!$F$11='Tabla Parámetros'!$O$6,'Tabla Fijos'!N100,IF(COTIZADOR!$F$11='Tabla Parámetros'!$O$4,'Tabla Crecientes'!N99)))) -> 0.00 | O155: 9,187.69 | P155: 787,632.10 | Q155: 1
B156: 90 | C156: =IF($B$67="","",'Fecha Pago'!K93) -> 2028-04-03 | D156: =IF($B$67="","",'Fecha Pago'!L93) -> 30.40 | E156: =IF(B156="","",IF($F$11='Tabla Parámetros'!$O$3,'Tabla Fijos'!E100,IF($F$11='Tabla Parámetros'!$O$5,'Tabla Fijos'!E100,IF(COTIZADOR!$F$11='Tabla Parámetros'!$O$6,'Tabla Fijos'!E100,IF(COTIZADOR!$F$11='Tabla Parámetros'!$O$4,'Tabla Crecientes'!E99))))) -> 7.50% | F156: 787,632.10 | G156: =IF(B156="","",IF($F$11='Tabla Parámetros'!$O$3,'Tabla Fijos'!G101,IF($F$11='Tabla Parámetros'!$O$5,'Tabla Fijos'!G101,IF(COTIZADOR!$F$11='Tabla Parámetros'!$O$6,'Tabla Fijos'!G101,IF(COTIZADOR!$F$11='Tabla Parámetros'!$O$4,'Tabla Crecientes'!G100))))) -> 3,128.85 | H156: =IF(B156="","",IF($F$11='Tabla Parámetros'!$O$3,'Tabla Fijos'!H101,IF($F$11='Tabla Parámetros'!$O$5,'Tabla Fijos'!H101,IF(COTIZADOR!$F$11='Tabla Parámetros'!$O$6,'Tabla Fijos'!H101,IF(COTIZADOR!$F$11='Tabla Parámetros'!$O$4,'Tabla Crecientes'!H100))))) -> 4,988.34 | I156: =IF($F$11='Tabla Parámetros'!$O$3,'Tabla Fijos'!I101,IF($F$11='Tabla Parámetros'!$O$5,'Tabla Fijos'!I101,IF(COTIZADOR!$F$11='Tabla Parámetros'!$O$6,'Tabla Fijos'!I101,IF(COTIZADOR!$F$11='Tabla Parámetros'!$O$4,'Tabla Crecientes'!I100)))) -> 0.00 | J156: =IF(B156="","",IF($F$11='Tabla Parámetros'!$O$3,'Tabla Fijos'!K101,IF($F$11='Tabla Parámetros'!$O$5,'Tabla Fijos'!K101,IF(COTIZADOR!$F$11='Tabla Parámetros'!$O$6,'Tabla Fijos'!K101,IF(COTIZADOR!$F$11='Tabla Parámetros'!$O$4,'Tabla Crecientes'!K100))))) -> 472.58 | K156: =IF(B156="","",IF($F$11='Tabla Parámetros'!$O$3,'Tabla Fijos'!L101,IF($F$11='Tabla Parámetros'!$O$5,'Tabla Fijos'!L101,IF(COTIZADOR!$F$11='Tabla Parámetros'!$O$6,'Tabla Fijos'!L101,IF(COTIZADOR!$F$11='Tabla Parámetros'!$O$4,'Tabla Crecientes'!L100))))) -> 247.06 | L156: =IF(B156="","",IF($F$11='Tabla Parámetros'!$O$3,'Tabla Fijos'!M101,IF($F$11='Tabla Parámetros'!$O$5,'Tabla Fijos'!M101,IF(COTIZADOR!$F$11='Tabla Parámetros'!$O$6,'Tabla Fijos'!M101,IF(COTIZADOR!$F$11='Tabla Parámetros'!$O$4,'Tabla Crecientes'!M100))))) -> 349.00 | M156: =IF($F$11='Tabla Parámetros'!$O$3,'Tabla Fijos'!N101,IF($F$11='Tabla Parámetros'!$O$5,'Tabla Fijos'!N101,IF(COTIZADOR!$F$11='Tabla Parámetros'!$O$6,'Tabla Fijos'!N101,IF(COTIZADOR!$F$11='Tabla Parámetros'!$O$4,'Tabla Crecientes'!N100)))) -> 0.00 | O156: 9,185.83 | P156: 784,503.24 | Q156: 1
B157: 91 | C157: =IF($B$67="","",'Fecha Pago'!K94) -> 2028-05-03 | D157: =IF($B$67="","",'Fecha Pago'!L94) -> 30.40 | E157: =IF(B157="","",IF($F$11='Tabla Parámetros'!$O$3,'Tabla Fijos'!E101,IF($F$11='Tabla Parámetros'!$O$5,'Tabla Fijos'!E101,IF(COTIZADOR!$F$11='Tabla Parámetros'!$O$6,'Tabla Fijos'!E101,IF(COTIZADOR!$F$11='Tabla Parámetros'!$O$4,'Tabla Crecientes'!E100))))) -> 7.50% | F157: 784,503.24 | G157: =IF(B157="","",IF($F$11='Tabla Parámetros'!$O$3,'Tabla Fijos'!G102,IF($F$11='Tabla Parámetros'!$O$5,'Tabla Fijos'!G102,IF(COTIZADOR!$F$11='Tabla Parámetros'!$O$6,'Tabla Fijos'!G102,IF(COTIZADOR!$F$11='Tabla Parámetros'!$O$4,'Tabla Crecientes'!G101))))) -> 3,148.67 | H157: =IF(B157="","",IF($F$11='Tabla Parámetros'!$O$3,'Tabla Fijos'!H102,IF($F$11='Tabla Parámetros'!$O$5,'Tabla Fijos'!H102,IF(COTIZADOR!$F$11='Tabla Parámetros'!$O$6,'Tabla Fijos'!H102,IF(COTIZADOR!$F$11='Tabla Parámetros'!$O$4,'Tabla Crecientes'!H101))))) -> 4,968.52 | I157: =IF($F$11='Tabla Parámetros'!$O$3,'Tabla Fijos'!I102,IF($F$11='Tabla Parámetros'!$O$5,'Tabla Fijos'!I102,IF(COTIZADOR!$F$11='Tabla Parámetros'!$O$6,'Tabla Fijos'!I102,IF(COTIZADOR!$F$11='Tabla Parámetros'!$O$4,'Tabla Crecientes'!I101)))) -> 0.00 | J157: =IF(B157="","",IF($F$11='Tabla Parámetros'!$O$3,'Tabla Fijos'!K102,IF($F$11='Tabla Parámetros'!$O$5,'Tabla Fijos'!K102,IF(COTIZADOR!$F$11='Tabla Parámetros'!$O$6,'Tabla Fijos'!K102,IF(COTIZADOR!$F$11='Tabla Parámetros'!$O$4,'Tabla Crecientes'!K101))))) -> 470.70 | K157: =IF(B157="","",IF($F$11='Tabla Parámetros'!$O$3,'Tabla Fijos'!L102,IF($F$11='Tabla Parámetros'!$O$5,'Tabla Fijos'!L102,IF(COTIZADOR!$F$11='Tabla Parámetros'!$O$6,'Tabla Fijos'!L102,IF(COTIZADOR!$F$11='Tabla Parámetros'!$O$4,'Tabla Crecientes'!L101))))) -> 247.06 | L157: =IF(B157="","",IF($F$11='Tabla Parámetros'!$O$3,'Tabla Fijos'!M102,IF($F$11='Tabla Parámetros'!$O$5,'Tabla Fijos'!M102,IF(COTIZADOR!$F$11='Tabla Parámetros'!$O$6,'Tabla Fijos'!M102,IF(COTIZADOR!$F$11='Tabla Parámetros'!$O$4,'Tabla Crecientes'!M101))))) -> 349.00 | M157: =IF($F$11='Tabla Parámetros'!$O$3,'Tabla Fijos'!N102,IF($F$11='Tabla Parámetros'!$O$5,'Tabla Fijos'!N102,IF(COTIZADOR!$F$11='Tabla Parámetros'!$O$6,'Tabla Fijos'!N102,IF(COTIZADOR!$F$11='Tabla Parámetros'!$O$4,'Tabla Crecientes'!N101)))) -> 0.00 | O157: 9,183.95 | P157: 781,354.58 | Q157: 1
B158: 92 | C158: =IF($B$67="","",'Fecha Pago'!K95) -> 2028-06-03 | D158: =IF($B$67="","",'Fecha Pago'!L95) -> 30.40 | E158: =IF(B158="","",IF($F$11='Tabla Parámetros'!$O$3,'Tabla Fijos'!E102,IF($F$11='Tabla Parámetros'!$O$5,'Tabla Fijos'!E102,IF(COTIZADOR!$F$11='Tabla Parámetros'!$O$6,'Tabla Fijos'!E102,IF(COTIZADOR!$F$11='Tabla Parámetros'!$O$4,'Tabla Crecientes'!E101))))) -> 7.50% | F158: 781,354.58 | G158: =IF(B158="","",IF($F$11='Tabla Parámetros'!$O$3,'Tabla Fijos'!G103,IF($F$11='Tabla Parámetros'!$O$5,'Tabla Fijos'!G103,IF(COTIZADOR!$F$11='Tabla Parámetros'!$O$6,'Tabla Fijos'!G103,IF(COTIZADOR!$F$11='Tabla Parámetros'!$O$4,'Tabla Crecientes'!G102))))) -> 3,168.61 | H158: =IF(B158="","",IF($F$11='Tabla Parámetros'!$O$3,'Tabla Fijos'!H103,IF($F$11='Tabla Parámetros'!$O$5,'Tabla Fijos'!H103,IF(COTIZADOR!$F$11='Tabla Parámetros'!$O$6,'Tabla Fijos'!H103,IF(COTIZADOR!$F$11='Tabla Parámetros'!$O$4,'Tabla Crecientes'!H102))))) -> 4,948.58 | I158: =IF($F$11='Tabla Parámetros'!$O$3,'Tabla Fijos'!I103,IF($F$11='Tabla Parámetros'!$O$5,'Tabla Fijos'!I103,IF(COTIZADOR!$F$11='Tabla Parámetros'!$O$6,'Tabla Fijos'!I103,IF(COTIZADOR!$F$11='Tabla Parámetros'!$O$4,'Tabla Crecientes'!I102)))) -> 0.00 | J158: =IF(B158="","",IF($F$11='Tabla Parámetros'!$O$3,'Tabla Fijos'!K103,IF($F$11='Tabla Parámetros'!$O$5,'Tabla Fijos'!K103,IF(COTIZADOR!$F$11='Tabla Parámetros'!$O$6,'Tabla Fijos'!K103,IF(COTIZADOR!$F$11='Tabla Parámetros'!$O$4,'Tabla Crecientes'!K102))))) -> 468.81 | K158: =IF(B158="","",IF($F$11='Tabla Parámetros'!$O$3,'Tabla Fijos'!L103,IF($F$11='Tabla Parámetros'!$O$5,'Tabla Fijos'!L103,IF(COTIZADOR!$F$11='Tabla Parámetros'!$O$6,'Tabla Fijos'!L103,IF(COTIZADOR!$F$11='Tabla Parámetros'!$O$4,'Tabla Crecientes'!L102))))) -> 247.06 | L158: =IF(B158="","",IF($F$11='Tabla Parámetros'!$O$3,'Tabla Fijos'!M103,IF($F$11='Tabla Parámetros'!$O$5,'Tabla Fijos'!M103,IF(COTIZADOR!$F$11='Tabla Parámetros'!$O$6,'Tabla Fijos'!M103,IF(COTIZADOR!$F$11='Tabla Parámetros'!$O$4,'Tabla Crecientes'!M102))))) -> 349.00 | M158: =IF($F$11='Tabla Parámetros'!$O$3,'Tabla Fijos'!N103,IF($F$11='Tabla Parámetros'!$O$5,'Tabla Fijos'!N103,IF(COTIZADOR!$F$11='Tabla Parámetros'!$O$6,'Tabla Fijos'!N103,IF(COTIZADOR!$F$11='Tabla Parámetros'!$O$4,'Tabla Crecientes'!N102)))) -> 0.00 | O158: 9,182.06 | P158: 778,185.97 | Q158: 1
B159: 93 | C159: =IF($B$67="","",'Fecha Pago'!K96) -> 2028-07-03 | D159: =IF($B$67="","",'Fecha Pago'!L96) -> 30.40 | E159: =IF(B159="","",IF($F$11='Tabla Parámetros'!$O$3,'Tabla Fijos'!E103,IF($F$11='Tabla Parámetros'!$O$5,'Tabla Fijos'!E103,IF(COTIZADOR!$F$11='Tabla Parámetros'!$O$6,'Tabla Fijos'!E103,IF(COTIZADOR!$F$11='Tabla Parámetros'!$O$4,'Tabla Crecientes'!E102))))) -> 7.50% | F159: 778,185.97 | G159: =IF(B159="","",IF($F$11='Tabla Parámetros'!$O$3,'Tabla Fijos'!G104,IF($F$11='Tabla Parámetros'!$O$5,'Tabla Fijos'!G104,IF(COTIZADOR!$F$11='Tabla Parámetros'!$O$6,'Tabla Fijos'!G104,IF(COTIZADOR!$F$11='Tabla Parámetros'!$O$4,'Tabla Crecientes'!G103))))) -> 3,188.68 | H159: =IF(B159="","",IF($F$11='Tabla Parámetros'!$O$3,'Tabla Fijos'!H104,IF($F$11='Tabla Parámetros'!$O$5,'Tabla Fijos'!H104,IF(COTIZADOR!$F$11='Tabla Parámetros'!$O$6,'Tabla Fijos'!H104,IF(COTIZADOR!$F$11='Tabla Parámetros'!$O$4,'Tabla Crecientes'!H103))))) -> 4,928.51 | I159: =IF($F$11='Tabla Parámetros'!$O$3,'Tabla Fijos'!I104,IF($F$11='Tabla Parámetros'!$O$5,'Tabla Fijos'!I104,IF(COTIZADOR!$F$11='Tabla Parámetros'!$O$6,'Tabla Fijos'!I104,IF(COTIZADOR!$F$11='Tabla Parámetros'!$O$4,'Tabla Crecientes'!I103)))) -> 0.00 | J159: =IF(B159="","",IF($F$11='Tabla Parámetros'!$O$3,'Tabla Fijos'!K104,IF($F$11='Tabla Parámetros'!$O$5,'Tabla Fijos'!K104,IF(COTIZADOR!$F$11='Tabla Parámetros'!$O$6,'Tabla Fijos'!K104,IF(COTIZADOR!$F$11='Tabla Parámetros'!$O$4,'Tabla Crecientes'!K103))))) -> 466.91 | K159: =IF(B159="","",IF($F$11='Tabla Parámetros'!$O$3,'Tabla Fijos'!L104,IF($F$11='Tabla Parámetros'!$O$5,'Tabla Fijos'!L104,IF(COTIZADOR!$F$11='Tabla Parámetros'!$O$6,'Tabla Fijos'!L104,IF(COTIZADOR!$F$11='Tabla Parámetros'!$O$4,'Tabla Crecientes'!L103))))) -> 247.06 | L159: =IF(B159="","",IF($F$11='Tabla Parámetros'!$O$3,'Tabla Fijos'!M104,IF($F$11='Tabla Parámetros'!$O$5,'Tabla Fijos'!M104,IF(COTIZADOR!$F$11='Tabla Parámetros'!$O$6,'Tabla Fijos'!M104,IF(COTIZADOR!$F$11='Tabla Parámetros'!$O$4,'Tabla Crecientes'!M103))))) -> 349.00 | M159: =IF($F$11='Tabla Parámetros'!$O$3,'Tabla Fijos'!N104,IF($F$11='Tabla Parámetros'!$O$5,'Tabla Fijos'!N104,IF(COTIZADOR!$F$11='Tabla Parámetros'!$O$6,'Tabla Fijos'!N104,IF(COTIZADOR!$F$11='Tabla Parámetros'!$O$4,'Tabla Crecientes'!N103)))) -> 0.00 | O159: 9,180.16 | P159: 774,997.29 | Q159: 1
B160: 94 | C160: =IF($B$67="","",'Fecha Pago'!K97) -> 2028-08-03 | D160: =IF($B$67="","",'Fecha Pago'!L97) -> 30.40 | E160: =IF(B160="","",IF($F$11='Tabla Parámetros'!$O$3,'Tabla Fijos'!E104,IF($F$11='Tabla Parámetros'!$O$5,'Tabla Fijos'!E104,IF(COTIZADOR!$F$11='Tabla Parámetros'!$O$6,'Tabla Fijos'!E104,IF(COTIZADOR!$F$11='Tabla Parámetros'!$O$4,'Tabla Crecientes'!E103))))) -> 7.50% | F160: 774,997.29 | G160: =IF(B160="","",IF($F$11='Tabla Parámetros'!$O$3,'Tabla Fijos'!G105,IF($F$11='Tabla Parámetros'!$O$5,'Tabla Fijos'!G105,IF(COTIZADOR!$F$11='Tabla Parámetros'!$O$6,'Tabla Fijos'!G105,IF(COTIZADOR!$F$11='Tabla Parámetros'!$O$4,'Tabla Crecientes'!G104))))) -> 3,208.87 | H160: =IF(B160="","",IF($F$11='Tabla Parámetros'!$O$3,'Tabla Fijos'!H105,IF($F$11='Tabla Parámetros'!$O$5,'Tabla Fijos'!H105,IF(COTIZADOR!$F$11='Tabla Parámetros'!$O$6,'Tabla Fijos'!H105,IF(COTIZADOR!$F$11='Tabla Parámetros'!$O$4,'Tabla Crecientes'!H104))))) -> 4,908.32 | I160: =IF($F$11='Tabla Parámetros'!$O$3,'Tabla Fijos'!I105,IF($F$11='Tabla Parámetros'!$O$5,'Tabla Fijos'!I105,IF(COTIZADOR!$F$11='Tabla Parámetros'!$O$6,'Tabla Fijos'!I105,IF(COTIZADOR!$F$11='Tabla Parámetros'!$O$4,'Tabla Crecientes'!I104)))) -> 0.00 | J160: =IF(B160="","",IF($F$11='Tabla Parámetros'!$O$3,'Tabla Fijos'!K105,IF($F$11='Tabla Parámetros'!$O$5,'Tabla Fijos'!K105,IF(COTIZADOR!$F$11='Tabla Parámetros'!$O$6,'Tabla Fijos'!K105,IF(COTIZADOR!$F$11='Tabla Parámetros'!$O$4,'Tabla Crecientes'!K104))))) -> 465.00 | K160: =IF(B160="","",IF($F$11='Tabla Parámetros'!$O$3,'Tabla Fijos'!L105,IF($F$11='Tabla Parámetros'!$O$5,'Tabla Fijos'!L105,IF(COTIZADOR!$F$11='Tabla Parámetros'!$O$6,'Tabla Fijos'!L105,IF(COTIZADOR!$F$11='Tabla Parámetros'!$O$4,'Tabla Crecientes'!L104))))) -> 247.06 | L160: =IF(B160="","",IF($F$11='Tabla Parámetros'!$O$3,'Tabla Fijos'!M105,IF($F$11='Tabla Parámetros'!$O$5,'Tabla Fijos'!M105,IF(COTIZADOR!$F$11='Tabla Parámetros'!$O$6,'Tabla Fijos'!M105,IF(COTIZADOR!$F$11='Tabla Parámetros'!$O$4,'Tabla Crecientes'!M104))))) -> 349.00 | M160: =IF($F$11='Tabla Parámetros'!$O$3,'Tabla Fijos'!N105,IF($F$11='Tabla Parámetros'!$O$5,'Tabla Fijos'!N105,IF(COTIZADOR!$F$11='Tabla Parámetros'!$O$6,'Tabla Fijos'!N105,IF(COTIZADOR!$F$11='Tabla Parámetros'!$O$4,'Tabla Crecientes'!N104)))) -> 0.00 | O160: 9,178.25 | P160: 771,788.42 | Q160: 1
B161: 95 | C161: =IF($B$67="","",'Fecha Pago'!K98) -> 2028-09-03 | D161: =IF($B$67="","",'Fecha Pago'!L98) -> 30.40 | E161: =IF(B161="","",IF($F$11='Tabla Parámetros'!$O$3,'Tabla Fijos'!E105,IF($F$11='Tabla Parámetros'!$O$5,'Tabla Fijos'!E105,IF(COTIZADOR!$F$11='Tabla Parámetros'!$O$6,'Tabla Fijos'!E105,IF(COTIZADOR!$F$11='Tabla Parámetros'!$O$4,'Tabla Crecientes'!E104))))) -> 7.50% | F161: 771,788.42 | G161: =IF(B161="","",IF($F$11='Tabla Parámetros'!$O$3,'Tabla Fijos'!G106,IF($F$11='Tabla Parámetros'!$O$5,'Tabla Fijos'!G106,IF(COTIZADOR!$F$11='Tabla Parámetros'!$O$6,'Tabla Fijos'!G106,IF(COTIZADOR!$F$11='Tabla Parámetros'!$O$4,'Tabla Crecientes'!G105))))) -> 3,229.20 | H161: =IF(B161="","",IF($F$11='Tabla Parámetros'!$O$3,'Tabla Fijos'!H106,IF($F$11='Tabla Parámetros'!$O$5,'Tabla Fijos'!H106,IF(COTIZADOR!$F$11='Tabla Parámetros'!$O$6,'Tabla Fijos'!H106,IF(COTIZADOR!$F$11='Tabla Parámetros'!$O$4,'Tabla Crecientes'!H105))))) -> 4,887.99 | I161: =IF($F$11='Tabla Parámetros'!$O$3,'Tabla Fijos'!I106,IF($F$11='Tabla Parámetros'!$O$5,'Tabla Fijos'!I106,IF(COTIZADOR!$F$11='Tabla Parámetros'!$O$6,'Tabla Fijos'!I106,IF(COTIZADOR!$F$11='Tabla Parámetros'!$O$4,'Tabla Crecientes'!I105)))) -> 0.00 | J161: =IF(B161="","",IF($F$11='Tabla Parámetros'!$O$3,'Tabla Fijos'!K106,IF($F$11='Tabla Parámetros'!$O$5,'Tabla Fijos'!K106,IF(COTIZADOR!$F$11='Tabla Parámetros'!$O$6,'Tabla Fijos'!K106,IF(COTIZADOR!$F$11='Tabla Parámetros'!$O$4,'Tabla Crecientes'!K105))))) -> 463.07 | K161: =IF(B161="","",IF($F$11='Tabla Parámetros'!$O$3,'Tabla Fijos'!L106,IF($F$11='Tabla Parámetros'!$O$5,'Tabla Fijos'!L106,IF(COTIZADOR!$F$11='Tabla Parámetros'!$O$6,'Tabla Fijos'!L106,IF(COTIZADOR!$F$11='Tabla Parámetros'!$O$4,'Tabla Crecientes'!L105))))) -> 247.06 | L161: =IF(B161="","",IF($F$11='Tabla Parámetros'!$O$3,'Tabla Fijos'!M106,IF($F$11='Tabla Parámetros'!$O$5,'Tabla Fijos'!M106,IF(COTIZADOR!$F$11='Tabla Parámetros'!$O$6,'Tabla Fijos'!M106,IF(COTIZADOR!$F$11='Tabla Parámetros'!$O$4,'Tabla Crecientes'!M105))))) -> 349.00 | M161: =IF($F$11='Tabla Parámetros'!$O$3,'Tabla Fijos'!N106,IF($F$11='Tabla Parámetros'!$O$5,'Tabla Fijos'!N106,IF(COTIZADOR!$F$11='Tabla Parámetros'!$O$6,'Tabla Fijos'!N106,IF(COTIZADOR!$F$11='Tabla Parámetros'!$O$4,'Tabla Crecientes'!N105)))) -> 0.00 | O161: 9,176.32 | P161: 768,559.22 | Q161: 1
B162: 96 | C162: =IF($B$67="","",'Fecha Pago'!K99) -> 2028-10-03 | D162: =IF($B$67="","",'Fecha Pago'!L99) -> 30.40 | E162: =IF(B162="","",IF($F$11='Tabla Parámetros'!$O$3,'Tabla Fijos'!E106,IF($F$11='Tabla Parámetros'!$O$5,'Tabla Fijos'!E106,IF(COTIZADOR!$F$11='Tabla Parámetros'!$O$6,'Tabla Fijos'!E106,IF(COTIZADOR!$F$11='Tabla Parámetros'!$O$4,'Tabla Crecientes'!E105))))) -> 7.50% | F162: 768,559.22 | G162: =IF(B162="","",IF($F$11='Tabla Parámetros'!$O$3,'Tabla Fijos'!G107,IF($F$11='Tabla Parámetros'!$O$5,'Tabla Fijos'!G107,IF(COTIZADOR!$F$11='Tabla Parámetros'!$O$6,'Tabla Fijos'!G107,IF(COTIZADOR!$F$11='Tabla Parámetros'!$O$4,'Tabla Crecientes'!G106))))) -> 3,249.65 | H162: =IF(B162="","",IF($F$11='Tabla Parámetros'!$O$3,'Tabla Fijos'!H107,IF($F$11='Tabla Parámetros'!$O$5,'Tabla Fijos'!H107,IF(COTIZADOR!$F$11='Tabla Parámetros'!$O$6,'Tabla Fijos'!H107,IF(COTIZADOR!$F$11='Tabla Parámetros'!$O$4,'Tabla Crecientes'!H106))))) -> 4,867.54 | I162: =IF($F$11='Tabla Parámetros'!$O$3,'Tabla Fijos'!I107,IF($F$11='Tabla Parámetros'!$O$5,'Tabla Fijos'!I107,IF(COTIZADOR!$F$11='Tabla Parámetros'!$O$6,'Tabla Fijos'!I107,IF(COTIZADOR!$F$11='Tabla Parámetros'!$O$4,'Tabla Crecientes'!I106)))) -> 0.00 | J162: =IF(B162="","",IF($F$11='Tabla Parámetros'!$O$3,'Tabla Fijos'!K107,IF($F$11='Tabla Parámetros'!$O$5,'Tabla Fijos'!K107,IF(COTIZADOR!$F$11='Tabla Parámetros'!$O$6,'Tabla Fijos'!K107,IF(COTIZADOR!$F$11='Tabla Parámetros'!$O$4,'Tabla Crecientes'!K106))))) -> 461.14 | K162: =IF(B162="","",IF($F$11='Tabla Parámetros'!$O$3,'Tabla Fijos'!L107,IF($F$11='Tabla Parámetros'!$O$5,'Tabla Fijos'!L107,IF(COTIZADOR!$F$11='Tabla Parámetros'!$O$6,'Tabla Fijos'!L107,IF(COTIZADOR!$F$11='Tabla Parámetros'!$O$4,'Tabla Crecientes'!L106))))) -> 247.06 | L162: =IF(B162="","",IF($F$11='Tabla Parámetros'!$O$3,'Tabla Fijos'!M107,IF($F$11='Tabla Parámetros'!$O$5,'Tabla Fijos'!M107,IF(COTIZADOR!$F$11='Tabla Parámetros'!$O$6,'Tabla Fijos'!M107,IF(COTIZADOR!$F$11='Tabla Parámetros'!$O$4,'Tabla Crecientes'!M106))))) -> 349.00 | M162: =IF($F$11='Tabla Parámetros'!$O$3,'Tabla Fijos'!N107,IF($F$11='Tabla Parámetros'!$O$5,'Tabla Fijos'!N107,IF(COTIZADOR!$F$11='Tabla Parámetros'!$O$6,'Tabla Fijos'!N107,IF(COTIZADOR!$F$11='Tabla Parámetros'!$O$4,'Tabla Crecientes'!N106)))) -> 0.00 | O162: 9,174.38 | P162: 765,309.57 | Q162: 1
B163: 97 | C163: =IF($B$67="","",'Fecha Pago'!K100) -> 2028-11-03 | D163: =IF($B$67="","",'Fecha Pago'!L100) -> 30.40 | E163: =IF(B163="","",IF($F$11='Tabla Parámetros'!$O$3,'Tabla Fijos'!E107,IF($F$11='Tabla Parámetros'!$O$5,'Tabla Fijos'!E107,IF(COTIZADOR!$F$11='Tabla Parámetros'!$O$6,'Tabla Fijos'!E107,IF(COTIZADOR!$F$11='Tabla Parámetros'!$O$4,'Tabla Crecientes'!E106))))) -> 7.50% | F163: 765,309.57 | G163: =IF(B163="","",IF($F$11='Tabla Parámetros'!$O$3,'Tabla Fijos'!G108,IF($F$11='Tabla Parámetros'!$O$5,'Tabla Fijos'!G108,IF(COTIZADOR!$F$11='Tabla Parámetros'!$O$6,'Tabla Fijos'!G108,IF(COTIZADOR!$F$11='Tabla Parámetros'!$O$4,'Tabla Crecientes'!G107))))) -> 3,270.23 | H163: =IF(B163="","",IF($F$11='Tabla Parámetros'!$O$3,'Tabla Fijos'!H108,IF($F$11='Tabla Parámetros'!$O$5,'Tabla Fijos'!H108,IF(COTIZADOR!$F$11='Tabla Parámetros'!$O$6,'Tabla Fijos'!H108,IF(COTIZADOR!$F$11='Tabla Parámetros'!$O$4,'Tabla Crecientes'!H107))))) -> 4,846.96 | I163: =IF($F$11='Tabla Parámetros'!$O$3,'Tabla Fijos'!I108,IF($F$11='Tabla Parámetros'!$O$5,'Tabla Fijos'!I108,IF(COTIZADOR!$F$11='Tabla Parámetros'!$O$6,'Tabla Fijos'!I108,IF(COTIZADOR!$F$11='Tabla Parámetros'!$O$4,'Tabla Crecientes'!I107)))) -> 0.00 | J163: =IF(B163="","",IF($F$11='Tabla Parámetros'!$O$3,'Tabla Fijos'!K108,IF($F$11='Tabla Parámetros'!$O$5,'Tabla Fijos'!K108,IF(COTIZADOR!$F$11='Tabla Parámetros'!$O$6,'Tabla Fijos'!K108,IF(COTIZADOR!$F$11='Tabla Parámetros'!$O$4,'Tabla Crecientes'!K107))))) -> 459.19 | K163: =IF(B163="","",IF($F$11='Tabla Parámetros'!$O$3,'Tabla Fijos'!L108,IF($F$11='Tabla Parámetros'!$O$5,'Tabla Fijos'!L108,IF(COTIZADOR!$F$11='Tabla Parámetros'!$O$6,'Tabla Fijos'!L108,IF(COTIZADOR!$F$11='Tabla Parámetros'!$O$4,'Tabla Crecientes'!L107))))) -> 247.06 | L163: =IF(B163="","",IF($F$11='Tabla Parámetros'!$O$3,'Tabla Fijos'!M108,IF($F$11='Tabla Parámetros'!$O$5,'Tabla Fijos'!M108,IF(COTIZADOR!$F$11='Tabla Parámetros'!$O$6,'Tabla Fijos'!M108,IF(COTIZADOR!$F$11='Tabla Parámetros'!$O$4,'Tabla Crecientes'!M107))))) -> 349.00 | M163: =IF($F$11='Tabla Parámetros'!$O$3,'Tabla Fijos'!N108,IF($F$11='Tabla Parámetros'!$O$5,'Tabla Fijos'!N108,IF(COTIZADOR!$F$11='Tabla Parámetros'!$O$6,'Tabla Fijos'!N108,IF(COTIZADOR!$F$11='Tabla Parámetros'!$O$4,'Tabla Crecientes'!N107)))) -> 0.00 | O163: 9,172.43 | P163: 762,039.34 | Q163: 1
B164: 98 | C164: =IF($B$67="","",'Fecha Pago'!K101) -> 2028-12-03 | D164: =IF($B$67="","",'Fecha Pago'!L101) -> 30.40 | E164: =IF(B164="","",IF($F$11='Tabla Parámetros'!$O$3,'Tabla Fijos'!E108,IF($F$11='Tabla Parámetros'!$O$5,'Tabla Fijos'!E108,IF(COTIZADOR!$F$11='Tabla Parámetros'!$O$6,'Tabla Fijos'!E108,IF(COTIZADOR!$F$11='Tabla Parámetros'!$O$4,'Tabla Crecientes'!E107))))) -> 7.50% | F164: 762,039.34 | G164: =IF(B164="","",IF($F$11='Tabla Parámetros'!$O$3,'Tabla Fijos'!G109,IF($F$11='Tabla Parámetros'!$O$5,'Tabla Fijos'!G109,IF(COTIZADOR!$F$11='Tabla Parámetros'!$O$6,'Tabla Fijos'!G109,IF(COTIZADOR!$F$11='Tabla Parámetros'!$O$4,'Tabla Crecientes'!G108))))) -> 3,290.94 | H164: =IF(B164="","",IF($F$11='Tabla Parámetros'!$O$3,'Tabla Fijos'!H109,IF($F$11='Tabla Parámetros'!$O$5,'Tabla Fijos'!H109,IF(COTIZADOR!$F$11='Tabla Parámetros'!$O$6,'Tabla Fijos'!H109,IF(COTIZADOR!$F$11='Tabla Parámetros'!$O$4,'Tabla Crecientes'!H108))))) -> 4,826.25 | I164: =IF($F$11='Tabla Parámetros'!$O$3,'Tabla Fijos'!I109,IF($F$11='Tabla Parámetros'!$O$5,'Tabla Fijos'!I109,IF(COTIZADOR!$F$11='Tabla Parámetros'!$O$6,'Tabla Fijos'!I109,IF(COTIZADOR!$F$11='Tabla Parámetros'!$O$4,'Tabla Crecientes'!I108)))) -> 0.00 | J164: =IF(B164="","",IF($F$11='Tabla Parámetros'!$O$3,'Tabla Fijos'!K109,IF($F$11='Tabla Parámetros'!$O$5,'Tabla Fijos'!K109,IF(COTIZADOR!$F$11='Tabla Parámetros'!$O$6,'Tabla Fijos'!K109,IF(COTIZADOR!$F$11='Tabla Parámetros'!$O$4,'Tabla Crecientes'!K108))))) -> 457.22 | K164: =IF(B164="","",IF($F$11='Tabla Parámetros'!$O$3,'Tabla Fijos'!L109,IF($F$11='Tabla Parámetros'!$O$5,'Tabla Fijos'!L109,IF(COTIZADOR!$F$11='Tabla Parámetros'!$O$6,'Tabla Fijos'!L109,IF(COTIZADOR!$F$11='Tabla Parámetros'!$O$4,'Tabla Crecientes'!L108))))) -> 247.06 | L164: =IF(B164="","",IF($F$11='Tabla Parámetros'!$O$3,'Tabla Fijos'!M109,IF($F$11='Tabla Parámetros'!$O$5,'Tabla Fijos'!M109,IF(COTIZADOR!$F$11='Tabla Parámetros'!$O$6,'Tabla Fijos'!M109,IF(COTIZADOR!$F$11='Tabla Parámetros'!$O$4,'Tabla Crecientes'!M108))))) -> 349.00 | M164: =IF($F$11='Tabla Parámetros'!$O$3,'Tabla Fijos'!N109,IF($F$11='Tabla Parámetros'!$O$5,'Tabla Fijos'!N109,IF(COTIZADOR!$F$11='Tabla Parámetros'!$O$6,'Tabla Fijos'!N109,IF(COTIZADOR!$F$11='Tabla Parámetros'!$O$4,'Tabla Crecientes'!N108)))) -> 0.00 | O164: 9,170.47 | P164: 758,748.41 | Q164: 1
B165: 99 | C165: =IF($B$67="","",'Fecha Pago'!K102) -> 2029-01-03 | D165: =IF($B$67="","",'Fecha Pago'!L102) -> 30.40 | E165: =IF(B165="","",IF($F$11='Tabla Parámetros'!$O$3,'Tabla Fijos'!E109,IF($F$11='Tabla Parámetros'!$O$5,'Tabla Fijos'!E109,IF(COTIZADOR!$F$11='Tabla Parámetros'!$O$6,'Tabla Fijos'!E109,IF(COTIZADOR!$F$11='Tabla Parámetros'!$O$4,'Tabla Crecientes'!E108))))) -> 7.50% | F165: 758,748.41 | G165: =IF(B165="","",IF($F$11='Tabla Parámetros'!$O$3,'Tabla Fijos'!G110,IF($F$11='Tabla Parámetros'!$O$5,'Tabla Fijos'!G110,IF(COTIZADOR!$F$11='Tabla Parámetros'!$O$6,'Tabla Fijos'!G110,IF(COTIZADOR!$F$11='Tabla Parámetros'!$O$4,'Tabla Crecientes'!G109))))) -> 3,311.78 | H165: =IF(B165="","",IF($F$11='Tabla Parámetros'!$O$3,'Tabla Fijos'!H110,IF($F$11='Tabla Parámetros'!$O$5,'Tabla Fijos'!H110,IF(COTIZADOR!$F$11='Tabla Parámetros'!$O$6,'Tabla Fijos'!H110,IF(COTIZADOR!$F$11='Tabla Parámetros'!$O$4,'Tabla Crecientes'!H109))))) -> 4,805.41 | I165: =IF($F$11='Tabla Parámetros'!$O$3,'Tabla Fijos'!I110,IF($F$11='Tabla Parámetros'!$O$5,'Tabla Fijos'!I110,IF(COTIZADOR!$F$11='Tabla Parámetros'!$O$6,'Tabla Fijos'!I110,IF(COTIZADOR!$F$11='Tabla Parámetros'!$O$4,'Tabla Crecientes'!I109)))) -> 0.00 | J165: =IF(B165="","",IF($F$11='Tabla Parámetros'!$O$3,'Tabla Fijos'!K110,IF($F$11='Tabla Parámetros'!$O$5,'Tabla Fijos'!K110,IF(COTIZADOR!$F$11='Tabla Parámetros'!$O$6,'Tabla Fijos'!K110,IF(COTIZADOR!$F$11='Tabla Parámetros'!$O$4,'Tabla Crecientes'!K109))))) -> 455.25 | K165: =IF(B165="","",IF($F$11='Tabla Parámetros'!$O$3,'Tabla Fijos'!L110,IF($F$11='Tabla Parámetros'!$O$5,'Tabla Fijos'!L110,IF(COTIZADOR!$F$11='Tabla Parámetros'!$O$6,'Tabla Fijos'!L110,IF(COTIZADOR!$F$11='Tabla Parámetros'!$O$4,'Tabla Crecientes'!L109))))) -> 247.06 | L165: =IF(B165="","",IF($F$11='Tabla Parámetros'!$O$3,'Tabla Fijos'!M110,IF($F$11='Tabla Parámetros'!$O$5,'Tabla Fijos'!M110,IF(COTIZADOR!$F$11='Tabla Parámetros'!$O$6,'Tabla Fijos'!M110,IF(COTIZADOR!$F$11='Tabla Parámetros'!$O$4,'Tabla Crecientes'!M109))))) -> 349.00 | M165: =IF($F$11='Tabla Parámetros'!$O$3,'Tabla Fijos'!N110,IF($F$11='Tabla Parámetros'!$O$5,'Tabla Fijos'!N110,IF(COTIZADOR!$F$11='Tabla Parámetros'!$O$6,'Tabla Fijos'!N110,IF(COTIZADOR!$F$11='Tabla Parámetros'!$O$4,'Tabla Crecientes'!N109)))) -> 0.00 | O165: 9,168.50 | P165: 755,436.62 | Q165: 1
B166: 100 | C166: =IF($B$67="","",'Fecha Pago'!K103) -> 2029-02-03 | D166: =IF($B$67="","",'Fecha Pago'!L103) -> 30.40 | E166: =IF(B166="","",IF($F$11='Tabla Parámetros'!$O$3,'Tabla Fijos'!E110,IF($F$11='Tabla Parámetros'!$O$5,'Tabla Fijos'!E110,IF(COTIZADOR!$F$11='Tabla Parámetros'!$O$6,'Tabla Fijos'!E110,IF(COTIZADOR!$F$11='Tabla Parámetros'!$O$4,'Tabla Crecientes'!E109))))) -> 7.50% | F166: 755,436.62 | G166: =IF(B166="","",IF($F$11='Tabla Parámetros'!$O$3,'Tabla Fijos'!G111,IF($F$11='Tabla Parámetros'!$O$5,'Tabla Fijos'!G111,IF(COTIZADOR!$F$11='Tabla Parámetros'!$O$6,'Tabla Fijos'!G111,IF(COTIZADOR!$F$11='Tabla Parámetros'!$O$4,'Tabla Crecientes'!G110))))) -> 3,332.76 | H166: =IF(B166="","",IF($F$11='Tabla Parámetros'!$O$3,'Tabla Fijos'!H111,IF($F$11='Tabla Parámetros'!$O$5,'Tabla Fijos'!H111,IF(COTIZADOR!$F$11='Tabla Parámetros'!$O$6,'Tabla Fijos'!H111,IF(COTIZADOR!$F$11='Tabla Parámetros'!$O$4,'Tabla Crecientes'!H110))))) -> 4,784.43 | I166: =IF($F$11='Tabla Parámetros'!$O$3,'Tabla Fijos'!I111,IF($F$11='Tabla Parámetros'!$O$5,'Tabla Fijos'!I111,IF(COTIZADOR!$F$11='Tabla Parámetros'!$O$6,'Tabla Fijos'!I111,IF(COTIZADOR!$F$11='Tabla Parámetros'!$O$4,'Tabla Crecientes'!I110)))) -> 0.00 | J166: =IF(B166="","",IF($F$11='Tabla Parámetros'!$O$3,'Tabla Fijos'!K111,IF($F$11='Tabla Parámetros'!$O$5,'Tabla Fijos'!K111,IF(COTIZADOR!$F$11='Tabla Parámetros'!$O$6,'Tabla Fijos'!K111,IF(COTIZADOR!$F$11='Tabla Parámetros'!$O$4,'Tabla Crecientes'!K110))))) -> 453.26 | K166: =IF(B166="","",IF($F$11='Tabla Parámetros'!$O$3,'Tabla Fijos'!L111,IF($F$11='Tabla Parámetros'!$O$5,'Tabla Fijos'!L111,IF(COTIZADOR!$F$11='Tabla Parámetros'!$O$6,'Tabla Fijos'!L111,IF(COTIZADOR!$F$11='Tabla Parámetros'!$O$4,'Tabla Crecientes'!L110))))) -> 247.06 | L166: =IF(B166="","",IF($F$11='Tabla Parámetros'!$O$3,'Tabla Fijos'!M111,IF($F$11='Tabla Parámetros'!$O$5,'Tabla Fijos'!M111,IF(COTIZADOR!$F$11='Tabla Parámetros'!$O$6,'Tabla Fijos'!M111,IF(COTIZADOR!$F$11='Tabla Parámetros'!$O$4,'Tabla Crecientes'!M110))))) -> 349.00 | M166: =IF($F$11='Tabla Parámetros'!$O$3,'Tabla Fijos'!N111,IF($F$11='Tabla Parámetros'!$O$5,'Tabla Fijos'!N111,IF(COTIZADOR!$F$11='Tabla Parámetros'!$O$6,'Tabla Fijos'!N111,IF(COTIZADOR!$F$11='Tabla Parámetros'!$O$4,'Tabla Crecientes'!N110)))) -> 0.00 | O166: 9,166.51 | P166: 752,103.87 | Q166: 1
B167: 101 | C167: =IF($B$67="","",'Fecha Pago'!K104) -> 2029-03-03 | D167: =IF($B$67="","",'Fecha Pago'!L104) -> 30.40 | E167: =IF(B167="","",IF($F$11='Tabla Parámetros'!$O$3,'Tabla Fijos'!E111,IF($F$11='Tabla Parámetros'!$O$5,'Tabla Fijos'!E111,IF(COTIZADOR!$F$11='Tabla Parámetros'!$O$6,'Tabla Fijos'!E111,IF(COTIZADOR!$F$11='Tabla Parámetros'!$O$4,'Tabla Crecientes'!E110))))) -> 7.50% | F167: 752,103.87 | G167: =IF(B167="","",IF($F$11='Tabla Parámetros'!$O$3,'Tabla Fijos'!G112,IF($F$11='Tabla Parámetros'!$O$5,'Tabla Fijos'!G112,IF(COTIZADOR!$F$11='Tabla Parámetros'!$O$6,'Tabla Fijos'!G112,IF(COTIZADOR!$F$11='Tabla Parámetros'!$O$4,'Tabla Crecientes'!G111))))) -> 3,353.86 | H167: =IF(B167="","",IF($F$11='Tabla Parámetros'!$O$3,'Tabla Fijos'!H112,IF($F$11='Tabla Parámetros'!$O$5,'Tabla Fijos'!H112,IF(COTIZADOR!$F$11='Tabla Parámetros'!$O$6,'Tabla Fijos'!H112,IF(COTIZADOR!$F$11='Tabla Parámetros'!$O$4,'Tabla Crecientes'!H111))))) -> 4,763.32 | I167: =IF($F$11='Tabla Parámetros'!$O$3,'Tabla Fijos'!I112,IF($F$11='Tabla Parámetros'!$O$5,'Tabla Fijos'!I112,IF(COTIZADOR!$F$11='Tabla Parámetros'!$O$6,'Tabla Fijos'!I112,IF(COTIZADOR!$F$11='Tabla Parámetros'!$O$4,'Tabla Crecientes'!I111)))) -> 0.00 | J167: =IF(B167="","",IF($F$11='Tabla Parámetros'!$O$3,'Tabla Fijos'!K112,IF($F$11='Tabla Parámetros'!$O$5,'Tabla Fijos'!K112,IF(COTIZADOR!$F$11='Tabla Parámetros'!$O$6,'Tabla Fijos'!K112,IF(COTIZADOR!$F$11='Tabla Parámetros'!$O$4,'Tabla Crecientes'!K111))))) -> 451.26 | K167: =IF(B167="","",IF($F$11='Tabla Parámetros'!$O$3,'Tabla Fijos'!L112,IF($F$11='Tabla Parámetros'!$O$5,'Tabla Fijos'!L112,IF(COTIZADOR!$F$11='Tabla Parámetros'!$O$6,'Tabla Fijos'!L112,IF(COTIZADOR!$F$11='Tabla Parámetros'!$O$4,'Tabla Crecientes'!L111))))) -> 247.06 | L167: =IF(B167="","",IF($F$11='Tabla Parámetros'!$O$3,'Tabla Fijos'!M112,IF($F$11='Tabla Parámetros'!$O$5,'Tabla Fijos'!M112,IF(COTIZADOR!$F$11='Tabla Parámetros'!$O$6,'Tabla Fijos'!M112,IF(COTIZADOR!$F$11='Tabla Parámetros'!$O$4,'Tabla Crecientes'!M111))))) -> 349.00 | M167: =IF($F$11='Tabla Parámetros'!$O$3,'Tabla Fijos'!N112,IF($F$11='Tabla Parámetros'!$O$5,'Tabla Fijos'!N112,IF(COTIZADOR!$F$11='Tabla Parámetros'!$O$6,'Tabla Fijos'!N112,IF(COTIZADOR!$F$11='Tabla Parámetros'!$O$4,'Tabla Crecientes'!N111)))) -> 0.00 | O167: 9,164.51 | P167: 748,750.00 | Q167: 1
B168: 102 | C168: =IF($B$67="","",'Fecha Pago'!K105) -> 2029-04-03 | D168: =IF($B$67="","",'Fecha Pago'!L105) -> 30.40 | E168: =IF(B168="","",IF($F$11='Tabla Parámetros'!$O$3,'Tabla Fijos'!E112,IF($F$11='Tabla Parámetros'!$O$5,'Tabla Fijos'!E112,IF(COTIZADOR!$F$11='Tabla Parámetros'!$O$6,'Tabla Fijos'!E112,IF(COTIZADOR!$F$11='Tabla Parámetros'!$O$4,'Tabla Crecientes'!E111))))) -> 7.50% | F168: 748,750.00 | G168: =IF(B168="","",IF($F$11='Tabla Parámetros'!$O$3,'Tabla Fijos'!G113,IF($F$11='Tabla Parámetros'!$O$5,'Tabla Fijos'!G113,IF(COTIZADOR!$F$11='Tabla Parámetros'!$O$6,'Tabla Fijos'!G113,IF(COTIZADOR!$F$11='Tabla Parámetros'!$O$4,'Tabla Crecientes'!G112))))) -> 3,375.11 | H168: =IF(B168="","",IF($F$11='Tabla Parámetros'!$O$3,'Tabla Fijos'!H113,IF($F$11='Tabla Parámetros'!$O$5,'Tabla Fijos'!H113,IF(COTIZADOR!$F$11='Tabla Parámetros'!$O$6,'Tabla Fijos'!H113,IF(COTIZADOR!$F$11='Tabla Parámetros'!$O$4,'Tabla Crecientes'!H112))))) -> 4,742.08 | I168: =IF($F$11='Tabla Parámetros'!$O$3,'Tabla Fijos'!I113,IF($F$11='Tabla Parámetros'!$O$5,'Tabla Fijos'!I113,IF(COTIZADOR!$F$11='Tabla Parámetros'!$O$6,'Tabla Fijos'!I113,IF(COTIZADOR!$F$11='Tabla Parámetros'!$O$4,'Tabla Crecientes'!I112)))) -> 0.00 | J168: =IF(B168="","",IF($F$11='Tabla Parámetros'!$O$3,'Tabla Fijos'!K113,IF($F$11='Tabla Parámetros'!$O$5,'Tabla Fijos'!K113,IF(COTIZADOR!$F$11='Tabla Parámetros'!$O$6,'Tabla Fijos'!K113,IF(COTIZADOR!$F$11='Tabla Parámetros'!$O$4,'Tabla Crecientes'!K112))))) -> 449.25 | K168: =IF(B168="","",IF($F$11='Tabla Parámetros'!$O$3,'Tabla Fijos'!L113,IF($F$11='Tabla Parámetros'!$O$5,'Tabla Fijos'!L113,IF(COTIZADOR!$F$11='Tabla Parámetros'!$O$6,'Tabla Fijos'!L113,IF(COTIZADOR!$F$11='Tabla Parámetros'!$O$4,'Tabla Crecientes'!L112))))) -> 247.06 | L168: =IF(B168="","",IF($F$11='Tabla Parámetros'!$O$3,'Tabla Fijos'!M113,IF($F$11='Tabla Parámetros'!$O$5,'Tabla Fijos'!M113,IF(COTIZADOR!$F$11='Tabla Parámetros'!$O$6,'Tabla Fijos'!M113,IF(COTIZADOR!$F$11='Tabla Parámetros'!$O$4,'Tabla Crecientes'!M112))))) -> 349.00 | M168: =IF($F$11='Tabla Parámetros'!$O$3,'Tabla Fijos'!N113,IF($F$11='Tabla Parámetros'!$O$5,'Tabla Fijos'!N113,IF(COTIZADOR!$F$11='Tabla Parámetros'!$O$6,'Tabla Fijos'!N113,IF(COTIZADOR!$F$11='Tabla Parámetros'!$O$4,'Tabla Crecientes'!N112)))) -> 0.00 | O168: 9,162.50 | P168: 745,374.90 | Q168: 1
B169: 103 | C169: =IF($B$67="","",'Fecha Pago'!K106) -> 2029-05-03 | D169: =IF($B$67="","",'Fecha Pago'!L106) -> 30.40 | E169: =IF(B169="","",IF($F$11='Tabla Parámetros'!$O$3,'Tabla Fijos'!E113,IF($F$11='Tabla Parámetros'!$O$5,'Tabla Fijos'!E113,IF(COTIZADOR!$F$11='Tabla Parámetros'!$O$6,'Tabla Fijos'!E113,IF(COTIZADOR!$F$11='Tabla Parámetros'!$O$4,'Tabla Crecientes'!E112))))) -> 7.50% | F169: 745,374.90 | G169: =IF(B169="","",IF($F$11='Tabla Parámetros'!$O$3,'Tabla Fijos'!G114,IF($F$11='Tabla Parámetros'!$O$5,'Tabla Fijos'!G114,IF(COTIZADOR!$F$11='Tabla Parámetros'!$O$6,'Tabla Fijos'!G114,IF(COTIZADOR!$F$11='Tabla Parámetros'!$O$4,'Tabla Crecientes'!G113))))) -> 3,396.48 | H169: =IF(B169="","",IF($F$11='Tabla Parámetros'!$O$3,'Tabla Fijos'!H114,IF($F$11='Tabla Parámetros'!$O$5,'Tabla Fijos'!H114,IF(COTIZADOR!$F$11='Tabla Parámetros'!$O$6,'Tabla Fijos'!H114,IF(COTIZADOR!$F$11='Tabla Parámetros'!$O$4,'Tabla Crecientes'!H113))))) -> 4,720.71 | I169: =IF($F$11='Tabla Parámetros'!$O$3,'Tabla Fijos'!I114,IF($F$11='Tabla Parámetros'!$O$5,'Tabla Fijos'!I114,IF(COTIZADOR!$F$11='Tabla Parámetros'!$O$6,'Tabla Fijos'!I114,IF(COTIZADOR!$F$11='Tabla Parámetros'!$O$4,'Tabla Crecientes'!I113)))) -> 0.00 | J169: =IF(B169="","",IF($F$11='Tabla Parámetros'!$O$3,'Tabla Fijos'!K114,IF($F$11='Tabla Parámetros'!$O$5,'Tabla Fijos'!K114,IF(COTIZADOR!$F$11='Tabla Parámetros'!$O$6,'Tabla Fijos'!K114,IF(COTIZADOR!$F$11='Tabla Parámetros'!$O$4,'Tabla Crecientes'!K113))))) -> 447.22 | K169: =IF(B169="","",IF($F$11='Tabla Parámetros'!$O$3,'Tabla Fijos'!L114,IF($F$11='Tabla Parámetros'!$O$5,'Tabla Fijos'!L114,IF(COTIZADOR!$F$11='Tabla Parámetros'!$O$6,'Tabla Fijos'!L114,IF(COTIZADOR!$F$11='Tabla Parámetros'!$O$4,'Tabla Crecientes'!L113))))) -> 247.06 | L169: =IF(B169="","",IF($F$11='Tabla Parámetros'!$O$3,'Tabla Fijos'!M114,IF($F$11='Tabla Parámetros'!$O$5,'Tabla Fijos'!M114,IF(COTIZADOR!$F$11='Tabla Parámetros'!$O$6,'Tabla Fijos'!M114,IF(COTIZADOR!$F$11='Tabla Parámetros'!$O$4,'Tabla Crecientes'!M113))))) -> 349.00 | M169: =IF($F$11='Tabla Parámetros'!$O$3,'Tabla Fijos'!N114,IF($F$11='Tabla Parámetros'!$O$5,'Tabla Fijos'!N114,IF(COTIZADOR!$F$11='Tabla Parámetros'!$O$6,'Tabla Fijos'!N114,IF(COTIZADOR!$F$11='Tabla Parámetros'!$O$4,'Tabla Crecientes'!N113)))) -> 0.00 | O169: 9,160.47 | P169: 741,978.42 | Q169: 1
B170: 104 | C170: =IF($B$67="","",'Fecha Pago'!K107) -> 2029-06-03 | D170: =IF($B$67="","",'Fecha Pago'!L107) -> 30.40 | E170: =IF(B170="","",IF($F$11='Tabla Parámetros'!$O$3,'Tabla Fijos'!E114,IF($F$11='Tabla Parámetros'!$O$5,'Tabla Fijos'!E114,IF(COTIZADOR!$F$11='Tabla Parámetros'!$O$6,'Tabla Fijos'!E114,IF(COTIZADOR!$F$11='Tabla Parámetros'!$O$4,'Tabla Crecientes'!E113))))) -> 7.50% | F170: 741,978.42 | G170: =IF(B170="","",IF($F$11='Tabla Parámetros'!$O$3,'Tabla Fijos'!G115,IF($F$11='Tabla Parámetros'!$O$5,'Tabla Fijos'!G115,IF(COTIZADOR!$F$11='Tabla Parámetros'!$O$6,'Tabla Fijos'!G115,IF(COTIZADOR!$F$11='Tabla Parámetros'!$O$4,'Tabla Crecientes'!G114))))) -> 3,417.99 | H170: =IF(B170="","",IF($F$11='Tabla Parámetros'!$O$3,'Tabla Fijos'!H115,IF($F$11='Tabla Parámetros'!$O$5,'Tabla Fijos'!H115,IF(COTIZADOR!$F$11='Tabla Parámetros'!$O$6,'Tabla Fijos'!H115,IF(COTIZADOR!$F$11='Tabla Parámetros'!$O$4,'Tabla Crecientes'!H114))))) -> 4,699.20 | I170: =IF($F$11='Tabla Parámetros'!$O$3,'Tabla Fijos'!I115,IF($F$11='Tabla Parámetros'!$O$5,'Tabla Fijos'!I115,IF(COTIZADOR!$F$11='Tabla Parámetros'!$O$6,'Tabla Fijos'!I115,IF(COTIZADOR!$F$11='Tabla Parámetros'!$O$4,'Tabla Crecientes'!I114)))) -> 0.00 | J170: =IF(B170="","",IF($F$11='Tabla Parámetros'!$O$3,'Tabla Fijos'!K115,IF($F$11='Tabla Parámetros'!$O$5,'Tabla Fijos'!K115,IF(COTIZADOR!$F$11='Tabla Parámetros'!$O$6,'Tabla Fijos'!K115,IF(COTIZADOR!$F$11='Tabla Parámetros'!$O$4,'Tabla Crecientes'!K114))))) -> 445.19 | K170: =IF(B170="","",IF($F$11='Tabla Parámetros'!$O$3,'Tabla Fijos'!L115,IF($F$11='Tabla Parámetros'!$O$5,'Tabla Fijos'!L115,IF(COTIZADOR!$F$11='Tabla Parámetros'!$O$6,'Tabla Fijos'!L115,IF(COTIZADOR!$F$11='Tabla Parámetros'!$O$4,'Tabla Crecientes'!L114))))) -> 247.06 | L170: =IF(B170="","",IF($F$11='Tabla Parámetros'!$O$3,'Tabla Fijos'!M115,IF($F$11='Tabla Parámetros'!$O$5,'Tabla Fijos'!M115,IF(COTIZADOR!$F$11='Tabla Parámetros'!$O$6,'Tabla Fijos'!M115,IF(COTIZADOR!$F$11='Tabla Parámetros'!$O$4,'Tabla Crecientes'!M114))))) -> 349.00 | M170: =IF($F$11='Tabla Parámetros'!$O$3,'Tabla Fijos'!N115,IF($F$11='Tabla Parámetros'!$O$5,'Tabla Fijos'!N115,IF(COTIZADOR!$F$11='Tabla Parámetros'!$O$6,'Tabla Fijos'!N115,IF(COTIZADOR!$F$11='Tabla Parámetros'!$O$4,'Tabla Crecientes'!N114)))) -> 0.00 | O170: 9,158.43 | P170: 738,560.42 | Q170: 1
B171: 105 | C171: =IF($B$67="","",'Fecha Pago'!K108) -> 2029-07-03 | D171: =IF($B$67="","",'Fecha Pago'!L108) -> 30.40 | E171: =IF(B171="","",IF($F$11='Tabla Parámetros'!$O$3,'Tabla Fijos'!E115,IF($F$11='Tabla Parámetros'!$O$5,'Tabla Fijos'!E115,IF(COTIZADOR!$F$11='Tabla Parámetros'!$O$6,'Tabla Fijos'!E115,IF(COTIZADOR!$F$11='Tabla Parámetros'!$O$4,'Tabla Crecientes'!E114))))) -> 7.50% | F171: 738,560.42 | G171: =IF(B171="","",IF($F$11='Tabla Parámetros'!$O$3,'Tabla Fijos'!G116,IF($F$11='Tabla Parámetros'!$O$5,'Tabla Fijos'!G116,IF(COTIZADOR!$F$11='Tabla Parámetros'!$O$6,'Tabla Fijos'!G116,IF(COTIZADOR!$F$11='Tabla Parámetros'!$O$4,'Tabla Crecientes'!G115))))) -> 3,439.64 | H171: =IF(B171="","",IF($F$11='Tabla Parámetros'!$O$3,'Tabla Fijos'!H116,IF($F$11='Tabla Parámetros'!$O$5,'Tabla Fijos'!H116,IF(COTIZADOR!$F$11='Tabla Parámetros'!$O$6,'Tabla Fijos'!H116,IF(COTIZADOR!$F$11='Tabla Parámetros'!$O$4,'Tabla Crecientes'!H115))))) -> 4,677.55 | I171: =IF($F$11='Tabla Parámetros'!$O$3,'Tabla Fijos'!I116,IF($F$11='Tabla Parámetros'!$O$5,'Tabla Fijos'!I116,IF(COTIZADOR!$F$11='Tabla Parámetros'!$O$6,'Tabla Fijos'!I116,IF(COTIZADOR!$F$11='Tabla Parámetros'!$O$4,'Tabla Crecientes'!I115)))) -> 0.00 | J171: =IF(B171="","",IF($F$11='Tabla Parámetros'!$O$3,'Tabla Fijos'!K116,IF($F$11='Tabla Parámetros'!$O$5,'Tabla Fijos'!K116,IF(COTIZADOR!$F$11='Tabla Parámetros'!$O$6,'Tabla Fijos'!K116,IF(COTIZADOR!$F$11='Tabla Parámetros'!$O$4,'Tabla Crecientes'!K115))))) -> 443.14 | K171: =IF(B171="","",IF($F$11='Tabla Parámetros'!$O$3,'Tabla Fijos'!L116,IF($F$11='Tabla Parámetros'!$O$5,'Tabla Fijos'!L116,IF(COTIZADOR!$F$11='Tabla Parámetros'!$O$6,'Tabla Fijos'!L116,IF(COTIZADOR!$F$11='Tabla Parámetros'!$O$4,'Tabla Crecientes'!L115))))) -> 247.06 | L171: =IF(B171="","",IF($F$11='Tabla Parámetros'!$O$3,'Tabla Fijos'!M116,IF($F$11='Tabla Parámetros'!$O$5,'Tabla Fijos'!M116,IF(COTIZADOR!$F$11='Tabla Parámetros'!$O$6,'Tabla Fijos'!M116,IF(COTIZADOR!$F$11='Tabla Parámetros'!$O$4,'Tabla Crecientes'!M115))))) -> 349.00 | M171: =IF($F$11='Tabla Parámetros'!$O$3,'Tabla Fijos'!N116,IF($F$11='Tabla Parámetros'!$O$5,'Tabla Fijos'!N116,IF(COTIZADOR!$F$11='Tabla Parámetros'!$O$6,'Tabla Fijos'!N116,IF(COTIZADOR!$F$11='Tabla Parámetros'!$O$4,'Tabla Crecientes'!N115)))) -> 0.00 | O171: 9,156.38 | P171: 735,120.78 | Q171: 1
B172: 106 | C172: =IF($B$67="","",'Fecha Pago'!K109) -> 2029-08-03 | D172: =IF($B$67="","",'Fecha Pago'!L109) -> 30.40 | E172: =IF(B172="","",IF($F$11='Tabla Parámetros'!$O$3,'Tabla Fijos'!E116,IF($F$11='Tabla Parámetros'!$O$5,'Tabla Fijos'!E116,IF(COTIZADOR!$F$11='Tabla Parámetros'!$O$6,'Tabla Fijos'!E116,IF(COTIZADOR!$F$11='Tabla Parámetros'!$O$4,'Tabla Crecientes'!E115))))) -> 7.50% | F172: 735,120.78 | G172: =IF(B172="","",IF($F$11='Tabla Parámetros'!$O$3,'Tabla Fijos'!G117,IF($F$11='Tabla Parámetros'!$O$5,'Tabla Fijos'!G117,IF(COTIZADOR!$F$11='Tabla Parámetros'!$O$6,'Tabla Fijos'!G117,IF(COTIZADOR!$F$11='Tabla Parámetros'!$O$4,'Tabla Crecientes'!G116))))) -> 3,461.42 | H172: =IF(B172="","",IF($F$11='Tabla Parámetros'!$O$3,'Tabla Fijos'!H117,IF($F$11='Tabla Parámetros'!$O$5,'Tabla Fijos'!H117,IF(COTIZADOR!$F$11='Tabla Parámetros'!$O$6,'Tabla Fijos'!H117,IF(COTIZADOR!$F$11='Tabla Parámetros'!$O$4,'Tabla Crecientes'!H116))))) -> 4,655.76 | I172: =IF($F$11='Tabla Parámetros'!$O$3,'Tabla Fijos'!I117,IF($F$11='Tabla Parámetros'!$O$5,'Tabla Fijos'!I117,IF(COTIZADOR!$F$11='Tabla Parámetros'!$O$6,'Tabla Fijos'!I117,IF(COTIZADOR!$F$11='Tabla Parámetros'!$O$4,'Tabla Crecientes'!I116)))) -> 0.00 | J172: =IF(B172="","",IF($F$11='Tabla Parámetros'!$O$3,'Tabla Fijos'!K117,IF($F$11='Tabla Parámetros'!$O$5,'Tabla Fijos'!K117,IF(COTIZADOR!$F$11='Tabla Parámetros'!$O$6,'Tabla Fijos'!K117,IF(COTIZADOR!$F$11='Tabla Parámetros'!$O$4,'Tabla Crecientes'!K116))))) -> 441.07 | K172: =IF(B172="","",IF($F$11='Tabla Parámetros'!$O$3,'Tabla Fijos'!L117,IF($F$11='Tabla Parámetros'!$O$5,'Tabla Fijos'!L117,IF(COTIZADOR!$F$11='Tabla Parámetros'!$O$6,'Tabla Fijos'!L117,IF(COTIZADOR!$F$11='Tabla Parámetros'!$O$4,'Tabla Crecientes'!L116))))) -> 247.06 | L172: =IF(B172="","",IF($F$11='Tabla Parámetros'!$O$3,'Tabla Fijos'!M117,IF($F$11='Tabla Parámetros'!$O$5,'Tabla Fijos'!M117,IF(COTIZADOR!$F$11='Tabla Parámetros'!$O$6,'Tabla Fijos'!M117,IF(COTIZADOR!$F$11='Tabla Parámetros'!$O$4,'Tabla Crecientes'!M116))))) -> 349.00 | M172: =IF($F$11='Tabla Parámetros'!$O$3,'Tabla Fijos'!N117,IF($F$11='Tabla Parámetros'!$O$5,'Tabla Fijos'!N117,IF(COTIZADOR!$F$11='Tabla Parámetros'!$O$6,'Tabla Fijos'!N117,IF(COTIZADOR!$F$11='Tabla Parámetros'!$O$4,'Tabla Crecientes'!N116)))) -> 0.00 | O172: 9,154.32 | P172: 731,659.36 | Q172: 1
B173: 107 | C173: =IF($B$67="","",'Fecha Pago'!K110) -> 2029-09-03 | D173: =IF($B$67="","",'Fecha Pago'!L110) -> 30.40 | E173: =IF(B173="","",IF($F$11='Tabla Parámetros'!$O$3,'Tabla Fijos'!E117,IF($F$11='Tabla Parámetros'!$O$5,'Tabla Fijos'!E117,IF(COTIZADOR!$F$11='Tabla Parámetros'!$O$6,'Tabla Fijos'!E117,IF(COTIZADOR!$F$11='Tabla Parámetros'!$O$4,'Tabla Crecientes'!E116))))) -> 7.50% | F173: 731,659.36 | G173: =IF(B173="","",IF($F$11='Tabla Parámetros'!$O$3,'Tabla Fijos'!G118,IF($F$11='Tabla Parámetros'!$O$5,'Tabla Fijos'!G118,IF(COTIZADOR!$F$11='Tabla Parámetros'!$O$6,'Tabla Fijos'!G118,IF(COTIZADOR!$F$11='Tabla Parámetros'!$O$4,'Tabla Crecientes'!G117))))) -> 3,483.35 | H173: =IF(B173="","",IF($F$11='Tabla Parámetros'!$O$3,'Tabla Fijos'!H118,IF($F$11='Tabla Parámetros'!$O$5,'Tabla Fijos'!H118,IF(COTIZADOR!$F$11='Tabla Parámetros'!$O$6,'Tabla Fijos'!H118,IF(COTIZADOR!$F$11='Tabla Parámetros'!$O$4,'Tabla Crecientes'!H117))))) -> 4,633.84 | I173: =IF($F$11='Tabla Parámetros'!$O$3,'Tabla Fijos'!I118,IF($F$11='Tabla Parámetros'!$O$5,'Tabla Fijos'!I118,IF(COTIZADOR!$F$11='Tabla Parámetros'!$O$6,'Tabla Fijos'!I118,IF(COTIZADOR!$F$11='Tabla Parámetros'!$O$4,'Tabla Crecientes'!I117)))) -> 0.00 | J173: =IF(B173="","",IF($F$11='Tabla Parámetros'!$O$3,'Tabla Fijos'!K118,IF($F$11='Tabla Parámetros'!$O$5,'Tabla Fijos'!K118,IF(COTIZADOR!$F$11='Tabla Parámetros'!$O$6,'Tabla Fijos'!K118,IF(COTIZADOR!$F$11='Tabla Parámetros'!$O$4,'Tabla Crecientes'!K117))))) -> 439.00 | K173: =IF(B173="","",IF($F$11='Tabla Parámetros'!$O$3,'Tabla Fijos'!L118,IF($F$11='Tabla Parámetros'!$O$5,'Tabla Fijos'!L118,IF(COTIZADOR!$F$11='Tabla Parámetros'!$O$6,'Tabla Fijos'!L118,IF(COTIZADOR!$F$11='Tabla Parámetros'!$O$4,'Tabla Crecientes'!L117))))) -> 247.06 | L173: =IF(B173="","",IF($F$11='Tabla Parámetros'!$O$3,'Tabla Fijos'!M118,IF($F$11='Tabla Parámetros'!$O$5,'Tabla Fijos'!M118,IF(COTIZADOR!$F$11='Tabla Parámetros'!$O$6,'Tabla Fijos'!M118,IF(COTIZADOR!$F$11='Tabla Parámetros'!$O$4,'Tabla Crecientes'!M117))))) -> 349.00 | M173: =IF($F$11='Tabla Parámetros'!$O$3,'Tabla Fijos'!N118,IF($F$11='Tabla Parámetros'!$O$5,'Tabla Fijos'!N118,IF(COTIZADOR!$F$11='Tabla Parámetros'!$O$6,'Tabla Fijos'!N118,IF(COTIZADOR!$F$11='Tabla Parámetros'!$O$4,'Tabla Crecientes'!N117)))) -> 0.00 | O173: 9,152.24 | P173: 728,176.01 | Q173: 1
B174: 108 | C174: =IF($B$67="","",'Fecha Pago'!K111) -> 2029-10-03 | D174: =IF($B$67="","",'Fecha Pago'!L111) -> 30.40 | E174: =IF(B174="","",IF($F$11='Tabla Parámetros'!$O$3,'Tabla Fijos'!E118,IF($F$11='Tabla Parámetros'!$O$5,'Tabla Fijos'!E118,IF(COTIZADOR!$F$11='Tabla Parámetros'!$O$6,'Tabla Fijos'!E118,IF(COTIZADOR!$F$11='Tabla Parámetros'!$O$4,'Tabla Crecientes'!E117))))) -> 7.50% | F174: 728,176.01 | G174: =IF(B174="","",IF($F$11='Tabla Parámetros'!$O$3,'Tabla Fijos'!G119,IF($F$11='Tabla Parámetros'!$O$5,'Tabla Fijos'!G119,IF(COTIZADOR!$F$11='Tabla Parámetros'!$O$6,'Tabla Fijos'!G119,IF(COTIZADOR!$F$11='Tabla Parámetros'!$O$4,'Tabla Crecientes'!G118))))) -> 3,505.41 | H174: =IF(B174="","",IF($F$11='Tabla Parámetros'!$O$3,'Tabla Fijos'!H119,IF($F$11='Tabla Parámetros'!$O$5,'Tabla Fijos'!H119,IF(COTIZADOR!$F$11='Tabla Parámetros'!$O$6,'Tabla Fijos'!H119,IF(COTIZADOR!$F$11='Tabla Parámetros'!$O$4,'Tabla Crecientes'!H118))))) -> 4,611.78 | I174: =IF($F$11='Tabla Parámetros'!$O$3,'Tabla Fijos'!I119,IF($F$11='Tabla Parámetros'!$O$5,'Tabla Fijos'!I119,IF(COTIZADOR!$F$11='Tabla Parámetros'!$O$6,'Tabla Fijos'!I119,IF(COTIZADOR!$F$11='Tabla Parámetros'!$O$4,'Tabla Crecientes'!I118)))) -> 0.00 | J174: =IF(B174="","",IF($F$11='Tabla Parámetros'!$O$3,'Tabla Fijos'!K119,IF($F$11='Tabla Parámetros'!$O$5,'Tabla Fijos'!K119,IF(COTIZADOR!$F$11='Tabla Parámetros'!$O$6,'Tabla Fijos'!K119,IF(COTIZADOR!$F$11='Tabla Parámetros'!$O$4,'Tabla Crecientes'!K118))))) -> 436.91 | K174: =IF(B174="","",IF($F$11='Tabla Parámetros'!$O$3,'Tabla Fijos'!L119,IF($F$11='Tabla Parámetros'!$O$5,'Tabla Fijos'!L119,IF(COTIZADOR!$F$11='Tabla Parámetros'!$O$6,'Tabla Fijos'!L119,IF(COTIZADOR!$F$11='Tabla Parámetros'!$O$4,'Tabla Crecientes'!L118))))) -> 247.06 | L174: =IF(B174="","",IF($F$11='Tabla Parámetros'!$O$3,'Tabla Fijos'!M119,IF($F$11='Tabla Parámetros'!$O$5,'Tabla Fijos'!M119,IF(COTIZADOR!$F$11='Tabla Parámetros'!$O$6,'Tabla Fijos'!M119,IF(COTIZADOR!$F$11='Tabla Parámetros'!$O$4,'Tabla Crecientes'!M118))))) -> 349.00 | M174: =IF($F$11='Tabla Parámetros'!$O$3,'Tabla Fijos'!N119,IF($F$11='Tabla Parámetros'!$O$5,'Tabla Fijos'!N119,IF(COTIZADOR!$F$11='Tabla Parámetros'!$O$6,'Tabla Fijos'!N119,IF(COTIZADOR!$F$11='Tabla Parámetros'!$O$4,'Tabla Crecientes'!N118)))) -> 0.00 | O174: 9,150.15 | P174: 724,670.61 | Q174: 1
B175: 109 | C175: =IF($B$67="","",'Fecha Pago'!K112) -> 2029-11-03 | D175: =IF($B$67="","",'Fecha Pago'!L112) -> 30.40 | E175: =IF(B175="","",IF($F$11='Tabla Parámetros'!$O$3,'Tabla Fijos'!E119,IF($F$11='Tabla Parámetros'!$O$5,'Tabla Fijos'!E119,IF(COTIZADOR!$F$11='Tabla Parámetros'!$O$6,'Tabla Fijos'!E119,IF(COTIZADOR!$F$11='Tabla Parámetros'!$O$4,'Tabla Crecientes'!E118))))) -> 7.50% | F175: 724,670.61 | G175: =IF(B175="","",IF($F$11='Tabla Parámetros'!$O$3,'Tabla Fijos'!G120,IF($F$11='Tabla Parámetros'!$O$5,'Tabla Fijos'!G120,IF(COTIZADOR!$F$11='Tabla Parámetros'!$O$6,'Tabla Fijos'!G120,IF(COTIZADOR!$F$11='Tabla Parámetros'!$O$4,'Tabla Crecientes'!G119))))) -> 3,527.61 | H175: =IF(B175="","",IF($F$11='Tabla Parámetros'!$O$3,'Tabla Fijos'!H120,IF($F$11='Tabla Parámetros'!$O$5,'Tabla Fijos'!H120,IF(COTIZADOR!$F$11='Tabla Parámetros'!$O$6,'Tabla Fijos'!H120,IF(COTIZADOR!$F$11='Tabla Parámetros'!$O$4,'Tabla Crecientes'!H119))))) -> 4,589.58 | I175: =IF($F$11='Tabla Parámetros'!$O$3,'Tabla Fijos'!I120,IF($F$11='Tabla Parámetros'!$O$5,'Tabla Fijos'!I120,IF(COTIZADOR!$F$11='Tabla Parámetros'!$O$6,'Tabla Fijos'!I120,IF(COTIZADOR!$F$11='Tabla Parámetros'!$O$4,'Tabla Crecientes'!I119)))) -> 0.00 | J175: =IF(B175="","",IF($F$11='Tabla Parámetros'!$O$3,'Tabla Fijos'!K120,IF($F$11='Tabla Parámetros'!$O$5,'Tabla Fijos'!K120,IF(COTIZADOR!$F$11='Tabla Parámetros'!$O$6,'Tabla Fijos'!K120,IF(COTIZADOR!$F$11='Tabla Parámetros'!$O$4,'Tabla Crecientes'!K119))))) -> 434.80 | K175: =IF(B175="","",IF($F$11='Tabla Parámetros'!$O$3,'Tabla Fijos'!L120,IF($F$11='Tabla Parámetros'!$O$5,'Tabla Fijos'!L120,IF(COTIZADOR!$F$11='Tabla Parámetros'!$O$6,'Tabla Fijos'!L120,IF(COTIZADOR!$F$11='Tabla Parámetros'!$O$4,'Tabla Crecientes'!L119))))) -> 247.06 | L175: =IF(B175="","",IF($F$11='Tabla Parámetros'!$O$3,'Tabla Fijos'!M120,IF($F$11='Tabla Parámetros'!$O$5,'Tabla Fijos'!M120,IF(COTIZADOR!$F$11='Tabla Parámetros'!$O$6,'Tabla Fijos'!M120,IF(COTIZADOR!$F$11='Tabla Parámetros'!$O$4,'Tabla Crecientes'!M119))))) -> 349.00 | M175: =IF($F$11='Tabla Parámetros'!$O$3,'Tabla Fijos'!N120,IF($F$11='Tabla Parámetros'!$O$5,'Tabla Fijos'!N120,IF(COTIZADOR!$F$11='Tabla Parámetros'!$O$6,'Tabla Fijos'!N120,IF(COTIZADOR!$F$11='Tabla Parámetros'!$O$4,'Tabla Crecientes'!N119)))) -> 0.00 | O175: 9,148.05 | P175: 721,143.00 | Q175: 1
B176: 110 | C176: =IF($B$67="","",'Fecha Pago'!K113) -> 2029-12-03 | D176: =IF($B$67="","",'Fecha Pago'!L113) -> 30.40 | E176: =IF(B176="","",IF($F$11='Tabla Parámetros'!$O$3,'Tabla Fijos'!E120,IF($F$11='Tabla Parámetros'!$O$5,'Tabla Fijos'!E120,IF(COTIZADOR!$F$11='Tabla Parámetros'!$O$6,'Tabla Fijos'!E120,IF(COTIZADOR!$F$11='Tabla Parámetros'!$O$4,'Tabla Crecientes'!E119))))) -> 7.50% | F176: 721,143.00 | G176: =IF(B176="","",IF($F$11='Tabla Parámetros'!$O$3,'Tabla Fijos'!G121,IF($F$11='Tabla Parámetros'!$O$5,'Tabla Fijos'!G121,IF(COTIZADOR!$F$11='Tabla Parámetros'!$O$6,'Tabla Fijos'!G121,IF(COTIZADOR!$F$11='Tabla Parámetros'!$O$4,'Tabla Crecientes'!G120))))) -> 3,549.95 | H176: =IF(B176="","",IF($F$11='Tabla Parámetros'!$O$3,'Tabla Fijos'!H121,IF($F$11='Tabla Parámetros'!$O$5,'Tabla Fijos'!H121,IF(COTIZADOR!$F$11='Tabla Parámetros'!$O$6,'Tabla Fijos'!H121,IF(COTIZADOR!$F$11='Tabla Parámetros'!$O$4,'Tabla Crecientes'!H120))))) -> 4,567.24 | I176: =IF($F$11='Tabla Parámetros'!$O$3,'Tabla Fijos'!I121,IF($F$11='Tabla Parámetros'!$O$5,'Tabla Fijos'!I121,IF(COTIZADOR!$F$11='Tabla Parámetros'!$O$6,'Tabla Fijos'!I121,IF(COTIZADOR!$F$11='Tabla Parámetros'!$O$4,'Tabla Crecientes'!I120)))) -> 0.00 | J176: =IF(B176="","",IF($F$11='Tabla Parámetros'!$O$3,'Tabla Fijos'!K121,IF($F$11='Tabla Parámetros'!$O$5,'Tabla Fijos'!K121,IF(COTIZADOR!$F$11='Tabla Parámetros'!$O$6,'Tabla Fijos'!K121,IF(COTIZADOR!$F$11='Tabla Parámetros'!$O$4,'Tabla Crecientes'!K120))))) -> 432.69 | K176: =IF(B176="","",IF($F$11='Tabla Parámetros'!$O$3,'Tabla Fijos'!L121,IF($F$11='Tabla Parámetros'!$O$5,'Tabla Fijos'!L121,IF(COTIZADOR!$F$11='Tabla Parámetros'!$O$6,'Tabla Fijos'!L121,IF(COTIZADOR!$F$11='Tabla Parámetros'!$O$4,'Tabla Crecientes'!L120))))) -> 247.06 | L176: =IF(B176="","",IF($F$11='Tabla Parámetros'!$O$3,'Tabla Fijos'!M121,IF($F$11='Tabla Parámetros'!$O$5,'Tabla Fijos'!M121,IF(COTIZADOR!$F$11='Tabla Parámetros'!$O$6,'Tabla Fijos'!M121,IF(COTIZADOR!$F$11='Tabla Parámetros'!$O$4,'Tabla Crecientes'!M120))))) -> 349.00 | M176: =IF($F$11='Tabla Parámetros'!$O$3,'Tabla Fijos'!N121,IF($F$11='Tabla Parámetros'!$O$5,'Tabla Fijos'!N121,IF(COTIZADOR!$F$11='Tabla Parámetros'!$O$6,'Tabla Fijos'!N121,IF(COTIZADOR!$F$11='Tabla Parámetros'!$O$4,'Tabla Crecientes'!N120)))) -> 0.00 | O176: 9,145.93 | P176: 717,593.05 | Q176: 1
B177: 111 | C177: =IF($B$67="","",'Fecha Pago'!K114) -> 2030-01-03 | D177: =IF($B$67="","",'Fecha Pago'!L114) -> 30.40 | E177: =IF(B177="","",IF($F$11='Tabla Parámetros'!$O$3,'Tabla Fijos'!E121,IF($F$11='Tabla Parámetros'!$O$5,'Tabla Fijos'!E121,IF(COTIZADOR!$F$11='Tabla Parámetros'!$O$6,'Tabla Fijos'!E121,IF(COTIZADOR!$F$11='Tabla Parámetros'!$O$4,'Tabla Crecientes'!E120))))) -> 7.50% | F177: 717,593.05 | G177: =IF(B177="","",IF($F$11='Tabla Parámetros'!$O$3,'Tabla Fijos'!G122,IF($F$11='Tabla Parámetros'!$O$5,'Tabla Fijos'!G122,IF(COTIZADOR!$F$11='Tabla Parámetros'!$O$6,'Tabla Fijos'!G122,IF(COTIZADOR!$F$11='Tabla Parámetros'!$O$4,'Tabla Crecientes'!G121))))) -> 3,572.43 | H177: =IF(B177="","",IF($F$11='Tabla Parámetros'!$O$3,'Tabla Fijos'!H122,IF($F$11='Tabla Parámetros'!$O$5,'Tabla Fijos'!H122,IF(COTIZADOR!$F$11='Tabla Parámetros'!$O$6,'Tabla Fijos'!H122,IF(COTIZADOR!$F$11='Tabla Parámetros'!$O$4,'Tabla Crecientes'!H121))))) -> 4,544.76 | I177: =IF($F$11='Tabla Parámetros'!$O$3,'Tabla Fijos'!I122,IF($F$11='Tabla Parámetros'!$O$5,'Tabla Fijos'!I122,IF(COTIZADOR!$F$11='Tabla Parámetros'!$O$6,'Tabla Fijos'!I122,IF(COTIZADOR!$F$11='Tabla Parámetros'!$O$4,'Tabla Crecientes'!I121)))) -> 0.00 | J177: =IF(B177="","",IF($F$11='Tabla Parámetros'!$O$3,'Tabla Fijos'!K122,IF($F$11='Tabla Parámetros'!$O$5,'Tabla Fijos'!K122,IF(COTIZADOR!$F$11='Tabla Parámetros'!$O$6,'Tabla Fijos'!K122,IF(COTIZADOR!$F$11='Tabla Parámetros'!$O$4,'Tabla Crecientes'!K121))))) -> 430.56 | K177: =IF(B177="","",IF($F$11='Tabla Parámetros'!$O$3,'Tabla Fijos'!L122,IF($F$11='Tabla Parámetros'!$O$5,'Tabla Fijos'!L122,IF(COTIZADOR!$F$11='Tabla Parámetros'!$O$6,'Tabla Fijos'!L122,IF(COTIZADOR!$F$11='Tabla Parámetros'!$O$4,'Tabla Crecientes'!L121))))) -> 247.06 | L177: =IF(B177="","",IF($F$11='Tabla Parámetros'!$O$3,'Tabla Fijos'!M122,IF($F$11='Tabla Parámetros'!$O$5,'Tabla Fijos'!M122,IF(COTIZADOR!$F$11='Tabla Parámetros'!$O$6,'Tabla Fijos'!M122,IF(COTIZADOR!$F$11='Tabla Parámetros'!$O$4,'Tabla Crecientes'!M121))))) -> 349.00 | M177: =IF($F$11='Tabla Parámetros'!$O$3,'Tabla Fijos'!N122,IF($F$11='Tabla Parámetros'!$O$5,'Tabla Fijos'!N122,IF(COTIZADOR!$F$11='Tabla Parámetros'!$O$6,'Tabla Fijos'!N122,IF(COTIZADOR!$F$11='Tabla Parámetros'!$O$4,'Tabla Crecientes'!N121)))) -> 0.00 | O177: 9,143.80 | P177: 714,020.62 | Q177: 1
B178: 112 | C178: =IF($B$67="","",'Fecha Pago'!K115) -> 2030-02-03 | D178: =IF($B$67="","",'Fecha Pago'!L115) -> 30.40 | E178: =IF(B178="","",IF($F$11='Tabla Parámetros'!$O$3,'Tabla Fijos'!E122,IF($F$11='Tabla Parámetros'!$O$5,'Tabla Fijos'!E122,IF(COTIZADOR!$F$11='Tabla Parámetros'!$O$6,'Tabla Fijos'!E122,IF(COTIZADOR!$F$11='Tabla Parámetros'!$O$4,'Tabla Crecientes'!E121))))) -> 7.50% | F178: 714,020.62 | G178: =IF(B178="","",IF($F$11='Tabla Parámetros'!$O$3,'Tabla Fijos'!G123,IF($F$11='Tabla Parámetros'!$O$5,'Tabla Fijos'!G123,IF(COTIZADOR!$F$11='Tabla Parámetros'!$O$6,'Tabla Fijos'!G123,IF(COTIZADOR!$F$11='Tabla Parámetros'!$O$4,'Tabla Crecientes'!G122))))) -> 3,595.06 | H178: =IF(B178="","",IF($F$11='Tabla Parámetros'!$O$3,'Tabla Fijos'!H123,IF($F$11='Tabla Parámetros'!$O$5,'Tabla Fijos'!H123,IF(COTIZADOR!$F$11='Tabla Parámetros'!$O$6,'Tabla Fijos'!H123,IF(COTIZADOR!$F$11='Tabla Parámetros'!$O$4,'Tabla Crecientes'!H122))))) -> 4,522.13 | I178: =IF($F$11='Tabla Parámetros'!$O$3,'Tabla Fijos'!I123,IF($F$11='Tabla Parámetros'!$O$5,'Tabla Fijos'!I123,IF(COTIZADOR!$F$11='Tabla Parámetros'!$O$6,'Tabla Fijos'!I123,IF(COTIZADOR!$F$11='Tabla Parámetros'!$O$4,'Tabla Crecientes'!I122)))) -> 0.00 | J178: =IF(B178="","",IF($F$11='Tabla Parámetros'!$O$3,'Tabla Fijos'!K123,IF($F$11='Tabla Parámetros'!$O$5,'Tabla Fijos'!K123,IF(COTIZADOR!$F$11='Tabla Parámetros'!$O$6,'Tabla Fijos'!K123,IF(COTIZADOR!$F$11='Tabla Parámetros'!$O$4,'Tabla Crecientes'!K122))))) -> 428.41 | K178: =IF(B178="","",IF($F$11='Tabla Parámetros'!$O$3,'Tabla Fijos'!L123,IF($F$11='Tabla Parámetros'!$O$5,'Tabla Fijos'!L123,IF(COTIZADOR!$F$11='Tabla Parámetros'!$O$6,'Tabla Fijos'!L123,IF(COTIZADOR!$F$11='Tabla Parámetros'!$O$4,'Tabla Crecientes'!L122))))) -> 247.06 | L178: =IF(B178="","",IF($F$11='Tabla Parámetros'!$O$3,'Tabla Fijos'!M123,IF($F$11='Tabla Parámetros'!$O$5,'Tabla Fijos'!M123,IF(COTIZADOR!$F$11='Tabla Parámetros'!$O$6,'Tabla Fijos'!M123,IF(COTIZADOR!$F$11='Tabla Parámetros'!$O$4,'Tabla Crecientes'!M122))))) -> 349.00 | M178: =IF($F$11='Tabla Parámetros'!$O$3,'Tabla Fijos'!N123,IF($F$11='Tabla Parámetros'!$O$5,'Tabla Fijos'!N123,IF(COTIZADOR!$F$11='Tabla Parámetros'!$O$6,'Tabla Fijos'!N123,IF(COTIZADOR!$F$11='Tabla Parámetros'!$O$4,'Tabla Crecientes'!N122)))) -> 0.00 | O178: 9,141.66 | P178: 710,425.56 | Q178: 1
B179: 113 | C179: =IF($B$67="","",'Fecha Pago'!K116) -> 2030-03-03 | D179: =IF($B$67="","",'Fecha Pago'!L116) -> 30.40 | E179: =IF(B179="","",IF($F$11='Tabla Parámetros'!$O$3,'Tabla Fijos'!E123,IF($F$11='Tabla Parámetros'!$O$5,'Tabla Fijos'!E123,IF(COTIZADOR!$F$11='Tabla Parámetros'!$O$6,'Tabla Fijos'!E123,IF(COTIZADOR!$F$11='Tabla Parámetros'!$O$4,'Tabla Crecientes'!E122))))) -> 7.50% | F179: 710,425.56 | G179: =IF(B179="","",IF($F$11='Tabla Parámetros'!$O$3,'Tabla Fijos'!G124,IF($F$11='Tabla Parámetros'!$O$5,'Tabla Fijos'!G124,IF(COTIZADOR!$F$11='Tabla Parámetros'!$O$6,'Tabla Fijos'!G124,IF(COTIZADOR!$F$11='Tabla Parámetros'!$O$4,'Tabla Crecientes'!G123))))) -> 3,617.83 | H179: =IF(B179="","",IF($F$11='Tabla Parámetros'!$O$3,'Tabla Fijos'!H124,IF($F$11='Tabla Parámetros'!$O$5,'Tabla Fijos'!H124,IF(COTIZADOR!$F$11='Tabla Parámetros'!$O$6,'Tabla Fijos'!H124,IF(COTIZADOR!$F$11='Tabla Parámetros'!$O$4,'Tabla Crecientes'!H123))))) -> 4,499.36 | I179: =IF($F$11='Tabla Parámetros'!$O$3,'Tabla Fijos'!I124,IF($F$11='Tabla Parámetros'!$O$5,'Tabla Fijos'!I124,IF(COTIZADOR!$F$11='Tabla Parámetros'!$O$6,'Tabla Fijos'!I124,IF(COTIZADOR!$F$11='Tabla Parámetros'!$O$4,'Tabla Crecientes'!I123)))) -> 0.00 | J179: =IF(B179="","",IF($F$11='Tabla Parámetros'!$O$3,'Tabla Fijos'!K124,IF($F$11='Tabla Parámetros'!$O$5,'Tabla Fijos'!K124,IF(COTIZADOR!$F$11='Tabla Parámetros'!$O$6,'Tabla Fijos'!K124,IF(COTIZADOR!$F$11='Tabla Parámetros'!$O$4,'Tabla Crecientes'!K123))))) -> 426.26 | K179: =IF(B179="","",IF($F$11='Tabla Parámetros'!$O$3,'Tabla Fijos'!L124,IF($F$11='Tabla Parámetros'!$O$5,'Tabla Fijos'!L124,IF(COTIZADOR!$F$11='Tabla Parámetros'!$O$6,'Tabla Fijos'!L124,IF(COTIZADOR!$F$11='Tabla Parámetros'!$O$4,'Tabla Crecientes'!L123))))) -> 247.06 | L179: =IF(B179="","",IF($F$11='Tabla Parámetros'!$O$3,'Tabla Fijos'!M124,IF($F$11='Tabla Parámetros'!$O$5,'Tabla Fijos'!M124,IF(COTIZADOR!$F$11='Tabla Parámetros'!$O$6,'Tabla Fijos'!M124,IF(COTIZADOR!$F$11='Tabla Parámetros'!$O$4,'Tabla Crecientes'!M123))))) -> 349.00 | M179: =IF($F$11='Tabla Parámetros'!$O$3,'Tabla Fijos'!N124,IF($F$11='Tabla Parámetros'!$O$5,'Tabla Fijos'!N124,IF(COTIZADOR!$F$11='Tabla Parámetros'!$O$6,'Tabla Fijos'!N124,IF(COTIZADOR!$F$11='Tabla Parámetros'!$O$4,'Tabla Crecientes'!N123)))) -> 0.00 | O179: 9,139.50 | P179: 706,807.73 | Q179: 1
B180: 114 | C180: =IF($B$67="","",'Fecha Pago'!K117) -> 2030-04-03 | D180: =IF($B$67="","",'Fecha Pago'!L117) -> 30.40 | E180: =IF(B180="","",IF($F$11='Tabla Parámetros'!$O$3,'Tabla Fijos'!E124,IF($F$11='Tabla Parámetros'!$O$5,'Tabla Fijos'!E124,IF(COTIZADOR!$F$11='Tabla Parámetros'!$O$6,'Tabla Fijos'!E124,IF(COTIZADOR!$F$11='Tabla Parámetros'!$O$4,'Tabla Crecientes'!E123))))) -> 7.50% | F180: 706,807.73 | G180: =IF(B180="","",IF($F$11='Tabla Parámetros'!$O$3,'Tabla Fijos'!G125,IF($F$11='Tabla Parámetros'!$O$5,'Tabla Fijos'!G125,IF(COTIZADOR!$F$11='Tabla Parámetros'!$O$6,'Tabla Fijos'!G125,IF(COTIZADOR!$F$11='Tabla Parámetros'!$O$4,'Tabla Crecientes'!G124))))) -> 3,640.74 | H180: =IF(B180="","",IF($F$11='Tabla Parámetros'!$O$3,'Tabla Fijos'!H125,IF($F$11='Tabla Parámetros'!$O$5,'Tabla Fijos'!H125,IF(COTIZADOR!$F$11='Tabla Parámetros'!$O$6,'Tabla Fijos'!H125,IF(COTIZADOR!$F$11='Tabla Parámetros'!$O$4,'Tabla Crecientes'!H124))))) -> 4,476.45 | I180: =IF($F$11='Tabla Parámetros'!$O$3,'Tabla Fijos'!I125,IF($F$11='Tabla Parámetros'!$O$5,'Tabla Fijos'!I125,IF(COTIZADOR!$F$11='Tabla Parámetros'!$O$6,'Tabla Fijos'!I125,IF(COTIZADOR!$F$11='Tabla Parámetros'!$O$4,'Tabla Crecientes'!I124)))) -> 0.00 | J180: =IF(B180="","",IF($F$11='Tabla Parámetros'!$O$3,'Tabla Fijos'!K125,IF($F$11='Tabla Parámetros'!$O$5,'Tabla Fijos'!K125,IF(COTIZADOR!$F$11='Tabla Parámetros'!$O$6,'Tabla Fijos'!K125,IF(COTIZADOR!$F$11='Tabla Parámetros'!$O$4,'Tabla Crecientes'!K124))))) -> 424.08 | K180: =IF(B180="","",IF($F$11='Tabla Parámetros'!$O$3,'Tabla Fijos'!L125,IF($F$11='Tabla Parámetros'!$O$5,'Tabla Fijos'!L125,IF(COTIZADOR!$F$11='Tabla Parámetros'!$O$6,'Tabla Fijos'!L125,IF(COTIZADOR!$F$11='Tabla Parámetros'!$O$4,'Tabla Crecientes'!L124))))) -> 247.06 | L180: =IF(B180="","",IF($F$11='Tabla Parámetros'!$O$3,'Tabla Fijos'!M125,IF($F$11='Tabla Parámetros'!$O$5,'Tabla Fijos'!M125,IF(COTIZADOR!$F$11='Tabla Parámetros'!$O$6,'Tabla Fijos'!M125,IF(COTIZADOR!$F$11='Tabla Parámetros'!$O$4,'Tabla Crecientes'!M124))))) -> 349.00 | M180: =IF($F$11='Tabla Parámetros'!$O$3,'Tabla Fijos'!N125,IF($F$11='Tabla Parámetros'!$O$5,'Tabla Fijos'!N125,IF(COTIZADOR!$F$11='Tabla Parámetros'!$O$6,'Tabla Fijos'!N125,IF(COTIZADOR!$F$11='Tabla Parámetros'!$O$4,'Tabla Crecientes'!N124)))) -> 0.00 | O180: 9,137.33 | P180: 703,166.99 | Q180: 1
B181: 115 | C181: =IF($B$67="","",'Fecha Pago'!K118) -> 2030-05-03 | D181: =IF($B$67="","",'Fecha Pago'!L118) -> 30.40 | E181: =IF(B181="","",IF($F$11='Tabla Parámetros'!$O$3,'Tabla Fijos'!E125,IF($F$11='Tabla Parámetros'!$O$5,'Tabla Fijos'!E125,IF(COTIZADOR!$F$11='Tabla Parámetros'!$O$6,'Tabla Fijos'!E125,IF(COTIZADOR!$F$11='Tabla Parámetros'!$O$4,'Tabla Crecientes'!E124))))) -> 7.50% | F181: 703,166.99 | G181: =IF(B181="","",IF($F$11='Tabla Parámetros'!$O$3,'Tabla Fijos'!G126,IF($F$11='Tabla Parámetros'!$O$5,'Tabla Fijos'!G126,IF(COTIZADOR!$F$11='Tabla Parámetros'!$O$6,'Tabla Fijos'!G126,IF(COTIZADOR!$F$11='Tabla Parámetros'!$O$4,'Tabla Crecientes'!G125))))) -> 3,663.80 | H181: =IF(B181="","",IF($F$11='Tabla Parámetros'!$O$3,'Tabla Fijos'!H126,IF($F$11='Tabla Parámetros'!$O$5,'Tabla Fijos'!H126,IF(COTIZADOR!$F$11='Tabla Parámetros'!$O$6,'Tabla Fijos'!H126,IF(COTIZADOR!$F$11='Tabla Parámetros'!$O$4,'Tabla Crecientes'!H125))))) -> 4,453.39 | I181: =IF($F$11='Tabla Parámetros'!$O$3,'Tabla Fijos'!I126,IF($F$11='Tabla Parámetros'!$O$5,'Tabla Fijos'!I126,IF(COTIZADOR!$F$11='Tabla Parámetros'!$O$6,'Tabla Fijos'!I126,IF(COTIZADOR!$F$11='Tabla Parámetros'!$O$4,'Tabla Crecientes'!I125)))) -> 0.00 | J181: =IF(B181="","",IF($F$11='Tabla Parámetros'!$O$3,'Tabla Fijos'!K126,IF($F$11='Tabla Parámetros'!$O$5,'Tabla Fijos'!K126,IF(COTIZADOR!$F$11='Tabla Parámetros'!$O$6,'Tabla Fijos'!K126,IF(COTIZADOR!$F$11='Tabla Parámetros'!$O$4,'Tabla Crecientes'!K125))))) -> 421.90 | K181: =IF(B181="","",IF($F$11='Tabla Parámetros'!$O$3,'Tabla Fijos'!L126,IF($F$11='Tabla Parámetros'!$O$5,'Tabla Fijos'!L126,IF(COTIZADOR!$F$11='Tabla Parámetros'!$O$6,'Tabla Fijos'!L126,IF(COTIZADOR!$F$11='Tabla Parámetros'!$O$4,'Tabla Crecientes'!L125))))) -> 247.06 | L181: =IF(B181="","",IF($F$11='Tabla Parámetros'!$O$3,'Tabla Fijos'!M126,IF($F$11='Tabla Parámetros'!$O$5,'Tabla Fijos'!M126,IF(COTIZADOR!$F$11='Tabla Parámetros'!$O$6,'Tabla Fijos'!M126,IF(COTIZADOR!$F$11='Tabla Parámetros'!$O$4,'Tabla Crecientes'!M125))))) -> 349.00 | M181: =IF($F$11='Tabla Parámetros'!$O$3,'Tabla Fijos'!N126,IF($F$11='Tabla Parámetros'!$O$5,'Tabla Fijos'!N126,IF(COTIZADOR!$F$11='Tabla Parámetros'!$O$6,'Tabla Fijos'!N126,IF(COTIZADOR!$F$11='Tabla Parámetros'!$O$4,'Tabla Crecientes'!N125)))) -> 0.00 | O181: 9,135.15 | P181: 699,503.19 | Q181: 1
B182: 116 | C182: =IF($B$67="","",'Fecha Pago'!K119) -> 2030-06-03 | D182: =IF($B$67="","",'Fecha Pago'!L119) -> 30.40 | E182: =IF(B182="","",IF($F$11='Tabla Parámetros'!$O$3,'Tabla Fijos'!E126,IF($F$11='Tabla Parámetros'!$O$5,'Tabla Fijos'!E126,IF(COTIZADOR!$F$11='Tabla Parámetros'!$O$6,'Tabla Fijos'!E126,IF(COTIZADOR!$F$11='Tabla Parámetros'!$O$4,'Tabla Crecientes'!E125))))) -> 7.50% | F182: 699,503.19 | G182: =IF(B182="","",IF($F$11='Tabla Parámetros'!$O$3,'Tabla Fijos'!G127,IF($F$11='Tabla Parámetros'!$O$5,'Tabla Fijos'!G127,IF(COTIZADOR!$F$11='Tabla Parámetros'!$O$6,'Tabla Fijos'!G127,IF(COTIZADOR!$F$11='Tabla Parámetros'!$O$4,'Tabla Crecientes'!G126))))) -> 3,687.00 | H182: =IF(B182="","",IF($F$11='Tabla Parámetros'!$O$3,'Tabla Fijos'!H127,IF($F$11='Tabla Parámetros'!$O$5,'Tabla Fijos'!H127,IF(COTIZADOR!$F$11='Tabla Parámetros'!$O$6,'Tabla Fijos'!H127,IF(COTIZADOR!$F$11='Tabla Parámetros'!$O$4,'Tabla Crecientes'!H126))))) -> 4,430.19 | I182: =IF($F$11='Tabla Parámetros'!$O$3,'Tabla Fijos'!I127,IF($F$11='Tabla Parámetros'!$O$5,'Tabla Fijos'!I127,IF(COTIZADOR!$F$11='Tabla Parámetros'!$O$6,'Tabla Fijos'!I127,IF(COTIZADOR!$F$11='Tabla Parámetros'!$O$4,'Tabla Crecientes'!I126)))) -> 0.00 | J182: =IF(B182="","",IF($F$11='Tabla Parámetros'!$O$3,'Tabla Fijos'!K127,IF($F$11='Tabla Parámetros'!$O$5,'Tabla Fijos'!K127,IF(COTIZADOR!$F$11='Tabla Parámetros'!$O$6,'Tabla Fijos'!K127,IF(COTIZADOR!$F$11='Tabla Parámetros'!$O$4,'Tabla Crecientes'!K126))))) -> 419.70 | K182: =IF(B182="","",IF($F$11='Tabla Parámetros'!$O$3,'Tabla Fijos'!L127,IF($F$11='Tabla Parámetros'!$O$5,'Tabla Fijos'!L127,IF(COTIZADOR!$F$11='Tabla Parámetros'!$O$6,'Tabla Fijos'!L127,IF(COTIZADOR!$F$11='Tabla Parámetros'!$O$4,'Tabla Crecientes'!L126))))) -> 247.06 | L182: =IF(B182="","",IF($F$11='Tabla Parámetros'!$O$3,'Tabla Fijos'!M127,IF($F$11='Tabla Parámetros'!$O$5,'Tabla Fijos'!M127,IF(COTIZADOR!$F$11='Tabla Parámetros'!$O$6,'Tabla Fijos'!M127,IF(COTIZADOR!$F$11='Tabla Parámetros'!$O$4,'Tabla Crecientes'!M126))))) -> 349.00 | M182: =IF($F$11='Tabla Parámetros'!$O$3,'Tabla Fijos'!N127,IF($F$11='Tabla Parámetros'!$O$5,'Tabla Fijos'!N127,IF(COTIZADOR!$F$11='Tabla Parámetros'!$O$6,'Tabla Fijos'!N127,IF(COTIZADOR!$F$11='Tabla Parámetros'!$O$4,'Tabla Crecientes'!N126)))) -> 0.00 | O182: 9,132.95 | P182: 695,816.19 | Q182: 1
B183: 117 | C183: =IF($B$67="","",'Fecha Pago'!K120) -> 2030-07-03 | D183: =IF($B$67="","",'Fecha Pago'!L120) -> 30.40 | E183: =IF(B183="","",IF($F$11='Tabla Parámetros'!$O$3,'Tabla Fijos'!E127,IF($F$11='Tabla Parámetros'!$O$5,'Tabla Fijos'!E127,IF(COTIZADOR!$F$11='Tabla Parámetros'!$O$6,'Tabla Fijos'!E127,IF(COTIZADOR!$F$11='Tabla Parámetros'!$O$4,'Tabla Crecientes'!E126))))) -> 7.50% | F183: 695,816.19 | G183: =IF(B183="","",IF($F$11='Tabla Parámetros'!$O$3,'Tabla Fijos'!G128,IF($F$11='Tabla Parámetros'!$O$5,'Tabla Fijos'!G128,IF(COTIZADOR!$F$11='Tabla Parámetros'!$O$6,'Tabla Fijos'!G128,IF(COTIZADOR!$F$11='Tabla Parámetros'!$O$4,'Tabla Crecientes'!G127))))) -> 3,710.35 | H183: =IF(B183="","",IF($F$11='Tabla Parámetros'!$O$3,'Tabla Fijos'!H128,IF($F$11='Tabla Parámetros'!$O$5,'Tabla Fijos'!H128,IF(COTIZADOR!$F$11='Tabla Parámetros'!$O$6,'Tabla Fijos'!H128,IF(COTIZADOR!$F$11='Tabla Parámetros'!$O$4,'Tabla Crecientes'!H127))))) -> 4,406.84 | I183: =IF($F$11='Tabla Parámetros'!$O$3,'Tabla Fijos'!I128,IF($F$11='Tabla Parámetros'!$O$5,'Tabla Fijos'!I128,IF(COTIZADOR!$F$11='Tabla Parámetros'!$O$6,'Tabla Fijos'!I128,IF(COTIZADOR!$F$11='Tabla Parámetros'!$O$4,'Tabla Crecientes'!I127)))) -> 0.00 | J183: =IF(B183="","",IF($F$11='Tabla Parámetros'!$O$3,'Tabla Fijos'!K128,IF($F$11='Tabla Parámetros'!$O$5,'Tabla Fijos'!K128,IF(COTIZADOR!$F$11='Tabla Parámetros'!$O$6,'Tabla Fijos'!K128,IF(COTIZADOR!$F$11='Tabla Parámetros'!$O$4,'Tabla Crecientes'!K127))))) -> 417.49 | K183: =IF(B183="","",IF($F$11='Tabla Parámetros'!$O$3,'Tabla Fijos'!L128,IF($F$11='Tabla Parámetros'!$O$5,'Tabla Fijos'!L128,IF(COTIZADOR!$F$11='Tabla Parámetros'!$O$6,'Tabla Fijos'!L128,IF(COTIZADOR!$F$11='Tabla Parámetros'!$O$4,'Tabla Crecientes'!L127))))) -> 247.06 | L183: =IF(B183="","",IF($F$11='Tabla Parámetros'!$O$3,'Tabla Fijos'!M128,IF($F$11='Tabla Parámetros'!$O$5,'Tabla Fijos'!M128,IF(COTIZADOR!$F$11='Tabla Parámetros'!$O$6,'Tabla Fijos'!M128,IF(COTIZADOR!$F$11='Tabla Parámetros'!$O$4,'Tabla Crecientes'!M127))))) -> 349.00 | M183: =IF($F$11='Tabla Parámetros'!$O$3,'Tabla Fijos'!N128,IF($F$11='Tabla Parámetros'!$O$5,'Tabla Fijos'!N128,IF(COTIZADOR!$F$11='Tabla Parámetros'!$O$6,'Tabla Fijos'!N128,IF(COTIZADOR!$F$11='Tabla Parámetros'!$O$4,'Tabla Crecientes'!N127)))) -> 0.00 | O183: 9,130.74 | P183: 692,105.84 | Q183: 1
B184: 118 | C184: =IF($B$67="","",'Fecha Pago'!K121) -> 2030-08-03 | D184: =IF($B$67="","",'Fecha Pago'!L121) -> 30.40 | E184: =IF(B184="","",IF($F$11='Tabla Parámetros'!$O$3,'Tabla Fijos'!E128,IF($F$11='Tabla Parámetros'!$O$5,'Tabla Fijos'!E128,IF(COTIZADOR!$F$11='Tabla Parámetros'!$O$6,'Tabla Fijos'!E128,IF(COTIZADOR!$F$11='Tabla Parámetros'!$O$4,'Tabla Crecientes'!E127))))) -> 7.50% | F184: 692,105.84 | G184: =IF(B184="","",IF($F$11='Tabla Parámetros'!$O$3,'Tabla Fijos'!G129,IF($F$11='Tabla Parámetros'!$O$5,'Tabla Fijos'!G129,IF(COTIZADOR!$F$11='Tabla Parámetros'!$O$6,'Tabla Fijos'!G129,IF(COTIZADOR!$F$11='Tabla Parámetros'!$O$4,'Tabla Crecientes'!G128))))) -> 3,733.85 | H184: =IF(B184="","",IF($F$11='Tabla Parámetros'!$O$3,'Tabla Fijos'!H129,IF($F$11='Tabla Parámetros'!$O$5,'Tabla Fijos'!H129,IF(COTIZADOR!$F$11='Tabla Parámetros'!$O$6,'Tabla Fijos'!H129,IF(COTIZADOR!$F$11='Tabla Parámetros'!$O$4,'Tabla Crecientes'!H128))))) -> 4,383.34 | I184: =IF($F$11='Tabla Parámetros'!$O$3,'Tabla Fijos'!I129,IF($F$11='Tabla Parámetros'!$O$5,'Tabla Fijos'!I129,IF(COTIZADOR!$F$11='Tabla Parámetros'!$O$6,'Tabla Fijos'!I129,IF(COTIZADOR!$F$11='Tabla Parámetros'!$O$4,'Tabla Crecientes'!I128)))) -> 0.00 | J184: =IF(B184="","",IF($F$11='Tabla Parámetros'!$O$3,'Tabla Fijos'!K129,IF($F$11='Tabla Parámetros'!$O$5,'Tabla Fijos'!K129,IF(COTIZADOR!$F$11='Tabla Parámetros'!$O$6,'Tabla Fijos'!K129,IF(COTIZADOR!$F$11='Tabla Parámetros'!$O$4,'Tabla Crecientes'!K128))))) -> 415.26 | K184: =IF(B184="","",IF($F$11='Tabla Parámetros'!$O$3,'Tabla Fijos'!L129,IF($F$11='Tabla Parámetros'!$O$5,'Tabla Fijos'!L129,IF(COTIZADOR!$F$11='Tabla Parámetros'!$O$6,'Tabla Fijos'!L129,IF(COTIZADOR!$F$11='Tabla Parámetros'!$O$4,'Tabla Crecientes'!L128))))) -> 247.06 | L184: =IF(B184="","",IF($F$11='Tabla Parámetros'!$O$3,'Tabla Fijos'!M129,IF($F$11='Tabla Parámetros'!$O$5,'Tabla Fijos'!M129,IF(COTIZADOR!$F$11='Tabla Parámetros'!$O$6,'Tabla Fijos'!M129,IF(COTIZADOR!$F$11='Tabla Parámetros'!$O$4,'Tabla Crecientes'!M128))))) -> 349.00 | M184: =IF($F$11='Tabla Parámetros'!$O$3,'Tabla Fijos'!N129,IF($F$11='Tabla Parámetros'!$O$5,'Tabla Fijos'!N129,IF(COTIZADOR!$F$11='Tabla Parámetros'!$O$6,'Tabla Fijos'!N129,IF(COTIZADOR!$F$11='Tabla Parámetros'!$O$4,'Tabla Crecientes'!N128)))) -> 0.00 | O184: 9,128.51 | P184: 688,371.99 | Q184: 1
B185: 119 | C185: =IF($B$67="","",'Fecha Pago'!K122) -> 2030-09-03 | D185: =IF($B$67="","",'Fecha Pago'!L122) -> 30.40 | E185: =IF(B185="","",IF($F$11='Tabla Parámetros'!$O$3,'Tabla Fijos'!E129,IF($F$11='Tabla Parámetros'!$O$5,'Tabla Fijos'!E129,IF(COTIZADOR!$F$11='Tabla Parámetros'!$O$6,'Tabla Fijos'!E129,IF(COTIZADOR!$F$11='Tabla Parámetros'!$O$4,'Tabla Crecientes'!E128))))) -> 7.50% | F185: 688,371.99 | G185: =IF(B185="","",IF($F$11='Tabla Parámetros'!$O$3,'Tabla Fijos'!G130,IF($F$11='Tabla Parámetros'!$O$5,'Tabla Fijos'!G130,IF(COTIZADOR!$F$11='Tabla Parámetros'!$O$6,'Tabla Fijos'!G130,IF(COTIZADOR!$F$11='Tabla Parámetros'!$O$4,'Tabla Crecientes'!G129))))) -> 3,757.50 | H185: =IF(B185="","",IF($F$11='Tabla Parámetros'!$O$3,'Tabla Fijos'!H130,IF($F$11='Tabla Parámetros'!$O$5,'Tabla Fijos'!H130,IF(COTIZADOR!$F$11='Tabla Parámetros'!$O$6,'Tabla Fijos'!H130,IF(COTIZADOR!$F$11='Tabla Parámetros'!$O$4,'Tabla Crecientes'!H129))))) -> 4,359.69 | I185: =IF($F$11='Tabla Parámetros'!$O$3,'Tabla Fijos'!I130,IF($F$11='Tabla Parámetros'!$O$5,'Tabla Fijos'!I130,IF(COTIZADOR!$F$11='Tabla Parámetros'!$O$6,'Tabla Fijos'!I130,IF(COTIZADOR!$F$11='Tabla Parámetros'!$O$4,'Tabla Crecientes'!I129)))) -> 0.00 | J185: =IF(B185="","",IF($F$11='Tabla Parámetros'!$O$3,'Tabla Fijos'!K130,IF($F$11='Tabla Parámetros'!$O$5,'Tabla Fijos'!K130,IF(COTIZADOR!$F$11='Tabla Parámetros'!$O$6,'Tabla Fijos'!K130,IF(COTIZADOR!$F$11='Tabla Parámetros'!$O$4,'Tabla Crecientes'!K129))))) -> 413.02 | K185: =IF(B185="","",IF($F$11='Tabla Parámetros'!$O$3,'Tabla Fijos'!L130,IF($F$11='Tabla Parámetros'!$O$5,'Tabla Fijos'!L130,IF(COTIZADOR!$F$11='Tabla Parámetros'!$O$6,'Tabla Fijos'!L130,IF(COTIZADOR!$F$11='Tabla Parámetros'!$O$4,'Tabla Crecientes'!L129))))) -> 247.06 | L185: =IF(B185="","",IF($F$11='Tabla Parámetros'!$O$3,'Tabla Fijos'!M130,IF($F$11='Tabla Parámetros'!$O$5,'Tabla Fijos'!M130,IF(COTIZADOR!$F$11='Tabla Parámetros'!$O$6,'Tabla Fijos'!M130,IF(COTIZADOR!$F$11='Tabla Parámetros'!$O$4,'Tabla Crecientes'!M129))))) -> 349.00 | M185: =IF($F$11='Tabla Parámetros'!$O$3,'Tabla Fijos'!N130,IF($F$11='Tabla Parámetros'!$O$5,'Tabla Fijos'!N130,IF(COTIZADOR!$F$11='Tabla Parámetros'!$O$6,'Tabla Fijos'!N130,IF(COTIZADOR!$F$11='Tabla Parámetros'!$O$4,'Tabla Crecientes'!N129)))) -> 0.00 | O185: 9,126.27 | P185: 684,614.49 | Q185: 1
B186: 120 | C186: =IF($B$67="","",'Fecha Pago'!K123) -> 2030-10-03 | D186: =IF($B$67="","",'Fecha Pago'!L123) -> 30.40 | E186: =IF(B186="","",IF($F$11='Tabla Parámetros'!$O$3,'Tabla Fijos'!E130,IF($F$11='Tabla Parámetros'!$O$5,'Tabla Fijos'!E130,IF(COTIZADOR!$F$11='Tabla Parámetros'!$O$6,'Tabla Fijos'!E130,IF(COTIZADOR!$F$11='Tabla Parámetros'!$O$4,'Tabla Crecientes'!E129))))) -> 7.50% | F186: 684,614.49 | G186: =IF(B186="","",IF($F$11='Tabla Parámetros'!$O$3,'Tabla Fijos'!G131,IF($F$11='Tabla Parámetros'!$O$5,'Tabla Fijos'!G131,IF(COTIZADOR!$F$11='Tabla Parámetros'!$O$6,'Tabla Fijos'!G131,IF(COTIZADOR!$F$11='Tabla Parámetros'!$O$4,'Tabla Crecientes'!G130))))) -> 3,781.30 | H186: =IF(B186="","",IF($F$11='Tabla Parámetros'!$O$3,'Tabla Fijos'!H131,IF($F$11='Tabla Parámetros'!$O$5,'Tabla Fijos'!H131,IF(COTIZADOR!$F$11='Tabla Parámetros'!$O$6,'Tabla Fijos'!H131,IF(COTIZADOR!$F$11='Tabla Parámetros'!$O$4,'Tabla Crecientes'!H130))))) -> 4,335.89 | I186: =IF($F$11='Tabla Parámetros'!$O$3,'Tabla Fijos'!I131,IF($F$11='Tabla Parámetros'!$O$5,'Tabla Fijos'!I131,IF(COTIZADOR!$F$11='Tabla Parámetros'!$O$6,'Tabla Fijos'!I131,IF(COTIZADOR!$F$11='Tabla Parámetros'!$O$4,'Tabla Crecientes'!I130)))) -> 0.00 | J186: =IF(B186="","",IF($F$11='Tabla Parámetros'!$O$3,'Tabla Fijos'!K131,IF($F$11='Tabla Parámetros'!$O$5,'Tabla Fijos'!K131,IF(COTIZADOR!$F$11='Tabla Parámetros'!$O$6,'Tabla Fijos'!K131,IF(COTIZADOR!$F$11='Tabla Parámetros'!$O$4,'Tabla Crecientes'!K130))))) -> 410.77 | K186: =IF(B186="","",IF($F$11='Tabla Parámetros'!$O$3,'Tabla Fijos'!L131,IF($F$11='Tabla Parámetros'!$O$5,'Tabla Fijos'!L131,IF(COTIZADOR!$F$11='Tabla Parámetros'!$O$6,'Tabla Fijos'!L131,IF(COTIZADOR!$F$11='Tabla Parámetros'!$O$4,'Tabla Crecientes'!L130))))) -> 247.06 | L186: =IF(B186="","",IF($F$11='Tabla Parámetros'!$O$3,'Tabla Fijos'!M131,IF($F$11='Tabla Parámetros'!$O$5,'Tabla Fijos'!M131,IF(COTIZADOR!$F$11='Tabla Parámetros'!$O$6,'Tabla Fijos'!M131,IF(COTIZADOR!$F$11='Tabla Parámetros'!$O$4,'Tabla Crecientes'!M130))))) -> 349.00 | M186: =IF($F$11='Tabla Parámetros'!$O$3,'Tabla Fijos'!N131,IF($F$11='Tabla Parámetros'!$O$5,'Tabla Fijos'!N131,IF(COTIZADOR!$F$11='Tabla Parámetros'!$O$6,'Tabla Fijos'!N131,IF(COTIZADOR!$F$11='Tabla Parámetros'!$O$4,'Tabla Crecientes'!N130)))) -> 0.00 | O186: 9,124.02 | P186: 680,833.19 | Q186: 1
B187: 121 | C187: =IF($B$67="","",'Fecha Pago'!K124) -> 2030-11-03 | D187: =IF($B$67="","",'Fecha Pago'!L124) -> 30.40 | E187: =IF(B187="","",IF($F$11='Tabla Parámetros'!$O$3,'Tabla Fijos'!E131,IF($F$11='Tabla Parámetros'!$O$5,'Tabla Fijos'!E131,IF(COTIZADOR!$F$11='Tabla Parámetros'!$O$6,'Tabla Fijos'!E131,IF(COTIZADOR!$F$11='Tabla Parámetros'!$O$4,'Tabla Crecientes'!E130))))) -> 7.50% | F187: 680,833.19 | G187: =IF(B187="","",IF($F$11='Tabla Parámetros'!$O$3,'Tabla Fijos'!G132,IF($F$11='Tabla Parámetros'!$O$5,'Tabla Fijos'!G132,IF(COTIZADOR!$F$11='Tabla Parámetros'!$O$6,'Tabla Fijos'!G132,IF(COTIZADOR!$F$11='Tabla Parámetros'!$O$4,'Tabla Crecientes'!G131))))) -> 3,805.25 | H187: =IF(B187="","",IF($F$11='Tabla Parámetros'!$O$3,'Tabla Fijos'!H132,IF($F$11='Tabla Parámetros'!$O$5,'Tabla Fijos'!H132,IF(COTIZADOR!$F$11='Tabla Parámetros'!$O$6,'Tabla Fijos'!H132,IF(COTIZADOR!$F$11='Tabla Parámetros'!$O$4,'Tabla Crecientes'!H131))))) -> 4,311.94 | I187: =IF($F$11='Tabla Parámetros'!$O$3,'Tabla Fijos'!I132,IF($F$11='Tabla Parámetros'!$O$5,'Tabla Fijos'!I132,IF(COTIZADOR!$F$11='Tabla Parámetros'!$O$6,'Tabla Fijos'!I132,IF(COTIZADOR!$F$11='Tabla Parámetros'!$O$4,'Tabla Crecientes'!I131)))) -> 0.00 | J187: =IF(B187="","",IF($F$11='Tabla Parámetros'!$O$3,'Tabla Fijos'!K132,IF($F$11='Tabla Parámetros'!$O$5,'Tabla Fijos'!K132,IF(COTIZADOR!$F$11='Tabla Parámetros'!$O$6,'Tabla Fijos'!K132,IF(COTIZADOR!$F$11='Tabla Parámetros'!$O$4,'Tabla Crecientes'!K131))))) -> 408.50 | K187: =IF(B187="","",IF($F$11='Tabla Parámetros'!$O$3,'Tabla Fijos'!L132,IF($F$11='Tabla Parámetros'!$O$5,'Tabla Fijos'!L132,IF(COTIZADOR!$F$11='Tabla Parámetros'!$O$6,'Tabla Fijos'!L132,IF(COTIZADOR!$F$11='Tabla Parámetros'!$O$4,'Tabla Crecientes'!L131))))) -> 247.06 | L187: =IF(B187="","",IF($F$11='Tabla Parámetros'!$O$3,'Tabla Fijos'!M132,IF($F$11='Tabla Parámetros'!$O$5,'Tabla Fijos'!M132,IF(COTIZADOR!$F$11='Tabla Parámetros'!$O$6,'Tabla Fijos'!M132,IF(COTIZADOR!$F$11='Tabla Parámetros'!$O$4,'Tabla Crecientes'!M131))))) -> 349.00 | M187: =IF($F$11='Tabla Parámetros'!$O$3,'Tabla Fijos'!N132,IF($F$11='Tabla Parámetros'!$O$5,'Tabla Fijos'!N132,IF(COTIZADOR!$F$11='Tabla Parámetros'!$O$6,'Tabla Fijos'!N132,IF(COTIZADOR!$F$11='Tabla Parámetros'!$O$4,'Tabla Crecientes'!N131)))) -> 0.00 | O187: 9,121.75 | P187: 677,027.94 | Q187: 1
B188: 122 | C188: =IF($B$67="","",'Fecha Pago'!K125) -> 2030-12-03 | D188: =IF($B$67="","",'Fecha Pago'!L125) -> 30.40 | E188: =IF(B188="","",IF($F$11='Tabla Parámetros'!$O$3,'Tabla Fijos'!E132,IF($F$11='Tabla Parámetros'!$O$5,'Tabla Fijos'!E132,IF(COTIZADOR!$F$11='Tabla Parámetros'!$O$6,'Tabla Fijos'!E132,IF(COTIZADOR!$F$11='Tabla Parámetros'!$O$4,'Tabla Crecientes'!E131))))) -> 7.50% | F188: 677,027.94 | G188: =IF(B188="","",IF($F$11='Tabla Parámetros'!$O$3,'Tabla Fijos'!G133,IF($F$11='Tabla Parámetros'!$O$5,'Tabla Fijos'!G133,IF(COTIZADOR!$F$11='Tabla Parámetros'!$O$6,'Tabla Fijos'!G133,IF(COTIZADOR!$F$11='Tabla Parámetros'!$O$4,'Tabla Crecientes'!G132))))) -> 3,829.35 | H188: =IF(B188="","",IF($F$11='Tabla Parámetros'!$O$3,'Tabla Fijos'!H133,IF($F$11='Tabla Parámetros'!$O$5,'Tabla Fijos'!H133,IF(COTIZADOR!$F$11='Tabla Parámetros'!$O$6,'Tabla Fijos'!H133,IF(COTIZADOR!$F$11='Tabla Parámetros'!$O$4,'Tabla Crecientes'!H132))))) -> 4,287.84 | I188: =IF($F$11='Tabla Parámetros'!$O$3,'Tabla Fijos'!I133,IF($F$11='Tabla Parámetros'!$O$5,'Tabla Fijos'!I133,IF(COTIZADOR!$F$11='Tabla Parámetros'!$O$6,'Tabla Fijos'!I133,IF(COTIZADOR!$F$11='Tabla Parámetros'!$O$4,'Tabla Crecientes'!I132)))) -> 0.00 | J188: =IF(B188="","",IF($F$11='Tabla Parámetros'!$O$3,'Tabla Fijos'!K133,IF($F$11='Tabla Parámetros'!$O$5,'Tabla Fijos'!K133,IF(COTIZADOR!$F$11='Tabla Parámetros'!$O$6,'Tabla Fijos'!K133,IF(COTIZADOR!$F$11='Tabla Parámetros'!$O$4,'Tabla Crecientes'!K132))))) -> 406.22 | K188: =IF(B188="","",IF($F$11='Tabla Parámetros'!$O$3,'Tabla Fijos'!L133,IF($F$11='Tabla Parámetros'!$O$5,'Tabla Fijos'!L133,IF(COTIZADOR!$F$11='Tabla Parámetros'!$O$6,'Tabla Fijos'!L133,IF(COTIZADOR!$F$11='Tabla Parámetros'!$O$4,'Tabla Crecientes'!L132))))) -> 247.06 | L188: =IF(B188="","",IF($F$11='Tabla Parámetros'!$O$3,'Tabla Fijos'!M133,IF($F$11='Tabla Parámetros'!$O$5,'Tabla Fijos'!M133,IF(COTIZADOR!$F$11='Tabla Parámetros'!$O$6,'Tabla Fijos'!M133,IF(COTIZADOR!$F$11='Tabla Parámetros'!$O$4,'Tabla Crecientes'!M132))))) -> 349.00 | M188: =IF($F$11='Tabla Parámetros'!$O$3,'Tabla Fijos'!N133,IF($F$11='Tabla Parámetros'!$O$5,'Tabla Fijos'!N133,IF(COTIZADOR!$F$11='Tabla Parámetros'!$O$6,'Tabla Fijos'!N133,IF(COTIZADOR!$F$11='Tabla Parámetros'!$O$4,'Tabla Crecientes'!N132)))) -> 0.00 | O188: 9,119.46 | P188: 673,198.60 | Q188: 1
B189: 123 | C189: =IF($B$67="","",'Fecha Pago'!K126) -> 2031-01-03 | D189: =IF($B$67="","",'Fecha Pago'!L126) -> 30.40 | E189: =IF(B189="","",IF($F$11='Tabla Parámetros'!$O$3,'Tabla Fijos'!E133,IF($F$11='Tabla Parámetros'!$O$5,'Tabla Fijos'!E133,IF(COTIZADOR!$F$11='Tabla Parámetros'!$O$6,'Tabla Fijos'!E133,IF(COTIZADOR!$F$11='Tabla Parámetros'!$O$4,'Tabla Crecientes'!E132))))) -> 7.50% | F189: 673,198.60 | G189: =IF(B189="","",IF($F$11='Tabla Parámetros'!$O$3,'Tabla Fijos'!G134,IF($F$11='Tabla Parámetros'!$O$5,'Tabla Fijos'!G134,IF(COTIZADOR!$F$11='Tabla Parámetros'!$O$6,'Tabla Fijos'!G134,IF(COTIZADOR!$F$11='Tabla Parámetros'!$O$4,'Tabla Crecientes'!G133))))) -> 3,853.60 | H189: =IF(B189="","",IF($F$11='Tabla Parámetros'!$O$3,'Tabla Fijos'!H134,IF($F$11='Tabla Parámetros'!$O$5,'Tabla Fijos'!H134,IF(COTIZADOR!$F$11='Tabla Parámetros'!$O$6,'Tabla Fijos'!H134,IF(COTIZADOR!$F$11='Tabla Parámetros'!$O$4,'Tabla Crecientes'!H133))))) -> 4,263.59 | I189: =IF($F$11='Tabla Parámetros'!$O$3,'Tabla Fijos'!I134,IF($F$11='Tabla Parámetros'!$O$5,'Tabla Fijos'!I134,IF(COTIZADOR!$F$11='Tabla Parámetros'!$O$6,'Tabla Fijos'!I134,IF(COTIZADOR!$F$11='Tabla Parámetros'!$O$4,'Tabla Crecientes'!I133)))) -> 0.00 | J189: =IF(B189="","",IF($F$11='Tabla Parámetros'!$O$3,'Tabla Fijos'!K134,IF($F$11='Tabla Parámetros'!$O$5,'Tabla Fijos'!K134,IF(COTIZADOR!$F$11='Tabla Parámetros'!$O$6,'Tabla Fijos'!K134,IF(COTIZADOR!$F$11='Tabla Parámetros'!$O$4,'Tabla Crecientes'!K133))))) -> 403.92 | K189: =IF(B189="","",IF($F$11='Tabla Parámetros'!$O$3,'Tabla Fijos'!L134,IF($F$11='Tabla Parámetros'!$O$5,'Tabla Fijos'!L134,IF(COTIZADOR!$F$11='Tabla Parámetros'!$O$6,'Tabla Fijos'!L134,IF(COTIZADOR!$F$11='Tabla Parámetros'!$O$4,'Tabla Crecientes'!L133))))) -> 247.06 | L189: =IF(B189="","",IF($F$11='Tabla Parámetros'!$O$3,'Tabla Fijos'!M134,IF($F$11='Tabla Parámetros'!$O$5,'Tabla Fijos'!M134,IF(COTIZADOR!$F$11='Tabla Parámetros'!$O$6,'Tabla Fijos'!M134,IF(COTIZADOR!$F$11='Tabla Parámetros'!$O$4,'Tabla Crecientes'!M133))))) -> 349.00 | M189: =IF($F$11='Tabla Parámetros'!$O$3,'Tabla Fijos'!N134,IF($F$11='Tabla Parámetros'!$O$5,'Tabla Fijos'!N134,IF(COTIZADOR!$F$11='Tabla Parámetros'!$O$6,'Tabla Fijos'!N134,IF(COTIZADOR!$F$11='Tabla Parámetros'!$O$4,'Tabla Crecientes'!N133)))) -> 0.00 | O189: 9,117.17 | P189: 669,345.00 | Q189: 1
B190: 124 | C190: =IF($B$67="","",'Fecha Pago'!K127) -> 2031-02-03 | D190: =IF($B$67="","",'Fecha Pago'!L127) -> 30.40 | E190: =IF(B190="","",IF($F$11='Tabla Parámetros'!$O$3,'Tabla Fijos'!E134,IF($F$11='Tabla Parámetros'!$O$5,'Tabla Fijos'!E134,IF(COTIZADOR!$F$11='Tabla Parámetros'!$O$6,'Tabla Fijos'!E134,IF(COTIZADOR!$F$11='Tabla Parámetros'!$O$4,'Tabla Crecientes'!E133))))) -> 7.50% | F190: 669,345.00 | G190: =IF(B190="","",IF($F$11='Tabla Parámetros'!$O$3,'Tabla Fijos'!G135,IF($F$11='Tabla Parámetros'!$O$5,'Tabla Fijos'!G135,IF(COTIZADOR!$F$11='Tabla Parámetros'!$O$6,'Tabla Fijos'!G135,IF(COTIZADOR!$F$11='Tabla Parámetros'!$O$4,'Tabla Crecientes'!G134))))) -> 3,878.00 | H190: =IF(B190="","",IF($F$11='Tabla Parámetros'!$O$3,'Tabla Fijos'!H135,IF($F$11='Tabla Parámetros'!$O$5,'Tabla Fijos'!H135,IF(COTIZADOR!$F$11='Tabla Parámetros'!$O$6,'Tabla Fijos'!H135,IF(COTIZADOR!$F$11='Tabla Parámetros'!$O$4,'Tabla Crecientes'!H134))))) -> 4,239.19 | I190: =IF($F$11='Tabla Parámetros'!$O$3,'Tabla Fijos'!I135,IF($F$11='Tabla Parámetros'!$O$5,'Tabla Fijos'!I135,IF(COTIZADOR!$F$11='Tabla Parámetros'!$O$6,'Tabla Fijos'!I135,IF(COTIZADOR!$F$11='Tabla Parámetros'!$O$4,'Tabla Crecientes'!I134)))) -> 0.00 | J190: =IF(B190="","",IF($F$11='Tabla Parámetros'!$O$3,'Tabla Fijos'!K135,IF($F$11='Tabla Parámetros'!$O$5,'Tabla Fijos'!K135,IF(COTIZADOR!$F$11='Tabla Parámetros'!$O$6,'Tabla Fijos'!K135,IF(COTIZADOR!$F$11='Tabla Parámetros'!$O$4,'Tabla Crecientes'!K134))))) -> 401.61 | K190: =IF(B190="","",IF($F$11='Tabla Parámetros'!$O$3,'Tabla Fijos'!L135,IF($F$11='Tabla Parámetros'!$O$5,'Tabla Fijos'!L135,IF(COTIZADOR!$F$11='Tabla Parámetros'!$O$6,'Tabla Fijos'!L135,IF(COTIZADOR!$F$11='Tabla Parámetros'!$O$4,'Tabla Crecientes'!L134))))) -> 247.06 | L190: =IF(B190="","",IF($F$11='Tabla Parámetros'!$O$3,'Tabla Fijos'!M135,IF($F$11='Tabla Parámetros'!$O$5,'Tabla Fijos'!M135,IF(COTIZADOR!$F$11='Tabla Parámetros'!$O$6,'Tabla Fijos'!M135,IF(COTIZADOR!$F$11='Tabla Parámetros'!$O$4,'Tabla Crecientes'!M134))))) -> 349.00 | M190: =IF($F$11='Tabla Parámetros'!$O$3,'Tabla Fijos'!N135,IF($F$11='Tabla Parámetros'!$O$5,'Tabla Fijos'!N135,IF(COTIZADOR!$F$11='Tabla Parámetros'!$O$6,'Tabla Fijos'!N135,IF(COTIZADOR!$F$11='Tabla Parámetros'!$O$4,'Tabla Crecientes'!N134)))) -> 0.00 | O190: 9,114.85 | P190: 665,467.00 | Q190: 1
B191: 125 | C191: =IF($B$67="","",'Fecha Pago'!K128) -> 2031-03-03 | D191: =IF($B$67="","",'Fecha Pago'!L128) -> 30.40 | E191: =IF(B191="","",IF($F$11='Tabla Parámetros'!$O$3,'Tabla Fijos'!E135,IF($F$11='Tabla Parámetros'!$O$5,'Tabla Fijos'!E135,IF(COTIZADOR!$F$11='Tabla Parámetros'!$O$6,'Tabla Fijos'!E135,IF(COTIZADOR!$F$11='Tabla Parámetros'!$O$4,'Tabla Crecientes'!E134))))) -> 7.50% | F191: 665,467.00 | G191: =IF(B191="","",IF($F$11='Tabla Parámetros'!$O$3,'Tabla Fijos'!G136,IF($F$11='Tabla Parámetros'!$O$5,'Tabla Fijos'!G136,IF(COTIZADOR!$F$11='Tabla Parámetros'!$O$6,'Tabla Fijos'!G136,IF(COTIZADOR!$F$11='Tabla Parámetros'!$O$4,'Tabla Crecientes'!G135))))) -> 3,902.56 | H191: =IF(B191="","",IF($F$11='Tabla Parámetros'!$O$3,'Tabla Fijos'!H136,IF($F$11='Tabla Parámetros'!$O$5,'Tabla Fijos'!H136,IF(COTIZADOR!$F$11='Tabla Parámetros'!$O$6,'Tabla Fijos'!H136,IF(COTIZADOR!$F$11='Tabla Parámetros'!$O$4,'Tabla Crecientes'!H135))))) -> 4,214.62 | I191: =IF($F$11='Tabla Parámetros'!$O$3,'Tabla Fijos'!I136,IF($F$11='Tabla Parámetros'!$O$5,'Tabla Fijos'!I136,IF(COTIZADOR!$F$11='Tabla Parámetros'!$O$6,'Tabla Fijos'!I136,IF(COTIZADOR!$F$11='Tabla Parámetros'!$O$4,'Tabla Crecientes'!I135)))) -> 0.00 | J191: =IF(B191="","",IF($F$11='Tabla Parámetros'!$O$3,'Tabla Fijos'!K136,IF($F$11='Tabla Parámetros'!$O$5,'Tabla Fijos'!K136,IF(COTIZADOR!$F$11='Tabla Parámetros'!$O$6,'Tabla Fijos'!K136,IF(COTIZADOR!$F$11='Tabla Parámetros'!$O$4,'Tabla Crecientes'!K135))))) -> 399.28 | K191: =IF(B191="","",IF($F$11='Tabla Parámetros'!$O$3,'Tabla Fijos'!L136,IF($F$11='Tabla Parámetros'!$O$5,'Tabla Fijos'!L136,IF(COTIZADOR!$F$11='Tabla Parámetros'!$O$6,'Tabla Fijos'!L136,IF(COTIZADOR!$F$11='Tabla Parámetros'!$O$4,'Tabla Crecientes'!L135))))) -> 247.06 | L191: =IF(B191="","",IF($F$11='Tabla Parámetros'!$O$3,'Tabla Fijos'!M136,IF($F$11='Tabla Parámetros'!$O$5,'Tabla Fijos'!M136,IF(COTIZADOR!$F$11='Tabla Parámetros'!$O$6,'Tabla Fijos'!M136,IF(COTIZADOR!$F$11='Tabla Parámetros'!$O$4,'Tabla Crecientes'!M135))))) -> 349.00 | M191: =IF($F$11='Tabla Parámetros'!$O$3,'Tabla Fijos'!N136,IF($F$11='Tabla Parámetros'!$O$5,'Tabla Fijos'!N136,IF(COTIZADOR!$F$11='Tabla Parámetros'!$O$6,'Tabla Fijos'!N136,IF(COTIZADOR!$F$11='Tabla Parámetros'!$O$4,'Tabla Crecientes'!N135)))) -> 0.00 | O191: 9,112.53 | P191: 661,564.43 | Q191: 1
B192: 126 | C192: =IF($B$67="","",'Fecha Pago'!K129) -> 2031-04-03 | D192: =IF($B$67="","",'Fecha Pago'!L129) -> 30.40 | E192: =IF(B192="","",IF($F$11='Tabla Parámetros'!$O$3,'Tabla Fijos'!E136,IF($F$11='Tabla Parámetros'!$O$5,'Tabla Fijos'!E136,IF(COTIZADOR!$F$11='Tabla Parámetros'!$O$6,'Tabla Fijos'!E136,IF(COTIZADOR!$F$11='Tabla Parámetros'!$O$4,'Tabla Crecientes'!E135))))) -> 7.50% | F192: 661,564.43 | G192: =IF(B192="","",IF($F$11='Tabla Parámetros'!$O$3,'Tabla Fijos'!G137,IF($F$11='Tabla Parámetros'!$O$5,'Tabla Fijos'!G137,IF(COTIZADOR!$F$11='Tabla Parámetros'!$O$6,'Tabla Fijos'!G137,IF(COTIZADOR!$F$11='Tabla Parámetros'!$O$4,'Tabla Crecientes'!G136))))) -> 3,927.28 | H192: =IF(B192="","",IF($F$11='Tabla Parámetros'!$O$3,'Tabla Fijos'!H137,IF($F$11='Tabla Parámetros'!$O$5,'Tabla Fijos'!H137,IF(COTIZADOR!$F$11='Tabla Parámetros'!$O$6,'Tabla Fijos'!H137,IF(COTIZADOR!$F$11='Tabla Parámetros'!$O$4,'Tabla Crecientes'!H136))))) -> 4,189.91 | I192: =IF($F$11='Tabla Parámetros'!$O$3,'Tabla Fijos'!I137,IF($F$11='Tabla Parámetros'!$O$5,'Tabla Fijos'!I137,IF(COTIZADOR!$F$11='Tabla Parámetros'!$O$6,'Tabla Fijos'!I137,IF(COTIZADOR!$F$11='Tabla Parámetros'!$O$4,'Tabla Crecientes'!I136)))) -> 0.00 | J192: =IF(B192="","",IF($F$11='Tabla Parámetros'!$O$3,'Tabla Fijos'!K137,IF($F$11='Tabla Parámetros'!$O$5,'Tabla Fijos'!K137,IF(COTIZADOR!$F$11='Tabla Parámetros'!$O$6,'Tabla Fijos'!K137,IF(COTIZADOR!$F$11='Tabla Parámetros'!$O$4,'Tabla Crecientes'!K136))))) -> 396.94 | K192: =IF(B192="","",IF($F$11='Tabla Parámetros'!$O$3,'Tabla Fijos'!L137,IF($F$11='Tabla Parámetros'!$O$5,'Tabla Fijos'!L137,IF(COTIZADOR!$F$11='Tabla Parámetros'!$O$6,'Tabla Fijos'!L137,IF(COTIZADOR!$F$11='Tabla Parámetros'!$O$4,'Tabla Crecientes'!L136))))) -> 247.06 | L192: =IF(B192="","",IF($F$11='Tabla Parámetros'!$O$3,'Tabla Fijos'!M137,IF($F$11='Tabla Parámetros'!$O$5,'Tabla Fijos'!M137,IF(COTIZADOR!$F$11='Tabla Parámetros'!$O$6,'Tabla Fijos'!M137,IF(COTIZADOR!$F$11='Tabla Parámetros'!$O$4,'Tabla Crecientes'!M136))))) -> 349.00 | M192: =IF($F$11='Tabla Parámetros'!$O$3,'Tabla Fijos'!N137,IF($F$11='Tabla Parámetros'!$O$5,'Tabla Fijos'!N137,IF(COTIZADOR!$F$11='Tabla Parámetros'!$O$6,'Tabla Fijos'!N137,IF(COTIZADOR!$F$11='Tabla Parámetros'!$O$4,'Tabla Crecientes'!N136)))) -> 0.00 | O192: 9,110.19 | P192: 657,637.15 | Q192: 1
B193: 127 | C193: =IF($B$67="","",'Fecha Pago'!K130) -> 2031-05-03 | D193: =IF($B$67="","",'Fecha Pago'!L130) -> 30.40 | E193: =IF(B193="","",IF($F$11='Tabla Parámetros'!$O$3,'Tabla Fijos'!E137,IF($F$11='Tabla Parámetros'!$O$5,'Tabla Fijos'!E137,IF(COTIZADOR!$F$11='Tabla Parámetros'!$O$6,'Tabla Fijos'!E137,IF(COTIZADOR!$F$11='Tabla Parámetros'!$O$4,'Tabla Crecientes'!E136))))) -> 7.50% | F193: 657,637.15 | G193: =IF(B193="","",IF($F$11='Tabla Parámetros'!$O$3,'Tabla Fijos'!G138,IF($F$11='Tabla Parámetros'!$O$5,'Tabla Fijos'!G138,IF(COTIZADOR!$F$11='Tabla Parámetros'!$O$6,'Tabla Fijos'!G138,IF(COTIZADOR!$F$11='Tabla Parámetros'!$O$4,'Tabla Crecientes'!G137))))) -> 3,952.15 | H193: =IF(B193="","",IF($F$11='Tabla Parámetros'!$O$3,'Tabla Fijos'!H138,IF($F$11='Tabla Parámetros'!$O$5,'Tabla Fijos'!H138,IF(COTIZADOR!$F$11='Tabla Parámetros'!$O$6,'Tabla Fijos'!H138,IF(COTIZADOR!$F$11='Tabla Parámetros'!$O$4,'Tabla Crecientes'!H137))))) -> 4,165.04 | I193: =IF($F$11='Tabla Parámetros'!$O$3,'Tabla Fijos'!I138,IF($F$11='Tabla Parámetros'!$O$5,'Tabla Fijos'!I138,IF(COTIZADOR!$F$11='Tabla Parámetros'!$O$6,'Tabla Fijos'!I138,IF(COTIZADOR!$F$11='Tabla Parámetros'!$O$4,'Tabla Crecientes'!I137)))) -> 0.00 | J193: =IF(B193="","",IF($F$11='Tabla Parámetros'!$O$3,'Tabla Fijos'!K138,IF($F$11='Tabla Parámetros'!$O$5,'Tabla Fijos'!K138,IF(COTIZADOR!$F$11='Tabla Parámetros'!$O$6,'Tabla Fijos'!K138,IF(COTIZADOR!$F$11='Tabla Parámetros'!$O$4,'Tabla Crecientes'!K137))))) -> 394.58 | K193: =IF(B193="","",IF($F$11='Tabla Parámetros'!$O$3,'Tabla Fijos'!L138,IF($F$11='Tabla Parámetros'!$O$5,'Tabla Fijos'!L138,IF(COTIZADOR!$F$11='Tabla Parámetros'!$O$6,'Tabla Fijos'!L138,IF(COTIZADOR!$F$11='Tabla Parámetros'!$O$4,'Tabla Crecientes'!L137))))) -> 247.06 | L193: =IF(B193="","",IF($F$11='Tabla Parámetros'!$O$3,'Tabla Fijos'!M138,IF($F$11='Tabla Parámetros'!$O$5,'Tabla Fijos'!M138,IF(COTIZADOR!$F$11='Tabla Parámetros'!$O$6,'Tabla Fijos'!M138,IF(COTIZADOR!$F$11='Tabla Parámetros'!$O$4,'Tabla Crecientes'!M137))))) -> 349.00 | M193: =IF($F$11='Tabla Parámetros'!$O$3,'Tabla Fijos'!N138,IF($F$11='Tabla Parámetros'!$O$5,'Tabla Fijos'!N138,IF(COTIZADOR!$F$11='Tabla Parámetros'!$O$6,'Tabla Fijos'!N138,IF(COTIZADOR!$F$11='Tabla Parámetros'!$O$4,'Tabla Crecientes'!N137)))) -> 0.00 | O193: 9,107.83 | P193: 653,685.00 | Q193: 1
